Workbook

Sheet LDC Info
AA3: Algoma Power Inc.
AA4: Atikokan Hydro Inc.
AA5: Attawapiskat Power Corporation
AA6: Bluewater Power Distribution Corporation
AA7: Brant County Power Inc.
AA8: Brantford Power Inc.
AA9: Burlington Hydro Inc.
AA10: Cambridge and North Dumfries Hydro Inc.
AA11: Canadian Niagara Power Inc.
AA12: Centre Wellington Hydro Ltd.
AA13: Chapleau Public Utilities Corporation
D14: Utility Name | E14: Brantford Power Inc. | AA14: COLLUS PowerStream Corp.
AA15: Cooperative Hydro Embrun Inc.
D16: Assigned EB Number | AA16: E.L.K. Energy Inc.
AA17: Enersource Hydro Mississauga Inc.
D18: Name of Contact and Title | AA18: Entegrus Powerlines Inc.
AA19: EnWin Utilities Ltd.
D20: Phone Number | AA20: Erie Thames Powerlines Corporation
AA21: Espanola Regional Hydro Distribution Corporation
D22: Email Address | AA22: Essex Powerlines Corporation
AA23: Festival Hydro Inc.
D24: Test Year | E24: 2017 | AA24: Fort Albany Power Corporation
AA25: Fort Frances Power Corporation
D26: Bridge Year | E26: =IF(ISBLANK(E24), "", E24-1) -> 2016 | AA26: Greater Sudbury Hydro Inc.
AA27: Grimsby Power Inc.
D28: Last Rebasing Year | E28: 2011 | AA28: Guelph Hydro Electric Systems Inc.
AA29: Haldimand County Hydro Inc.
A30: Identify the accounting standard used for the test year | AA30: Halton Hills Hydro Inc.
E31: MIFRS | AA31: Hearst Power Distribution Company Limited
AA32: Horizon Utilities Corporation
A33: Did you update your depreciation and capitalization policies? | AA33: Hydro 2000 Inc.
E34: Yes | AA34: Hydro Hawkesbury Inc.
AA35: Hydro One Brampton Networks Inc.
A36: When did you update your depreciation and capitalization policies? | AA36: Hydro One Networks Inc.
E37: 2001-01-01 | AA37: Hydro One Remote Communities Inc.
AA38: Hydro Ottawa Limited
A39: Identify the year that the applicant has adopted or is expected to adopt IFRS for financial reporting purposes | AA39: Innpower Corporation
E40: 2015 or Later | AA40: Kashechewan Power Corporation
AA41: Kenora Hydro Electric Corporation Ltd.
AA42: Kingston Hydro Corporation
A43: Are you applying for cost recovery for the test and/or future year(s) for Green Energy initiatives? | AA43: Kitchener-Wilmot Hydro Inc.
AA44: Lakefront Utilities Inc.
AA45: Lakeland Power Distribution Ltd.
A46: ="Is " & E14 & " an embedded distributor?" -> Is Brantford Power Inc. an embedded distributor? | AA46: London Hydro Inc.
AA47: Midland Power Utility Corporation
AA48: Milton Hydro Distribution Inc.
B49: Notes | AA49: Newmarket-Tay Power Distribution Ltd.
AA50: Niagara Peninsula Energy Inc.
C51: Pale green cells represent input cells. | AA51: Niagara-on-the-Lake Hydro Inc.
AA52: Norfolk Power Distribution Inc.
C53: Pale blue cells represent drop-down lists. The applicant should select the appropriate item from the drop-down list. | AA53: North Bay Hydro Distribution Limited
AA54: Northern Ontario Wires Inc.
C55: White cells contain fixed values, automatically generated values or formulae. | AA55: Oakville Hydro Electricity Distribution Inc.
AA56: Orangeville Hydro Limited
AA57: Orillia Power Distribution Corporation
AA58: Oshawa PUC Networks Inc.
AA59: Ottawa River Power Corporation
AA60: Peterborough Distribution Incorporated
AA61: PowerStream Inc.
AA62: PUC Distribution Inc.
AA63: Renfrew Hydro Inc.
AA64: Rideau St. Lawrence Distribution Inc.
AA65: Sioux Lookout Hydro Inc.
AA66: St. Thomas Energy Inc.
AA67: Thunder Bay Hydro Electricity Distribution Inc.
AA68: Tillsonburg Hydro Inc.
AA69: Toronto Hydro-Electric System Limited
AA70: Veridian Connections Inc.
AA71: Wasaga Distribution Inc.
AA72: Waterloo North Hydro Inc.
AA73: Welland Hydro-Electric System Corp.
AA74: Wellington North Power Inc.
AA75: West Coast Huron Energy Inc.
AA76: Westario Power Inc.
AA77: Whitby Hydro Electric Corporation
AA78: Woodstock Hydro Services Inc.

Sheet Index
A15: 1 | B15: LDC Information Sheet | E15: 28 | F15: App.2-G: Service Reliability Indicators
A16: 2 | B16: Index | E16: 29 | F16: App.2-H: Other Operating Revenue
A17: 3 | B17: Cost of Service Application Flowchart | E17: 30 | F17: App.2-I: Load Forecast CDM Adjustment Workform
A18: 4 | B18: List of Key References | E18: 31 | F18: App.2-IA: Actual and Forecast Load and Customer Data
A19: 5 | B19: App.2-AA: Capital Projects Table | E19: 32 | F19: App.2-JA: OM&A Summary Analysis
A20: 6 | B20: App.2-AB: Capital Expenditures | E20: 33 | F20: App.2-JB: Recoverable OM&A Cost Driver Table
A21: 7 | B21: App. 2-AC: Customer Engagement Worksheet | E21: 34 | F21: App.2-JC: OM&A Programs Table
A22: 8 | B22: App.2-B: General Accounting Instructions | E22: 35 | F22: App.2-K: Employee Costs
A23: 9 | B23: App.2-BA: Fixed Asset Continuity Schedule | E23: 36 | F23: App.2-L: Recoverable OM&A Cost per Customer and per FTE
A24: 10 | B24: Appendix 2-BB: Service Life Comparison | E24: 37 | F24: App.2-M: Regulatory Costs Schedule
A25: 11 | B25: App.2-CA: 2012 Depreciation and Amortization Expense (Old CGAAP) | E25: 38 | F25: App.2-N: Shared Servcies and Corporate Cost Allocation
A26: 12 | B26: App.2-CB: 2012 Depreciation and Amortization Expense (New CGAAP) | E26: 39 | F26: App.2-OA: Capital Structure and Cost of Capital
A27: 13 | B27: App.2-CC: 2013 Depreciation and Amortization Expense (New CGAAP) | E27: 40 | F27: App.2-OB: Debt Instruments
A28: 14 | B28: App.2-CD: 2014 Depreciation and Amortization Expense (MIFRS) | E28: 41 | F28: App.2-P: Cost Allocation
A29: 15 | B29: App.2-CE: 2015 Depreciation and Amortization Expense (MIFRS) | E29: 42 | F29: App.2-PA: New Rate Design Policy For Residential Customers
A30: 16 | B30: App.2-CF: 2015 Depreciation and Amortization Expense (MIFRS) | E30: 43 | F30: App.2-Q: Cost of Serving Embedded Distributor(s)
A31: 17 | B31: App.2-CG: 2013 Depreciation and Amortization Expense (Old CGAAP) | E31: 44 | F31: App.2-R: Loss Factors
A32: 18 | B32: App.2-CH: 2013 Depreciation and Amortization Expense (New CGAAP) | E32: 45 | F32: App.2-S: Stranded Meter Treatment
A33: 19 | B33: App.2-CI: 2014 Depreciation and Amortization Expense (MIFRS) | E33: 46 | F33: App.2-TA: Account 1592, PILs and Tax Variances
A34: 20 | B34: App.2-CJ: 2015 Depreciation and Amortization Expense (MIFRS) | E34: 47 | F34: App.2-TB: Account 1592, HST-OVAT Input Tax Credits
A35: 21 | B35: App.2-CK: 2016 Depreciation and Amortization Expense (MIFRS) | E35: 48 | F35: App.2-U: One-Time Incremental IFRS Transition Costs
A36: 22 | B36: App.2-D: Overhead Expenses | E36: 49 | F36: App.2-V: Revenue Reconciliation
A37: 23 | B37: App.2-EA: Account 1575 PP&E Deferral Account (2015 IFRS Adopters) | E37: 50 | F37: App.2-W: Bill Impacts
A38: 24 | B38: App.2-EB: Account 1576 - Accounting Changes Under CGAAP (2012 Changes) | E38: 51 | F38: App.2-Y: Transition to MIFRS Summary Impact
A39: 25 | B39: App.2-EC: Account 1576 - Accounting Changes Under CGAAP (2013 Changes) | E39: 52 | F39: App. 2-Z: Tariff Schedule
A40: 26 | B40: App.2-FA: Renewable Generation Connection Investment Summary
A41: 27 | B41: App.2-FB: Calculation of Renewable Generation Connection Direct Benefits/Provincial Amount: Renewable Enabling Improvement Investments
A42: 28 | B42: App.2-FC: Calculation of Renewable Generation Connection Direct Benefits/Provincial Amount: Renewable Expansion Investments

Sheet COS Flowchart
B4: Cost of Service Rate Application Schematic
B6: The Cost of Service Rate Application Schematic is a flowchart appended to Chapter 2 of the Filing Requirements as a guide for the components of an application and how demand and costs interrelate to derive the revenue requirement and then how the revenue requirement is allocated between classes and through fixed/variable splits to derive rates that will be compensatory for the annual revenue requirement, based on the the forecasted demand. There is no form to be filled out; therefore, this Schedule is not required to be filed.

Sheet List of Key References
B3: List of Key References
A5: A list of key references for understanding the Filing Requirements has been embedded in the document below. To access the list of references and associated hyperlinks double-click the icon below.

Sheet App.2-AA_Capital Projects
G1: File Number: | H1: =EBNUMBER -> 0
G2: Exhibit:
G3: Tab:
G4: Schedule:
G5: Page:
G7: Date:
A9: Appendix 2-AA
A10: Capital Projects Table
A13: Projects | B13: =C13-1 -> 2012 | C13: =D13-1 -> 2013 | D13: =E13-1 -> 2014 | E13: =BridgeYear - 1 -> 2015 | F13: =BridgeYear & " Bridge Year" -> 2016 Bridge Year | G13: =TestYear & " Test Year" -> 2017 Test Year
A14: Reporting Basis
A15: Project Name #1
A21: Sub-Total | B21: =SUM(B16:B20) -> 0 | C21: 0 | D21: 0 | E21: 0 | F21: 0 | G21: 0
A22: Project Name #2
A28: Sub-Total | B28: =SUM(B23:B27) -> 0 | C28: 0 | D28: 0 | E28: 0 | F28: 0 | G28: 0
A29: Project Name #3
A35: Sub-Total | B35: =SUM(B30:B34) -> 0 | C35: 0 | D35: 0 | E35: 0 | F35: 0 | G35: 0
A36: Project Name #4
A42: Sub-Total | B42: =SUM(B37:B41) -> 0 | C42: 0 | D42: 0 | E42: 0 | F42: 0 | G42: 0
A43: Miscellaneous
A44: Total | B44: =SUMPRODUCT(--($A15:$A43="Sub-Total"), B$15:B$43)+B43 -> 0 | C44: 0 | D44: 0 | E44: 0 | F44: 0 | G44: 0
A45: Less Renewable Generation Facility Assets and Other Non-Rate-Regulated Utility Assets (input as negative)
A46: Total | B46: =B44+B45 -> 0 | C46: 0 | D46: 0 | E46: 0 | F46: 0 | G46: 0
A48: Notes:
A50: 1 Please provide a breakdown of the major components of each capital project undertaken in each year. Please ensure that all projects below the materiality threshold are included in the miscellaneous line. Add more projects as required.
A51: 2 The applicant should group projects appropriately and avoid presentations that result in classification of significant components of the capital budget in the miscellaneous category.

Sheet App.2-AB_Capital Expenditures
S1: File Number: | U1: =EBNUMBER -> 0
S2: Exhibit:
S3: Tab:
S4: Schedule:
S5: Page:
S7: Date:
A9: Appendix 2-AB
A10: Table 2 - Capital Expenditure Summary from Chapter 5 Consolidated Distribution System Plan Filing Requirements
A12: First year of Forecast Period: | B12: =TestYear -> 2017
A13: CATEGORY | B13: Historical Period (previous plan1 & actual) | Q13: Forecast Period (planned)
B14: =E14-1 -> 2012 | E14: =H14-1 -> 2013 | H14: =K14-1 -> 2014 | K14: =N14-1 -> 2015 | N14: =Q14-1 -> 2016 | Q14: =B12 -> 2017 | R14: =Q14+1 -> 2018 | S14: =R14+1 -> 2019 | T14: 2020 | U14: 2021
B15: Plan | C15: Actual | D15: Var | E15: Plan | F15: Actual | G15: Var | H15: Plan | I15: Actual | J15: Var | K15: Plan | L15: Actual | M15: Var | N15: Plan | O15: Actual2 | P15: Var
B16: $ '000 | D16: % | E16: $ '000 | G16: % | H16: $ '000 | J16: % | K16: $ '000 | M16: % | N16: $ '000 | P16: % | Q16: $ '000
A17: System Access | D17: =IF(ISERROR((C17-B17)/B17),"--",(C17-B17)/B17) -> -- | G17: =IF(ISERROR((F17-E17)/E17),"--",(F17-E17)/E17) -> -- | J17: =IF(ISERROR((I17-H17)/H17),"--",(I17-H17)/H17) -> -- | M17: =IF(ISERROR((L17-K17)/K17),"--",(L17-K17)/K17) -> -- | P17: =IF(ISERROR((O17-N17)/N17),"--",(O17-N17)/N17) -> --
A18: System Renewal | D18: =IF(ISERROR((C18-B18)/B18),"--",(C18-B18)/B18) -> -- | G18: =IF(ISERROR((F18-E18)/E18),"--",(F18-E18)/E18) -> -- | J18: =IF(ISERROR((I18-H18)/H18),"--",(I18-H18)/H18) -> -- | M18: =IF(ISERROR((L18-K18)/K18),"--",(L18-K18)/K18) -> -- | P18: =IF(ISERROR((O18-N18)/N18),"--",(O18-N18)/N18) -> --
A19: System Service | D19: -- | G19: -- | J19: -- | M19: -- | P19: --
A20: General Plant | D20: -- | G20: -- | J20: -- | M20: -- | P20: --
A21: TOTAL EXPENDITURE | B21: =SUM(B17:B20) -> 0 | C21: =SUM(C17:C20) -> 0 | D21: -- | E21: 0 | F21: 0 | G21: -- | H21: 0 | I21: 0 | J21: -- | K21: 0 | L21: 0 | M21: -- | N21: 0 | O21: 0 | P21: -- | Q21: 0 | R21: 0 | S21: 0 | T21: 0 | U21: =SUM(U17:U20) -> 0
A22: System O&M | D22: -- | G22: -- | J22: -- | M22: -- | P22: --
A24: Notes to the Table:
A25: 1. Historical “previous plan” data is not required unless a plan has previously been filed
A26: 2. Indicate the number of months of 'actual' data included in the last year of the Historical Period (normally a 'bridge' year):
A28: Explanatory Notes on Variances (complete only if applicable)
A29: Notes on shifts in forecast vs. historical budgets by category
A32: Notes on year over year Plan vs. Actual variances for Total Expenditures
A35: Notes on Plan vs. Actual variance trends for individual expenditure categories

Sheet App. 2-AC_Customer Engagement
B1: File Number: | C1: =EBNUMBER -> 0
B2: Exhibit:
B3: Tab:
B4: Schedule:
B5: Page:
B7: Date:
A9: Appendix 2-AC
A10: Customer Engagement Activities Summary
A12: Provide a list of customer engagement activities | B12: Provide a list of customer needs and preferences identified through each engagement activity | C12: Actions taken to respond to identified needs and preferences. If no action was taken, explain why.
A45: Note: Use "ALT-ENTER" to go to the next line within a cell

Sheet App.2-B_Acct Instructions
A1: General Instructions to MIFRS Appendices
A2: Types of Schedules to File
A4: The purpose of this tab is to provide general instructions. The specific instructions to each appendix are listed in footnotes of each appendix.
A6: The typical applicant is expected to have made capitalization and depreciation policy changes under CGAAP as permitted by the Board on January 1, 2012 or mandated by the Board by January 1, 2013, and adopted IFRS for reporting purposes on January 1, 2015 (transition date January 1, 2014). In general, applicants under the two scenarios should provide the following information in the appendices:
E9: Accounting Policy Changes in 2012 and Adopted IFRS in 2015 | F9: Accounting Policy Changes in 2013 and Adopted IFRS in 2015
E10: (Date of Transition to IFRS 2014)
A11: Information to be filed in 2016 CoS Application | B11: 2016 | C11: Test | E11: MIFRS | F11: MIFRS
B12: 2015 | C12: Bridge | E12: MIFRS | F12: MIFRS
B13: 2014 | C13: Historical | E13: MIFRS and Revised CGAAP* | F13: MIFRS and Revised CGAAP*
B14: 2013 | C14: Historical | E14: Revised CGAAP | F14: CGAAP and Revised CGAAP
B15: 2012 | C15: Historical | E15: CGAAP and Revised CGAAP | F15: CGAAP
B16: 2011 and Prior | C16: Historical | E16: CGAAP | F16: CGAAP
A18: 1) For the year that the applicant implemented changes to its capitalization and depreciation policies (2012 or 2013), the applicant must file two appendices, one before and one after the policy changes.
A21: 2) For the transition year (2014), the applicant may file two appendices, one under Revised CGAAP and one under MIFRS, depending on the materiality of impacts. See the specific instructions under each appendix below for further details.
A26: Appendix 2-BA - Fixed Asset Schedule
A28: Applicants are to provide Appendix 2-BA in accordance with the years and corresponding accounting standards noted in the above table to provide a year over year continuity in fixed assets.
A29: *For the transition year (2014), the applicant should file two appendices, one under Revised CGAAP and one under MIFRS if the change between Revised CGAAP and MIFRS is material. If the change from the accounting standards is not material, the applicant may choose to only provide one appendix under MIFRS. However, the applicant must also indicate the fixed asset net book value balance under Revised CGAAP, the total dollar value of the change and explain why it is not material.
A33: Regulatory Gross Assets of Property, Plant and Equipment
A35: For an applicant that adopted IFRS on January 1, 2015 for financial reporting purposes, the applicant must establish the continuity of historic cost by using the December 31, 2013 regulatory gross assets of property, plant and equipment as the opening January 1, 2014 regulatory gross assets. The applicant must provide schedules (including Appendix 2-BA, Fixed Asset Continuity Schedule) which must identify the following details to substantiate the continuity of historic cost for regulatory purposes:
A38: · December 31, 2013 regulatory gross assets of property, plant and equipment, by asset class; and
A39: · January 1, 2014 regulatory gross assets of property, plant and equipment, by asset class.
A41: Accumulated Depreciation
A43: For an applicant that adopted IFRS on January 1, 2015 for financial reporting purposes, the applicant must establish the continuity of historic cost by using the December 31, 2013 regulatory accumulated depreciation as the opening January 1, 2014 regulatory accumulated depreciation. The applicant must provide schedules (including Appendix 2-BA, Fixed Asset Continuity Schedule) which must identify the following details to substantiate the continuity of historic cost for regulatory purposes:
A46: · December 31, 2013 regulatory accumulated depreciation, by asset class; and
A47: · January 1, 2014 regulatory accumulated depreciation, by asset class.
A49: Appendix 2-C - Depreciation and Amortization
A51: Applicants are to provide Appendix 2-C starting in the year capitalization and depreciation policy changes were implemented in accordance with the years and corresponding accounting standards listed in the above table.
A52: If an applicant changed capitalization and depreciation policies effective January 1, 2012 and adopted IFRS for reporting purposes effective January 1, 2015, the applicant must complete Appendix 2-CA to 2-CF (inclusive).
A53: If an applicant changed capitalization and depreciation policies effective January 1, 2013 and adopted IFRS for reporting purposes effective January 1, 2015, the applicant must complete Appendix 2-CG to 2-CK (inclusive).
A54: *Depreciation accounting policy changes were mandated by the Board by January 1, 2013. These accounting changes should be implemented consistent with the Board’s regulatory accounting policies as set out for MIFRS as contained in the Report of the Board, Transition to International Financial Reporting Standards (EB-2008-0408), the Depreciation Study for Use by Electricity Distributors (EB-2010-0178) and the Revised 2012 Accounting Procedures Handbook for Electricity Distributors. In general, no further changes to an applicant's depreciation policy (i.e. assets' service lives) are expected after the Board mandated changes by January 1, 2013. The set of Appendix CA to CK assumes this to be the case. If the applicant has made any changes to its depreciation policy subsequent to the Board mandated changes, applicants must identify the change, explain the nature of the change, the reason for the change, quantify the impact of the change, and quantify the depreciation expense before and after the change.
A57: Appendix 2-E - Account 1575, IFRS-CGAAP Transitional PP&E Amounts (2-EA), Account 1576, Accounting Changes Under CGAAP (2-EB, 2-EC)
A59: If an applicant changed capitalization and depreciation policies effective January 1, 2012 and adopted IFRS for reporting purposes effective January 1, 2015, the applicant must complete Appendix 2-EA and 2-EB. If the applicant did not make any further PP&E accounting policy changes beyond the capitalization and depreciation policy changes as permitted by the Board on January 1, 2012 (i.e. no further changes made on transition to IFRS), the applicant must indicate this and does not need to complete Appendix 2-EA.
A61: If an applicant changed capitalization and depreciation policies effective January 1, 2013 and adopted IFRS for reporting purposes effective January 1, 2015, the applicant must complete Appendix 2-EA and 2-EC. If the applicant did not make any further PP&E accounting policy changes beyond the capitalization and depreciation policy changes as mandated by the Board by January 1, 2013 (i.e. no further changes made on transition to IFRS), the applicant must indicate this and does not need to complete Appendix 2-EA.
A63: Please refer to section 2.12.4 and 2.12.5 of the Filing Requirements for further details.
A65: Appendix 2-YA - Summary of Impacts to Revenue Requirement from Transition to MIFRS
A67: For applicants adopting MIFRS, the applicants must provide a summary of the dollar impacts of MIFRS to each component of the revenue requirement (e.g. rate base, operating costs, etc), including the overall impact on the proposed revenue requirement. Accordingly, the applicants must identify financial differences and resulting revenue requirement impacts arising from the adoption of MIFRS as compared to CGAAP prior to capitalization and depreciation policy changes.

Sheet App.2-BA_Fixed Asset Cont
L1: File Number: | M1: =EBNUMBER -> 0
L2: Exhibit:
L3: Tab:
L4: Schedule:
L5: Page:
L7: Date:
A9: Appendix 2-BA
A10: Fixed Asset Continuity Schedule 1
E12: Accounting Standard | F12: MIFRS
E13: Year
D15: Cost | J15: Accumulated Depreciation
A16: CCA Class 2 | B16: OEB Account 3 | C16: Description 3 | D16: Opening Balance | E16: Additions 4 | F16: Disposals | G16: Closing Balance | I16: Opening Balance | J16: Additions | K16: Disposals | L16: Closing Balance | M16: Net Book Value
A17: 12 | B17: 1611 | C17: Computer Software (Formally known as Account 1925) | G17: =D17+E17+F17 -> 0 | L17: =I17+J17+K17 -> 0 | M17: =G17+L17 -> 0
A18: CEC | B18: 1612 | C18: Land Rights (Formally known as Account 1906) | G18: =D18+E18+F18 -> 0 | L18: =I18+J18+K18 -> 0 | M18: =G18+L18 -> 0
A19: N/A | B19: 1805 | C19: Land | G19: =D19+E19+F19 -> 0 | L19: =I19+J19+K19 -> 0 | M19: =G19+L19 -> 0
A20: 47 | B20: 1808 | C20: Buildings | G20: =D20+E20+F20 -> 0 | L20: =I20+J20+K20 -> 0 | M20: =G20+L20 -> 0
A21: 13 | B21: 1810 | C21: Leasehold Improvements | G21: 0 | L21: 0 | M21: 0
A22: 47 | B22: 1815 | C22: Transformer Station Equipment >50 kV | G22: 0 | L22: 0 | M22: 0
A23: 47 | B23: 1820 | C23: Distribution Station Equipment <50 kV | G23: 0 | L23: 0 | M23: 0
A24: 47 | B24: 1825 | C24: Storage Battery Equipment | G24: 0 | L24: 0 | M24: 0
A25: 47 | B25: 1830 | C25: Poles, Towers & Fixtures | G25: 0 | L25: 0 | M25: 0
A26: 47 | B26: 1835 | C26: Overhead Conductors & Devices | G26: 0 | L26: 0 | M26: 0
A27: 47 | B27: 1840 | C27: Underground Conduit | G27: 0 | L27: 0 | M27: 0
A28: 47 | B28: 1845 | C28: Underground Conductors & Devices | G28: 0 | L28: 0 | M28: 0
A29: 47 | B29: 1850 | C29: Line Transformers | G29: 0 | L29: 0 | M29: 0
A30: 47 | B30: 1855 | C30: Services (Overhead & Underground) | G30: 0 | L30: 0 | M30: 0
A31: 47 | B31: 1860 | C31: Meters | G31: 0 | L31: 0 | M31: 0
A32: 47 | B32: 1860 | C32: Meters (Smart Meters) | G32: 0 | L32: 0 | M32: 0
A33: N/A | B33: 1905 | C33: Land | G33: 0 | L33: 0 | M33: 0
A34: 47 | B34: 1908 | C34: Buildings & Fixtures | G34: 0 | L34: 0 | M34: 0
A35: 13 | B35: 1910 | C35: Leasehold Improvements | G35: 0 | L35: 0 | M35: 0
A36: 8 | B36: 1915 | C36: Office Furniture & Equipment (10 years) | G36: 0 | L36: 0 | M36: 0
A37: 8 | B37: 1915 | C37: Office Furniture & Equipment (5 years) | G37: 0 | L37: 0 | M37: 0
A38: 10 | B38: 1920 | C38: Computer Equipment - Hardware | G38: 0 | L38: 0 | M38: 0
A39: 45 | B39: 1920 | C39: Computer Equip.-Hardware(Post Mar. 22/04) | G39: 0 | L39: 0 | M39: 0
A40: 45.1 | B40: 1920 | C40: Computer Equip.-Hardware(Post Mar. 19/07) | G40: 0 | L40: 0 | M40: 0
A41: 10 | B41: 1930 | C41: Transportation Equipment | G41: 0 | L41: 0 | M41: 0
A42: 8 | B42: 1935 | C42: Stores Equipment | G42: 0 | L42: 0 | M42: 0
A43: 8 | B43: 1940 | C43: Tools, Shop & Garage Equipment | G43: 0 | L43: 0 | M43: 0
A44: 8 | B44: 1945 | C44: Measurement & Testing Equipment | G44: 0 | L44: 0 | M44: 0
A45: 8 | B45: 1950 | C45: Power Operated Equipment | G45: 0 | L45: 0 | M45: 0
A46: 8 | B46: 1955 | C46: Communications Equipment | G46: 0 | L46: 0 | M46: 0
A47: 8 | B47: 1955 | C47: Communication Equipment (Smart Meters) | G47: 0 | L47: 0 | M47: 0
A48: 8 | B48: 1960 | C48: Miscellaneous Equipment | G48: 0 | L48: 0 | M48: 0
A49: 47 | B49: 1970 | C49: Load Management Controls Customer Premises | G49: 0 | L49: 0 | M49: 0
A50: 47 | B50: 1975 | C50: Load Management Controls Utility Premises | G50: 0 | L50: 0 | M50: 0
A51: 47 | B51: 1980 | C51: System Supervisor Equipment | G51: 0 | L51: 0 | M51: 0
A52: 47 | B52: 1985 | C52: Miscellaneous Fixed Assets | G52: 0 | L52: 0 | M52: 0
A53: 47 | B53: 1990 | C53: Other Tangible Property | G53: 0 | L53: 0 | M53: 0
A54: 47 | B54: 1995 | C54: Contributions & Grants | G54: 0 | L54: 0 | M54: 0
A55: 47 | B55: 2440 | C55: Deferred Revenue5
G56: 0 | L56: 0 | M56: 0
C57: Sub-Total | D57: =SUM(D17:D56) -> 0 | E57: =SUM(E17:E56) -> 0 | F57: =SUM(F17:F56) -> 0 | G57: =SUM(G17:G56) -> 0 | I57: =SUM(I17:I56) -> 0 | J57: =SUM(J17:J56) -> 0 | K57: =SUM(K17:K56) -> 0 | L57: =SUM(L17:L56) -> 0 | M57: =SUM(M17:M56) -> 0
C58: Less Socialized Renewable Energy Generation Investments (input as negative) | G58: =D58+E58+F58 -> 0 | L58: =I58+J58+K58 -> 0 | M58: =G58+L58 -> 0
C59: Less Other Non Rate-Regulated Utility Assets (input as negative) | G59: 0 | L59: 0 | M59: 0
C60: Total PP&E | D60: =SUM(D57:D59) -> 0 | E60: =SUM(E57:E59) -> 0 | F60: 0 | G60: 0 | I60: =SUM(I57:I59) -> 0 | J60: 0 | K60: 0 | L60: 0 | M60: 0
C61: Depreciation Expense adj. from gain or loss on the retirement of assets (pool of like assets), if applicable6
C62: Total | J62: =J60+J61 -> 0
I64: Less: Fully Allocated Depreciation
A65: 10 | C65: Transportation | I65: Transportation
A66: 8 | C66: Stores Equipment | I66: Stores Equipment
I67: Net Depreciation | K67: =J62-K65-K66 -> 0
A69: Notes:
A71: 1 | B71: Tables in the format outlined above covering all fixed asset accounts should be submitted for the Test Year, Bridge Year and all relevant historical years. At a minimum , the applicant must provide data for the earlier of: 1) all historical years back to its last rebasing; or 2) at least three years of historical actuals, in addition to Bridge Year and Test Year forecasts.
A74: 2 | B74: The "CCA Class" for fixed assets should agree with the CCA Class used for tax purposes in Tax Returns. Fixed Assets sub-components may be used where the underlying asset components are classified under multiple CCA Classes for tax purposes. If an applicant uses any different classes from those shown in the table, an explanation should be provided. (also see note 3).
A77: 3 | B77: The table may need to be customized for a utility's asset categories or for any new asset accounts announced or authorized by the Board.
A79: 4 | B79: The additions in column (E) must not include construction work in progress (CWIP).
A81: 5 | B81: Effective on the date of IFRS adoption, customer contributions will no longer be recorded in Account 1995 Contributions & Grants, but will be recorded in Account 2440, Deferred Revenues.
A83: 6 | B83: Where a distributor for general financial reporting purposes under IFRS has accounted for the amount of gain or loss on the retirement of assets in a pool of like assets as a charge or credit to income, for reporting and rate application filings, the distributor shall reclassify such gains and losses as depreciation expense, and disclose the amount separately.

Sheet Appendix 2-BB Service Life
M1: File Number: | O1: 0
M2: Exhibit:
M3: Tab:
M4: Schedule:
M5: Page:
M7: Date:
A9: Appendix 2-BB
A10: Service Life Comparison
A11: Table F-1 from Kinetrics Report1
C15: Asset Details | F15: Useful Life | J15: USoA Account Number | K15: USoA Account Description | L15: Current | N15: Proposed | P15: Outside Range of Min, Max TUL?
A16: Parent* | B16: # | C16: Category| Component | Type | F16: MIN UL | G16: TUL | H16: MAX UL | L16: Years | M16: Rate | N16: Years | O16: Rate | P16: Below Min TUL | Q16: Above Max TUL
A17: OH | B17: 1 | C17: Fully Dressed Wood Poles | D17: Overall | F17: 35 | G17: 45 | H17: 75 | M17: =IF(ISERROR(1/L17), "", 1/L17) ->  | O17: =IF(ISERROR(1/N17), "", 1/N17) ->  | P17: =IF(ISBLANK(N17),"",IF(N17<F17,"Yes","No")) ->  | Q17: =IF(ISBLANK(N17),"",IF(N17>H17,"Yes","No")) -> 
D18: Cross Arm | E18: Wood | F18: 20 | G18: 40 | H18: 55 | M18: =IF(ISERROR(1/L18), "", 1/L18) ->  | O18: =IF(ISERROR(1/N18), "", 1/N18) ->  | P18: =IF(ISBLANK(N18),"",IF(N18<F18,"Yes","No")) ->  | Q18: =IF(ISBLANK(N18),"",IF(N18>H18,"Yes","No")) -> 
E19: Steel | F19: 30 | G19: 70 | H19: 95
B20: 2 | C20: Fully Dressed Concrete Poles | D20: Overall | F20: 50 | G20: 60 | H20: 80
D21: Cross Arm | E21: Wood | F21: 20 | G21: 40 | H21: 55
E22: Steel | F22: 30 | G22: 70 | H22: 95
B23: 3 | C23: Fully Dressed Steel Poles | D23: Overall | F23: 60 | G23: 60 | H23: 80
D24: Cross Arm | E24: Wood | F24: 20 | G24: 40 | H24: 55
E25: Steel | F25: 30 | G25: 70 | H25: 95
B26: 4 | C26: OH Line Switch | F26: 30 | G26: 45 | H26: 55
B27: 5 | C27: OH Line Switch Motor | F27: 15 | G27: 25 | H27: 25
B28: 6 | C28: OH Line Switch RTU | F28: 15 | G28: 20 | H28: 20
B29: 7 | C29: OH Integral Switches | F29: 35 | G29: 45 | H29: 60
B30: 8 | C30: OH Conductors | F30: 50 | G30: 60 | H30: 75
B31: 9 | C31: OH Transformers & Voltage Regulators | F31: 30 | G31: 40 | H31: 60
B32: 10 | C32: OH Shunt Capacitor Banks | F32: 25 | G32: 30 | H32: 40
B33: 11 | C33: Reclosers | F33: 25 | G33: 40 | H33: 55
A34: TS & MS | B34: 12 | C34: Power Transformers | D34: Overall | F34: 30 | G34: 45 | H34: 60
D35: Bushing | F35: 10 | G35: 20 | H35: 30
D36: Tap Changer | F36: 20 | G36: 30 | H36: 60
B37: 13 | C37: Station Service Transformer | F37: 30 | G37: 45 | H37: 55
B38: 14 | C38: Station Grounding Transformer | F38: 30 | G38: 40 | H38: 40
B39: 15 | C39: Station DC System | D39: Overall | F39: 10 | G39: 20 | H39: 30
D40: Battery Bank | F40: 10 | G40: 15 | H40: 15
D41: Charger | F41: 20 | G41: 20 | H41: 30
B42: 16 | C42: Station Metal Clad Switchgear | D42: Overall | F42: 30 | G42: 40 | H42: 60
D43: Removable Breaker | F43: 25 | G43: 40 | H43: 60
B44: 17 | C44: Station Independent Breakers | F44: 35 | G44: 45 | H44: 65
B45: 18 | C45: Station Switch | F45: 30 | G45: 50 | H45: 60
B46: 19 | C46: Electromechanical Relays | F46: 25 | G46: 35 | H46: 50
B47: 20 | C47: Solid State Relays | F47: 10 | G47: 30 | H47: 45
B48: 21 | C48: Digital & Numeric Relays | F48: 15 | G48: 20 | H48: 20
B49: 22 | C49: Rigid Busbars | F49: 30 | G49: 55 | H49: 60
B50: 23 | C50: Steel Structure | F50: 35 | G50: 50 | H50: 90
A51: UG | B51: 24 | C51: Primary Paper Insulated Lead Covered (PILC) Cables | F51: 60 | G51: 65 | H51: 75
B52: 25 | C52: Primary Ethylene-Propylene Rubber (EPR) Cables | F52: 20 | G52: 25 | H52: 25
B53: 26 | C53: Primary Non-Tree Retardant (TR) Cross Linked Polyethylene (XLPE) Cables Direct Buried | F53: 20 | G53: 25 | H53: 30
B54: 27 | C54: Primary Non-TR XLPE Cables in Duct | F54: 20 | G54: 25 | H54: 30
B55: 30 | C55: Secondary PILC Cables | F55: 70 | G55: 75 | H55: 80
B56: 31 | C56: Secondary Cables Direct Buried | F56: 25 | G56: 35 | H56: 40
B57: 32 | C57: Secondary Cables in Duct | F57: 35 | G57: 40 | H57: 60
B58: 33 | C58: Network Tranformers | D58: Overall | F58: 20 | G58: 35 | H58: 50
D59: Protector | F59: 20 | G59: 35 | H59: 40
B60: 34 | C60: Pad-Mounted Transformers | F60: 25 | G60: 40 | H60: 45
B61: 35 | C61: Submersible/Vault Transformers | F61: 25 | G61: 35 | H61: 45
B62: 36 | C62: UG Foundation | F62: 35 | G62: 55 | H62: 70
B63: 37 | C63: UG Vaults | D63: Overall | F63: 40 | G63: 60 | H63: 80
D64: Roof | F64: 20 | G64: 30 | H64: 45
B65: 38 | C65: UG Vault Switches | F65: 20 | G65: 35 | H65: 50
B66: 39 | C66: Pad-Mounted Switchgear | F66: 20 | G66: 30 | H66: 45
B67: 40 | C67: Ducts | F67: 30 | G67: 50 | H67: 85
B68: 41 | C68: Concrete Encased Duct Banks | F68: 35 | G68: 55 | H68: 80
B69: 42 | C69: Cable Chambers | F69: 50 | G69: 60 | H69: 80
A70: S | B70: 43 | C70: Remote SCADA | F70: 15 | G70: 20 | H70: 30
A73: Table F-2 from Kinetrics Report1
C75: Asset Details | F75: Useful Life Range | J75: USoA Account Number | K75: USoA Account Description | L75: Current | N75: Proposed | P75: Outside Range of Min, Max TUL?
B76: # | C76: Category| Component | Type | L76: Years | M76: Rate | N76: Years | O76: Rate | P76: Below Min Range | Q76: Above Max Range
B77: 1 | C77: Office Equipment | F77: 5 | G77: 15 | M77: =IF(ISERROR(1/L77), "", 1/L77) ->  | O77: =IF(ISERROR(1/N77), "", 1/N77) ->  | P77: =IF(ISBLANK(N77),"",IF(N77<F77,"Yes","No")) ->  | Q77: =IF(ISBLANK(N77),"",IF(N77>G77,"Yes","No")) -> 
B78: 2 | C78: Vehicles | D78: Trucks & Buckets | F78: 5 | G78: 15 | M78: =IF(ISERROR(1/L78), "", 1/L78) ->  | O78: =IF(ISERROR(1/N78), "", 1/N78) ->  | P78: =IF(ISBLANK(N78),"",IF(N78<F78,"Yes","No")) ->  | Q78: =IF(ISBLANK(N78),"",IF(N78>G78,"Yes","No")) -> 
D79: Trailers | F79: 5 | G79: 20
D80: Vans | F80: 5 | G80: 10
B81: 3 | C81: Administrative Buildings | F81: 50 | G81: 75
B82: 4 | C82: Leasehold Improvements | F82: Lease dependent
B83: 5 | C83: Station Buildings | D83: Station Buildings | F83: 50 | G83: 75
D84: Parking | F84: 25 | G84: 30
D85: Fence | F85: 25 | G85: 60
D86: Roof | F86: 20 | G86: 30
B87: 6 | C87: Computer Equipment | D87: Hardware | F87: 3 | G87: 5
D88: Software | F88: 2 | G88: 5
B89: 7 | C89: Equipment | D89: Power Operated | F89: 5 | G89: 10
D90: Stores | F90: 5 | G90: 10
D91: Tools, Shop, Garage Equipment | F91: 5 | G91: 10
D92: Measurement & Testing Equipment | F92: 5 | G92: 10
B93: 8 | C93: Communication | D93: Towers | F93: 60 | G93: 70
D94: Wireless | F94: 2 | G94: 10
B95: 9 | C95: Residential Energy Meters | F95: 25 | G95: 35
B96: 10 | C96: Industrial/Commercial Energy Meters | F96: 25 | G96: 35
B97: 11 | C97: Wholesale Energy Meters | F97: 15 | G97: 30
B98: 12 | C98: Current & Potential Transformer (CT & PT) | F98: 35 | G98: 50
B99: 13 | C99: Smart Meters | F99: 5 | G99: 15
B100: 14 | C100: Repeaters - Smart Metering | F100: 10 | G100: 15
B101: 15 | C101: Data Collectors - Smart Metering | F101: 15 | G101: 20
A104: * TS & MS = Transformer and Municipal Stations UG = Underground Systems S = Monitoring and Control Systems
A106: Note 1: | B106: Tables F-1 and F-2 above are to be used as a reference in order to complete columns J, K, L and N.
B107: See pages 17-19 of Kinetrics Report

Sheet App.2-CA_OldCGAAP_DepExp_2012
K1: File Number: | L1: =EBNUMBER -> 0
K2: Exhibit:
K3: Tab:
K4: Schedule:
K5: Page:
K7: Date:
A9: Appendix 2-CA
A10: Depreciation and Amortization Expense
B11: Assumes the applicant made capitalization and depreciation expense accounting policy changes under CGAAP effective January 1, 2012 and has adopted IFRS for financial reporting purposes effective January 1, 2015.
C13: Year | D13: 2012 | E13: Former CGAAP
A15: Account | B15: Description | C15: Opening Regulatory Gross PP&E as at Jan 1, 2012 | D15: Less Fully Depreciated | E15: Net for Depreciation | F15: Additions | G15: Total for Depreciation 1 | H15: Years | I15: Depreciation Rate | J15: Depreciation Expense | K15: 2012 Depreciation Expense per Appendix 2-BA Fixed Assets, Column J (l) | L15: Variance 2
C16: (a) | D16: (b) | E16: (c) | F16: (d) | G16: (e) = (c) + ½ x (d) | H16: (f) | I16: (g) = 1 / (f) | J16: (h) = (e) / (f) | L16: (m) = (h) - (l)
A17: 1611 | B17: Computer Software (Formally known as Account 1925) | E17: =C17-D17 -> 0 | G17: =E17+0.5*F17 -> 0 | I17: =IF(H17=0,0,1/H17) -> 0 | J17: =IF(H17=0,0,G17/H17) -> 0 | L17: =IF(ISERROR(+J17-K17), 0, +J17-K17) -> 0
A18: 1612 | B18: Land Rights (Formally known as Account 1906) | E18: =C18-D18 -> 0 | G18: =E18+0.5*F18 -> 0 | I18: 0 | J18: 0 | L18: 0
A19: 1805 | B19: Land | E19: 0 | G19: 0 | I19: 0 | J19: 0 | L19: 0
A20: 1808 | B20: Buildings | E20: 0 | G20: 0 | I20: 0 | J20: 0 | L20: 0
A21: 1810 | B21: Leasehold Improvements | E21: 0 | G21: 0 | I21: 0 | J21: 0 | L21: 0
A22: 1815 | B22: Transformer Station Equipment >50 kV | E22: 0 | G22: 0 | I22: 0 | J22: 0 | L22: 0
A23: 1820 | B23: Distribution Station Equipment <50 kV | E23: 0 | G23: 0 | I23: 0 | J23: 0 | L23: 0
A24: 1825 | B24: Storage Battery Equipment | E24: 0 | G24: 0 | I24: 0 | J24: 0 | L24: 0
A25: 1830 | B25: Poles, Towers & Fixtures | E25: 0 | G25: 0 | I25: 0 | J25: 0 | L25: 0
A26: 1835 | B26: Overhead Conductors & Devices | E26: 0 | G26: 0 | I26: 0 | J26: 0 | L26: 0
A27: 1840 | B27: Underground Conduit | E27: 0 | G27: 0 | I27: 0 | J27: 0 | L27: 0
A28: 1845 | B28: Underground Conductors & Devices | E28: 0 | G28: 0 | I28: 0 | J28: 0 | L28: 0
A29: 1850 | B29: Line Transformers | E29: 0 | G29: 0 | I29: 0 | J29: 0 | L29: 0
A30: 1855 | B30: Services (Overhead & Underground) | E30: 0 | G30: 0 | I30: 0 | J30: 0 | L30: 0
A31: 1860 | B31: Meters | E31: 0 | G31: 0 | I31: 0 | J31: 0 | L31: 0
A32: 1860 | B32: Meters (Smart Meters) | E32: 0 | G32: 0 | I32: 0 | J32: 0 | L32: 0
A33: 1905 | B33: Land | E33: 0 | G33: 0 | I33: 0 | J33: 0 | L33: 0
A34: 1908 | B34: Buildings & Fixtures | E34: 0 | G34: 0 | I34: 0 | J34: 0 | L34: 0
A35: 1910 | B35: Leasehold Improvements | E35: 0 | G35: 0 | I35: 0 | J35: 0 | L35: 0
A36: 1915 | B36: Office Furniture & Equipment (10 years) | E36: 0 | G36: 0 | I36: 0 | J36: 0 | L36: 0
A37: 1915 | B37: Office Furniture & Equipment (5 years) | E37: 0 | G37: 0 | I37: 0 | J37: 0 | L37: 0
A38: 1920 | B38: Computer Equipment - Hardware | E38: 0 | G38: 0 | I38: 0 | J38: 0 | L38: 0
A39: 1920 | B39: Computer Equip.-Hardware(Post Mar. 22/04) | E39: 0 | G39: 0 | I39: 0 | J39: 0 | L39: 0
A40: 1920 | B40: Computer Equip.-Hardware(Post Mar. 19/07) | E40: 0 | G40: 0 | I40: 0 | J40: 0 | L40: 0
A41: 1930 | B41: Transportation Equipment | E41: 0 | G41: 0 | I41: 0 | J41: 0 | L41: 0
A42: 1935 | B42: Stores Equipment | E42: 0 | G42: 0 | I42: 0 | J42: 0 | L42: 0
A43: 1940 | B43: Tools, Shop & Garage Equipment | E43: 0 | G43: 0 | I43: 0 | J43: 0 | L43: 0
A44: 1945 | B44: Measurement & Testing Equipment | E44: 0 | G44: 0 | I44: 0 | J44: 0 | L44: 0
A45: 1950 | B45: Power Operated Equipment | E45: 0 | G45: 0 | I45: 0 | J45: 0 | L45: 0
A46: 1955 | B46: Communications Equipment | E46: 0 | G46: 0 | I46: 0 | J46: 0 | L46: 0
A47: 1955 | B47: Communication Equipment (Smart Meters) | E47: 0 | G47: 0 | I47: 0 | J47: 0 | L47: 0
A48: 1960 | B48: Miscellaneous Equipment | E48: 0 | G48: 0 | I48: 0 | J48: 0 | L48: 0
A49: 1970 | B49: Load Management Controls Customer Premises | E49: 0 | G49: 0 | I49: 0 | J49: 0 | L49: 0
A50: 1975 | B50: Load Management Controls Utility Premises | E50: 0 | G50: 0 | I50: 0 | J50: 0 | L50: 0
A51: 1980 | B51: System Supervisor Equipment | E51: 0 | G51: 0 | I51: 0 | J51: 0 | L51: 0
A52: 1985 | B52: Miscellaneous Fixed Assets | E52: 0 | G52: 0 | I52: 0 | J52: 0 | L52: 0
A53: 1990 | B53: Other Tangible Property | E53: 0 | G53: 0 | I53: 0 | J53: 0 | L53: 0
A54: 1995 | B54: Contributions & Grants | E54: 0 | G54: 0 | I54: 0 | J54: 0 | L54: 0
B55: Total | C55: =SUM(C17:C54) -> 0 | D55: =SUM(D17:D54) -> 0 | E55: =SUM(E17:E54) -> 0 | F55: =SUM(F17:F54) -> 0 | G55: =SUM(G17:G54) -> 0 | J55: =SUM(J17:J54) -> 0 | K55: =SUM(K17:K54) -> 0 | L55: =SUM(L17:L54) -> 0
A57: Notes:
A59: 1 | B59: Board policy of the "half-year" rule - the applicant must ensure that additions in the year attract a half-year depreciation expense in the first year. Deviations from this standard practice must be supported in the application.
A60: 2 | B60: The applicant must provide an explanation of material variances in evidence.
A62: General | B62: Applicants must provide a breakdown of depreciation and amortization expense in the above format for all relevant accounts. Asset Retirement Obligations (AROs), depreciation and accretion expense should be disclosed separately consistent with the Notes of historical Audited Financial Statements.

Sheet App.2-CB_NewCGAAP_DepExp_2012
N1: File Number: | O1: =EBNUMBER -> 0
N2: Exhibit:
N3: Tab:
N4: Schedule:
N5: Page:
N7: Date:
A9: Appendix 2-CB
A10: Depreciation and Amortization Expense
A11: Assumes the applicant made capitalization and depreciation expense accounting policy changes under CGAAP effective January 1, 2012 and has adopted IFRS for financial reporting purposes effective January 1, 2015.
C13: Year | D13: 2012 | E13: Revised CGAAP
A15: Account | B15: Description | C15: Opening NBV as at Jan 1, 2012 5 | D15: Additions | E15: Average Remaining Life of Opening NBV 4 | F15: Years (new additions only) 3 | G15: Depreciation Rate on New Additions | H15: Depreciation Expense on Opening NBV | I15: Depreciation Expense on Additions 1 | J15: 2012 Depreciation Expense | K15: 2012 Depreciation Expense per Appendix 2-BA Fixed Assets, Column J (l) | L15: Variance 2 | M15: Depreciation Expense on 2012 Full Year Additions | N15: Less Depreciation Expense on Assets Fully Depreciated during the year (o) | O15: 2012 Full Year Depreciation 6
C16: (a) | D16: (d) | E16: (i) | F16: (f) | G16: (g) = 1 / (f) | H16: (j) = (a) / (i) | I16: (h)=((d)*0.5)/(f) | J16: (k) = (j) + (h) | L16: (m) = (k) - (l) | M16: (n) = (d)/(f) | O16: (p) = (j) + (n) - (o)
A17: 1611 | B17: Computer Software (Formally known as Account 1925) | G17: =IF(F17=0,0,1/F17) -> 0 | H17: =IF(E17=0,0,+C17/E17) -> 0 | I17: =IF(F17=0,0,+(D17*0.5)/F17) -> 0 | J17: =IF(ISERROR(+H17+I17), 0, +H17+I17) -> 0 | L17: =IF(ISERROR(+J17-K17), 0, +J17-K17) -> 0 | M17: =IF(F17=0,0,+(D17)/F17) -> 0 | O17: =IF(ISERROR(+M17+H17-N17), 0, +M17+H17-N17) -> 0
A18: 1612 | B18: Land Rights (Formally known as Account 1906) | G18: 0 | H18: 0 | I18: 0 | J18: 0 | L18: 0 | M18: 0 | O18: =IF(ISERROR(+M18+H18-N18), 0, +M18+H18-N18) -> 0
A19: 1805 | B19: Land | G19: 0 | H19: 0 | I19: 0 | J19: 0 | L19: 0 | M19: 0 | O19: 0
A20: 1808 | B20: Buildings | G20: 0 | H20: 0 | I20: 0 | J20: 0 | L20: 0 | M20: 0 | O20: 0
A21: 1810 | B21: Leasehold Improvements | G21: 0 | H21: 0 | I21: 0 | J21: 0 | L21: 0 | M21: 0 | O21: 0
A22: 1815 | B22: Transformer Station Equipment >50 kV | G22: 0 | H22: 0 | I22: 0 | J22: 0 | L22: 0 | M22: 0 | O22: 0
A23: 1820 | B23: Distribution Station Equipment <50 kV | G23: 0 | H23: 0 | I23: 0 | J23: 0 | L23: 0 | M23: 0 | O23: 0
A24: 1825 | B24: Storage Battery Equipment | G24: 0 | H24: 0 | I24: 0 | J24: 0 | L24: 0 | M24: 0 | O24: 0
A25: 1830 | B25: Poles, Towers & Fixtures | G25: 0 | H25: 0 | I25: 0 | J25: 0 | L25: 0 | M25: 0 | O25: 0
A26: 1835 | B26: Overhead Conductors & Devices | G26: 0 | H26: 0 | I26: 0 | J26: 0 | L26: 0 | M26: 0 | O26: 0
A27: 1840 | B27: Underground Conduit | G27: 0 | H27: 0 | I27: 0 | J27: 0 | L27: 0 | M27: 0 | O27: 0
A28: 1845 | B28: Underground Conductors & Devices | G28: 0 | H28: 0 | I28: 0 | J28: 0 | L28: 0 | M28: 0 | O28: 0
A29: 1850 | B29: Line Transformers | G29: 0 | H29: 0 | I29: 0 | J29: 0 | L29: 0 | M29: 0 | O29: 0
A30: 1855 | B30: Services (Overhead & Underground) | G30: 0 | H30: 0 | I30: 0 | J30: 0 | L30: 0 | M30: 0 | O30: 0
A31: 1860 | B31: Meters | G31: 0 | H31: 0 | I31: 0 | J31: 0 | L31: 0 | M31: 0 | O31: 0
A32: 1860 | B32: Meters (Smart Meters) | G32: 0 | H32: 0 | I32: 0 | J32: 0 | L32: 0 | M32: 0 | O32: 0
A33: 1905 | B33: Land | G33: 0 | H33: 0 | I33: 0 | J33: 0 | L33: 0 | M33: 0 | O33: 0
A34: 1908 | B34: Buildings & Fixtures | G34: 0 | H34: 0 | I34: 0 | J34: 0 | L34: 0 | M34: 0 | O34: 0
A35: 1910 | B35: Leasehold Improvements | G35: 0 | H35: 0 | I35: 0 | J35: 0 | L35: 0 | M35: 0 | O35: 0
A36: 1915 | B36: Office Furniture & Equipment (10 years) | G36: 0 | H36: 0 | I36: 0 | J36: 0 | L36: 0 | M36: 0 | O36: 0
A37: 1915 | B37: Office Furniture & Equipment (5 years) | G37: 0 | H37: 0 | I37: 0 | J37: 0 | L37: 0 | M37: 0 | O37: 0
A38: 1920 | B38: Computer Equipment - Hardware | G38: 0 | H38: 0 | I38: 0 | J38: 0 | L38: 0 | M38: 0 | O38: 0
A39: 1920 | B39: Computer Equip.-Hardware(Post Mar. 22/04) | G39: 0 | H39: 0 | I39: 0 | J39: 0 | L39: 0 | M39: 0 | O39: 0
A40: 1920 | B40: Computer Equip.-Hardware(Post Mar. 19/07) | G40: 0 | H40: 0 | I40: 0 | J40: 0 | L40: 0 | M40: 0 | O40: 0
A41: 1930 | B41: Transportation Equipment | G41: 0 | H41: 0 | I41: 0 | J41: 0 | L41: 0 | M41: 0 | O41: 0
A42: 1935 | B42: Stores Equipment | G42: 0 | H42: 0 | I42: 0 | J42: 0 | L42: 0 | M42: 0 | O42: 0
A43: 1940 | B43: Tools, Shop & Garage Equipment | G43: 0 | H43: 0 | I43: 0 | J43: 0 | L43: 0 | M43: 0 | O43: 0
A44: 1945 | B44: Measurement & Testing Equipment | G44: 0 | H44: 0 | I44: 0 | J44: 0 | L44: 0 | M44: 0 | O44: 0
A45: 1950 | B45: Power Operated Equipment | G45: 0 | H45: 0 | I45: 0 | J45: 0 | L45: 0 | M45: 0 | O45: 0
A46: 1955 | B46: Communications Equipment | G46: 0 | H46: 0 | I46: 0 | J46: 0 | L46: 0 | M46: 0 | O46: 0
A47: 1955 | B47: Communication Equipment (Smart Meters) | G47: 0 | H47: 0 | I47: 0 | J47: 0 | L47: 0 | M47: 0 | O47: 0
A48: 1960 | B48: Miscellaneous Equipment | G48: 0 | H48: 0 | I48: 0 | J48: 0 | L48: 0 | M48: 0 | O48: 0
A49: 1970 | B49: Load Management Controls Customer Premises | G49: 0 | H49: 0 | I49: 0 | J49: 0 | L49: 0 | M49: 0 | O49: 0
A50: 1975 | B50: Load Management Controls Utility Premises | G50: 0 | H50: 0 | I50: 0 | J50: 0 | L50: 0 | M50: 0 | O50: 0
A51: 1980 | B51: System Supervisor Equipment | G51: 0 | H51: 0 | I51: 0 | J51: 0 | L51: 0 | M51: 0 | O51: 0
A52: 1985 | B52: Miscellaneous Fixed Assets | G52: 0 | H52: 0 | I52: 0 | J52: 0 | L52: 0 | M52: 0 | O52: 0
A53: 1990 | B53: Other Tangible Property | G53: 0 | H53: 0 | I53: 0 | J53: 0 | L53: 0 | M53: 0 | O53: 0
A54: 1995 | B54: Contributions & Grants | G54: 0 | H54: 0 | I54: 0 | J54: 0 | L54: 0 | M54: 0 | O54: 0
B55: Total | C55: =SUM(C17:C54) -> 0 | D55: =SUM(D17:D54) -> 0 | H55: =SUM(H17:H54) -> 0 | I55: 0 | J55: 0 | K55: 0 | L55: 0 | M55: 0 | N55: 0 | O55: 0
A57: Notes:
A59: 1 | B59: Board policy of the "half-year" rule - the applicant must ensure that additions in the year attract a half-year depreciation expense in the first year. Deviations from this standard practice must be supported in the application.
A60: 2 | B60: The applicant must provide an explanation of material variances in evidence.
A61: 3 | B61: The applicant should ensure that the years for new additions of assets are the asset useful lives determined by management in accordance with the Board's regulatory accounting policies. The capitalization and depreciation expense accounting changes should be implemented consistent with the Board’s regulatory accounting policies as set out for modified IFRS as contained in the Report of the Board, Transition to International Financial Reporting Standards, EB-2008-0408, the Kinectrics Report, and the Revised 2012 Accounting Procedures Handbook for Electricity Distributors (“APH”).
A62: 4 | B62: A recalculation should be performed to determine the average remaining life of opening balance of assets (i.e. excluding 2012 additions) under the change in policies under CGAAP. For example, Asset A had a useful life of 20 years under CGAAP without the change in policies. On January 1, 2012, the effective date of the changes in policies, Asset A was 3 years depreciated. As a result, Asset A would have a remaining service life of 17 years (20 years less 3 years) as of January 1, 2012. Due to making the change in policies under CGAAP, management re-assessed the asset useful lives and concluded that the revised useful life of Asset A is now 30 years. Therefore, the average remaining useful life of the opening balance of Asset A is determined to be 27 years (30 years less 3 years) under the revised CGAAP as of January 1, 2012.
A63: 5 | B63: NBV must exclude assets still on the books but which have been fully amortized or depreciated.
A64: 6 | B64: This column refers to the calculated full year depreciation but excludes the depreciation expense on assets fully depreciated during the year. This column is used for the purpose of calculating depreciation expense in the following year on the next worksheet.
A66: General: | B66: Applicants must provide a breakdown of depreciation and amortization expense in the above format for all relevant accounts. Asset Retirement Obligations (AROs), depreciation and accretion expense should be disclosed separately consistent with the Notes of historical Audited Financial Statements.

Sheet App.2-CC_NewCGAAP_DepExp_2013
J1: File Number: | K1: =EBNUMBER -> 0
J2: Exhibit:
J3: Tab:
J4: Schedule:
J5: Page:
J7: Date:
A9: Appendix 2-CC
A10: Depreciation and Amortization Expense
A11: Assumes the applicant made capitalization and depreciation expense accounting policy changes under CGAAP effective January 1, 2012 and has adopted IFRS for financial reporting purposes effective January 1, 2015.
C13: 2013 | D13: Revised CGAAP
A15: Account | B15: Description | C15: Additions | D15: Years (new additions only) | E15: Depreciation Rate on New Additions | F15: 2013 Depreciation Expense 1 | G15: 2013 Depreciation Expense per Apppendix 2-BA Fixed Assets, Column J (l) | H15: Variance 2 | I15: Depreciation Expense on 2013 Full Year Additions | J15: Less Depreciation Expense on Assets Fully Depreciated during the year (o) | K15: 2013 Full Year Depreciation 3
C16: (d) | D16: (f) | E16: (g) = 1 / (f) | F16: (h)=2012 Full Year Deprecation + ((d)*0.5)/(f) | H16: (m) = (h) - (l) | I16: (n)=((d))/(f) | K16: (p) = 2012 Full Year Depreciation + (n) - (o)
A17: 1611 | B17: Computer Software (Formally known as Account 1925) | E17: =IF(D17=0,0,1/D17) -> 0 | F17: =IF(D17=0,+'App.2-CB_NewCGAAP_DepExp_2012'!O17,+'App.2-CB_NewCGAAP_DepExp_2012'!O17+((C17*0.5)/D17)) -> 0 | H17: =IF(ISERROR(+F17-G17), 0, +F17-G17) -> 0 | I17: =IF(D17=0,0,+(C17)/D17) -> 0 | K17: =IF(ISERROR(+I17+'App.2-CB_NewCGAAP_DepExp_2012'!O17-J17), 0, +I17+'App.2-CB_NewCGAAP_DepExp_2012'!O17-J17) -> 0
A18: 1612 | B18: Land Rights (Formally known as Account 1906) | E18: 0 | F18: =IF(D18=0,+'App.2-CB_NewCGAAP_DepExp_2012'!O18,+'App.2-CB_NewCGAAP_DepExp_2012'!O18+((C18*0.5)/D18)) -> 0 | H18: 0 | I18: 0 | K18: =IF(ISERROR(+I18+'App.2-CB_NewCGAAP_DepExp_2012'!O18-J18), 0, +I18+'App.2-CB_NewCGAAP_DepExp_2012'!O18-J18) -> 0
A19: 1805 | B19: Land | E19: 0 | F19: =IF(D19=0,+'App.2-CB_NewCGAAP_DepExp_2012'!O19,+'App.2-CB_NewCGAAP_DepExp_2012'!O19+((C19*0.5)/D19)) -> 0 | H19: 0 | I19: 0 | K19: =IF(ISERROR(+I19+'App.2-CB_NewCGAAP_DepExp_2012'!O19-J19), 0, +I19+'App.2-CB_NewCGAAP_DepExp_2012'!O19-J19) -> 0
A20: 1808 | B20: Buildings | E20: 0 | F20: =IF(D20=0,+'App.2-CB_NewCGAAP_DepExp_2012'!O20,+'App.2-CB_NewCGAAP_DepExp_2012'!O20+((C20*0.5)/D20)) -> 0 | H20: 0 | I20: 0 | K20: =IF(ISERROR(+I20+'App.2-CB_NewCGAAP_DepExp_2012'!O20-J20), 0, +I20+'App.2-CB_NewCGAAP_DepExp_2012'!O20-J20) -> 0
A21: 1810 | B21: Leasehold Improvements | E21: 0 | F21: =IF(D21=0,+'App.2-CB_NewCGAAP_DepExp_2012'!O21,+'App.2-CB_NewCGAAP_DepExp_2012'!O21+((C21*0.5)/D21)) -> 0 | H21: 0 | I21: 0 | K21: =IF(ISERROR(+I21+'App.2-CB_NewCGAAP_DepExp_2012'!O21-J21), 0, +I21+'App.2-CB_NewCGAAP_DepExp_2012'!O21-J21) -> 0
A22: 1815 | B22: Transformer Station Equipment >50 kV | E22: 0 | F22: =IF(D22=0,+'App.2-CB_NewCGAAP_DepExp_2012'!O22,+'App.2-CB_NewCGAAP_DepExp_2012'!O22+((C22*0.5)/D22)) -> 0 | H22: 0 | I22: 0 | K22: =IF(ISERROR(+I22+'App.2-CB_NewCGAAP_DepExp_2012'!O22-J22), 0, +I22+'App.2-CB_NewCGAAP_DepExp_2012'!O22-J22) -> 0
A23: 1820 | B23: Distribution Station Equipment <50 kV | E23: 0 | F23: =IF(D23=0,+'App.2-CB_NewCGAAP_DepExp_2012'!O23,+'App.2-CB_NewCGAAP_DepExp_2012'!O23+((C23*0.5)/D23)) -> 0 | H23: 0 | I23: 0 | K23: =IF(ISERROR(+I23+'App.2-CB_NewCGAAP_DepExp_2012'!O23-J23), 0, +I23+'App.2-CB_NewCGAAP_DepExp_2012'!O23-J23) -> 0
A24: 1825 | B24: Storage Battery Equipment | E24: 0 | F24: =IF(D24=0,+'App.2-CB_NewCGAAP_DepExp_2012'!O24,+'App.2-CB_NewCGAAP_DepExp_2012'!O24+((C24*0.5)/D24)) -> 0 | H24: 0 | I24: 0 | K24: =IF(ISERROR(+I24+'App.2-CB_NewCGAAP_DepExp_2012'!O24-J24), 0, +I24+'App.2-CB_NewCGAAP_DepExp_2012'!O24-J24) -> 0
A25: 1830 | B25: Poles, Towers & Fixtures | E25: 0 | F25: =IF(D25=0,+'App.2-CB_NewCGAAP_DepExp_2012'!O25,+'App.2-CB_NewCGAAP_DepExp_2012'!O25+((C25*0.5)/D25)) -> 0 | H25: 0 | I25: 0 | K25: =IF(ISERROR(+I25+'App.2-CB_NewCGAAP_DepExp_2012'!O25-J25), 0, +I25+'App.2-CB_NewCGAAP_DepExp_2012'!O25-J25) -> 0
A26: 1835 | B26: Overhead Conductors & Devices | E26: 0 | F26: =IF(D26=0,+'App.2-CB_NewCGAAP_DepExp_2012'!O26,+'App.2-CB_NewCGAAP_DepExp_2012'!O26+((C26*0.5)/D26)) -> 0 | H26: 0 | I26: 0 | K26: =IF(ISERROR(+I26+'App.2-CB_NewCGAAP_DepExp_2012'!O26-J26), 0, +I26+'App.2-CB_NewCGAAP_DepExp_2012'!O26-J26) -> 0
A27: 1840 | B27: Underground Conduit | E27: 0 | F27: =IF(D27=0,+'App.2-CB_NewCGAAP_DepExp_2012'!O27,+'App.2-CB_NewCGAAP_DepExp_2012'!O27+((C27*0.5)/D27)) -> 0 | H27: 0 | I27: 0 | K27: =IF(ISERROR(+I27+'App.2-CB_NewCGAAP_DepExp_2012'!O27-J27), 0, +I27+'App.2-CB_NewCGAAP_DepExp_2012'!O27-J27) -> 0
A28: 1845 | B28: Underground Conductors & Devices | E28: 0 | F28: =IF(D28=0,+'App.2-CB_NewCGAAP_DepExp_2012'!O28,+'App.2-CB_NewCGAAP_DepExp_2012'!O28+((C28*0.5)/D28)) -> 0 | H28: 0 | I28: 0 | K28: =IF(ISERROR(+I28+'App.2-CB_NewCGAAP_DepExp_2012'!O28-J28), 0, +I28+'App.2-CB_NewCGAAP_DepExp_2012'!O28-J28) -> 0
A29: 1850 | B29: Line Transformers | E29: 0 | F29: =IF(D29=0,+'App.2-CB_NewCGAAP_DepExp_2012'!O29,+'App.2-CB_NewCGAAP_DepExp_2012'!O29+((C29*0.5)/D29)) -> 0 | H29: 0 | I29: 0 | K29: =IF(ISERROR(+I29+'App.2-CB_NewCGAAP_DepExp_2012'!O29-J29), 0, +I29+'App.2-CB_NewCGAAP_DepExp_2012'!O29-J29) -> 0
A30: 1855 | B30: Services (Overhead & Underground) | E30: 0 | F30: =IF(D30=0,+'App.2-CB_NewCGAAP_DepExp_2012'!O30,+'App.2-CB_NewCGAAP_DepExp_2012'!O30+((C30*0.5)/D30)) -> 0 | H30: 0 | I30: 0 | K30: =IF(ISERROR(+I30+'App.2-CB_NewCGAAP_DepExp_2012'!O30-J30), 0, +I30+'App.2-CB_NewCGAAP_DepExp_2012'!O30-J30) -> 0
A31: 1860 | B31: Meters | E31: 0 | F31: =IF(D31=0,+'App.2-CB_NewCGAAP_DepExp_2012'!O31,+'App.2-CB_NewCGAAP_DepExp_2012'!O31+((C31*0.5)/D31)) -> 0 | H31: 0 | I31: 0 | K31: =IF(ISERROR(+I31+'App.2-CB_NewCGAAP_DepExp_2012'!O31-J31), 0, +I31+'App.2-CB_NewCGAAP_DepExp_2012'!O31-J31) -> 0
A32: 1860 | B32: Meters (Smart Meters) | E32: 0 | F32: =IF(D32=0,+'App.2-CB_NewCGAAP_DepExp_2012'!O32,+'App.2-CB_NewCGAAP_DepExp_2012'!O32+((C32*0.5)/D32)) -> 0 | H32: 0 | I32: 0 | K32: =IF(ISERROR(+I32+'App.2-CB_NewCGAAP_DepExp_2012'!O32-J32), 0, +I32+'App.2-CB_NewCGAAP_DepExp_2012'!O32-J32) -> 0
A33: 1905 | B33: Land | E33: 0 | F33: =IF(D33=0,+'App.2-CB_NewCGAAP_DepExp_2012'!O33,+'App.2-CB_NewCGAAP_DepExp_2012'!O33+((C33*0.5)/D33)) -> 0 | H33: 0 | I33: 0 | K33: =IF(ISERROR(+I33+'App.2-CB_NewCGAAP_DepExp_2012'!O33-J33), 0, +I33+'App.2-CB_NewCGAAP_DepExp_2012'!O33-J33) -> 0
A34: 1908 | B34: Buildings & Fixtures | E34: 0 | F34: =IF(D34=0,+'App.2-CB_NewCGAAP_DepExp_2012'!O34,+'App.2-CB_NewCGAAP_DepExp_2012'!O34+((C34*0.5)/D34)) -> 0 | H34: 0 | I34: 0 | K34: =IF(ISERROR(+I34+'App.2-CB_NewCGAAP_DepExp_2012'!O34-J34), 0, +I34+'App.2-CB_NewCGAAP_DepExp_2012'!O34-J34) -> 0
A35: 1910 | B35: Leasehold Improvements | E35: 0 | F35: =IF(D35=0,+'App.2-CB_NewCGAAP_DepExp_2012'!O35,+'App.2-CB_NewCGAAP_DepExp_2012'!O35+((C35*0.5)/D35)) -> 0 | H35: 0 | I35: 0 | K35: =IF(ISERROR(+I35+'App.2-CB_NewCGAAP_DepExp_2012'!O35-J35), 0, +I35+'App.2-CB_NewCGAAP_DepExp_2012'!O35-J35) -> 0
A36: 1915 | B36: Office Furniture & Equipment (10 years) | E36: 0 | F36: =IF(D36=0,+'App.2-CB_NewCGAAP_DepExp_2012'!O36,+'App.2-CB_NewCGAAP_DepExp_2012'!O36+((C36*0.5)/D36)) -> 0 | H36: 0 | I36: 0 | K36: =IF(ISERROR(+I36+'App.2-CB_NewCGAAP_DepExp_2012'!O36-J36), 0, +I36+'App.2-CB_NewCGAAP_DepExp_2012'!O36-J36) -> 0
A37: 1915 | B37: Office Furniture & Equipment (5 years) | E37: 0 | F37: =IF(D37=0,+'App.2-CB_NewCGAAP_DepExp_2012'!O37,+'App.2-CB_NewCGAAP_DepExp_2012'!O37+((C37*0.5)/D37)) -> 0 | H37: 0 | I37: 0 | K37: =IF(ISERROR(+I37+'App.2-CB_NewCGAAP_DepExp_2012'!O37-J37), 0, +I37+'App.2-CB_NewCGAAP_DepExp_2012'!O37-J37) -> 0
A38: 1920 | B38: Computer Equipment - Hardware | E38: 0 | F38: =IF(D38=0,+'App.2-CB_NewCGAAP_DepExp_2012'!O38,+'App.2-CB_NewCGAAP_DepExp_2012'!O38+((C38*0.5)/D38)) -> 0 | H38: 0 | I38: 0 | K38: =IF(ISERROR(+I38+'App.2-CB_NewCGAAP_DepExp_2012'!O38-J38), 0, +I38+'App.2-CB_NewCGAAP_DepExp_2012'!O38-J38) -> 0
A39: 1920 | B39: Computer Equip.-Hardware(Post Mar. 22/04) | E39: 0 | F39: =IF(D39=0,+'App.2-CB_NewCGAAP_DepExp_2012'!O39,+'App.2-CB_NewCGAAP_DepExp_2012'!O39+((C39*0.5)/D39)) -> 0 | H39: 0 | I39: 0 | K39: =IF(ISERROR(+I39+'App.2-CB_NewCGAAP_DepExp_2012'!O39-J39), 0, +I39+'App.2-CB_NewCGAAP_DepExp_2012'!O39-J39) -> 0
A40: 1920 | B40: Computer Equip.-Hardware(Post Mar. 19/07) | E40: 0 | F40: =IF(D40=0,+'App.2-CB_NewCGAAP_DepExp_2012'!O40,+'App.2-CB_NewCGAAP_DepExp_2012'!O40+((C40*0.5)/D40)) -> 0 | H40: 0 | I40: 0 | K40: =IF(ISERROR(+I40+'App.2-CB_NewCGAAP_DepExp_2012'!O40-J40), 0, +I40+'App.2-CB_NewCGAAP_DepExp_2012'!O40-J40) -> 0
A41: 1930 | B41: Transportation Equipment | E41: 0 | F41: =IF(D41=0,+'App.2-CB_NewCGAAP_DepExp_2012'!O41,+'App.2-CB_NewCGAAP_DepExp_2012'!O41+((C41*0.5)/D41)) -> 0 | H41: 0 | I41: 0 | K41: =IF(ISERROR(+I41+'App.2-CB_NewCGAAP_DepExp_2012'!O41-J41), 0, +I41+'App.2-CB_NewCGAAP_DepExp_2012'!O41-J41) -> 0
A42: 1935 | B42: Stores Equipment | E42: 0 | F42: =IF(D42=0,+'App.2-CB_NewCGAAP_DepExp_2012'!O42,+'App.2-CB_NewCGAAP_DepExp_2012'!O42+((C42*0.5)/D42)) -> 0 | H42: 0 | I42: 0 | K42: =IF(ISERROR(+I42+'App.2-CB_NewCGAAP_DepExp_2012'!O42-J42), 0, +I42+'App.2-CB_NewCGAAP_DepExp_2012'!O42-J42) -> 0
A43: 1940 | B43: Tools, Shop & Garage Equipment | E43: 0 | F43: =IF(D43=0,+'App.2-CB_NewCGAAP_DepExp_2012'!O43,+'App.2-CB_NewCGAAP_DepExp_2012'!O43+((C43*0.5)/D43)) -> 0 | H43: 0 | I43: 0 | K43: =IF(ISERROR(+I43+'App.2-CB_NewCGAAP_DepExp_2012'!O43-J43), 0, +I43+'App.2-CB_NewCGAAP_DepExp_2012'!O43-J43) -> 0
A44: 1945 | B44: Measurement & Testing Equipment | E44: 0 | F44: =IF(D44=0,+'App.2-CB_NewCGAAP_DepExp_2012'!O44,+'App.2-CB_NewCGAAP_DepExp_2012'!O44+((C44*0.5)/D44)) -> 0 | H44: 0 | I44: 0 | K44: =IF(ISERROR(+I44+'App.2-CB_NewCGAAP_DepExp_2012'!O44-J44), 0, +I44+'App.2-CB_NewCGAAP_DepExp_2012'!O44-J44) -> 0
A45: 1950 | B45: Power Operated Equipment | E45: 0 | F45: =IF(D45=0,+'App.2-CB_NewCGAAP_DepExp_2012'!O45,+'App.2-CB_NewCGAAP_DepExp_2012'!O45+((C45*0.5)/D45)) -> 0 | H45: 0 | I45: 0 | K45: =IF(ISERROR(+I45+'App.2-CB_NewCGAAP_DepExp_2012'!O45-J45), 0, +I45+'App.2-CB_NewCGAAP_DepExp_2012'!O45-J45) -> 0
A46: 1955 | B46: Communications Equipment | E46: 0 | F46: =IF(D46=0,+'App.2-CB_NewCGAAP_DepExp_2012'!O46,+'App.2-CB_NewCGAAP_DepExp_2012'!O46+((C46*0.5)/D46)) -> 0 | H46: 0 | I46: 0 | K46: =IF(ISERROR(+I46+'App.2-CB_NewCGAAP_DepExp_2012'!O46-J46), 0, +I46+'App.2-CB_NewCGAAP_DepExp_2012'!O46-J46) -> 0
A47: 1955 | B47: Communication Equipment (Smart Meters) | E47: 0 | F47: =IF(D47=0,+'App.2-CB_NewCGAAP_DepExp_2012'!O47,+'App.2-CB_NewCGAAP_DepExp_2012'!O47+((C47*0.5)/D47)) -> 0 | H47: 0 | I47: 0 | K47: =IF(ISERROR(+I47+'App.2-CB_NewCGAAP_DepExp_2012'!O47-J47), 0, +I47+'App.2-CB_NewCGAAP_DepExp_2012'!O47-J47) -> 0
A48: 1960 | B48: Miscellaneous Equipment | E48: 0 | F48: =IF(D48=0,+'App.2-CB_NewCGAAP_DepExp_2012'!O48,+'App.2-CB_NewCGAAP_DepExp_2012'!O48+((C48*0.5)/D48)) -> 0 | H48: 0 | I48: 0 | K48: =IF(ISERROR(+I48+'App.2-CB_NewCGAAP_DepExp_2012'!O48-J48), 0, +I48+'App.2-CB_NewCGAAP_DepExp_2012'!O48-J48) -> 0
A49: 1970 | B49: Load Management Controls Customer Premises | E49: 0 | F49: =IF(D49=0,+'App.2-CB_NewCGAAP_DepExp_2012'!O49,+'App.2-CB_NewCGAAP_DepExp_2012'!O49+((C49*0.5)/D49)) -> 0 | H49: 0 | I49: 0 | K49: =IF(ISERROR(+I49+'App.2-CB_NewCGAAP_DepExp_2012'!O49-J49), 0, +I49+'App.2-CB_NewCGAAP_DepExp_2012'!O49-J49) -> 0
A50: 1975 | B50: Load Management Controls Utility Premises | E50: 0 | F50: =IF(D50=0,+'App.2-CB_NewCGAAP_DepExp_2012'!O50,+'App.2-CB_NewCGAAP_DepExp_2012'!O50+((C50*0.5)/D50)) -> 0 | H50: 0 | I50: 0 | K50: =IF(ISERROR(+I50+'App.2-CB_NewCGAAP_DepExp_2012'!O50-J50), 0, +I50+'App.2-CB_NewCGAAP_DepExp_2012'!O50-J50) -> 0
A51: 1980 | B51: System Supervisor Equipment | E51: 0 | F51: =IF(D51=0,+'App.2-CB_NewCGAAP_DepExp_2012'!O51,+'App.2-CB_NewCGAAP_DepExp_2012'!O51+((C51*0.5)/D51)) -> 0 | H51: 0 | I51: 0 | K51: =IF(ISERROR(+I51+'App.2-CB_NewCGAAP_DepExp_2012'!O51-J51), 0, +I51+'App.2-CB_NewCGAAP_DepExp_2012'!O51-J51) -> 0
A52: 1985 | B52: Miscellaneous Fixed Assets | E52: 0 | F52: =IF(D52=0,+'App.2-CB_NewCGAAP_DepExp_2012'!O52,+'App.2-CB_NewCGAAP_DepExp_2012'!O52+((C52*0.5)/D52)) -> 0 | H52: 0 | I52: 0 | K52: =IF(ISERROR(+I52+'App.2-CB_NewCGAAP_DepExp_2012'!O52-J52), 0, +I52+'App.2-CB_NewCGAAP_DepExp_2012'!O52-J52) -> 0
A53: 1990 | B53: Other Tangible Property | E53: 0 | F53: =IF(D53=0,+'App.2-CB_NewCGAAP_DepExp_2012'!O53,+'App.2-CB_NewCGAAP_DepExp_2012'!O53+((C53*0.5)/D53)) -> 0 | H53: 0 | I53: 0 | K53: =IF(ISERROR(+I53+'App.2-CB_NewCGAAP_DepExp_2012'!O53-J53), 0, +I53+'App.2-CB_NewCGAAP_DepExp_2012'!O53-J53) -> 0
A54: 1995 | B54: Contributions & Grants | E54: 0 | F54: =IF(D54=0,+'App.2-CB_NewCGAAP_DepExp_2012'!O54,+'App.2-CB_NewCGAAP_DepExp_2012'!O54+((C54*0.5)/D54)) -> 0 | H54: 0 | I54: 0 | K54: =IF(ISERROR(+I54+'App.2-CB_NewCGAAP_DepExp_2012'!O54-J54), 0, +I54+'App.2-CB_NewCGAAP_DepExp_2012'!O54-J54) -> 0
B55: Total | C55: =SUM(C17:C54) -> 0 | F55: =SUM(F17:F54) -> 0 | G55: 0 | H55: 0 | I55: 0 | J55: 0 | K55: 0
A57: Notes:
A58: 1 | B58: Board policy of the "half-year" rule - the applicant must ensure that additions in the year attract a half-year depreciation expense in the first year. Deviations from this standard practice must be supported in the application.
A59: 2 | B59: The applicant must provide an explanation of material variances in evidence.
A60: 3 | B60: This column refers to the calculated full year depreciation but excludes the depreciation expense on assets fully depreciated during the year. This column is used for the purpose of calculating depreciation expense in the following year on the next worksheet.
A62: General: | B62: Applicants must provide a breakdown of depreciation and amortization expense in the above format for all relevant accounts. Asset Retirement Obligations (AROs), depreciation and accretion expense should be disclosed separately consistent with the Notes of historical Audited Financial Statements.

Sheet App.2-CD_MIFRS_DepExp_2014
J1: File Number: | K1: =EBNUMBER -> 0
J2: Exhibit:
J3: Tab:
J4: Schedule:
J5: Page:
J7: Date:
A9: Appendix 2-CD
A10: Depreciation and Amortization Expense
A11: Assumes the applicant made capitalization and depreciation expense accounting policy changes under CGAAP effective January 1, 2012 and has adopted IFRS for financial reporting purposes effective January 1, 2015.
E13: 2014 | F13: MIFRS
A15: Account | B15: Description | C15: Additions | D15: Years (new additions only) | E15: Depreciation Rate on New Additions | F15: 2014 Depreciation Expense 1 | G15: 2014 Depreciation Expense per Apppendix 2-BA Fixed Assets, Column J (l) | H15: Variance 2 | I15: Depreciation Expense on 2014 Full Year Additions | J15: Less Depreciation Expense on Assets Fully Depreciated during the year (o) | K15: 2014 Full Year Depreciation 3
C16: (d) | D16: (f) | E16: (g) = 1 / (f) | F16: (h)=2013 Full Year Deprecation + ((d)*0.5)/(f) | H16: (m) = (h) - (l) | I16: (n)=((d))/(f) | K16: (p) = 2013 Full Year Depreciation + (n) - (o)
A17: 1611 | B17: Computer Software (Formally known as Account 1925) | E17: =IF(D17=0,0,1/D17) -> 0 | F17: =IF(D17=0,+'App.2-CC_NewCGAAP_DepExp_2013'!K17,+'App.2-CC_NewCGAAP_DepExp_2013'!K17+((C17*0.5)/D17)) -> 0 | H17: =IF(ISERROR(+F17-G17), 0, +F17-G17) -> 0 | I17: =IF(D17=0,0,+(C17)/D17) -> 0 | K17: =IF(ISERROR(+I17+'App.2-CC_NewCGAAP_DepExp_2013'!K17-J17), 0, +I17+'App.2-CC_NewCGAAP_DepExp_2013'!K17-J17) -> 0
A18: 1612 | B18: Land Rights (Formally known as Account 1906) | E18: 0 | F18: =IF(D18=0,+'App.2-CC_NewCGAAP_DepExp_2013'!K18,+'App.2-CC_NewCGAAP_DepExp_2013'!K18+((C18*0.5)/D18)) -> 0 | H18: 0 | I18: =IF(D18=0,0,+(C18)/D18) -> 0 | K18: =IF(ISERROR(+I18+'App.2-CC_NewCGAAP_DepExp_2013'!K18-J18), 0, +I18+'App.2-CC_NewCGAAP_DepExp_2013'!K18-J18) -> 0
A19: 1805 | B19: Land | E19: 0 | F19: =IF(D19=0,+'App.2-CC_NewCGAAP_DepExp_2013'!K19,+'App.2-CC_NewCGAAP_DepExp_2013'!K19+((C19*0.5)/D19)) -> 0 | H19: 0 | I19: 0 | K19: =IF(ISERROR(+I19+'App.2-CC_NewCGAAP_DepExp_2013'!K19-J19), 0, +I19+'App.2-CC_NewCGAAP_DepExp_2013'!K19-J19) -> 0
A20: 1808 | B20: Buildings | E20: 0 | F20: =IF(D20=0,+'App.2-CC_NewCGAAP_DepExp_2013'!K20,+'App.2-CC_NewCGAAP_DepExp_2013'!K20+((C20*0.5)/D20)) -> 0 | H20: 0 | I20: 0 | K20: =IF(ISERROR(+I20+'App.2-CC_NewCGAAP_DepExp_2013'!K20-J20), 0, +I20+'App.2-CC_NewCGAAP_DepExp_2013'!K20-J20) -> 0
A21: 1810 | B21: Leasehold Improvements | E21: 0 | F21: =IF(D21=0,+'App.2-CC_NewCGAAP_DepExp_2013'!K21,+'App.2-CC_NewCGAAP_DepExp_2013'!K21+((C21*0.5)/D21)) -> 0 | H21: 0 | I21: 0 | K21: =IF(ISERROR(+I21+'App.2-CC_NewCGAAP_DepExp_2013'!K21-J21), 0, +I21+'App.2-CC_NewCGAAP_DepExp_2013'!K21-J21) -> 0
A22: 1815 | B22: Transformer Station Equipment >50 kV | E22: 0 | F22: =IF(D22=0,+'App.2-CC_NewCGAAP_DepExp_2013'!K22,+'App.2-CC_NewCGAAP_DepExp_2013'!K22+((C22*0.5)/D22)) -> 0 | H22: 0 | I22: 0 | K22: =IF(ISERROR(+I22+'App.2-CC_NewCGAAP_DepExp_2013'!K22-J22), 0, +I22+'App.2-CC_NewCGAAP_DepExp_2013'!K22-J22) -> 0
A23: 1820 | B23: Distribution Station Equipment <50 kV | E23: 0 | F23: =IF(D23=0,+'App.2-CC_NewCGAAP_DepExp_2013'!K23,+'App.2-CC_NewCGAAP_DepExp_2013'!K23+((C23*0.5)/D23)) -> 0 | H23: 0 | I23: 0 | K23: =IF(ISERROR(+I23+'App.2-CC_NewCGAAP_DepExp_2013'!K23-J23), 0, +I23+'App.2-CC_NewCGAAP_DepExp_2013'!K23-J23) -> 0
A24: 1825 | B24: Storage Battery Equipment | E24: 0 | F24: =IF(D24=0,+'App.2-CC_NewCGAAP_DepExp_2013'!K24,+'App.2-CC_NewCGAAP_DepExp_2013'!K24+((C24*0.5)/D24)) -> 0 | H24: 0 | I24: 0 | K24: =IF(ISERROR(+I24+'App.2-CC_NewCGAAP_DepExp_2013'!K24-J24), 0, +I24+'App.2-CC_NewCGAAP_DepExp_2013'!K24-J24) -> 0
A25: 1830 | B25: Poles, Towers & Fixtures | E25: 0 | F25: =IF(D25=0,+'App.2-CC_NewCGAAP_DepExp_2013'!K25,+'App.2-CC_NewCGAAP_DepExp_2013'!K25+((C25*0.5)/D25)) -> 0 | H25: 0 | I25: 0 | K25: =IF(ISERROR(+I25+'App.2-CC_NewCGAAP_DepExp_2013'!K25-J25), 0, +I25+'App.2-CC_NewCGAAP_DepExp_2013'!K25-J25) -> 0
A26: 1835 | B26: Overhead Conductors & Devices | E26: 0 | F26: =IF(D26=0,+'App.2-CC_NewCGAAP_DepExp_2013'!K26,+'App.2-CC_NewCGAAP_DepExp_2013'!K26+((C26*0.5)/D26)) -> 0 | H26: 0 | I26: 0 | K26: =IF(ISERROR(+I26+'App.2-CC_NewCGAAP_DepExp_2013'!K26-J26), 0, +I26+'App.2-CC_NewCGAAP_DepExp_2013'!K26-J26) -> 0
A27: 1840 | B27: Underground Conduit | E27: 0 | F27: =IF(D27=0,+'App.2-CC_NewCGAAP_DepExp_2013'!K27,+'App.2-CC_NewCGAAP_DepExp_2013'!K27+((C27*0.5)/D27)) -> 0 | H27: 0 | I27: 0 | K27: =IF(ISERROR(+I27+'App.2-CC_NewCGAAP_DepExp_2013'!K27-J27), 0, +I27+'App.2-CC_NewCGAAP_DepExp_2013'!K27-J27) -> 0
A28: 1845 | B28: Underground Conductors & Devices | E28: 0 | F28: =IF(D28=0,+'App.2-CC_NewCGAAP_DepExp_2013'!K28,+'App.2-CC_NewCGAAP_DepExp_2013'!K28+((C28*0.5)/D28)) -> 0 | H28: 0 | I28: 0 | K28: =IF(ISERROR(+I28+'App.2-CC_NewCGAAP_DepExp_2013'!K28-J28), 0, +I28+'App.2-CC_NewCGAAP_DepExp_2013'!K28-J28) -> 0
A29: 1850 | B29: Line Transformers | E29: 0 | F29: =IF(D29=0,+'App.2-CC_NewCGAAP_DepExp_2013'!K29,+'App.2-CC_NewCGAAP_DepExp_2013'!K29+((C29*0.5)/D29)) -> 0 | H29: 0 | I29: 0 | K29: =IF(ISERROR(+I29+'App.2-CC_NewCGAAP_DepExp_2013'!K29-J29), 0, +I29+'App.2-CC_NewCGAAP_DepExp_2013'!K29-J29) -> 0
A30: 1855 | B30: Services (Overhead & Underground) | E30: 0 | F30: =IF(D30=0,+'App.2-CC_NewCGAAP_DepExp_2013'!K30,+'App.2-CC_NewCGAAP_DepExp_2013'!K30+((C30*0.5)/D30)) -> 0 | H30: 0 | I30: 0 | K30: =IF(ISERROR(+I30+'App.2-CC_NewCGAAP_DepExp_2013'!K30-J30), 0, +I30+'App.2-CC_NewCGAAP_DepExp_2013'!K30-J30) -> 0
A31: 1860 | B31: Meters | E31: 0 | F31: =IF(D31=0,+'App.2-CC_NewCGAAP_DepExp_2013'!K31,+'App.2-CC_NewCGAAP_DepExp_2013'!K31+((C31*0.5)/D31)) -> 0 | H31: 0 | I31: 0 | K31: =IF(ISERROR(+I31+'App.2-CC_NewCGAAP_DepExp_2013'!K31-J31), 0, +I31+'App.2-CC_NewCGAAP_DepExp_2013'!K31-J31) -> 0
A32: 1860 | B32: Meters (Smart Meters) | E32: 0 | F32: =IF(D32=0,+'App.2-CC_NewCGAAP_DepExp_2013'!K32,+'App.2-CC_NewCGAAP_DepExp_2013'!K32+((C32*0.5)/D32)) -> 0 | H32: 0 | I32: 0 | K32: =IF(ISERROR(+I32+'App.2-CC_NewCGAAP_DepExp_2013'!K32-J32), 0, +I32+'App.2-CC_NewCGAAP_DepExp_2013'!K32-J32) -> 0
A33: 1905 | B33: Land | E33: 0 | F33: =IF(D33=0,+'App.2-CC_NewCGAAP_DepExp_2013'!K33,+'App.2-CC_NewCGAAP_DepExp_2013'!K33+((C33*0.5)/D33)) -> 0 | H33: 0 | I33: 0 | K33: =IF(ISERROR(+I33+'App.2-CC_NewCGAAP_DepExp_2013'!K33-J33), 0, +I33+'App.2-CC_NewCGAAP_DepExp_2013'!K33-J33) -> 0
A34: 1908 | B34: Buildings & Fixtures | E34: 0 | F34: =IF(D34=0,+'App.2-CC_NewCGAAP_DepExp_2013'!K34,+'App.2-CC_NewCGAAP_DepExp_2013'!K34+((C34*0.5)/D34)) -> 0 | H34: 0 | I34: 0 | K34: =IF(ISERROR(+I34+'App.2-CC_NewCGAAP_DepExp_2013'!K34-J34), 0, +I34+'App.2-CC_NewCGAAP_DepExp_2013'!K34-J34) -> 0
A35: 1910 | B35: Leasehold Improvements | E35: 0 | F35: =IF(D35=0,+'App.2-CC_NewCGAAP_DepExp_2013'!K35,+'App.2-CC_NewCGAAP_DepExp_2013'!K35+((C35*0.5)/D35)) -> 0 | H35: 0 | I35: 0 | K35: =IF(ISERROR(+I35+'App.2-CC_NewCGAAP_DepExp_2013'!K35-J35), 0, +I35+'App.2-CC_NewCGAAP_DepExp_2013'!K35-J35) -> 0
A36: 1915 | B36: Office Furniture & Equipment (10 years) | E36: 0 | F36: =IF(D36=0,+'App.2-CC_NewCGAAP_DepExp_2013'!K36,+'App.2-CC_NewCGAAP_DepExp_2013'!K36+((C36*0.5)/D36)) -> 0 | H36: 0 | I36: 0 | K36: =IF(ISERROR(+I36+'App.2-CC_NewCGAAP_DepExp_2013'!K36-J36), 0, +I36+'App.2-CC_NewCGAAP_DepExp_2013'!K36-J36) -> 0
A37: 1915 | B37: Office Furniture & Equipment (5 years) | E37: 0 | F37: =IF(D37=0,+'App.2-CC_NewCGAAP_DepExp_2013'!K37,+'App.2-CC_NewCGAAP_DepExp_2013'!K37+((C37*0.5)/D37)) -> 0 | H37: 0 | I37: 0 | K37: =IF(ISERROR(+I37+'App.2-CC_NewCGAAP_DepExp_2013'!K37-J37), 0, +I37+'App.2-CC_NewCGAAP_DepExp_2013'!K37-J37) -> 0
A38: 1920 | B38: Computer Equipment - Hardware | E38: 0 | F38: =IF(D38=0,+'App.2-CC_NewCGAAP_DepExp_2013'!K38,+'App.2-CC_NewCGAAP_DepExp_2013'!K38+((C38*0.5)/D38)) -> 0 | H38: 0 | I38: 0 | K38: =IF(ISERROR(+I38+'App.2-CC_NewCGAAP_DepExp_2013'!K38-J38), 0, +I38+'App.2-CC_NewCGAAP_DepExp_2013'!K38-J38) -> 0
A39: 1920 | B39: Computer Equip.-Hardware(Post Mar. 22/04) | E39: 0 | F39: =IF(D39=0,+'App.2-CC_NewCGAAP_DepExp_2013'!K39,+'App.2-CC_NewCGAAP_DepExp_2013'!K39+((C39*0.5)/D39)) -> 0 | H39: 0 | I39: 0 | K39: =IF(ISERROR(+I39+'App.2-CC_NewCGAAP_DepExp_2013'!K39-J39), 0, +I39+'App.2-CC_NewCGAAP_DepExp_2013'!K39-J39) -> 0
A40: 1920 | B40: Computer Equip.-Hardware(Post Mar. 19/07) | E40: 0 | F40: =IF(D40=0,+'App.2-CC_NewCGAAP_DepExp_2013'!K40,+'App.2-CC_NewCGAAP_DepExp_2013'!K40+((C40*0.5)/D40)) -> 0 | H40: 0 | I40: 0 | K40: =IF(ISERROR(+I40+'App.2-CC_NewCGAAP_DepExp_2013'!K40-J40), 0, +I40+'App.2-CC_NewCGAAP_DepExp_2013'!K40-J40) -> 0
A41: 1930 | B41: Transportation Equipment | E41: 0 | F41: =IF(D41=0,+'App.2-CC_NewCGAAP_DepExp_2013'!K41,+'App.2-CC_NewCGAAP_DepExp_2013'!K41+((C41*0.5)/D41)) -> 0 | H41: 0 | I41: 0 | K41: =IF(ISERROR(+I41+'App.2-CC_NewCGAAP_DepExp_2013'!K41-J41), 0, +I41+'App.2-CC_NewCGAAP_DepExp_2013'!K41-J41) -> 0
A42: 1935 | B42: Stores Equipment | E42: 0 | F42: =IF(D42=0,+'App.2-CC_NewCGAAP_DepExp_2013'!K42,+'App.2-CC_NewCGAAP_DepExp_2013'!K42+((C42*0.5)/D42)) -> 0 | H42: 0 | I42: 0 | K42: =IF(ISERROR(+I42+'App.2-CC_NewCGAAP_DepExp_2013'!K42-J42), 0, +I42+'App.2-CC_NewCGAAP_DepExp_2013'!K42-J42) -> 0
A43: 1940 | B43: Tools, Shop & Garage Equipment | E43: 0 | F43: =IF(D43=0,+'App.2-CC_NewCGAAP_DepExp_2013'!K43,+'App.2-CC_NewCGAAP_DepExp_2013'!K43+((C43*0.5)/D43)) -> 0 | H43: 0 | I43: 0 | K43: =IF(ISERROR(+I43+'App.2-CC_NewCGAAP_DepExp_2013'!K43-J43), 0, +I43+'App.2-CC_NewCGAAP_DepExp_2013'!K43-J43) -> 0
A44: 1945 | B44: Measurement & Testing Equipment | E44: 0 | F44: =IF(D44=0,+'App.2-CC_NewCGAAP_DepExp_2013'!K44,+'App.2-CC_NewCGAAP_DepExp_2013'!K44+((C44*0.5)/D44)) -> 0 | H44: 0 | I44: 0 | K44: =IF(ISERROR(+I44+'App.2-CC_NewCGAAP_DepExp_2013'!K44-J44), 0, +I44+'App.2-CC_NewCGAAP_DepExp_2013'!K44-J44) -> 0
A45: 1950 | B45: Power Operated Equipment | E45: 0 | F45: =IF(D45=0,+'App.2-CC_NewCGAAP_DepExp_2013'!K45,+'App.2-CC_NewCGAAP_DepExp_2013'!K45+((C45*0.5)/D45)) -> 0 | H45: 0 | I45: 0 | K45: =IF(ISERROR(+I45+'App.2-CC_NewCGAAP_DepExp_2013'!K45-J45), 0, +I45+'App.2-CC_NewCGAAP_DepExp_2013'!K45-J45) -> 0
A46: 1955 | B46: Communications Equipment | E46: 0 | F46: =IF(D46=0,+'App.2-CC_NewCGAAP_DepExp_2013'!K46,+'App.2-CC_NewCGAAP_DepExp_2013'!K46+((C46*0.5)/D46)) -> 0 | H46: 0 | I46: 0 | K46: =IF(ISERROR(+I46+'App.2-CC_NewCGAAP_DepExp_2013'!K46-J46), 0, +I46+'App.2-CC_NewCGAAP_DepExp_2013'!K46-J46) -> 0
A47: 1955 | B47: Communication Equipment (Smart Meters) | E47: 0 | F47: =IF(D47=0,+'App.2-CC_NewCGAAP_DepExp_2013'!K47,+'App.2-CC_NewCGAAP_DepExp_2013'!K47+((C47*0.5)/D47)) -> 0 | H47: 0 | I47: 0 | K47: =IF(ISERROR(+I47+'App.2-CC_NewCGAAP_DepExp_2013'!K47-J47), 0, +I47+'App.2-CC_NewCGAAP_DepExp_2013'!K47-J47) -> 0
A48: 1960 | B48: Miscellaneous Equipment | E48: 0 | F48: =IF(D48=0,+'App.2-CC_NewCGAAP_DepExp_2013'!K48,+'App.2-CC_NewCGAAP_DepExp_2013'!K48+((C48*0.5)/D48)) -> 0 | H48: 0 | I48: 0 | K48: =IF(ISERROR(+I48+'App.2-CC_NewCGAAP_DepExp_2013'!K48-J48), 0, +I48+'App.2-CC_NewCGAAP_DepExp_2013'!K48-J48) -> 0
A49: 1970 | B49: Load Management Controls Customer Premises | E49: 0 | F49: =IF(D49=0,+'App.2-CC_NewCGAAP_DepExp_2013'!K49,+'App.2-CC_NewCGAAP_DepExp_2013'!K49+((C49*0.5)/D49)) -> 0 | H49: 0 | I49: 0 | K49: =IF(ISERROR(+I49+'App.2-CC_NewCGAAP_DepExp_2013'!K49-J49), 0, +I49+'App.2-CC_NewCGAAP_DepExp_2013'!K49-J49) -> 0
A50: 1975 | B50: Load Management Controls Utility Premises | E50: 0 | F50: =IF(D50=0,+'App.2-CC_NewCGAAP_DepExp_2013'!K50,+'App.2-CC_NewCGAAP_DepExp_2013'!K50+((C50*0.5)/D50)) -> 0 | H50: 0 | I50: 0 | K50: =IF(ISERROR(+I50+'App.2-CC_NewCGAAP_DepExp_2013'!K50-J50), 0, +I50+'App.2-CC_NewCGAAP_DepExp_2013'!K50-J50) -> 0
A51: 1980 | B51: System Supervisor Equipment | E51: 0 | F51: =IF(D51=0,+'App.2-CC_NewCGAAP_DepExp_2013'!K51,+'App.2-CC_NewCGAAP_DepExp_2013'!K51+((C51*0.5)/D51)) -> 0 | H51: 0 | I51: 0 | K51: =IF(ISERROR(+I51+'App.2-CC_NewCGAAP_DepExp_2013'!K51-J51), 0, +I51+'App.2-CC_NewCGAAP_DepExp_2013'!K51-J51) -> 0
A52: 1985 | B52: Miscellaneous Fixed Assets | E52: 0 | F52: =IF(D52=0,+'App.2-CC_NewCGAAP_DepExp_2013'!K52,+'App.2-CC_NewCGAAP_DepExp_2013'!K52+((C52*0.5)/D52)) -> 0 | H52: 0 | I52: 0 | K52: =IF(ISERROR(+I52+'App.2-CC_NewCGAAP_DepExp_2013'!K52-J52), 0, +I52+'App.2-CC_NewCGAAP_DepExp_2013'!K52-J52) -> 0
A53: 1990 | B53: Other Tangible Property | E53: 0 | F53: =IF(D53=0,+'App.2-CC_NewCGAAP_DepExp_2013'!K53,+'App.2-CC_NewCGAAP_DepExp_2013'!K53+((C53*0.5)/D53)) -> 0 | H53: 0 | I53: 0 | K53: =IF(ISERROR(+I53+'App.2-CC_NewCGAAP_DepExp_2013'!K53-J53), 0, +I53+'App.2-CC_NewCGAAP_DepExp_2013'!K53-J53) -> 0
A54: 1995 | B54: Contributions & Grants | E54: =IF(D54=0,0,1/D54) -> 0 | F54: =IF(D54=0,+'App.2-CC_NewCGAAP_DepExp_2013'!K54,+'App.2-CC_NewCGAAP_DepExp_2013'!K54+((C54*0.5)/D54)) -> 0 | H54: 0 | I54: 0 | K54: =IF(ISERROR(+I54+'App.2-CC_NewCGAAP_DepExp_2013'!K54-J54), 0, +I54+'App.2-CC_NewCGAAP_DepExp_2013'!K54-J54) -> 0
B55: Total | C55: =SUM(C17:C54) -> 0 | F55: =SUM(F17:F54) -> 0 | G55: 0 | H55: 0 | I55: 0 | J55: 0 | K55: 0
B56: Depreciation exp. adj. from gain or loss on the retirement of assets (pool of like assets)
B57: Total Depreciation Expense | F57: =+F56+F55 -> 0
A59: Notes:
A60: 1 | B60: Board policy of the "half-year" rule - the applicant must ensure that additions in the year attract a half-year depreciation expense in the first year. Deviations from this standard practice must be supported in the application.
A61: 2 | B61: The applicant must provide an explanation of material variances in evidence.
A62: 3 | B62: This column refers to the calculated full year depreciation but excludes the depreciation expense on assets fully depreciated during the year. This column is used for the purpose of calculating depreciation expense in the following year on the next worksheet.
A64: General: | B64: Applicants must provide a breakdown of depreciation and amortization expense in the above format for all relevant accounts. Asset Retirement Obligations (AROs), depreciation and accretion expense should be disclosed separately consistent with the Notes of historical Audited Financial Statements.

Sheet App.2-CE_MIFRS_DepExp_2015
G1: File Number: | H1: =EBNUMBER -> 0
G2: Exhibit:
G3: Tab:
G4: Schedule:
G5: Page:
G7: Date:
A9: Appendix 2-CE
A10: Depreciation and Amortization Expense
A11: Assumes the applicant made capitalization and depreciation expense accounting policy changes under CGAAP effective January 1, 2012 and has adopted IFRS for financial reporting purposes effective January 1, 2015.
C13: 2015 | D13: MIFRS
A15: Account | B15: Description | C15: Additions | D15: Years (new additions only) | E15: Depreciation Rate on New Additions | F15: 2015 Depreciation Expense 1 | G15: 2015 Depreciation Expense per Appendix 2-BA Fixed Assets, Column J (l) | H15: Variance 2 | I15: Depreciation Expense on 2015 Full Year Additions | J15: Less Depreciation Expense on Assets Fully Depreciated during the year (o) | K15: 2015 Full Year Depreciation 3
C16: (d) | D16: (f) | E16: (g) = 1 / (f) | F16: (h)=2014 Full Year Depreciation + ((d)*0.5)/(f) | H16: (m) = (h) - (l) | I16: (n)=((d))/(f) | K16: (p) = 2014 Full Year Depreciation + (n) - (o)
A17: 1611 | B17: Computer Software (Formally known as Account 1925) | E17: =IF(D17=0,0,1/D17) -> 0 | F17: =IF(D17=0,'App.2-CD_MIFRS_DepExp_2014'!K17,+'App.2-CD_MIFRS_DepExp_2014'!K17+((C17*0.5)/D17)) -> 0 | H17: =IF(ISERROR(+F17-G17), 0, +F17-G17) -> 0 | I17: =IF(D17=0,0,+(C17)/D17) -> 0 | K17: =IF(ISERROR(+I17+'App.2-CD_MIFRS_DepExp_2014'!K17-J17), 0, +I17+'App.2-CD_MIFRS_DepExp_2014'!K17-J17) -> 0
A18: 1612 | B18: Land Rights (Formally known as Account 1906) | E18: 0 | F18: =IF(D18=0,'App.2-CD_MIFRS_DepExp_2014'!K18,+'App.2-CD_MIFRS_DepExp_2014'!K18+((C18*0.5)/D18)) -> 0 | H18: 0 | I18: =IF(D18=0,0,+(C18)/D18) -> 0 | K18: =IF(ISERROR(+I18+'App.2-CD_MIFRS_DepExp_2014'!K18-J18), 0, +I18+'App.2-CD_MIFRS_DepExp_2014'!K18-J18) -> 0
A19: 1805 | B19: Land | E19: 0 | F19: =IF(D19=0,'App.2-CD_MIFRS_DepExp_2014'!K19,+'App.2-CD_MIFRS_DepExp_2014'!K19+((C19*0.5)/D19)) -> 0 | H19: 0 | I19: 0 | K19: =IF(ISERROR(+I19+'App.2-CD_MIFRS_DepExp_2014'!K19-J19), 0, +I19+'App.2-CD_MIFRS_DepExp_2014'!K19-J19) -> 0
A20: 1808 | B20: Buildings | E20: 0 | F20: =IF(D20=0,'App.2-CD_MIFRS_DepExp_2014'!K20,+'App.2-CD_MIFRS_DepExp_2014'!K20+((C20*0.5)/D20)) -> 0 | H20: 0 | I20: 0 | K20: =IF(ISERROR(+I20+'App.2-CD_MIFRS_DepExp_2014'!K20-J20), 0, +I20+'App.2-CD_MIFRS_DepExp_2014'!K20-J20) -> 0
A21: 1810 | B21: Leasehold Improvements | E21: 0 | F21: =IF(D21=0,'App.2-CD_MIFRS_DepExp_2014'!K21,+'App.2-CD_MIFRS_DepExp_2014'!K21+((C21*0.5)/D21)) -> 0 | H21: 0 | I21: 0 | K21: =IF(ISERROR(+I21+'App.2-CD_MIFRS_DepExp_2014'!K21-J21), 0, +I21+'App.2-CD_MIFRS_DepExp_2014'!K21-J21) -> 0
A22: 1815 | B22: Transformer Station Equipment >50 kV | E22: 0 | F22: =IF(D22=0,'App.2-CD_MIFRS_DepExp_2014'!K22,+'App.2-CD_MIFRS_DepExp_2014'!K22+((C22*0.5)/D22)) -> 0 | H22: 0 | I22: 0 | K22: =IF(ISERROR(+I22+'App.2-CD_MIFRS_DepExp_2014'!K22-J22), 0, +I22+'App.2-CD_MIFRS_DepExp_2014'!K22-J22) -> 0
A23: 1820 | B23: Distribution Station Equipment <50 kV | E23: 0 | F23: =IF(D23=0,'App.2-CD_MIFRS_DepExp_2014'!K23,+'App.2-CD_MIFRS_DepExp_2014'!K23+((C23*0.5)/D23)) -> 0 | H23: 0 | I23: 0 | K23: =IF(ISERROR(+I23+'App.2-CD_MIFRS_DepExp_2014'!K23-J23), 0, +I23+'App.2-CD_MIFRS_DepExp_2014'!K23-J23) -> 0
A24: 1825 | B24: Storage Battery Equipment | E24: 0 | F24: =IF(D24=0,'App.2-CD_MIFRS_DepExp_2014'!K24,+'App.2-CD_MIFRS_DepExp_2014'!K24+((C24*0.5)/D24)) -> 0 | H24: 0 | I24: 0 | K24: =IF(ISERROR(+I24+'App.2-CD_MIFRS_DepExp_2014'!K24-J24), 0, +I24+'App.2-CD_MIFRS_DepExp_2014'!K24-J24) -> 0
A25: 1830 | B25: Poles, Towers & Fixtures | E25: 0 | F25: =IF(D25=0,'App.2-CD_MIFRS_DepExp_2014'!K25,+'App.2-CD_MIFRS_DepExp_2014'!K25+((C25*0.5)/D25)) -> 0 | H25: 0 | I25: 0 | K25: =IF(ISERROR(+I25+'App.2-CD_MIFRS_DepExp_2014'!K25-J25), 0, +I25+'App.2-CD_MIFRS_DepExp_2014'!K25-J25) -> 0
A26: 1835 | B26: Overhead Conductors & Devices | E26: 0 | F26: =IF(D26=0,'App.2-CD_MIFRS_DepExp_2014'!K26,+'App.2-CD_MIFRS_DepExp_2014'!K26+((C26*0.5)/D26)) -> 0 | H26: 0 | I26: 0 | K26: =IF(ISERROR(+I26+'App.2-CD_MIFRS_DepExp_2014'!K26-J26), 0, +I26+'App.2-CD_MIFRS_DepExp_2014'!K26-J26) -> 0
A27: 1840 | B27: Underground Conduit | E27: 0 | F27: =IF(D27=0,'App.2-CD_MIFRS_DepExp_2014'!K27,+'App.2-CD_MIFRS_DepExp_2014'!K27+((C27*0.5)/D27)) -> 0 | H27: 0 | I27: 0 | K27: =IF(ISERROR(+I27+'App.2-CD_MIFRS_DepExp_2014'!K27-J27), 0, +I27+'App.2-CD_MIFRS_DepExp_2014'!K27-J27) -> 0
A28: 1845 | B28: Underground Conductors & Devices | E28: 0 | F28: =IF(D28=0,'App.2-CD_MIFRS_DepExp_2014'!K28,+'App.2-CD_MIFRS_DepExp_2014'!K28+((C28*0.5)/D28)) -> 0 | H28: 0 | I28: 0 | K28: =IF(ISERROR(+I28+'App.2-CD_MIFRS_DepExp_2014'!K28-J28), 0, +I28+'App.2-CD_MIFRS_DepExp_2014'!K28-J28) -> 0
A29: 1850 | B29: Line Transformers | E29: 0 | F29: =IF(D29=0,'App.2-CD_MIFRS_DepExp_2014'!K29,+'App.2-CD_MIFRS_DepExp_2014'!K29+((C29*0.5)/D29)) -> 0 | H29: 0 | I29: 0 | K29: =IF(ISERROR(+I29+'App.2-CD_MIFRS_DepExp_2014'!K29-J29), 0, +I29+'App.2-CD_MIFRS_DepExp_2014'!K29-J29) -> 0
A30: 1855 | B30: Services (Overhead & Underground) | E30: 0 | F30: =IF(D30=0,'App.2-CD_MIFRS_DepExp_2014'!K30,+'App.2-CD_MIFRS_DepExp_2014'!K30+((C30*0.5)/D30)) -> 0 | H30: 0 | I30: 0 | K30: =IF(ISERROR(+I30+'App.2-CD_MIFRS_DepExp_2014'!K30-J30), 0, +I30+'App.2-CD_MIFRS_DepExp_2014'!K30-J30) -> 0
A31: 1860 | B31: Meters | E31: 0 | F31: =IF(D31=0,'App.2-CD_MIFRS_DepExp_2014'!K31,+'App.2-CD_MIFRS_DepExp_2014'!K31+((C31*0.5)/D31)) -> 0 | H31: 0 | I31: 0 | K31: =IF(ISERROR(+I31+'App.2-CD_MIFRS_DepExp_2014'!K31-J31), 0, +I31+'App.2-CD_MIFRS_DepExp_2014'!K31-J31) -> 0
A32: 1860 | B32: Meters (Smart Meters) | E32: 0 | F32: =IF(D32=0,'App.2-CD_MIFRS_DepExp_2014'!K32,+'App.2-CD_MIFRS_DepExp_2014'!K32+((C32*0.5)/D32)) -> 0 | H32: 0 | I32: 0 | K32: =IF(ISERROR(+I32+'App.2-CD_MIFRS_DepExp_2014'!K32-J32), 0, +I32+'App.2-CD_MIFRS_DepExp_2014'!K32-J32) -> 0
A33: 1905 | B33: Land | E33: 0 | F33: =IF(D33=0,'App.2-CD_MIFRS_DepExp_2014'!K33,+'App.2-CD_MIFRS_DepExp_2014'!K33+((C33*0.5)/D33)) -> 0 | H33: 0 | I33: 0 | K33: =IF(ISERROR(+I33+'App.2-CD_MIFRS_DepExp_2014'!K33-J33), 0, +I33+'App.2-CD_MIFRS_DepExp_2014'!K33-J33) -> 0
A34: 1908 | B34: Buildings & Fixtures | E34: 0 | F34: =IF(D34=0,'App.2-CD_MIFRS_DepExp_2014'!K34,+'App.2-CD_MIFRS_DepExp_2014'!K34+((C34*0.5)/D34)) -> 0 | H34: 0 | I34: 0 | K34: =IF(ISERROR(+I34+'App.2-CD_MIFRS_DepExp_2014'!K34-J34), 0, +I34+'App.2-CD_MIFRS_DepExp_2014'!K34-J34) -> 0
A35: 1910 | B35: Leasehold Improvements | E35: 0 | F35: =IF(D35=0,'App.2-CD_MIFRS_DepExp_2014'!K35,+'App.2-CD_MIFRS_DepExp_2014'!K35+((C35*0.5)/D35)) -> 0 | H35: 0 | I35: 0 | K35: =IF(ISERROR(+I35+'App.2-CD_MIFRS_DepExp_2014'!K35-J35), 0, +I35+'App.2-CD_MIFRS_DepExp_2014'!K35-J35) -> 0
A36: 1915 | B36: Office Furniture & Equipment (10 years) | E36: 0 | F36: =IF(D36=0,'App.2-CD_MIFRS_DepExp_2014'!K36,+'App.2-CD_MIFRS_DepExp_2014'!K36+((C36*0.5)/D36)) -> 0 | H36: 0 | I36: 0 | K36: =IF(ISERROR(+I36+'App.2-CD_MIFRS_DepExp_2014'!K36-J36), 0, +I36+'App.2-CD_MIFRS_DepExp_2014'!K36-J36) -> 0
A37: 1915 | B37: Office Furniture & Equipment (5 years) | E37: 0 | F37: =IF(D37=0,'App.2-CD_MIFRS_DepExp_2014'!K37,+'App.2-CD_MIFRS_DepExp_2014'!K37+((C37*0.5)/D37)) -> 0 | H37: 0 | I37: 0 | K37: =IF(ISERROR(+I37+'App.2-CD_MIFRS_DepExp_2014'!K37-J37), 0, +I37+'App.2-CD_MIFRS_DepExp_2014'!K37-J37) -> 0
A38: 1920 | B38: Computer Equipment - Hardware | E38: 0 | F38: =IF(D38=0,'App.2-CD_MIFRS_DepExp_2014'!K38,+'App.2-CD_MIFRS_DepExp_2014'!K38+((C38*0.5)/D38)) -> 0 | H38: 0 | I38: 0 | K38: =IF(ISERROR(+I38+'App.2-CD_MIFRS_DepExp_2014'!K38-J38), 0, +I38+'App.2-CD_MIFRS_DepExp_2014'!K38-J38) -> 0
A39: 1920 | B39: Computer Equip.-Hardware(Post Mar. 22/04) | E39: 0 | F39: =IF(D39=0,'App.2-CD_MIFRS_DepExp_2014'!K39,+'App.2-CD_MIFRS_DepExp_2014'!K39+((C39*0.5)/D39)) -> 0 | H39: 0 | I39: 0 | K39: =IF(ISERROR(+I39+'App.2-CD_MIFRS_DepExp_2014'!K39-J39), 0, +I39+'App.2-CD_MIFRS_DepExp_2014'!K39-J39) -> 0
A40: 1920 | B40: Computer Equip.-Hardware(Post Mar. 19/07) | E40: 0 | F40: =IF(D40=0,'App.2-CD_MIFRS_DepExp_2014'!K40,+'App.2-CD_MIFRS_DepExp_2014'!K40+((C40*0.5)/D40)) -> 0 | H40: 0 | I40: 0 | K40: =IF(ISERROR(+I40+'App.2-CD_MIFRS_DepExp_2014'!K40-J40), 0, +I40+'App.2-CD_MIFRS_DepExp_2014'!K40-J40) -> 0
A41: 1930 | B41: Transportation Equipment | E41: 0 | F41: =IF(D41=0,'App.2-CD_MIFRS_DepExp_2014'!K41,+'App.2-CD_MIFRS_DepExp_2014'!K41+((C41*0.5)/D41)) -> 0 | H41: 0 | I41: 0 | K41: =IF(ISERROR(+I41+'App.2-CD_MIFRS_DepExp_2014'!K41-J41), 0, +I41+'App.2-CD_MIFRS_DepExp_2014'!K41-J41) -> 0
A42: 1935 | B42: Stores Equipment | E42: 0 | F42: =IF(D42=0,'App.2-CD_MIFRS_DepExp_2014'!K42,+'App.2-CD_MIFRS_DepExp_2014'!K42+((C42*0.5)/D42)) -> 0 | H42: 0 | I42: 0 | K42: =IF(ISERROR(+I42+'App.2-CD_MIFRS_DepExp_2014'!K42-J42), 0, +I42+'App.2-CD_MIFRS_DepExp_2014'!K42-J42) -> 0
A43: 1940 | B43: Tools, Shop & Garage Equipment | E43: 0 | F43: =IF(D43=0,'App.2-CD_MIFRS_DepExp_2014'!K43,+'App.2-CD_MIFRS_DepExp_2014'!K43+((C43*0.5)/D43)) -> 0 | H43: 0 | I43: 0 | K43: =IF(ISERROR(+I43+'App.2-CD_MIFRS_DepExp_2014'!K43-J43), 0, +I43+'App.2-CD_MIFRS_DepExp_2014'!K43-J43) -> 0
A44: 1945 | B44: Measurement & Testing Equipment | E44: 0 | F44: =IF(D44=0,'App.2-CD_MIFRS_DepExp_2014'!K44,+'App.2-CD_MIFRS_DepExp_2014'!K44+((C44*0.5)/D44)) -> 0 | H44: 0 | I44: 0 | K44: =IF(ISERROR(+I44+'App.2-CD_MIFRS_DepExp_2014'!K44-J44), 0, +I44+'App.2-CD_MIFRS_DepExp_2014'!K44-J44) -> 0
A45: 1950 | B45: Power Operated Equipment | E45: 0 | F45: =IF(D45=0,'App.2-CD_MIFRS_DepExp_2014'!K45,+'App.2-CD_MIFRS_DepExp_2014'!K45+((C45*0.5)/D45)) -> 0 | H45: 0 | I45: 0 | K45: =IF(ISERROR(+I45+'App.2-CD_MIFRS_DepExp_2014'!K45-J45), 0, +I45+'App.2-CD_MIFRS_DepExp_2014'!K45-J45) -> 0
A46: 1955 | B46: Communications Equipment | E46: 0 | F46: =IF(D46=0,'App.2-CD_MIFRS_DepExp_2014'!K46,+'App.2-CD_MIFRS_DepExp_2014'!K46+((C46*0.5)/D46)) -> 0 | H46: 0 | I46: 0 | K46: =IF(ISERROR(+I46+'App.2-CD_MIFRS_DepExp_2014'!K46-J46), 0, +I46+'App.2-CD_MIFRS_DepExp_2014'!K46-J46) -> 0
A47: 1955 | B47: Communication Equipment (Smart Meters) | E47: 0 | F47: =IF(D47=0,'App.2-CD_MIFRS_DepExp_2014'!K47,+'App.2-CD_MIFRS_DepExp_2014'!K47+((C47*0.5)/D47)) -> 0 | H47: 0 | I47: 0 | K47: =IF(ISERROR(+I47+'App.2-CD_MIFRS_DepExp_2014'!K47-J47), 0, +I47+'App.2-CD_MIFRS_DepExp_2014'!K47-J47) -> 0
A48: 1960 | B48: Miscellaneous Equipment | E48: 0 | F48: =IF(D48=0,'App.2-CD_MIFRS_DepExp_2014'!K48,+'App.2-CD_MIFRS_DepExp_2014'!K48+((C48*0.5)/D48)) -> 0 | H48: 0 | I48: 0 | K48: =IF(ISERROR(+I48+'App.2-CD_MIFRS_DepExp_2014'!K48-J48), 0, +I48+'App.2-CD_MIFRS_DepExp_2014'!K48-J48) -> 0
A49: 1970 | B49: Load Management Controls Customer Premises | E49: 0 | F49: =IF(D49=0,'App.2-CD_MIFRS_DepExp_2014'!K49,+'App.2-CD_MIFRS_DepExp_2014'!K49+((C49*0.5)/D49)) -> 0 | H49: 0 | I49: 0 | K49: =IF(ISERROR(+I49+'App.2-CD_MIFRS_DepExp_2014'!K49-J49), 0, +I49+'App.2-CD_MIFRS_DepExp_2014'!K49-J49) -> 0
A50: 1975 | B50: Load Management Controls Utility Premises | E50: 0 | F50: =IF(D50=0,'App.2-CD_MIFRS_DepExp_2014'!K50,+'App.2-CD_MIFRS_DepExp_2014'!K50+((C50*0.5)/D50)) -> 0 | H50: 0 | I50: 0 | K50: =IF(ISERROR(+I50+'App.2-CD_MIFRS_DepExp_2014'!K50-J50), 0, +I50+'App.2-CD_MIFRS_DepExp_2014'!K50-J50) -> 0
A51: 1980 | B51: System Supervisor Equipment | E51: 0 | F51: =IF(D51=0,'App.2-CD_MIFRS_DepExp_2014'!K51,+'App.2-CD_MIFRS_DepExp_2014'!K51+((C51*0.5)/D51)) -> 0 | H51: 0 | I51: 0 | K51: =IF(ISERROR(+I51+'App.2-CD_MIFRS_DepExp_2014'!K51-J51), 0, +I51+'App.2-CD_MIFRS_DepExp_2014'!K51-J51) -> 0
A52: 1985 | B52: Miscellaneous Fixed Assets | E52: 0 | F52: =IF(D52=0,'App.2-CD_MIFRS_DepExp_2014'!K52,+'App.2-CD_MIFRS_DepExp_2014'!K52+((C52*0.5)/D52)) -> 0 | H52: 0 | I52: 0 | K52: =IF(ISERROR(+I52+'App.2-CD_MIFRS_DepExp_2014'!K52-J52), 0, +I52+'App.2-CD_MIFRS_DepExp_2014'!K52-J52) -> 0
A53: 1990 | B53: Other Tangible Property | E53: 0 | F53: =IF(D53=0,'App.2-CD_MIFRS_DepExp_2014'!K53,+'App.2-CD_MIFRS_DepExp_2014'!K53+((C53*0.5)/D53)) -> 0 | H53: 0 | I53: 0 | K53: =IF(ISERROR(+I53+'App.2-CD_MIFRS_DepExp_2014'!K53-J53), 0, +I53+'App.2-CD_MIFRS_DepExp_2014'!K53-J53) -> 0
A54: 1995 | B54: Contributions & Grants | E54: 0 | F54: =IF(D54=0,'App.2-CD_MIFRS_DepExp_2014'!K54,+'App.2-CD_MIFRS_DepExp_2014'!K54+((C54*0.5)/D54)) -> 0 | H54: 0 | I54: 0 | K54: =IF(ISERROR(+I54+'App.2-CD_MIFRS_DepExp_2014'!K54-J54), 0, +I54+'App.2-CD_MIFRS_DepExp_2014'!K54-J54) -> 0
B55: Total | C55: =SUM(C17:C54) -> 0 | F55: =SUM(F17:F54) -> 0 | G55: =SUM(G17:G54) -> 0 | H55: =SUM(H17:H54) -> 0 | I55: =SUM(I17:I54) -> 0 | J55: 0 | K55: =SUM(K17:K54) -> 0
B56: Depreciation exp. adj. from gain or loss on the retirement of assets (pool of like assets)
B57: Total Depreciation expense to be included in the test year revenue requirement | F57: =SUM(F55:F56) -> 0
A58: Notes:
A59: 1 | B59: Board policy of the "half-year" rule - the applicant must ensure that additions in the year attract a half-year depreciation expense in the first year. Deviations from this standard practice must be supported in the application.
A60: 2 | B60: The applicant must provide an explanation of material variances in evidence.
A61: 3 | B61: This column refers to the calculated full year depreciation but excludes the depreciation expense on assets fully depreciated during the year. This column is used for the purpose of calculating depreciation expense in the following year on the next worksheet.
A63: General: | B63: Applicants must provide a breakdown of depreciation and amortization expense in the above format for all relevant accounts. Asset Retirement Obligations (AROs), depreciation and accretion expense should be disclosed separately consistent with the Notes of historical Audited Financial Statements.

Sheet App.2-CF_MIFRS_DepExp_2016
G1: File Number: | H1: =EBNUMBER -> 0
G2: Exhibit:
G3: Tab:
G4: Schedule:
G5: Page:
G7: Date:
A9: Appendix 2-CF
A10: Depreciation and Amortization Expense
A11: Assumes the applicant made capitalization and depreciation expense accounting policy changes under CGAAP effective January 1, 2012 and has adopted IFRS for financial reporting purposes effective January 1, 2015.
C13: 2016 | D13: MIFRS
A15: Account | B15: Description | C15: Additions | D15: Years (new additions only) | E15: Depreciation Rate on New Additions | F15: 2016 Depreciation Expense 1 | G15: 2016 Depreciation Expense per Appendix 2-BA Fixed Assets, Column J (l) | H15: Variance 2
C16: (d) | D16: (f) | E16: (g) = 1 / (f) | F16: (h)=2015 Full Year Depreciation + ((d)*0.5)/(f) | H16: (m) = (h) - (l)
A17: 1611 | B17: Computer Software (Formally known as Account 1925) | E17: =IF(D17=0,0,1/D17) -> 0 | F17: =IF(D17=0,'App.2-CE_MIFRS_DepExp_2015'!K17,+'App.2-CE_MIFRS_DepExp_2015'!K17+((C17*0.5)/D17)) -> 0 | H17: =IF(ISERROR(+F17-G17), 0, +F17-G17) -> 0
A18: 1612 | B18: Land Rights (Formally known as Account 1906) | E18: 0 | F18: =IF(D18=0,'App.2-CE_MIFRS_DepExp_2015'!K18,+'App.2-CE_MIFRS_DepExp_2015'!K18+((C18*0.5)/D18)) -> 0 | H18: 0
A19: 1805 | B19: Land | E19: 0 | F19: =IF(D19=0,'App.2-CE_MIFRS_DepExp_2015'!K19,+'App.2-CE_MIFRS_DepExp_2015'!K19+((C19*0.5)/D19)) -> 0 | H19: 0
A20: 1808 | B20: Buildings | E20: 0 | F20: =IF(D20=0,'App.2-CE_MIFRS_DepExp_2015'!K20,+'App.2-CE_MIFRS_DepExp_2015'!K20+((C20*0.5)/D20)) -> 0 | H20: 0
A21: 1810 | B21: Leasehold Improvements | E21: 0 | F21: =IF(D21=0,'App.2-CE_MIFRS_DepExp_2015'!K21,+'App.2-CE_MIFRS_DepExp_2015'!K21+((C21*0.5)/D21)) -> 0 | H21: 0
A22: 1815 | B22: Transformer Station Equipment >50 kV | E22: 0 | F22: =IF(D22=0,'App.2-CE_MIFRS_DepExp_2015'!K22,+'App.2-CE_MIFRS_DepExp_2015'!K22+((C22*0.5)/D22)) -> 0 | H22: 0
A23: 1820 | B23: Distribution Station Equipment <50 kV | E23: 0 | F23: =IF(D23=0,'App.2-CE_MIFRS_DepExp_2015'!K23,+'App.2-CE_MIFRS_DepExp_2015'!K23+((C23*0.5)/D23)) -> 0 | H23: 0
A24: 1825 | B24: Storage Battery Equipment | E24: 0 | F24: =IF(D24=0,'App.2-CE_MIFRS_DepExp_2015'!K24,+'App.2-CE_MIFRS_DepExp_2015'!K24+((C24*0.5)/D24)) -> 0 | H24: 0
A25: 1830 | B25: Poles, Towers & Fixtures | E25: 0 | F25: =IF(D25=0,'App.2-CE_MIFRS_DepExp_2015'!K25,+'App.2-CE_MIFRS_DepExp_2015'!K25+((C25*0.5)/D25)) -> 0 | H25: 0
A26: 1835 | B26: Overhead Conductors & Devices | E26: 0 | F26: =IF(D26=0,'App.2-CE_MIFRS_DepExp_2015'!K26,+'App.2-CE_MIFRS_DepExp_2015'!K26+((C26*0.5)/D26)) -> 0 | H26: 0
A27: 1840 | B27: Underground Conduit | E27: 0 | F27: =IF(D27=0,'App.2-CE_MIFRS_DepExp_2015'!K27,+'App.2-CE_MIFRS_DepExp_2015'!K27+((C27*0.5)/D27)) -> 0 | H27: 0
A28: 1845 | B28: Underground Conductors & Devices | E28: 0 | F28: =IF(D28=0,'App.2-CE_MIFRS_DepExp_2015'!K28,+'App.2-CE_MIFRS_DepExp_2015'!K28+((C28*0.5)/D28)) -> 0 | H28: 0
A29: 1850 | B29: Line Transformers | E29: 0 | F29: =IF(D29=0,'App.2-CE_MIFRS_DepExp_2015'!K29,+'App.2-CE_MIFRS_DepExp_2015'!K29+((C29*0.5)/D29)) -> 0 | H29: 0
A30: 1855 | B30: Services (Overhead & Underground) | E30: 0 | F30: =IF(D30=0,'App.2-CE_MIFRS_DepExp_2015'!K30,+'App.2-CE_MIFRS_DepExp_2015'!K30+((C30*0.5)/D30)) -> 0 | H30: 0
A31: 1860 | B31: Meters | E31: 0 | F31: =IF(D31=0,'App.2-CE_MIFRS_DepExp_2015'!K31,+'App.2-CE_MIFRS_DepExp_2015'!K31+((C31*0.5)/D31)) -> 0 | H31: 0
A32: 1860 | B32: Meters (Smart Meters) | E32: 0 | F32: =IF(D32=0,'App.2-CE_MIFRS_DepExp_2015'!K32,+'App.2-CE_MIFRS_DepExp_2015'!K32+((C32*0.5)/D32)) -> 0 | H32: 0
A33: 1905 | B33: Land | E33: 0 | F33: =IF(D33=0,'App.2-CE_MIFRS_DepExp_2015'!K33,+'App.2-CE_MIFRS_DepExp_2015'!K33+((C33*0.5)/D33)) -> 0 | H33: 0
A34: 1908 | B34: Buildings & Fixtures | E34: 0 | F34: =IF(D34=0,'App.2-CE_MIFRS_DepExp_2015'!K34,+'App.2-CE_MIFRS_DepExp_2015'!K34+((C34*0.5)/D34)) -> 0 | H34: 0
A35: 1910 | B35: Leasehold Improvements | E35: 0 | F35: =IF(D35=0,'App.2-CE_MIFRS_DepExp_2015'!K35,+'App.2-CE_MIFRS_DepExp_2015'!K35+((C35*0.5)/D35)) -> 0 | H35: 0
A36: 1915 | B36: Office Furniture & Equipment (10 years) | E36: 0 | F36: =IF(D36=0,'App.2-CE_MIFRS_DepExp_2015'!K36,+'App.2-CE_MIFRS_DepExp_2015'!K36+((C36*0.5)/D36)) -> 0 | H36: 0
A37: 1915 | B37: Office Furniture & Equipment (5 years) | E37: 0 | F37: =IF(D37=0,'App.2-CE_MIFRS_DepExp_2015'!K37,+'App.2-CE_MIFRS_DepExp_2015'!K37+((C37*0.5)/D37)) -> 0 | H37: 0
A38: 1920 | B38: Computer Equipment - Hardware | E38: 0 | F38: =IF(D38=0,'App.2-CE_MIFRS_DepExp_2015'!K38,+'App.2-CE_MIFRS_DepExp_2015'!K38+((C38*0.5)/D38)) -> 0 | H38: 0
A39: 1920 | B39: Computer Equip.-Hardware(Post Mar. 22/04) | E39: 0 | F39: =IF(D39=0,'App.2-CE_MIFRS_DepExp_2015'!K39,+'App.2-CE_MIFRS_DepExp_2015'!K39+((C39*0.5)/D39)) -> 0 | H39: 0
A40: 1920 | B40: Computer Equip.-Hardware(Post Mar. 19/07) | E40: 0 | F40: =IF(D40=0,'App.2-CE_MIFRS_DepExp_2015'!K40,+'App.2-CE_MIFRS_DepExp_2015'!K40+((C40*0.5)/D40)) -> 0 | H40: 0
A41: 1930 | B41: Transportation Equipment | E41: 0 | F41: =IF(D41=0,'App.2-CE_MIFRS_DepExp_2015'!K41,+'App.2-CE_MIFRS_DepExp_2015'!K41+((C41*0.5)/D41)) -> 0 | H41: 0
A42: 1935 | B42: Stores Equipment | E42: 0 | F42: =IF(D42=0,'App.2-CE_MIFRS_DepExp_2015'!K42,+'App.2-CE_MIFRS_DepExp_2015'!K42+((C42*0.5)/D42)) -> 0 | H42: 0
A43: 1940 | B43: Tools, Shop & Garage Equipment | E43: 0 | F43: =IF(D43=0,'App.2-CE_MIFRS_DepExp_2015'!K43,+'App.2-CE_MIFRS_DepExp_2015'!K43+((C43*0.5)/D43)) -> 0 | H43: 0
A44: 1945 | B44: Measurement & Testing Equipment | E44: 0 | F44: =IF(D44=0,'App.2-CE_MIFRS_DepExp_2015'!K44,+'App.2-CE_MIFRS_DepExp_2015'!K44+((C44*0.5)/D44)) -> 0 | H44: 0
A45: 1950 | B45: Power Operated Equipment | E45: 0 | F45: =IF(D45=0,'App.2-CE_MIFRS_DepExp_2015'!K45,+'App.2-CE_MIFRS_DepExp_2015'!K45+((C45*0.5)/D45)) -> 0 | H45: 0
A46: 1955 | B46: Communications Equipment | E46: 0 | F46: =IF(D46=0,'App.2-CE_MIFRS_DepExp_2015'!K46,+'App.2-CE_MIFRS_DepExp_2015'!K46+((C46*0.5)/D46)) -> 0 | H46: 0
A47: 1955 | B47: Communication Equipment (Smart Meters) | E47: 0 | F47: =IF(D47=0,'App.2-CE_MIFRS_DepExp_2015'!K47,+'App.2-CE_MIFRS_DepExp_2015'!K47+((C47*0.5)/D47)) -> 0 | H47: 0
A48: 1960 | B48: Miscellaneous Equipment | E48: 0 | F48: =IF(D48=0,'App.2-CE_MIFRS_DepExp_2015'!K48,+'App.2-CE_MIFRS_DepExp_2015'!K48+((C48*0.5)/D48)) -> 0 | H48: 0
A49: 1970 | B49: Load Management Controls Customer Premises | E49: 0 | F49: =IF(D49=0,'App.2-CE_MIFRS_DepExp_2015'!K49,+'App.2-CE_MIFRS_DepExp_2015'!K49+((C49*0.5)/D49)) -> 0 | H49: 0
A50: 1975 | B50: Load Management Controls Utility Premises | E50: 0 | F50: =IF(D50=0,'App.2-CE_MIFRS_DepExp_2015'!K50,+'App.2-CE_MIFRS_DepExp_2015'!K50+((C50*0.5)/D50)) -> 0 | H50: 0
A51: 1980 | B51: System Supervisor Equipment | E51: 0 | F51: =IF(D51=0,'App.2-CE_MIFRS_DepExp_2015'!K51,+'App.2-CE_MIFRS_DepExp_2015'!K51+((C51*0.5)/D51)) -> 0 | H51: 0
A52: 1985 | B52: Miscellaneous Fixed Assets | E52: 0 | F52: =IF(D52=0,'App.2-CE_MIFRS_DepExp_2015'!K52,+'App.2-CE_MIFRS_DepExp_2015'!K52+((C52*0.5)/D52)) -> 0 | H52: 0
A53: 1990 | B53: Other Tangible Property | E53: 0 | F53: =IF(D53=0,'App.2-CE_MIFRS_DepExp_2015'!K53,+'App.2-CE_MIFRS_DepExp_2015'!K53+((C53*0.5)/D53)) -> 0 | H53: 0
A54: 1995 | B54: Contributions & Grants | E54: 0 | F54: =IF(D54=0,'App.2-CE_MIFRS_DepExp_2015'!K54,+'App.2-CE_MIFRS_DepExp_2015'!K54+((C54*0.5)/D54)) -> 0 | H54: 0
B55: Total | C55: =SUM(C17:C54) -> 0 | F55: =SUM(F17:F54) -> 0 | G55: =SUM(G17:G54) -> 0 | H55: =SUM(H17:H54) -> 0
B56: Depreciation exp. adj. from gain or loss on the retirement of assets (pool of like assets)
B57: Total Depreciation expense to be included in the test year revenue requirement | F57: =SUM(F55:F56) -> 0
A58: Notes:
A59: 1 | B59: Board policy of the "half-year" rule - the applicant must ensure that additions in the year attract a half-year depreciation expense in the first year. Deviations from this standard practice must be supported in the application.
A60: 2 | B60: The applicant must provide an explanation of material variances in evidence.
A63: General: | B63: Applicants must provide a breakdown of depreciation and amortization expense in the above format for all relevant accounts. Asset Retirement Obligations (AROs), depreciation and accretion expense should be disclosed separately consistent with the Notes of historical Audited Financial Statements.

Sheet App.2-CG_OldCGAAP_DepExp_2013
K1: File Number: | L1: =EBNUMBER -> 0
K2: Exhibit:
K3: Tab:
K4: Schedule:
K5: Page:
K7: Date:
A9: Appendix 2-CG
A10: Depreciation and Amortization Expense
B11: Assumes the applicant made capitalization and depreciation expense accounting policy changes under CGAAP effective January 1, 2013 and has adopted IFRS for financial reporting purposes effective January 1, 2015.
C13: Year | D13: 2013 | E13: Former CGAAP
A15: Account | B15: Description | C15: Opening Regulatory Gross PP&E as at Jan 1, 2013 | D15: Less Fully Depreciated | E15: Net for Depreciation | F15: Additions | G15: Total for Depreciation 1 | H15: Years | I15: Depreciation Rate | J15: Depreciation Expense | K15: 2013 Depreciation Expense per Appendix 2-BA Fixed Assets, Column J (l) | L15: Variance 2
C16: (a) | D16: (b) | E16: (c) | F16: (d) | G16: (e) = (c) + ½ x (d) | H16: (f) | I16: (g) = 1 / (f) | J16: (h) = (e) / (f) | L16: (m) = (h) - (l)
A17: 1611 | B17: Computer Software (Formally known as Account 1925) | E17: =C17-D17 -> 0 | G17: =E17+0.5*F17 -> 0 | I17: =IF(H17=0,0,1/H17) -> 0 | J17: =IF(H17=0,0,G17/H17) -> 0 | L17: =IF(ISERROR(+J17-K17), 0, +J17-K17) -> 0
A18: 1612 | B18: Land Rights (Formally known as Account 1906) | E18: =C18-D18 -> 0 | G18: =E18+0.5*F18 -> 0 | I18: 0 | J18: 0 | L18: 0
A19: 1805 | B19: Land | E19: 0 | G19: 0 | I19: 0 | J19: 0 | L19: 0
A20: 1808 | B20: Buildings | E20: 0 | G20: 0 | I20: 0 | J20: 0 | L20: 0
A21: 1810 | B21: Leasehold Improvements | E21: 0 | G21: 0 | I21: 0 | J21: 0 | L21: 0
A22: 1815 | B22: Transformer Station Equipment >50 kV | E22: 0 | G22: 0 | I22: 0 | J22: 0 | L22: 0
A23: 1820 | B23: Distribution Station Equipment <50 kV | E23: 0 | G23: 0 | I23: 0 | J23: 0 | L23: 0
A24: 1825 | B24: Storage Battery Equipment | E24: 0 | G24: 0 | I24: 0 | J24: 0 | L24: 0
A25: 1830 | B25: Poles, Towers & Fixtures | E25: 0 | G25: 0 | I25: 0 | J25: 0 | L25: 0
A26: 1835 | B26: Overhead Conductors & Devices | E26: 0 | G26: 0 | I26: 0 | J26: 0 | L26: 0
A27: 1840 | B27: Underground Conduit | E27: 0 | G27: 0 | I27: 0 | J27: 0 | L27: 0
A28: 1845 | B28: Underground Conductors & Devices | E28: 0 | G28: 0 | I28: 0 | J28: 0 | L28: 0
A29: 1850 | B29: Line Transformers | E29: 0 | G29: 0 | I29: 0 | J29: 0 | L29: 0
A30: 1855 | B30: Services (Overhead & Underground) | E30: 0 | G30: 0 | I30: 0 | J30: 0 | L30: 0
A31: 1860 | B31: Meters | E31: 0 | G31: 0 | I31: 0 | J31: 0 | L31: 0
A32: 1860 | B32: Meters (Smart Meters) | E32: 0 | G32: 0 | I32: 0 | J32: 0 | L32: 0
A33: 1905 | B33: Land | E33: 0 | G33: 0 | I33: 0 | J33: 0 | L33: 0
A34: 1908 | B34: Buildings & Fixtures | E34: 0 | G34: 0 | I34: 0 | J34: 0 | L34: 0
A35: 1910 | B35: Leasehold Improvements | E35: 0 | G35: 0 | I35: 0 | J35: 0 | L35: 0
A36: 1915 | B36: Office Furniture & Equipment (10 years) | E36: 0 | G36: 0 | I36: 0 | J36: 0 | L36: 0
A37: 1915 | B37: Office Furniture & Equipment (5 years) | E37: 0 | G37: 0 | I37: 0 | J37: 0 | L37: 0
A38: 1920 | B38: Computer Equipment - Hardware | E38: 0 | G38: 0 | I38: 0 | J38: 0 | L38: 0
A39: 1920 | B39: Computer Equip.-Hardware(Post Mar. 22/04) | E39: 0 | G39: 0 | I39: 0 | J39: 0 | L39: 0
A40: 1920 | B40: Computer Equip.-Hardware(Post Mar. 19/07) | E40: 0 | G40: 0 | I40: 0 | J40: 0 | L40: 0
A41: 1930 | B41: Transportation Equipment | E41: 0 | G41: 0 | I41: 0 | J41: 0 | L41: 0
A42: 1935 | B42: Stores Equipment | E42: 0 | G42: 0 | I42: 0 | J42: 0 | L42: 0
A43: 1940 | B43: Tools, Shop & Garage Equipment | E43: 0 | G43: 0 | I43: 0 | J43: 0 | L43: 0
A44: 1945 | B44: Measurement & Testing Equipment | E44: 0 | G44: 0 | I44: 0 | J44: 0 | L44: 0
A45: 1950 | B45: Power Operated Equipment | E45: 0 | G45: 0 | I45: 0 | J45: 0 | L45: 0
A46: 1955 | B46: Communications Equipment | E46: 0 | G46: 0 | I46: 0 | J46: 0 | L46: 0
A47: 1955 | B47: Communication Equipment (Smart Meters) | E47: 0 | G47: 0 | I47: 0 | J47: 0 | L47: 0
A48: 1960 | B48: Miscellaneous Equipment | E48: 0 | G48: 0 | I48: 0 | J48: 0 | L48: 0
A49: 1970 | B49: Load Management Controls - Customer Premises | E49: 0 | G49: 0 | I49: 0 | J49: 0 | L49: 0
A50: 1975 | B50: Load Management Controls Utility Premises | E50: 0 | G50: 0 | I50: 0 | J50: 0 | L50: 0
A51: 1980 | B51: System Supervisor Equipment | E51: 0 | G51: 0 | I51: 0 | J51: 0 | L51: 0
A52: 1985 | B52: Miscellaneous Fixed Assets | E52: 0 | G52: 0 | I52: 0 | J52: 0 | L52: 0
A53: 1990 | B53: Other Tangible Property | E53: 0 | G53: 0 | I53: 0 | J53: 0 | L53: 0
A54: 1995 | B54: Contributions & Grants | E54: 0 | G54: 0 | I54: 0 | J54: 0 | L54: 0
B55: Total | C55: =SUM(C17:C54) -> 0 | D55: =SUM(D17:D54) -> 0 | E55: =SUM(E17:E54) -> 0 | F55: =SUM(F17:F54) -> 0 | G55: =SUM(G17:G54) -> 0 | J55: =SUM(J17:J54) -> 0 | K55: =SUM(K17:K54) -> 0 | L55: =SUM(L17:L54) -> 0
A57: Notes:
A59: 1 | B59: Board policy of the "half-year" rule - the applicant must ensure that additions in the year attract a half-year depreciation expense in the first year. Deviations from this standard practice must be supported in the application.
A60: 2 | B60: The applicant must provide an explanation of material variances in evidence.
A62: General | B62: Applicants must provide a breakdown of depreciation and amortization expense in the above format for all relevant accounts. Asset Retirement Obligations (AROs), depreciation and accretion expense should be disclosed separately consistent with the Notes of historical Audited Financial Statements.

Sheet App.2-CH_NewCGAAP_DepExp_2013
N1: File Number: | O1: =EBNUMBER -> 0
N2: Exhibit:
N3: Tab:
N4: Schedule:
N5: Page:
N7: Date:
A9: Appendix 2-CH
A10: Depreciation and Amortization Expense
A11: Assumes the applicant made capitalization and depreciation expense accounting policy changes under CGAAP effective January 1, 2013 and has adopted IFRS for financial reporting purposes effective January 1, 2015.
C13: Year | D13: 2013 | E13: Revised CGAAP
A15: Account | B15: Description | C15: Opening NBV as at Jan 1, 2013 5 | D15: Additions | E15: Average Remaining Life of Opening NBV 4 | F15: Years (new additions only) 3 | G15: Depreciation Rate on New Additions | H15: Depreciation Expense on Opening NBV | I15: Depreciation Expense on Additions 1 | J15: 2013 Depreciation Expense | K15: 2013 Depreciation Expense per Appendix 2-BA Fixed Assets, Column J (l) | L15: Variance 2 | M15: Depreciation Expense on 2013 Full Year Additions | N15: Less Depreciation Expense on Assets Fully Depreciated during the year (o) | O15: 2013 Full Year Depreciation 6
C16: (a) | D16: (d) | E16: (i) | F16: (f) | G16: (g) = 1 / (f) | H16: (j) = (a) / (i) | I16: (h)=((d)*0.5)/(f) | J16: (k) = (j) + (h) | L16: (m) = (k) - (l) | M16: (n) = (d)/(f) | O16: (p) = (j) + (n) - (o)
A17: 1611 | B17: Computer Software (Formally known as Account 1925) | G17: =IF(F17=0,0,1/F17) -> 0 | H17: =IF(E17=0,0,+C17/E17) -> 0 | I17: =IF(F17=0,0,+(D17*0.5)/F17) -> 0 | J17: =IF(ISERROR(+H17+I17), 0, +H17+I17) -> 0 | L17: =IF(ISERROR(+J17-K17), 0, +J17-K17) -> 0 | M17: =IF(F17=0,0,+(D17)/F17) -> 0 | O17: =IF(ISERROR(+M17+H17-N17), 0, +M17+H17-N17) -> 0
A18: 1612 | B18: Land Rights (Formally known as Account 1906) | G18: 0 | H18: 0 | I18: 0 | J18: 0 | L18: 0 | M18: 0 | O18: =IF(ISERROR(+M18+H18-N18), 0, +M18+H18-N18) -> 0
A19: 1805 | B19: Land | G19: 0 | H19: 0 | I19: 0 | J19: 0 | L19: 0 | M19: 0 | O19: 0
A20: 1808 | B20: Buildings | G20: 0 | H20: 0 | I20: 0 | J20: 0 | L20: 0 | M20: 0 | O20: 0
A21: 1810 | B21: Leasehold Improvements | G21: 0 | H21: 0 | I21: 0 | J21: 0 | L21: 0 | M21: 0 | O21: 0
A22: 1815 | B22: Transformer Station Equipment >50 kV | G22: 0 | H22: 0 | I22: 0 | J22: 0 | L22: 0 | M22: 0 | O22: 0
A23: 1820 | B23: Distribution Station Equipment <50 kV | G23: 0 | H23: 0 | I23: 0 | J23: 0 | L23: 0 | M23: 0 | O23: 0
A24: 1825 | B24: Storage Battery Equipment | G24: 0 | H24: 0 | I24: 0 | J24: 0 | L24: 0 | M24: 0 | O24: 0
A25: 1830 | B25: Poles, Towers & Fixtures | G25: 0 | H25: 0 | I25: 0 | J25: 0 | L25: 0 | M25: 0 | O25: 0
A26: 1835 | B26: Overhead Conductors & Devices | G26: 0 | H26: 0 | I26: 0 | J26: 0 | L26: 0 | M26: 0 | O26: 0
A27: 1840 | B27: Underground Conduit | G27: 0 | H27: 0 | I27: 0 | J27: 0 | L27: 0 | M27: 0 | O27: 0
A28: 1845 | B28: Underground Conductors & Devices | G28: 0 | H28: 0 | I28: 0 | J28: 0 | L28: 0 | M28: 0 | O28: 0
A29: 1850 | B29: Line Transformers | G29: 0 | H29: 0 | I29: 0 | J29: 0 | L29: 0 | M29: 0 | O29: 0
A30: 1855 | B30: Services (Overhead & Underground) | G30: 0 | H30: 0 | I30: 0 | J30: 0 | L30: 0 | M30: 0 | O30: 0
A31: 1860 | B31: Meters | G31: 0 | H31: 0 | I31: 0 | J31: 0 | L31: 0 | M31: 0 | O31: 0
A32: 1860 | B32: Meters (Smart Meters) | G32: 0 | H32: 0 | I32: 0 | J32: 0 | L32: 0 | M32: 0 | O32: 0
A33: 1905 | B33: Land | G33: 0 | H33: 0 | I33: 0 | J33: 0 | L33: 0 | M33: 0 | O33: 0
A34: 1908 | B34: Buildings & Fixtures | G34: 0 | H34: 0 | I34: 0 | J34: 0 | L34: 0 | M34: 0 | O34: 0
A35: 1910 | B35: Leasehold Improvements | G35: 0 | H35: 0 | I35: 0 | J35: 0 | L35: 0 | M35: 0 | O35: 0
A36: 1915 | B36: Office Furniture & Equipment (10 years) | G36: 0 | H36: 0 | I36: 0 | J36: 0 | L36: 0 | M36: 0 | O36: 0
A37: 1915 | B37: Office Furniture & Equipment (5 years) | G37: 0 | H37: 0 | I37: 0 | J37: 0 | L37: 0 | M37: 0 | O37: 0
A38: 1920 | B38: Computer Equipment - Hardware | G38: 0 | H38: 0 | I38: 0 | J38: 0 | L38: 0 | M38: 0 | O38: 0
A39: 1920 | B39: Computer Equip.-Hardware(Post Mar. 22/04) | G39: 0 | H39: 0 | I39: 0 | J39: 0 | L39: 0 | M39: 0 | O39: 0
A40: 1920 | B40: Computer Equip.-Hardware(Post Mar. 19/07) | G40: 0 | H40: 0 | I40: 0 | J40: 0 | L40: 0 | M40: 0 | O40: 0
A41: 1930 | B41: Transportation Equipment | G41: 0 | H41: 0 | I41: 0 | J41: 0 | L41: 0 | M41: 0 | O41: 0
A42: 1935 | B42: Stores Equipment | G42: 0 | H42: 0 | I42: 0 | J42: 0 | L42: 0 | M42: 0 | O42: 0
A43: 1940 | B43: Tools, Shop & Garage Equipment | G43: 0 | H43: 0 | I43: 0 | J43: 0 | L43: 0 | M43: 0 | O43: 0
A44: 1945 | B44: Measurement & Testing Equipment | G44: 0 | H44: 0 | I44: 0 | J44: 0 | L44: 0 | M44: 0 | O44: 0
A45: 1950 | B45: Power Operated Equipment | G45: 0 | H45: 0 | I45: 0 | J45: 0 | L45: 0 | M45: 0 | O45: 0
A46: 1955 | B46: Communications Equipment | G46: 0 | H46: 0 | I46: 0 | J46: 0 | L46: 0 | M46: 0 | O46: 0
A47: 1955 | B47: Communication Equipment (Smart Meters) | G47: 0 | H47: 0 | I47: 0 | J47: 0 | L47: 0 | M47: 0 | O47: 0
A48: 1960 | B48: Miscellaneous Equipment | G48: 0 | H48: 0 | I48: 0 | J48: 0 | L48: 0 | M48: 0 | O48: 0
A49: 1970 | B49: Load Management Controls - Customer Premises | G49: 0 | H49: 0 | I49: 0 | J49: 0 | L49: 0 | M49: 0 | O49: 0
A50: 1975 | B50: Load Management Controls Utility Premises | G50: 0 | H50: 0 | I50: 0 | J50: 0 | L50: 0 | M50: 0 | O50: 0
A51: 1980 | B51: System Supervisor Equipment | G51: 0 | H51: 0 | I51: 0 | J51: 0 | L51: 0 | M51: 0 | O51: 0
A52: 1985 | B52: Miscellaneous Fixed Assets | G52: 0 | H52: 0 | I52: 0 | J52: 0 | L52: 0 | M52: 0 | O52: 0
A53: 1990 | B53: Other Tangible Property | G53: 0 | H53: 0 | I53: 0 | J53: 0 | L53: 0 | M53: 0 | O53: 0
A54: 1995 | B54: Contributions & Grants | G54: 0 | H54: 0 | I54: 0 | J54: 0 | L54: 0 | M54: 0 | O54: 0
B55: Total | C55: =SUM(C17:C54) -> 0 | D55: =SUM(D17:D54) -> 0 | H55: =SUM(H17:H54) -> 0 | I55: 0 | J55: 0 | K55: 0 | L55: 0 | M55: 0 | N55: 0 | O55: 0
A57: Notes:
A59: 1 | B59: Board policy of the "half-year" rule - the applicant must ensure that additions in the year attract a half-year depreciation expense in the first year. Deviations from this standard practice must be supported in the application.
A60: 2 | B60: The applicant must provide an explanation of material variances in evidence.
A61: 3 | B61: The applicant should ensure that the years for new additions of assets are the asset useful lives determined by management in accordance with the Board's regulatory accounting policies. The capitalization and depreciation expense accounting changes should be implemented consistent with the Board’s regulatory accounting policies as set out for MIFRS as contained in the Report of the Board, Transition to International Financial Reporting Standards, EB-2008-0408, the Kinectrics Report, and the Revised 2012 Accounting Procedures Handbook for Electricity Distributors.
A62: 4 | B62: A recalculation should be performed to determine the average remaining life of opening balance of assets (i.e. excluding 2013 additions) under the change in policies under CGAAP. For example, Asset A had a useful life of 20 years under CGAAP without the change in policies. On January 1, 2013, the effective date of the changes in policies, Asset A was 3 years depreciated. As a result, Asset A would have a remaining service life of 17 years (20 years less 3 years) as of January 1, 2013. Due to making the change in policies under CGAAP, management re-assessed the asset useful lives and concluded that the revised useful life of Asset A is now 30 years. Therefore, the average remaining useful life of the opening balance of Asset A is determined to be 27 years (30 years less 3 years) under the revised CGAAP as of January 1, 2013.
A63: 5 | B63: NBV must exclude assets still on the books but which have been fully amortized or depreciated.
A64: 6 | B64: This column refers to the calculated full year depreciation but excludes the depreciation expense on assets fully depreciated during the year. This column is used for the purpose of calculating depreciation expense in the following year on the next worksheet.
A66: General: | B66: Applicants must provide a breakdown of depreciation and amortization expense in the above format for all relevant accounts. Asset Retirement Obligations (AROs), depreciation and accretion expense should be disclosed separately consistent with the Notes of historical Audited Financial Statements.

Sheet App.2-CI_MIFRS_DepExp_2014
J1: File Number: | K1: =EBNUMBER -> 0
J2: Exhibit:
J3: Tab:
J4: Schedule:
J5: Page:
J7: Date:
A9: Appendix 2-CI
A10: Depreciation and Amortization Expense
A11: Assumes the applicant made capitalization and depreciation expense accounting policy changes under CGAAP effective January 1, 2013 and has adopted IFRS for financial reporting purposes effective January 1, 2015.
E13: 2014 | F13: MIFRS
A15: Account | B15: Description | C15: Additions | D15: Years (new additions only) | E15: Depreciation Rate on New Additions | F15: 2014 Depreciation Expense 1 | G15: 2014 Depreciation Expense per Apppendix 2-BA Fixed Assets, Column J (l) | H15: Variance 2 | I15: Depreciation Expense on 2014 Full Year Additions | J15: Less Depreciation Expense on Assets Fully Depreciated during the year (o) | K15: 2014 Full Year Depreciation 3
C16: (d) | D16: (f) | E16: (g) = 1 / (f) | F16: (h)=2013 Full Year Deprecation + ((d)*0.5)/(f) | H16: (m) = (h) - (l) | I16: (n)=((d))/(f) | K16: (p) = 2013 Full Year Depreciation + (n) - (o)
A17: 1611 | B17: Computer Software (Formally known as Account 1925) | E17: =IF(D17=0,0,1/D17) -> 0 | F17: =IF(D17=0,+'App.2-CH_NewCGAAP_DepExp_2013'!O17,+'App.2-CH_NewCGAAP_DepExp_2013'!O17+((C17*0.5)/D17)) -> 0 | H17: =IF(ISERROR(+F17-G17), 0, +F17-G17) -> 0 | I17: =IF(D17=0,0,+(C17)/D17) -> 0 | K17: =IF(ISERROR(+I17+'App.2-CH_NewCGAAP_DepExp_2013'!O17-J17), 0, +I17+'App.2-CH_NewCGAAP_DepExp_2013'!O17-J17) -> 0
A18: 1612 | B18: Land Rights (Formally known as Account 1906) | E18: 0 | F18: =IF(D18=0,+'App.2-CH_NewCGAAP_DepExp_2013'!O18,+'App.2-CH_NewCGAAP_DepExp_2013'!O18+((C18*0.5)/D18)) -> 0 | H18: 0 | I18: 0 | K18: =IF(ISERROR(+I18+'App.2-CH_NewCGAAP_DepExp_2013'!O18-J18), 0, +I18+'App.2-CH_NewCGAAP_DepExp_2013'!O18-J18) -> 0
A19: 1805 | B19: Land | E19: 0 | F19: =IF(D19=0,+'App.2-CH_NewCGAAP_DepExp_2013'!O19,+'App.2-CH_NewCGAAP_DepExp_2013'!O19+((C19*0.5)/D19)) -> 0 | H19: 0 | I19: 0 | K19: =IF(ISERROR(+I19+'App.2-CH_NewCGAAP_DepExp_2013'!O19-J19), 0, +I19+'App.2-CH_NewCGAAP_DepExp_2013'!O19-J19) -> 0
A20: 1808 | B20: Buildings | E20: 0 | F20: =IF(D20=0,+'App.2-CH_NewCGAAP_DepExp_2013'!O20,+'App.2-CH_NewCGAAP_DepExp_2013'!O20+((C20*0.5)/D20)) -> 0 | H20: 0 | I20: 0 | K20: =IF(ISERROR(+I20+'App.2-CH_NewCGAAP_DepExp_2013'!O20-J20), 0, +I20+'App.2-CH_NewCGAAP_DepExp_2013'!O20-J20) -> 0
A21: 1810 | B21: Leasehold Improvements | E21: 0 | F21: =IF(D21=0,+'App.2-CH_NewCGAAP_DepExp_2013'!O21,+'App.2-CH_NewCGAAP_DepExp_2013'!O21+((C21*0.5)/D21)) -> 0 | H21: 0 | I21: 0 | K21: =IF(ISERROR(+I21+'App.2-CH_NewCGAAP_DepExp_2013'!O21-J21), 0, +I21+'App.2-CH_NewCGAAP_DepExp_2013'!O21-J21) -> 0
A22: 1815 | B22: Transformer Station Equipment >50 kV | E22: 0 | F22: =IF(D22=0,+'App.2-CH_NewCGAAP_DepExp_2013'!O22,+'App.2-CH_NewCGAAP_DepExp_2013'!O22+((C22*0.5)/D22)) -> 0 | H22: 0 | I22: 0 | K22: =IF(ISERROR(+I22+'App.2-CH_NewCGAAP_DepExp_2013'!O22-J22), 0, +I22+'App.2-CH_NewCGAAP_DepExp_2013'!O22-J22) -> 0
A23: 1820 | B23: Distribution Station Equipment <50 kV | E23: 0 | F23: =IF(D23=0,+'App.2-CH_NewCGAAP_DepExp_2013'!O23,+'App.2-CH_NewCGAAP_DepExp_2013'!O23+((C23*0.5)/D23)) -> 0 | H23: 0 | I23: 0 | K23: =IF(ISERROR(+I23+'App.2-CH_NewCGAAP_DepExp_2013'!O23-J23), 0, +I23+'App.2-CH_NewCGAAP_DepExp_2013'!O23-J23) -> 0
A24: 1825 | B24: Storage Battery Equipment | E24: 0 | F24: =IF(D24=0,+'App.2-CH_NewCGAAP_DepExp_2013'!O24,+'App.2-CH_NewCGAAP_DepExp_2013'!O24+((C24*0.5)/D24)) -> 0 | H24: 0 | I24: 0 | K24: =IF(ISERROR(+I24+'App.2-CH_NewCGAAP_DepExp_2013'!O24-J24), 0, +I24+'App.2-CH_NewCGAAP_DepExp_2013'!O24-J24) -> 0
A25: 1830 | B25: Poles, Towers & Fixtures | E25: 0 | F25: =IF(D25=0,+'App.2-CH_NewCGAAP_DepExp_2013'!O25,+'App.2-CH_NewCGAAP_DepExp_2013'!O25+((C25*0.5)/D25)) -> 0 | H25: 0 | I25: 0 | K25: =IF(ISERROR(+I25+'App.2-CH_NewCGAAP_DepExp_2013'!O25-J25), 0, +I25+'App.2-CH_NewCGAAP_DepExp_2013'!O25-J25) -> 0
A26: 1835 | B26: Overhead Conductors & Devices | E26: 0 | F26: =IF(D26=0,+'App.2-CH_NewCGAAP_DepExp_2013'!O26,+'App.2-CH_NewCGAAP_DepExp_2013'!O26+((C26*0.5)/D26)) -> 0 | H26: 0 | I26: 0 | K26: =IF(ISERROR(+I26+'App.2-CH_NewCGAAP_DepExp_2013'!O26-J26), 0, +I26+'App.2-CH_NewCGAAP_DepExp_2013'!O26-J26) -> 0
A27: 1840 | B27: Underground Conduit | E27: 0 | F27: =IF(D27=0,+'App.2-CH_NewCGAAP_DepExp_2013'!O27,+'App.2-CH_NewCGAAP_DepExp_2013'!O27+((C27*0.5)/D27)) -> 0 | H27: 0 | I27: 0 | K27: =IF(ISERROR(+I27+'App.2-CH_NewCGAAP_DepExp_2013'!O27-J27), 0, +I27+'App.2-CH_NewCGAAP_DepExp_2013'!O27-J27) -> 0
A28: 1845 | B28: Underground Conductors & Devices | E28: 0 | F28: =IF(D28=0,+'App.2-CH_NewCGAAP_DepExp_2013'!O28,+'App.2-CH_NewCGAAP_DepExp_2013'!O28+((C28*0.5)/D28)) -> 0 | H28: 0 | I28: 0 | K28: =IF(ISERROR(+I28+'App.2-CH_NewCGAAP_DepExp_2013'!O28-J28), 0, +I28+'App.2-CH_NewCGAAP_DepExp_2013'!O28-J28) -> 0
A29: 1850 | B29: Line Transformers | E29: 0 | F29: =IF(D29=0,+'App.2-CH_NewCGAAP_DepExp_2013'!O29,+'App.2-CH_NewCGAAP_DepExp_2013'!O29+((C29*0.5)/D29)) -> 0 | H29: 0 | I29: 0 | K29: =IF(ISERROR(+I29+'App.2-CH_NewCGAAP_DepExp_2013'!O29-J29), 0, +I29+'App.2-CH_NewCGAAP_DepExp_2013'!O29-J29) -> 0
A30: 1855 | B30: Services (Overhead & Underground) | E30: 0 | F30: =IF(D30=0,+'App.2-CH_NewCGAAP_DepExp_2013'!O30,+'App.2-CH_NewCGAAP_DepExp_2013'!O30+((C30*0.5)/D30)) -> 0 | H30: 0 | I30: 0 | K30: =IF(ISERROR(+I30+'App.2-CH_NewCGAAP_DepExp_2013'!O30-J30), 0, +I30+'App.2-CH_NewCGAAP_DepExp_2013'!O30-J30) -> 0
A31: 1860 | B31: Meters | E31: 0 | F31: =IF(D31=0,+'App.2-CH_NewCGAAP_DepExp_2013'!O31,+'App.2-CH_NewCGAAP_DepExp_2013'!O31+((C31*0.5)/D31)) -> 0 | H31: 0 | I31: 0 | K31: =IF(ISERROR(+I31+'App.2-CH_NewCGAAP_DepExp_2013'!O31-J31), 0, +I31+'App.2-CH_NewCGAAP_DepExp_2013'!O31-J31) -> 0
A32: 1860 | B32: Meters (Smart Meters) | E32: 0 | F32: =IF(D32=0,+'App.2-CH_NewCGAAP_DepExp_2013'!O32,+'App.2-CH_NewCGAAP_DepExp_2013'!O32+((C32*0.5)/D32)) -> 0 | H32: 0 | I32: 0 | K32: =IF(ISERROR(+I32+'App.2-CH_NewCGAAP_DepExp_2013'!O32-J32), 0, +I32+'App.2-CH_NewCGAAP_DepExp_2013'!O32-J32) -> 0
A33: 1905 | B33: Land | E33: 0 | F33: =IF(D33=0,+'App.2-CH_NewCGAAP_DepExp_2013'!O33,+'App.2-CH_NewCGAAP_DepExp_2013'!O33+((C33*0.5)/D33)) -> 0 | H33: 0 | I33: 0 | K33: =IF(ISERROR(+I33+'App.2-CH_NewCGAAP_DepExp_2013'!O33-J33), 0, +I33+'App.2-CH_NewCGAAP_DepExp_2013'!O33-J33) -> 0
A34: 1908 | B34: Buildings & Fixtures | E34: 0 | F34: =IF(D34=0,+'App.2-CH_NewCGAAP_DepExp_2013'!O34,+'App.2-CH_NewCGAAP_DepExp_2013'!O34+((C34*0.5)/D34)) -> 0 | H34: 0 | I34: 0 | K34: =IF(ISERROR(+I34+'App.2-CH_NewCGAAP_DepExp_2013'!O34-J34), 0, +I34+'App.2-CH_NewCGAAP_DepExp_2013'!O34-J34) -> 0
A35: 1910 | B35: Leasehold Improvements | E35: 0 | F35: =IF(D35=0,+'App.2-CH_NewCGAAP_DepExp_2013'!O35,+'App.2-CH_NewCGAAP_DepExp_2013'!O35+((C35*0.5)/D35)) -> 0 | H35: 0 | I35: 0 | K35: =IF(ISERROR(+I35+'App.2-CH_NewCGAAP_DepExp_2013'!O35-J35), 0, +I35+'App.2-CH_NewCGAAP_DepExp_2013'!O35-J35) -> 0
A36: 1915 | B36: Office Furniture & Equipment (10 years) | E36: 0 | F36: =IF(D36=0,+'App.2-CH_NewCGAAP_DepExp_2013'!O36,+'App.2-CH_NewCGAAP_DepExp_2013'!O36+((C36*0.5)/D36)) -> 0 | H36: 0 | I36: 0 | K36: =IF(ISERROR(+I36+'App.2-CH_NewCGAAP_DepExp_2013'!O36-J36), 0, +I36+'App.2-CH_NewCGAAP_DepExp_2013'!O36-J36) -> 0
A37: 1915 | B37: Office Furniture & Equipment (5 years) | E37: 0 | F37: =IF(D37=0,+'App.2-CH_NewCGAAP_DepExp_2013'!O37,+'App.2-CH_NewCGAAP_DepExp_2013'!O37+((C37*0.5)/D37)) -> 0 | H37: 0 | I37: 0 | K37: =IF(ISERROR(+I37+'App.2-CH_NewCGAAP_DepExp_2013'!O37-J37), 0, +I37+'App.2-CH_NewCGAAP_DepExp_2013'!O37-J37) -> 0
A38: 1920 | B38: Computer Equipment - Hardware | E38: 0 | F38: =IF(D38=0,+'App.2-CH_NewCGAAP_DepExp_2013'!O38,+'App.2-CH_NewCGAAP_DepExp_2013'!O38+((C38*0.5)/D38)) -> 0 | H38: 0 | I38: 0 | K38: =IF(ISERROR(+I38+'App.2-CH_NewCGAAP_DepExp_2013'!O38-J38), 0, +I38+'App.2-CH_NewCGAAP_DepExp_2013'!O38-J38) -> 0
A39: 1920 | B39: Computer Equip.-Hardware(Post Mar. 22/04) | E39: 0 | F39: =IF(D39=0,+'App.2-CH_NewCGAAP_DepExp_2013'!O39,+'App.2-CH_NewCGAAP_DepExp_2013'!O39+((C39*0.5)/D39)) -> 0 | H39: 0 | I39: 0 | K39: =IF(ISERROR(+I39+'App.2-CH_NewCGAAP_DepExp_2013'!O39-J39), 0, +I39+'App.2-CH_NewCGAAP_DepExp_2013'!O39-J39) -> 0
A40: 1920 | B40: Computer Equip.-Hardware(Post Mar. 19/07) | E40: 0 | F40: =IF(D40=0,+'App.2-CH_NewCGAAP_DepExp_2013'!O40,+'App.2-CH_NewCGAAP_DepExp_2013'!O40+((C40*0.5)/D40)) -> 0 | H40: 0 | I40: 0 | K40: =IF(ISERROR(+I40+'App.2-CH_NewCGAAP_DepExp_2013'!O40-J40), 0, +I40+'App.2-CH_NewCGAAP_DepExp_2013'!O40-J40) -> 0
A41: 1930 | B41: Transportation Equipment | E41: 0 | F41: =IF(D41=0,+'App.2-CH_NewCGAAP_DepExp_2013'!O41,+'App.2-CH_NewCGAAP_DepExp_2013'!O41+((C41*0.5)/D41)) -> 0 | H41: 0 | I41: 0 | K41: =IF(ISERROR(+I41+'App.2-CH_NewCGAAP_DepExp_2013'!O41-J41), 0, +I41+'App.2-CH_NewCGAAP_DepExp_2013'!O41-J41) -> 0
A42: 1935 | B42: Stores Equipment | E42: 0 | F42: =IF(D42=0,+'App.2-CH_NewCGAAP_DepExp_2013'!O42,+'App.2-CH_NewCGAAP_DepExp_2013'!O42+((C42*0.5)/D42)) -> 0 | H42: 0 | I42: 0 | K42: =IF(ISERROR(+I42+'App.2-CH_NewCGAAP_DepExp_2013'!O42-J42), 0, +I42+'App.2-CH_NewCGAAP_DepExp_2013'!O42-J42) -> 0
A43: 1940 | B43: Tools, Shop & Garage Equipment | E43: 0 | F43: =IF(D43=0,+'App.2-CH_NewCGAAP_DepExp_2013'!O43,+'App.2-CH_NewCGAAP_DepExp_2013'!O43+((C43*0.5)/D43)) -> 0 | H43: 0 | I43: 0 | K43: =IF(ISERROR(+I43+'App.2-CH_NewCGAAP_DepExp_2013'!O43-J43), 0, +I43+'App.2-CH_NewCGAAP_DepExp_2013'!O43-J43) -> 0
A44: 1945 | B44: Measurement & Testing Equipment | E44: 0 | F44: =IF(D44=0,+'App.2-CH_NewCGAAP_DepExp_2013'!O44,+'App.2-CH_NewCGAAP_DepExp_2013'!O44+((C44*0.5)/D44)) -> 0 | H44: 0 | I44: 0 | K44: =IF(ISERROR(+I44+'App.2-CH_NewCGAAP_DepExp_2013'!O44-J44), 0, +I44+'App.2-CH_NewCGAAP_DepExp_2013'!O44-J44) -> 0
A45: 1950 | B45: Power Operated Equipment | E45: 0 | F45: =IF(D45=0,+'App.2-CH_NewCGAAP_DepExp_2013'!O45,+'App.2-CH_NewCGAAP_DepExp_2013'!O45+((C45*0.5)/D45)) -> 0 | H45: 0 | I45: 0 | K45: =IF(ISERROR(+I45+'App.2-CH_NewCGAAP_DepExp_2013'!O45-J45), 0, +I45+'App.2-CH_NewCGAAP_DepExp_2013'!O45-J45) -> 0
A46: 1955 | B46: Communications Equipment | E46: 0 | F46: =IF(D46=0,+'App.2-CH_NewCGAAP_DepExp_2013'!O46,+'App.2-CH_NewCGAAP_DepExp_2013'!O46+((C46*0.5)/D46)) -> 0 | H46: 0 | I46: 0 | K46: =IF(ISERROR(+I46+'App.2-CH_NewCGAAP_DepExp_2013'!O46-J46), 0, +I46+'App.2-CH_NewCGAAP_DepExp_2013'!O46-J46) -> 0
A47: 1955 | B47: Communication Equipment (Smart Meters) | E47: 0 | F47: =IF(D47=0,+'App.2-CH_NewCGAAP_DepExp_2013'!O47,+'App.2-CH_NewCGAAP_DepExp_2013'!O47+((C47*0.5)/D47)) -> 0 | H47: 0 | I47: 0 | K47: =IF(ISERROR(+I47+'App.2-CH_NewCGAAP_DepExp_2013'!O47-J47), 0, +I47+'App.2-CH_NewCGAAP_DepExp_2013'!O47-J47) -> 0
A48: 1960 | B48: Miscellaneous Equipment | E48: 0 | F48: =IF(D48=0,+'App.2-CH_NewCGAAP_DepExp_2013'!O48,+'App.2-CH_NewCGAAP_DepExp_2013'!O48+((C48*0.5)/D48)) -> 0 | H48: 0 | I48: 0 | K48: =IF(ISERROR(+I48+'App.2-CH_NewCGAAP_DepExp_2013'!O48-J48), 0, +I48+'App.2-CH_NewCGAAP_DepExp_2013'!O48-J48) -> 0
A49: 1970 | B49: Load Management Controls - Customer Premises | E49: 0 | F49: =IF(D49=0,+'App.2-CH_NewCGAAP_DepExp_2013'!O49,+'App.2-CH_NewCGAAP_DepExp_2013'!O49+((C49*0.5)/D49)) -> 0 | H49: 0 | I49: 0 | K49: =IF(ISERROR(+I49+'App.2-CH_NewCGAAP_DepExp_2013'!O49-J49), 0, +I49+'App.2-CH_NewCGAAP_DepExp_2013'!O49-J49) -> 0
A50: 1975 | B50: Load Management Controls Utility Premises | E50: 0 | F50: =IF(D50=0,+'App.2-CH_NewCGAAP_DepExp_2013'!O50,+'App.2-CH_NewCGAAP_DepExp_2013'!O50+((C50*0.5)/D50)) -> 0 | H50: 0 | I50: 0 | K50: =IF(ISERROR(+I50+'App.2-CH_NewCGAAP_DepExp_2013'!O50-J50), 0, +I50+'App.2-CH_NewCGAAP_DepExp_2013'!O50-J50) -> 0
A51: 1980 | B51: System Supervisor Equipment | E51: 0 | F51: =IF(D51=0,+'App.2-CH_NewCGAAP_DepExp_2013'!O51,+'App.2-CH_NewCGAAP_DepExp_2013'!O51+((C51*0.5)/D51)) -> 0 | H51: 0 | I51: 0 | K51: =IF(ISERROR(+I51+'App.2-CH_NewCGAAP_DepExp_2013'!O51-J51), 0, +I51+'App.2-CH_NewCGAAP_DepExp_2013'!O51-J51) -> 0
A52: 1985 | B52: Miscellaneous Fixed Assets | E52: 0 | F52: =IF(D52=0,+'App.2-CH_NewCGAAP_DepExp_2013'!O52,+'App.2-CH_NewCGAAP_DepExp_2013'!O52+((C52*0.5)/D52)) -> 0 | H52: 0 | I52: 0 | K52: =IF(ISERROR(+I52+'App.2-CH_NewCGAAP_DepExp_2013'!O52-J52), 0, +I52+'App.2-CH_NewCGAAP_DepExp_2013'!O52-J52) -> 0
A53: 1990 | B53: Other Tangible Property | E53: 0 | F53: =IF(D53=0,+'App.2-CH_NewCGAAP_DepExp_2013'!O53,+'App.2-CH_NewCGAAP_DepExp_2013'!O53+((C53*0.5)/D53)) -> 0 | H53: 0 | I53: 0 | K53: =IF(ISERROR(+I53+'App.2-CH_NewCGAAP_DepExp_2013'!O53-J53), 0, +I53+'App.2-CH_NewCGAAP_DepExp_2013'!O53-J53) -> 0
A54: 1995 | B54: Contributions & Grants | E54: =IF(D54=0,0,1/D54) -> 0 | F54: =IF(D54=0,+'App.2-CH_NewCGAAP_DepExp_2013'!O54,+'App.2-CH_NewCGAAP_DepExp_2013'!O54+((C54*0.5)/D54)) -> 0 | H54: 0 | I54: 0 | K54: =IF(ISERROR(+I54+'App.2-CH_NewCGAAP_DepExp_2013'!O54-J54), 0, +I54+'App.2-CH_NewCGAAP_DepExp_2013'!O54-J54) -> 0
B55: Total | C55: =SUM(C17:C54) -> 0 | F55: =SUM(F17:F54) -> 0 | G55: 0 | H55: 0 | I55: 0 | J55: 0 | K55: 0
B56: Depreciation exp. adj. from gain or loss on the retirement of assets (pool of like assets)
B57: Total Depreciation Expense | F57: =SUM(F55:F56) -> 0
A59: Notes:
A60: 1 | B60: Board policy of the "half-year" rule - the applicant must ensure that additions in the year attract a half-year depreciation expense in the first year. Deviations from this standard practice must be supported in the application.
A61: 2 | B61: The applicant must provide an explanation of material variances in evidence.
A62: 3 | B62: This column refers to the calculated full year depreciation but excludes the depreciation expense on assets fully depreciated during the year. This column is used for the purpose of calculating depreciation expense in the following year on the next worksheet.
A64: General: | B64: Applicants must provide a breakdown of depreciation and amortization expense in the above format for all relevant accounts. Asset Retirement Obligations (AROs), depreciation and accretion expense should be disclosed separately consistent with the Notes of historical Audited Financial Statements.

Sheet App.2-CJ MIFRS_DepExp_2015
G1: File Number: | H1: =EBNUMBER -> 0
G2: Exhibit:
G3: Tab:
G4: Schedule:
G5: Page:
G7: Date:
A9: Appendix 2-CJ
A10: Depreciation and Amortization Expense
A11: Assumes the applicant made capitalization and depreciation expense accounting policy changes under CGAAP effective January 1, 2013 and has adopted IFRS for financial reporting purposes effective January 1, 2015.
D13: 2015 | E13: MIFRS
A15: Account | B15: Description | C15: Additions | D15: Years (new additions only) | E15: Depreciation Rate on New Additions | F15: 2015 Depreciation Expense 1 | G15: 2015 Depreciation Expense per Appendix 2-BA Fixed Assets, Column J (l) | H15: Variance 2 | I15: Depreciation Expense on 2015 Full Year Additions | J15: Less Depreciation Expense on Assets Fully Depreciated during the year (o) | K15: 2015 Full Year Depreciation 3
C16: (d) | D16: (f) | E16: (g) = 1 / (f) | F16: (h)=2014 Full Year Depreciation + ((d)*0.5)/(f) | H16: (m) = (h) - (l) | I16: (n)=((d))/(f) | K16: (p) = 2014 Full Year Depreciation + (n) - (o)
A17: 1611 | B17: Computer Software (Formally known as Account 1925) | E17: =IF(D17=0,0,1/D17) -> 0 | F17: =IF(D17=0,'App.2-CI_MIFRS_DepExp_2014'!K17,+'App.2-CI_MIFRS_DepExp_2014'!K17+((C17*0.5)/D17)) -> 0 | H17: =IF(ISERROR(+F17-G17), 0, +F17-G17) -> 0 | I17: =IF(D17=0,0,+(C17)/D17) -> 0 | K17: =IF(ISERROR(+I17+'App.2-CI_MIFRS_DepExp_2014'!K17-J17), 0, +I17+'App.2-CI_MIFRS_DepExp_2014'!K17-J17) -> 0
A18: 1612 | B18: Land Rights (Formally known as Account 1906) | E18: 0 | F18: =IF(D18=0,'App.2-CI_MIFRS_DepExp_2014'!K18,+'App.2-CI_MIFRS_DepExp_2014'!K18+((C18*0.5)/D18)) -> 0 | H18: 0 | I18: =IF(D18=0,0,+(C18)/D18) -> 0 | K18: =IF(ISERROR(+I18+'App.2-CI_MIFRS_DepExp_2014'!K18-J18), 0, +I18+'App.2-CI_MIFRS_DepExp_2014'!K18-J18) -> 0
A19: 1805 | B19: Land | E19: 0 | F19: =IF(D19=0,'App.2-CI_MIFRS_DepExp_2014'!K19,+'App.2-CI_MIFRS_DepExp_2014'!K19+((C19*0.5)/D19)) -> 0 | H19: 0 | I19: 0 | K19: =IF(ISERROR(+I19+'App.2-CI_MIFRS_DepExp_2014'!K19-J19), 0, +I19+'App.2-CI_MIFRS_DepExp_2014'!K19-J19) -> 0
A20: 1808 | B20: Buildings | E20: 0 | F20: =IF(D20=0,'App.2-CI_MIFRS_DepExp_2014'!K20,+'App.2-CI_MIFRS_DepExp_2014'!K20+((C20*0.5)/D20)) -> 0 | H20: 0 | I20: 0 | K20: =IF(ISERROR(+I20+'App.2-CI_MIFRS_DepExp_2014'!K20-J20), 0, +I20+'App.2-CI_MIFRS_DepExp_2014'!K20-J20) -> 0
A21: 1810 | B21: Leasehold Improvements | E21: 0 | F21: =IF(D21=0,'App.2-CI_MIFRS_DepExp_2014'!K21,+'App.2-CI_MIFRS_DepExp_2014'!K21+((C21*0.5)/D21)) -> 0 | H21: 0 | I21: 0 | K21: =IF(ISERROR(+I21+'App.2-CI_MIFRS_DepExp_2014'!K21-J21), 0, +I21+'App.2-CI_MIFRS_DepExp_2014'!K21-J21) -> 0
A22: 1815 | B22: Transformer Station Equipment >50 kV | E22: 0 | F22: =IF(D22=0,'App.2-CI_MIFRS_DepExp_2014'!K22,+'App.2-CI_MIFRS_DepExp_2014'!K22+((C22*0.5)/D22)) -> 0 | H22: 0 | I22: 0 | K22: =IF(ISERROR(+I22+'App.2-CI_MIFRS_DepExp_2014'!K22-J22), 0, +I22+'App.2-CI_MIFRS_DepExp_2014'!K22-J22) -> 0
A23: 1820 | B23: Distribution Station Equipment <50 kV | E23: 0 | F23: =IF(D23=0,'App.2-CI_MIFRS_DepExp_2014'!K23,+'App.2-CI_MIFRS_DepExp_2014'!K23+((C23*0.5)/D23)) -> 0 | H23: 0 | I23: 0 | K23: =IF(ISERROR(+I23+'App.2-CI_MIFRS_DepExp_2014'!K23-J23), 0, +I23+'App.2-CI_MIFRS_DepExp_2014'!K23-J23) -> 0
A24: 1825 | B24: Storage Battery Equipment | E24: 0 | F24: =IF(D24=0,'App.2-CI_MIFRS_DepExp_2014'!K24,+'App.2-CI_MIFRS_DepExp_2014'!K24+((C24*0.5)/D24)) -> 0 | H24: 0 | I24: 0 | K24: =IF(ISERROR(+I24+'App.2-CI_MIFRS_DepExp_2014'!K24-J24), 0, +I24+'App.2-CI_MIFRS_DepExp_2014'!K24-J24) -> 0
A25: 1830 | B25: Poles, Towers & Fixtures | E25: 0 | F25: =IF(D25=0,'App.2-CI_MIFRS_DepExp_2014'!K25,+'App.2-CI_MIFRS_DepExp_2014'!K25+((C25*0.5)/D25)) -> 0 | H25: 0 | I25: 0 | K25: =IF(ISERROR(+I25+'App.2-CI_MIFRS_DepExp_2014'!K25-J25), 0, +I25+'App.2-CI_MIFRS_DepExp_2014'!K25-J25) -> 0
A26: 1835 | B26: Overhead Conductors & Devices | E26: 0 | F26: =IF(D26=0,'App.2-CI_MIFRS_DepExp_2014'!K26,+'App.2-CI_MIFRS_DepExp_2014'!K26+((C26*0.5)/D26)) -> 0 | H26: 0 | I26: 0 | K26: =IF(ISERROR(+I26+'App.2-CI_MIFRS_DepExp_2014'!K26-J26), 0, +I26+'App.2-CI_MIFRS_DepExp_2014'!K26-J26) -> 0
A27: 1840 | B27: Underground Conduit | E27: 0 | F27: =IF(D27=0,'App.2-CI_MIFRS_DepExp_2014'!K27,+'App.2-CI_MIFRS_DepExp_2014'!K27+((C27*0.5)/D27)) -> 0 | H27: 0 | I27: 0 | K27: =IF(ISERROR(+I27+'App.2-CI_MIFRS_DepExp_2014'!K27-J27), 0, +I27+'App.2-CI_MIFRS_DepExp_2014'!K27-J27) -> 0
A28: 1845 | B28: Underground Conductors & Devices | E28: 0 | F28: =IF(D28=0,'App.2-CI_MIFRS_DepExp_2014'!K28,+'App.2-CI_MIFRS_DepExp_2014'!K28+((C28*0.5)/D28)) -> 0 | H28: 0 | I28: 0 | K28: =IF(ISERROR(+I28+'App.2-CI_MIFRS_DepExp_2014'!K28-J28), 0, +I28+'App.2-CI_MIFRS_DepExp_2014'!K28-J28) -> 0
A29: 1850 | B29: Line Transformers | E29: 0 | F29: =IF(D29=0,'App.2-CI_MIFRS_DepExp_2014'!K29,+'App.2-CI_MIFRS_DepExp_2014'!K29+((C29*0.5)/D29)) -> 0 | H29: 0 | I29: 0 | K29: =IF(ISERROR(+I29+'App.2-CI_MIFRS_DepExp_2014'!K29-J29), 0, +I29+'App.2-CI_MIFRS_DepExp_2014'!K29-J29) -> 0
A30: 1855 | B30: Services (Overhead & Underground) | E30: 0 | F30: =IF(D30=0,'App.2-CI_MIFRS_DepExp_2014'!K30,+'App.2-CI_MIFRS_DepExp_2014'!K30+((C30*0.5)/D30)) -> 0 | H30: 0 | I30: 0 | K30: =IF(ISERROR(+I30+'App.2-CI_MIFRS_DepExp_2014'!K30-J30), 0, +I30+'App.2-CI_MIFRS_DepExp_2014'!K30-J30) -> 0
A31: 1860 | B31: Meters | E31: 0 | F31: =IF(D31=0,'App.2-CI_MIFRS_DepExp_2014'!K31,+'App.2-CI_MIFRS_DepExp_2014'!K31+((C31*0.5)/D31)) -> 0 | H31: 0 | I31: 0 | K31: =IF(ISERROR(+I31+'App.2-CI_MIFRS_DepExp_2014'!K31-J31), 0, +I31+'App.2-CI_MIFRS_DepExp_2014'!K31-J31) -> 0
A32: 1860 | B32: Meters (Smart Meters) | E32: 0 | F32: =IF(D32=0,'App.2-CI_MIFRS_DepExp_2014'!K32,+'App.2-CI_MIFRS_DepExp_2014'!K32+((C32*0.5)/D32)) -> 0 | H32: 0 | I32: 0 | K32: =IF(ISERROR(+I32+'App.2-CI_MIFRS_DepExp_2014'!K32-J32), 0, +I32+'App.2-CI_MIFRS_DepExp_2014'!K32-J32) -> 0
A33: 1905 | B33: Land | E33: 0 | F33: =IF(D33=0,'App.2-CI_MIFRS_DepExp_2014'!K33,+'App.2-CI_MIFRS_DepExp_2014'!K33+((C33*0.5)/D33)) -> 0 | H33: 0 | I33: 0 | K33: =IF(ISERROR(+I33+'App.2-CI_MIFRS_DepExp_2014'!K33-J33), 0, +I33+'App.2-CI_MIFRS_DepExp_2014'!K33-J33) -> 0
A34: 1908 | B34: Buildings & Fixtures | E34: 0 | F34: =IF(D34=0,'App.2-CI_MIFRS_DepExp_2014'!K34,+'App.2-CI_MIFRS_DepExp_2014'!K34+((C34*0.5)/D34)) -> 0 | H34: 0 | I34: 0 | K34: =IF(ISERROR(+I34+'App.2-CI_MIFRS_DepExp_2014'!K34-J34), 0, +I34+'App.2-CI_MIFRS_DepExp_2014'!K34-J34) -> 0
A35: 1910 | B35: Leasehold Improvements | E35: 0 | F35: =IF(D35=0,'App.2-CI_MIFRS_DepExp_2014'!K35,+'App.2-CI_MIFRS_DepExp_2014'!K35+((C35*0.5)/D35)) -> 0 | H35: 0 | I35: 0 | K35: =IF(ISERROR(+I35+'App.2-CI_MIFRS_DepExp_2014'!K35-J35), 0, +I35+'App.2-CI_MIFRS_DepExp_2014'!K35-J35) -> 0
A36: 1915 | B36: Office Furniture & Equipment (10 years) | E36: 0 | F36: =IF(D36=0,'App.2-CI_MIFRS_DepExp_2014'!K36,+'App.2-CI_MIFRS_DepExp_2014'!K36+((C36*0.5)/D36)) -> 0 | H36: 0 | I36: 0 | K36: =IF(ISERROR(+I36+'App.2-CI_MIFRS_DepExp_2014'!K36-J36), 0, +I36+'App.2-CI_MIFRS_DepExp_2014'!K36-J36) -> 0
A37: 1915 | B37: Office Furniture & Equipment (5 years) | E37: 0 | F37: =IF(D37=0,'App.2-CI_MIFRS_DepExp_2014'!K37,+'App.2-CI_MIFRS_DepExp_2014'!K37+((C37*0.5)/D37)) -> 0 | H37: 0 | I37: 0 | K37: =IF(ISERROR(+I37+'App.2-CI_MIFRS_DepExp_2014'!K37-J37), 0, +I37+'App.2-CI_MIFRS_DepExp_2014'!K37-J37) -> 0
A38: 1920 | B38: Computer Equipment - Hardware | E38: 0 | F38: =IF(D38=0,'App.2-CI_MIFRS_DepExp_2014'!K38,+'App.2-CI_MIFRS_DepExp_2014'!K38+((C38*0.5)/D38)) -> 0 | H38: 0 | I38: 0 | K38: =IF(ISERROR(+I38+'App.2-CI_MIFRS_DepExp_2014'!K38-J38), 0, +I38+'App.2-CI_MIFRS_DepExp_2014'!K38-J38) -> 0
A39: 1920 | B39: Computer Equip.-Hardware(Post Mar. 22/04) | E39: 0 | F39: =IF(D39=0,'App.2-CI_MIFRS_DepExp_2014'!K39,+'App.2-CI_MIFRS_DepExp_2014'!K39+((C39*0.5)/D39)) -> 0 | H39: 0 | I39: 0 | K39: =IF(ISERROR(+I39+'App.2-CI_MIFRS_DepExp_2014'!K39-J39), 0, +I39+'App.2-CI_MIFRS_DepExp_2014'!K39-J39) -> 0
A40: 1920 | B40: Computer Equip.-Hardware(Post Mar. 19/07) | E40: 0 | F40: =IF(D40=0,'App.2-CI_MIFRS_DepExp_2014'!K40,+'App.2-CI_MIFRS_DepExp_2014'!K40+((C40*0.5)/D40)) -> 0 | H40: 0 | I40: 0 | K40: =IF(ISERROR(+I40+'App.2-CI_MIFRS_DepExp_2014'!K40-J40), 0, +I40+'App.2-CI_MIFRS_DepExp_2014'!K40-J40) -> 0
A41: 1930 | B41: Transportation Equipment | E41: 0 | F41: =IF(D41=0,'App.2-CI_MIFRS_DepExp_2014'!K41,+'App.2-CI_MIFRS_DepExp_2014'!K41+((C41*0.5)/D41)) -> 0 | H41: 0 | I41: 0 | K41: =IF(ISERROR(+I41+'App.2-CI_MIFRS_DepExp_2014'!K41-J41), 0, +I41+'App.2-CI_MIFRS_DepExp_2014'!K41-J41) -> 0
A42: 1935 | B42: Stores Equipment | E42: 0 | F42: =IF(D42=0,'App.2-CI_MIFRS_DepExp_2014'!K42,+'App.2-CI_MIFRS_DepExp_2014'!K42+((C42*0.5)/D42)) -> 0 | H42: 0 | I42: 0 | K42: =IF(ISERROR(+I42+'App.2-CI_MIFRS_DepExp_2014'!K42-J42), 0, +I42+'App.2-CI_MIFRS_DepExp_2014'!K42-J42) -> 0
A43: 1940 | B43: Tools, Shop & Garage Equipment | E43: 0 | F43: =IF(D43=0,'App.2-CI_MIFRS_DepExp_2014'!K43,+'App.2-CI_MIFRS_DepExp_2014'!K43+((C43*0.5)/D43)) -> 0 | H43: 0 | I43: 0 | K43: =IF(ISERROR(+I43+'App.2-CI_MIFRS_DepExp_2014'!K43-J43), 0, +I43+'App.2-CI_MIFRS_DepExp_2014'!K43-J43) -> 0
A44: 1945 | B44: Measurement & Testing Equipment | E44: 0 | F44: =IF(D44=0,'App.2-CI_MIFRS_DepExp_2014'!K44,+'App.2-CI_MIFRS_DepExp_2014'!K44+((C44*0.5)/D44)) -> 0 | H44: 0 | I44: 0 | K44: =IF(ISERROR(+I44+'App.2-CI_MIFRS_DepExp_2014'!K44-J44), 0, +I44+'App.2-CI_MIFRS_DepExp_2014'!K44-J44) -> 0
A45: 1950 | B45: Power Operated Equipment | E45: 0 | F45: =IF(D45=0,'App.2-CI_MIFRS_DepExp_2014'!K45,+'App.2-CI_MIFRS_DepExp_2014'!K45+((C45*0.5)/D45)) -> 0 | H45: 0 | I45: 0 | K45: =IF(ISERROR(+I45+'App.2-CI_MIFRS_DepExp_2014'!K45-J45), 0, +I45+'App.2-CI_MIFRS_DepExp_2014'!K45-J45) -> 0
A46: 1955 | B46: Communications Equipment | E46: 0 | F46: =IF(D46=0,'App.2-CI_MIFRS_DepExp_2014'!K46,+'App.2-CI_MIFRS_DepExp_2014'!K46+((C46*0.5)/D46)) -> 0 | H46: 0 | I46: 0 | K46: =IF(ISERROR(+I46+'App.2-CI_MIFRS_DepExp_2014'!K46-J46), 0, +I46+'App.2-CI_MIFRS_DepExp_2014'!K46-J46) -> 0
A47: 1955 | B47: Communication Equipment (Smart Meters) | E47: 0 | F47: =IF(D47=0,'App.2-CI_MIFRS_DepExp_2014'!K47,+'App.2-CI_MIFRS_DepExp_2014'!K47+((C47*0.5)/D47)) -> 0 | H47: 0 | I47: 0 | K47: =IF(ISERROR(+I47+'App.2-CI_MIFRS_DepExp_2014'!K47-J47), 0, +I47+'App.2-CI_MIFRS_DepExp_2014'!K47-J47) -> 0
A48: 1960 | B48: Miscellaneous Equipment | E48: 0 | F48: =IF(D48=0,'App.2-CI_MIFRS_DepExp_2014'!K48,+'App.2-CI_MIFRS_DepExp_2014'!K48+((C48*0.5)/D48)) -> 0 | H48: 0 | I48: 0 | K48: =IF(ISERROR(+I48+'App.2-CI_MIFRS_DepExp_2014'!K48-J48), 0, +I48+'App.2-CI_MIFRS_DepExp_2014'!K48-J48) -> 0
A49: 1970 | B49: Load Management Controls - Customer Premises | E49: 0 | F49: =IF(D49=0,'App.2-CI_MIFRS_DepExp_2014'!K49,+'App.2-CI_MIFRS_DepExp_2014'!K49+((C49*0.5)/D49)) -> 0 | H49: 0 | I49: 0 | K49: =IF(ISERROR(+I49+'App.2-CI_MIFRS_DepExp_2014'!K49-J49), 0, +I49+'App.2-CI_MIFRS_DepExp_2014'!K49-J49) -> 0
A50: 1975 | B50: Load Management Controls Utility Premises | E50: 0 | F50: =IF(D50=0,'App.2-CI_MIFRS_DepExp_2014'!K50,+'App.2-CI_MIFRS_DepExp_2014'!K50+((C50*0.5)/D50)) -> 0 | H50: 0 | I50: 0 | K50: =IF(ISERROR(+I50+'App.2-CI_MIFRS_DepExp_2014'!K50-J50), 0, +I50+'App.2-CI_MIFRS_DepExp_2014'!K50-J50) -> 0
A51: 1980 | B51: System Supervisor Equipment | E51: 0 | F51: =IF(D51=0,'App.2-CI_MIFRS_DepExp_2014'!K51,+'App.2-CI_MIFRS_DepExp_2014'!K51+((C51*0.5)/D51)) -> 0 | H51: 0 | I51: 0 | K51: =IF(ISERROR(+I51+'App.2-CI_MIFRS_DepExp_2014'!K51-J51), 0, +I51+'App.2-CI_MIFRS_DepExp_2014'!K51-J51) -> 0
A52: 1985 | B52: Miscellaneous Fixed Assets | E52: 0 | F52: =IF(D52=0,'App.2-CI_MIFRS_DepExp_2014'!K52,+'App.2-CI_MIFRS_DepExp_2014'!K52+((C52*0.5)/D52)) -> 0 | H52: 0 | I52: 0 | K52: =IF(ISERROR(+I52+'App.2-CI_MIFRS_DepExp_2014'!K52-J52), 0, +I52+'App.2-CI_MIFRS_DepExp_2014'!K52-J52) -> 0
A53: 1990 | B53: Other Tangible Property | E53: 0 | F53: =IF(D53=0,'App.2-CI_MIFRS_DepExp_2014'!K53,+'App.2-CI_MIFRS_DepExp_2014'!K53+((C53*0.5)/D53)) -> 0 | H53: 0 | I53: 0 | K53: =IF(ISERROR(+I53+'App.2-CI_MIFRS_DepExp_2014'!K53-J53), 0, +I53+'App.2-CI_MIFRS_DepExp_2014'!K53-J53) -> 0
A54: 1995 | B54: Contributions & Grants | E54: 0 | F54: =IF(D54=0,'App.2-CI_MIFRS_DepExp_2014'!K54,+'App.2-CI_MIFRS_DepExp_2014'!K54+((C54*0.5)/D54)) -> 0 | H54: 0 | I54: 0 | K54: =IF(ISERROR(+I54+'App.2-CI_MIFRS_DepExp_2014'!K54-J54), 0, +I54+'App.2-CI_MIFRS_DepExp_2014'!K54-J54) -> 0
B55: Total | C55: =SUM(C17:C54) -> 0 | F55: =SUM(F17:F54) -> 0 | G55: =SUM(G17:G54) -> 0 | H55: =SUM(H17:H54) -> 0 | I55: =SUM(I17:I54) -> 0 | J55: 0 | K55: =SUM(K17:K54) -> 0
B56: Depreciation exp. adj. from gain or loss on the retirement of assets (pool of like assets)
B57: Total Depreciation expense to be included in the test year revenue requirement | F57: =SUM(F55:F56) -> 0
A58: Notes:
A59: 1 | B59: Board policy of the "half-year" rule - the applicant must ensure that additions in the year attract a half-year depreciation expense in the first year. Deviations from this standard practice must be supported in the application.
A60: 2 | B60: The applicant must provide an explanation of material variances in evidence.
A61: 3 | B61: This column refers to the calculated full year depreciation but excludes the depreciation expense on assets fully depreciated during the year. This column is used for the purpose of calculating depreciation expense in the following year on the next worksheet.
A64: General: | B64: Applicants must provide a breakdown of depreciation and amortization expense in the above format for all relevant accounts. Asset Retirement Obligations (AROs), depreciation and accretion expense should be disclosed separately consistent with the Notes of historical Audited Financial Statements.

Sheet App.2-CK MIFRS_DepExp_2016
G1: File Number: | H1: =EBNUMBER -> 0
G2: Exhibit:
G3: Tab:
G4: Schedule:
G5: Page:
G7: Date:
A9: Appendix 2-CK
A10: Depreciation and Amortization Expense
A11: Assumes the applicant made capitalization and depreciation expense accounting policy changes under CGAAP effective January 1, 2013 and has adopted IFRS for financial reporting purposes effective January 1, 2015.
D13: 2016 | E13: MIFRS
A15: Account | B15: Description | C15: Additions | D15: Years (new additions only) | E15: Depreciation Rate on New Additions | F15: 2016 Depreciation Expense 1 | G15: 2016 Depreciation Expense per Appendix 2-BA Fixed Assets, Column J (l) | H15: Variance 2
C16: (d) | D16: (f) | E16: (g) = 1 / (f) | F16: (h)=2015 Full Year Depreciation + ((d)*0.5)/(f) | H16: (m) = (h) - (l)
A17: 1611 | B17: Computer Software (Formally known as Account 1925) | E17: =IF(D17=0,0,1/D17) -> 0 | F17: =IF(D17=0,'App.2-CJ MIFRS_DepExp_2015'!K17,+'App.2-CJ MIFRS_DepExp_2015'!K17+((C17*0.5)/D17)) -> 0 | H17: =IF(ISERROR(+F17-G17), 0, +F17-G17) -> 0
A18: 1612 | B18: Land Rights (Formally known as Account 1906) | E18: 0 | F18: =IF(D18=0,'App.2-CJ MIFRS_DepExp_2015'!K18,+'App.2-CJ MIFRS_DepExp_2015'!K18+((C18*0.5)/D18)) -> 0 | H18: 0
A19: 1805 | B19: Land | E19: 0 | F19: =IF(D19=0,'App.2-CJ MIFRS_DepExp_2015'!K19,+'App.2-CJ MIFRS_DepExp_2015'!K19+((C19*0.5)/D19)) -> 0 | H19: 0
A20: 1808 | B20: Buildings | E20: 0 | F20: =IF(D20=0,'App.2-CJ MIFRS_DepExp_2015'!K20,+'App.2-CJ MIFRS_DepExp_2015'!K20+((C20*0.5)/D20)) -> 0 | H20: 0
A21: 1810 | B21: Leasehold Improvements | E21: 0 | F21: =IF(D21=0,'App.2-CJ MIFRS_DepExp_2015'!K21,+'App.2-CJ MIFRS_DepExp_2015'!K21+((C21*0.5)/D21)) -> 0 | H21: 0
A22: 1815 | B22: Transformer Station Equipment >50 kV | E22: 0 | F22: =IF(D22=0,'App.2-CJ MIFRS_DepExp_2015'!K22,+'App.2-CJ MIFRS_DepExp_2015'!K22+((C22*0.5)/D22)) -> 0 | H22: 0
A23: 1820 | B23: Distribution Station Equipment <50 kV | E23: 0 | F23: =IF(D23=0,'App.2-CJ MIFRS_DepExp_2015'!K23,+'App.2-CJ MIFRS_DepExp_2015'!K23+((C23*0.5)/D23)) -> 0 | H23: 0
A24: 1825 | B24: Storage Battery Equipment | E24: 0 | F24: =IF(D24=0,'App.2-CJ MIFRS_DepExp_2015'!K24,+'App.2-CJ MIFRS_DepExp_2015'!K24+((C24*0.5)/D24)) -> 0 | H24: 0
A25: 1830 | B25: Poles, Towers & Fixtures | E25: 0 | F25: =IF(D25=0,'App.2-CJ MIFRS_DepExp_2015'!K25,+'App.2-CJ MIFRS_DepExp_2015'!K25+((C25*0.5)/D25)) -> 0 | H25: 0
A26: 1835 | B26: Overhead Conductors & Devices | E26: 0 | F26: =IF(D26=0,'App.2-CJ MIFRS_DepExp_2015'!K26,+'App.2-CJ MIFRS_DepExp_2015'!K26+((C26*0.5)/D26)) -> 0 | H26: 0
A27: 1840 | B27: Underground Conduit | E27: 0 | F27: =IF(D27=0,'App.2-CJ MIFRS_DepExp_2015'!K27,+'App.2-CJ MIFRS_DepExp_2015'!K27+((C27*0.5)/D27)) -> 0 | H27: 0
A28: 1845 | B28: Underground Conductors & Devices | E28: 0 | F28: =IF(D28=0,'App.2-CJ MIFRS_DepExp_2015'!K28,+'App.2-CJ MIFRS_DepExp_2015'!K28+((C28*0.5)/D28)) -> 0 | H28: 0
A29: 1850 | B29: Line Transformers | E29: 0 | F29: =IF(D29=0,'App.2-CJ MIFRS_DepExp_2015'!K29,+'App.2-CJ MIFRS_DepExp_2015'!K29+((C29*0.5)/D29)) -> 0 | H29: 0
A30: 1855 | B30: Services (Overhead & Underground) | E30: 0 | F30: =IF(D30=0,'App.2-CJ MIFRS_DepExp_2015'!K30,+'App.2-CJ MIFRS_DepExp_2015'!K30+((C30*0.5)/D30)) -> 0 | H30: 0
A31: 1860 | B31: Meters | E31: 0 | F31: =IF(D31=0,'App.2-CJ MIFRS_DepExp_2015'!K31,+'App.2-CJ MIFRS_DepExp_2015'!K31+((C31*0.5)/D31)) -> 0 | H31: 0
A32: 1860 | B32: Meters (Smart Meters) | E32: 0 | F32: =IF(D32=0,'App.2-CJ MIFRS_DepExp_2015'!K32,+'App.2-CJ MIFRS_DepExp_2015'!K32+((C32*0.5)/D32)) -> 0 | H32: 0
A33: 1905 | B33: Land | E33: 0 | F33: =IF(D33=0,'App.2-CJ MIFRS_DepExp_2015'!K33,+'App.2-CJ MIFRS_DepExp_2015'!K33+((C33*0.5)/D33)) -> 0 | H33: 0
A34: 1908 | B34: Buildings & Fixtures | E34: 0 | F34: =IF(D34=0,'App.2-CJ MIFRS_DepExp_2015'!K34,+'App.2-CJ MIFRS_DepExp_2015'!K34+((C34*0.5)/D34)) -> 0 | H34: 0
A35: 1910 | B35: Leasehold Improvements | E35: 0 | F35: =IF(D35=0,'App.2-CJ MIFRS_DepExp_2015'!K35,+'App.2-CJ MIFRS_DepExp_2015'!K35+((C35*0.5)/D35)) -> 0 | H35: 0
A36: 1915 | B36: Office Furniture & Equipment (10 years) | E36: 0 | F36: =IF(D36=0,'App.2-CJ MIFRS_DepExp_2015'!K36,+'App.2-CJ MIFRS_DepExp_2015'!K36+((C36*0.5)/D36)) -> 0 | H36: 0
A37: 1915 | B37: Office Furniture & Equipment (5 years) | E37: 0 | F37: =IF(D37=0,'App.2-CJ MIFRS_DepExp_2015'!K37,+'App.2-CJ MIFRS_DepExp_2015'!K37+((C37*0.5)/D37)) -> 0 | H37: 0
A38: 1920 | B38: Computer Equipment - Hardware | E38: 0 | F38: =IF(D38=0,'App.2-CJ MIFRS_DepExp_2015'!K38,+'App.2-CJ MIFRS_DepExp_2015'!K38+((C38*0.5)/D38)) -> 0 | H38: 0
A39: 1920 | B39: Computer Equip.-Hardware(Post Mar. 22/04) | E39: 0 | F39: =IF(D39=0,'App.2-CJ MIFRS_DepExp_2015'!K39,+'App.2-CJ MIFRS_DepExp_2015'!K39+((C39*0.5)/D39)) -> 0 | H39: 0
A40: 1920 | B40: Computer Equip.-Hardware(Post Mar. 19/07) | E40: 0 | F40: =IF(D40=0,'App.2-CJ MIFRS_DepExp_2015'!K40,+'App.2-CJ MIFRS_DepExp_2015'!K40+((C40*0.5)/D40)) -> 0 | H40: 0
A41: 1930 | B41: Transportation Equipment | E41: 0 | F41: =IF(D41=0,'App.2-CJ MIFRS_DepExp_2015'!K41,+'App.2-CJ MIFRS_DepExp_2015'!K41+((C41*0.5)/D41)) -> 0 | H41: 0
A42: 1935 | B42: Stores Equipment | E42: 0 | F42: =IF(D42=0,'App.2-CJ MIFRS_DepExp_2015'!K42,+'App.2-CJ MIFRS_DepExp_2015'!K42+((C42*0.5)/D42)) -> 0 | H42: 0
A43: 1940 | B43: Tools, Shop & Garage Equipment | E43: 0 | F43: =IF(D43=0,'App.2-CJ MIFRS_DepExp_2015'!K43,+'App.2-CJ MIFRS_DepExp_2015'!K43+((C43*0.5)/D43)) -> 0 | H43: 0
A44: 1945 | B44: Measurement & Testing Equipment | E44: 0 | F44: =IF(D44=0,'App.2-CJ MIFRS_DepExp_2015'!K44,+'App.2-CJ MIFRS_DepExp_2015'!K44+((C44*0.5)/D44)) -> 0 | H44: 0
A45: 1950 | B45: Power Operated Equipment | E45: 0 | F45: =IF(D45=0,'App.2-CJ MIFRS_DepExp_2015'!K45,+'App.2-CJ MIFRS_DepExp_2015'!K45+((C45*0.5)/D45)) -> 0 | H45: 0
A46: 1955 | B46: Communications Equipment | E46: 0 | F46: =IF(D46=0,'App.2-CJ MIFRS_DepExp_2015'!K46,+'App.2-CJ MIFRS_DepExp_2015'!K46+((C46*0.5)/D46)) -> 0 | H46: 0
A47: 1955 | B47: Communication Equipment (Smart Meters) | E47: 0 | F47: =IF(D47=0,'App.2-CJ MIFRS_DepExp_2015'!K47,+'App.2-CJ MIFRS_DepExp_2015'!K47+((C47*0.5)/D47)) -> 0 | H47: 0
A48: 1960 | B48: Miscellaneous Equipment | E48: 0 | F48: =IF(D48=0,'App.2-CJ MIFRS_DepExp_2015'!K48,+'App.2-CJ MIFRS_DepExp_2015'!K48+((C48*0.5)/D48)) -> 0 | H48: 0
A49: 1970 | B49: Load Management Controls - Customer Premises | E49: 0 | F49: =IF(D49=0,'App.2-CJ MIFRS_DepExp_2015'!K49,+'App.2-CJ MIFRS_DepExp_2015'!K49+((C49*0.5)/D49)) -> 0 | H49: 0
A50: 1975 | B50: Load Management Controls Utility Premises | E50: 0 | F50: =IF(D50=0,'App.2-CJ MIFRS_DepExp_2015'!K50,+'App.2-CJ MIFRS_DepExp_2015'!K50+((C50*0.5)/D50)) -> 0 | H50: 0
A51: 1980 | B51: System Supervisor Equipment | E51: 0 | F51: =IF(D51=0,'App.2-CJ MIFRS_DepExp_2015'!K51,+'App.2-CJ MIFRS_DepExp_2015'!K51+((C51*0.5)/D51)) -> 0 | H51: 0
A52: 1985 | B52: Miscellaneous Fixed Assets | E52: 0 | F52: =IF(D52=0,'App.2-CJ MIFRS_DepExp_2015'!K52,+'App.2-CJ MIFRS_DepExp_2015'!K52+((C52*0.5)/D52)) -> 0 | H52: 0
A53: 1990 | B53: Other Tangible Property | E53: 0 | F53: =IF(D53=0,'App.2-CJ MIFRS_DepExp_2015'!K53,+'App.2-CJ MIFRS_DepExp_2015'!K53+((C53*0.5)/D53)) -> 0 | H53: 0
A54: 1995 | B54: Contributions & Grants | E54: 0 | F54: =IF(D54=0,'App.2-CJ MIFRS_DepExp_2015'!K54,+'App.2-CJ MIFRS_DepExp_2015'!K54+((C54*0.5)/D54)) -> 0 | H54: 0
B55: Total | C55: =SUM(C17:C54) -> 0 | F55: =SUM(F17:F54) -> 0 | G55: =SUM(G17:G54) -> 0 | H55: =SUM(H17:H54) -> 0
B56: Depreciation exp. adj. from gain or loss on the retirement of assets (pool of like assets)
B57: Total Depreciation expense to be included in the test year revenue requirement | F57: =SUM(F55:F56) -> 0
A58: Notes:
A59: 1 | B59: Board policy of the "half-year" rule - the applicant must ensure that additions in the year attract a half-year depreciation expense in the first year. Deviations from this standard practice must be supported in the application.
A60: 2 | B60: The applicant must provide an explanation of material variances in evidence.
A62: General: | B62: Applicants must provide a breakdown of depreciation and amortization expense in the above format for all relevant accounts. Asset Retirement Obligations (AROs), depreciation and accretion expense should be disclosed separately consistent with the Notes of historical Audited Financial Statements.

Sheet App.2-D_Overhead
F1: File Number: | G1: =EBNUMBER -> 0
F2: Exhibit:
F3: Tab:
F4: Schedule:
F5: Page:
F7: Date:
A9: Appendix 2-D
A10: Overhead Expense
A12: Applicants are to provide a breakdown of OM&A before capitalization in the below table. OM&A before capitalization may be broken down by cost center, program, drivers or another format best suited to focus on capitalized vs. uncapitalized OM&A.
A14: OM&A Before Capitalization
B15: 2012 | C15: 2013 | D15: 2014 | E15: 2015 | F15: 2016
B16: Historical Year | C16: Historical Year | D16: Historical Year | E16: Bridge Year | F16: Test Year
A27: Total OM&A Before Capitalization (B) | B27: =SUM(B17:B26) -> 0 | C27: =SUM(C17:C26) -> 0 | D27: 0 | E27: 0 | F27: 0
A29: Applicants are to provide a breakdown of capitalized OM&A in the below table. Capitalized OM&A may be broken down using the categories listed in the table below if possible. Otherwise, applicants are to provide its own break down of capitalized OM&A.
A31: Capitalized OM&A | G31: Directly | H31: Explanation for Change in Overhead Capitalized
B32: 2012 | C32: 2013 | D32: 2014 | E32: 2015 | F32: 2016 | G32: Attributable?
B33: Historical Year | C33: Historical Year | D33: Historical Year | E33: Bridge Year | F33: Test Year | G33: (Y/N)
A34: employee benefits
A35: costs of site preparation
A36: initial delivery and handling costs
A37: costs of testing whether the asset is functioning properly
A38: professional fees
A40: costs of opening a new facility
A41: costs of introducing a new product or service (including costs of advertising and promotional activities)
A42: costs of conducting business in a new location or with a new class of customer (including costs of staff training)
A43: administration and other general overhead costs
A45: Insert description of additional item(s) and new rows if needed
A47: Total Capitalized OM&A (A) | B47: =SUM(B34:B46) -> 0 | C47: =SUM(C34:C46) -> 0 | D47: =SUM(D34:D46) -> 0 | E47: =SUM(E34:E46) -> 0 | F47: =SUM(F34:F46) -> 0
A49: % of Capitalized OM&A (=A/B) | B49: =IF(ISERROR(B47/B27),"0%",B47/B27) -> 0% | C49: =IF(ISERROR(C47/C27),"0%",C47/C27) -> 0% | D49: 0% | E49: 0% | F49: 0%

Sheet App.2-EA_Account 1575 (2015)
I1: File Number: | J1: =EBNUMBER -> 0
I2: Exhibit:
I3: Tab:
I4: Schedule:
I5: Page:
I7: Date:
A9: Appendix 2-EA
A10: Account 1575 - IFRS-CGAAP Transitional PP&E Amounts
A11: 2015 Adopters of IFRS for Financial Reporting Purposes
A13: For applicants that adopted IFRS on January 1, 2015 for financial reporting purposes
B17: =RebaseYear &" Rebasing Year" -> 2011 Rebasing Year | C17: 2012 | D17: 2013 | E17: 2014 | F17: 2015 | G17: 2016 Rebasing Year
A18: Reporting Basis | B18: CGAAP | C18: CGAAP | D18: CGAAP | E18: CGAAP | F18: MIFRS | G18: MIFRS
B19: Forecast | C19: Actual | D19: Actual | E19: Actual | F19: Forecast | G19: Forecast
E20: $ | F20: $
A21: PP&E Values under CGAAP
A22: Opening net PP&E - Note 1 | F22: =+E25 -> 0
A23: Net Additions - Note 4
A24: Net Depreciation (amounts should be negative) - Note 4
A25: Closing net PP&E (1) | E25: =E22+E23+E24 -> 0 | F25: =SUM(F22:F24) -> 0
A27: PP&E Values under MIFRS (Starts from 2014, the transition year)
A28: Opening net PP&E - Note 1 | F28: =+E31 -> 0
A29: Net Additions - Note 4
A30: Net Depreciation (amounts should be negative) - Note 4
A31: Closing net PP&E (2) | E31: =SUM(E28:E30) -> 0 | F31: =SUM(F28:F30) -> 0
A33: Difference in Closing net PP&E, former CGAAP vs. revised CGAAP | E33: =E25-E31 -> 0 | F33: =F25-F31 -> 0
A36: Effect on Deferral and Variance Account Rate Riders
A37: Closing balance in Account 1576 | G37: =IF(ISERROR(F33), 0, F33) -> 0 | I37: WACC
A38: Return on Rate Base Associated with Account 1576 balance at WACC - Note 2 | G38: =F33*J37*J38 -> 0 | H38: # of years of rate rider disposition period
A39: Amount included in Deferral and Variance Account Rate Rider Calculation | G39: =G37+G38 -> 0
A41: Notes:
A42: 1 For an applicant that adopted IFRS on January 1, 2015, the PP&E values as of January 1, 2014 under both CGAAP and MIFRS should be the same.
A43: 2 Return on rate base associated with deferred balance is calculated as:
A44: the deferral account closing balance as of 2015 rebasing year x WACC X # of years of rate rider disposition period
A45: * Please note that the calculation should be adjusted once WACC is updated and finalized in the rate application.
A46: 3 The PP&E deferral account is cleared by including the total balance in the deferral and variance account rate rider calculation.
A47: 4 Net additions are additions net of disposals; Net depreciation is additions to depreciation net of disposals.

Sheet App.2-EB_Account 1576 (2012)
I1: File Number: | J1: =EBNUMBER -> 0
I2: Exhibit:
I3: Tab:
I4: Schedule:
I5: Page:
I7: Date:
A9: Appendix 2-EB
A10: Account 1576 - Accounting Changes under CGAAP
A11: 2012 Changes in Accounting Policies under CGAAP
A13: For applicants that made capitalization and depreciation expense accounting policy changes under CGAAP effective January 1, 2012
B17: =RebaseYear &" Rebasing Year" -> 2011 Rebasing Year | C17: 2012 | D17: 2013 | E17: 2014 | F17: 2015 | G17: 2016 Rebasing Year
A18: Reporting Basis | B18: CGAAP | C18: CGAAP | D18: CGAAP | E18: CGAAP | F18: MIFRS | G18: MIFRS
B19: Forecast | C19: Actual | D19: Actual | E19: Actual | F19: Forecast | G19: Forecast
C20: $ | D20: $ | E20: $ | F20: $
A21: PP&E Values under former CGAAP
A22: Opening net PP&E - Note 1 | D22: =+C25 -> 0 | E22: =+D25 -> 0 | F22: =+E25 -> 0
A23: Net Additions - Note 4
A24: Net Depreciation (amounts should be negative) - Note 4
A25: Closing net PP&E (1) | C25: =C22+C23+C24 -> 0 | D25: =D22+D23+D24 -> 0 | E25: =E22+E23+E24 -> 0 | F25: =F22+F23+F24 -> 0
A27: PP&E Values under revised CGAAP (Starts from 2012)
A28: Opening net PP&E - Note 1 | D28: =+C31 -> 0 | E28: =+D31 -> 0 | F28: =+E31 -> 0
A29: Net Additions - Note 4
A30: Net Depreciation (amounts should be negative) - Note 4
A31: Closing net PP&E (2) | C31: =SUM(C28:C30) -> 0 | D31: =SUM(D28:D30) -> 0 | E31: =SUM(E28:E30) -> 0 | F31: =SUM(F28:F30) -> 0
A33: Difference in Closing net PP&E, former CGAAP vs. revised CGAAP | C33: =C25-C31 -> 0 | D33: =D25-D31 -> 0 | E33: =E25-E31 -> 0 | F33: =F25-F31 -> 0
A36: Effect on Deferral and Variance Account Rate Riders
A37: Closing balance in Account 1576 | G37: =IF(ISERROR(F33), 0, F33) -> 0 | I37: WACC
A38: Return on Rate Base Associated with Account 1576 balance at WACC - Note 2 | G38: =F33*J37*J38 -> 0 | H38: # of years of rate rider disposition period
A39: Amount included in Deferral and Variance Account Rate Rider Calculation | G39: =G37+G38 -> 0
A41: Notes:
A42: 1 For an applicant that made the capitalization and depreciation expense accounting policy changes on January 1, 2012, the PP&E values as of January 1, 2012 under both former CGAAP and revised CGAAP should be the same.
A43: 2 Return on rate base associated with Account 1576 balance is calculated as:
A44: the variance account ending balance as of 2015 rebasing year x WACC X # of years of rate rider disposition period
A45: * Please note that the calculation should be adjusted once WACC is updated and finalized in the rate application.
A46: 3 Account 1576 is cleared by including the total balance in the deferral and variance account rate rider calculation.
A47: 4 Net additions are additions net of disposals; Net depreciation is additions to depreciation net of disposals.

Sheet App.2-EC_Account 1576 (2013)
I1: File Number: | J1: =EBNUMBER -> 0
I2: Exhibit:
I3: Tab:
I4: Schedule:
I5: Page:
I7: Date:
A9: Appendix 2-EC
A10: Account 1576 - Accounting Changes under CGAAP
A11: 2013 Changes in Accounting Policies under CGAAP
A13: For applicants that made capitalization and depreciation expense accounting policy changes under CGAAP effective January 1, 2013
B17: =RebaseYear &" Rebasing Year" -> 2011 Rebasing Year | C17: 2012 | D17: 2013 | E17: 2014 | F17: 2015 | G17: 2016 Rebasing Year
A18: Reporting Basis | B18: CGAAP | C18: CGAAP | D18: CGAAP | E18: CGAAP | F18: MIFRS | G18: MIFRS
B19: Forecast | C19: Actual | D19: Actual | E19: Actual | F19: Forecast | G19: Forecast
D20: $ | E20: $ | F20: $
A21: PP&E Values under former CGAAP
A22: Opening net PP&E - Note 1 | E22: =+D25 -> 0 | F22: =+E25 -> 0
A23: Net Additions - Note 4
A24: Net Depreciation (amounts should be negative) - Note 4
A25: Closing net PP&E (1) | D25: =D22+D23+D24 -> 0 | E25: =E22+E23+E24 -> 0 | F25: =F22+F23+F24 -> 0
A27: PP&E Values under revised CGAAP (Starts from 2012)
A28: Opening net PP&E - Note 1 | E28: =+D31 -> 0 | F28: =+E31 -> 0
A29: Net Additions - Note 4
A30: Net Depreciation (amounts should be negative) - Note 4
A31: Closing net PP&E (2) | D31: =SUM(D28:D30) -> 0 | E31: =SUM(E28:E30) -> 0 | F31: =SUM(F28:F30) -> 0
A33: Difference in Closing net PP&E, former CGAAP vs. revised CGAAP | D33: =D25-D31 -> 0 | E33: =E25-E31 -> 0 | F33: =F25-F31 -> 0
A36: Effect on Deferral and Variance Account Rate Riders
A37: Closing balance in Account 1576 | G37: =IF(ISERROR(F33), 0, F33) -> 0 | I37: WACC
A38: Return on Rate Base Associated with Account 1576 balance at WACC - Note 2 | G38: =F33*J37*J38 -> 0 | H38: # of years of rate rider disposition period
A39: Amount included in Deferral and Variance Account Rate Rider Calculation | G39: =G37+G38 -> 0
A41: Notes:
A42: 1 For an applicant that made the capitalization and depreciation expense accounting policy changes on January 1, 2013, the PP&E values as of January 1, 2013 under both former CGAAP and revised CGAAP should be the same.
A43: 2 Return on rate base associated with Account 1576 balance is calculated as:
A44: the variance account ending balance as of 2015 rebasing year x WACC X # of years of rate rider disposition period
A45: * Please note that the calculation should be adjusted once WACC is updated and finalized in the rate application.
A46: 3 Account 1576 is cleared by including the total balance in the deferral and variance account rate rider calculation.
A47: 4 Net additions are additions net of disposals; Net depreciation is additions to depreciation net of disposals.

Sheet App.2-FA Proposed REG Invest.
J1: File Number: | K1: =EBNUMBER -> 0
J2: Exhibit:
J3: Tab:
J4: Schedule:
J5: Page:
J7: Date:
A9: Appendix 2-FA
A10: Renewable Generation Connection Investment Summary (past investments or over the future rate setting period)
A12: Enter the details of the Renewable Generation Connection projects as described in the appropriate section of the Filing Requirements.
A13: All costs entered on this page will be transferred to the appropriate cells in the appendices that follow.
A14: For Part A, Renewable Enabling Improvements (REI), these amounts will be transferred to Appendix 2 - FB
A15: For Part B, Expansions, these amounts will be transferred to Appendix 2 - FC
A17: If there are more than five projects proposed to be in-service in a certain year, please amend the tables below and ensure that the formulae for the Total Amounts in any given rate year are updated.
A18: Based on the current methodology and allocation, amounts allocated represent 6% for REI Connection Investments and 17% for Expansion Investments. (EB-2009-0349, 6-10-2010, p. 15, note 9)
A20: There are two scenarios described below. Separate sets of spreadsheets (2-FA, 2-FB, 2-FC) should be submited for each scenario as required.
A21: Scenario 1: Past Investments with No Recovery. The distributor has made investments in the past (during the IRM Years), but has not received approval for these projects and therefore did not receive
A22: revenue from the IESO under Regulation 330/09 and did not receive ratepayer revenue for the direct benefit portion of the investment.
A23: The WCA percentage, debt percentages, interest rates, kWh, tax rates, amortization period, CCA Class and percentage should correspond to the distributor's last Cost of Service approval.
A24: The Direct Benefit portion of the calculated Revenue Requirement for each year should be summed and can be applied for recovery from the distributor's ratepayers through a rate rider.
A25: The Provincial Recovery portion of the calculated Revenue Requirement for each year should be summed and can be applied for recovery from the IESO through a separate order.
A27: Scenario 2: Investments in the Test Year and Beyond. Distributor plans to make investments in 2016 and/or beyond. These investments should be added to 2-FA in the appropriate year.
A28: The WCA percentage, debt percentages, interest rates, kWh, tax rates, amortization period, CCA Class and percentage should correspond to the distributor's current application.
A30: Part A | G30: Test Year
A31: REI Investments (Direct Benefit at 6%) | C31: 2012 | D31: 2013 | E31: 2014 | F31: 2015 | G31: 2016 | H31: =G31+1 -> 2017 | I31: =H31+1 -> 2018 | J31: 2019 | K31: 2020
A32: Project 1
A33: Name: REI Connection Project
A34: Capital Costs | C34: 0 | D34: 0 | E34: 0 | F34: 0 | G34: 0 | H34: 0 | I34: 0 | J34: 0 | K34: 0
A35: OM&A (Start-Up) | C35: 0 | D35: 0 | E35: 0 | F35: 0 | G35: 0 | H35: 0 | I35: 0 | J35: 0 | K35: 0
A36: OM&A (Ongoing) | C36: 0 | D36: 0 | E36: 0 | F36: 0 | G36: 0 | H36: 0 | I36: 0 | J36: 0 | K36: 0
A38: Project 2
A39: Name: REI Connection Project
A40: Capital Costs | C40: 0 | D40: 0 | E40: 0 | F40: 0 | G40: 0 | H40: 0 | I40: 0 | J40: 0 | K40: 0
A41: OM&A (Start-Up) | C41: 0 | D41: 0 | E41: 0 | F41: 0 | G41: 0 | H41: 0 | I41: 0 | J41: 0 | K41: 0
A42: OM&A (Ongoing) | C42: 0 | D42: 0 | E42: 0 | F42: 0 | G42: 0 | H42: 0 | I42: 0 | J42: 0 | K42: 0
A44: Project 3
A45: Name: REI Connection Project
A46: Capital Costs | C46: 0 | D46: 0 | E46: 0 | F46: 0 | G46: 0 | H46: 0 | I46: 0 | J46: 0 | K46: 0
A47: OM&A (Start-Up) | C47: 0 | D47: 0 | E47: 0 | F47: 0 | G47: 0 | H47: 0 | I47: 0 | J47: 0 | K47: 0
A48: OM&A (Ongoing) | C48: 0 | D48: 0 | E48: 0 | F48: 0 | G48: 0 | H48: 0 | I48: 0 | J48: 0 | K48: 0
A50: Project 4
A51: Name: REI Connection Project
A52: Capital Costs | C52: 0 | D52: 0 | E52: 0 | F52: 0 | G52: 0 | H52: 0 | I52: 0 | J52: 0 | K52: 0
A53: OM&A (Start-Up) | C53: 0 | D53: 0 | E53: 0 | F53: 0 | G53: 0 | H53: 0 | I53: 0 | J53: 0 | K53: 0
A54: OM&A (Ongoing) | C54: 0 | D54: 0 | E54: 0 | F54: 0 | G54: 0 | H54: 0 | I54: 0 | J54: 0 | K54: 0
A56: Project 5
A57: Name: REI Connection Project
A58: Capital Costs | C58: 0 | D58: 0 | E58: 0 | F58: 0 | G58: 0 | H58: 0 | I58: 0 | J58: 0 | K58: 0
A59: OM&A (Start-Up) | C59: 0 | D59: 0 | E59: 0 | F59: 0 | G59: 0 | H59: 0 | I59: 0 | J59: 0 | K59: 0
A60: OM&A (Ongoing) | C60: 0 | D60: 0 | E60: 0 | F60: 0 | G60: 0 | H60: 0 | I60: 0 | J60: 0 | K60: 0
A62: Total Capital Costs | C62: =SUM(C58,C52,C46,C40,C34) -> 0 | D62: 0 | E62: 0 | F62: 0 | G62: =SUM(G58,G52,G46,G40,G34) -> 0 | H62: =SUM(H58,H52,H46,H40,H34) -> 0 | I62: 0 | J62: 0 | K62: 0
A63: Total OM&A (Start-Up) | C63: 0 | D63: 0 | E63: 0 | F63: 0 | G63: =SUM(G59,G53,G47,G41,G35) -> 0 | H63: 0 | I63: 0 | J63: 0 | K63: 0
A64: Total OM&A (Ongoing) | C64: 0 | D64: 0 | E64: 0 | F64: 0 | G64: =SUM(G60,G54,G48,G42,G36) -> 0 | H64: 0 | I64: 0 | J64: 0 | K64: 0
A67: Part B | G67: Test Year
A68: Expansion Investments (Direct Benefit at 17%) | C68: 2012 | D68: 2013 | E68: 2014 | F68: 2015 | G68: 2016 | H68: =G68+1 -> 2017 | I68: =H68+1 -> 2018 | J68: 2019 | K68: 2020
A69: Project 1
A70: Name: Expansion Connection Project
A71: Capital Costs | C71: 0 | D71: 0 | E71: 0 | F71: 0 | G71: 0 | H71: 0 | I71: 0 | J71: 0 | K71: 0
A72: OM&A (Start-Up) | C72: 0 | D72: 0 | E72: 0 | F72: 0 | G72: 0 | H72: 0 | I72: 0 | J72: 0 | K72: 0
A73: OM&A (Ongoing) | C73: 0 | D73: 0 | E73: 0 | F73: 0 | G73: 0 | H73: 0 | I73: 0 | J73: 0 | K73: 0
A75: Project 2
A76: Name: Expansion Connection Project
A77: Capital Costs | C77: 0 | D77: 0 | E77: 0 | F77: 0 | G77: 0 | H77: 0 | I77: 0 | J77: 0 | K77: 0
A78: OM&A (Start-Up) | C78: 0 | D78: 0 | E78: 0 | F78: 0 | G78: 0 | H78: 0 | I78: 0 | J78: 0 | K78: 0
A79: OM&A (Ongoing) | C79: 0 | D79: 0 | E79: 0 | F79: 0 | G79: 0 | H79: 0 | I79: 0 | J79: 0 | K79: 0
A81: Project 3
A82: Name: Expansion Connection Project
A83: Capital Costs | C83: 0 | D83: 0 | E83: 0 | F83: 0 | G83: 0 | H83: 0 | I83: 0 | J83: 0 | K83: 0
A84: OM&A (Start-Up) | C84: 0 | D84: 0 | E84: 0 | F84: 0 | G84: 0 | H84: 0 | I84: 0 | J84: 0 | K84: 0
A85: OM&A (Ongoing) | C85: 0 | D85: 0 | E85: 0 | F85: 0 | G85: 0 | H85: 0 | I85: 0 | J85: 0 | K85: 0
A87: Project 4
A88: Name: Expansion Connection Project
A89: Capital Costs | C89: 0 | D89: 0 | E89: 0 | F89: 0 | G89: 0 | H89: 0 | I89: 0 | J89: 0 | K89: 0
A90: OM&A (Start-Up) | C90: 0 | D90: 0 | E90: 0 | F90: 0 | G90: 0 | H90: 0 | I90: 0 | J90: 0 | K90: 0
A91: OM&A (Ongoing) | C91: 0 | D91: 0 | E91: 0 | F91: 0 | G91: 0 | H91: 0 | I91: 0 | J91: 0 | K91: 0
A93: Project 5
A94: Name: Expansion Connection Project
A95: Capital Costs | C95: 0 | D95: 0 | E95: 0 | F95: 0 | G95: 0 | H95: 0 | I95: 0 | J95: 0 | K95: 0
A96: OM&A (Start-Up) | C96: 0 | D96: 0 | E96: 0 | F96: 0 | G96: 0 | H96: 0 | I96: 0 | J96: 0 | K96: 0
A97: OM&A (Ongoing) | C97: 0 | D97: 0 | E97: 0 | F97: 0 | G97: 0 | H97: 0 | I97: 0 | J97: 0 | K97: 0
A99: Total Capital Costs | C99: =SUM(C95,C89,C83,C77,C71) -> 0 | D99: 0 | E99: 0 | F99: 0 | G99: =SUM(G95,G89,G83,G77,G71) -> 0 | H99: =SUM(H95,H89,H83,H77,H71) -> 0 | I99: 0 | J99: 0 | K99: 0
A100: Total OM&A (Start-Up) | C100: 0 | D100: 0 | E100: 0 | F100: 0 | G100: =SUM(G96,G90,G84,G78,G72) -> 0 | H100: 0 | I100: 0 | J100: 0 | K100: 0
A101: Total OM&A (Ongoing) | C101: 0 | D101: 0 | E101: 0 | F101: 0 | G101: =SUM(G97,G91,G85,G79,G73) -> 0 | H101: 0 | I101: 0 | J101: 0 | K101: 0

Sheet App.2-FB Calc of REG Improvemnt
N1: File Number: | O1: =EBNUMBER -> 0
N2: Exhibit:
N3: Tab:
N4: Schedule:
N5: Page:
N7: Date:
A9: Appendix 2-FB
A10: Calculation of Renewable Generation Connection Direct Benefits/Provincial Amount: Renewable Enabling Improvement Investments
A12: This table will calculate the distributor/provincial shares of the investments entered in Part A of Appendix 2-FA.
A13: Enter values in green shaded cells: WCA percentage, debt percentages, interest rates, kWh, tax rates, amortization period, CCA Class and percentage.
A14: For historical investments, enter these variables for your last cost of service test year. For 2016 and beyond, enter variables as in the application.
A15: Rate Riders are not calculated for Test Year as these assets and costs are already in the distributor's rate base/revenue requirement.
C17: 2012 | F17: 2013 | I17: 2014 | L17: 2015 | O17: 2016 Test Year | R17: 2017 | U17: 2018 | V17: 2016 | X17: 2019 | AA17: 2020
D18: Direct Benefit | E18: Provincial | G18: Direct Benefit | H18: Provincial | J18: Direct Benefit | K18: Provincial | M18: Direct Benefit | N18: Provincial | P18: Direct Benefit | Q18: Provincial | S18: Direct Benefit | T18: Provincial | V18: Direct Benefit | W18: Provincial | Y18: Direct Benefit | Z18: Provincial | AB18: Direct Benefit | AC18: Provincial
C19: Total | D19: 0.06 | E19: 0.94 | F19: Total | G19: 0.06 | H19: 0.94 | I19: Total | J19: 0.06 | K19: 0.94 | L19: Total | M19: 0.06 | N19: 0.94 | O19: Total | P19: 0.06 | Q19: 0.94 | R19: Total | S19: 0.06 | T19: 0.94 | U19: Total | V19: 0.06 | W19: 0.94 | X19: Total | Y19: 0.06 | Z19: 0.94 | AA19: Total | AB19: 0.06 | AC19: 0.94
A20: Net Fixed Assets (average) | C20: =D82 -> 0 | D20: =C20*D19 -> 0 | E20: =C20*E19 -> 0 | F20: =E82 -> 0 | G20: =F20*G19 -> 0 | H20: =F20*H19 -> 0 | I20: =F82 -> 0 | J20: =I20*J19 -> 0 | K20: =I20*K19 -> 0 | L20: =G82 -> 0 | M20: =L20*M19 -> 0 | N20: =L20*N19 -> 0 | O20: =H82 -> 0 | P20: =O20*P19 -> 0 | Q20: =O20*Q19 -> 0 | R20: =I82 -> 0 | S20: =R20*S19 -> 0 | T20: =R20*T19 -> 0 | U20: =J82 -> 0 | V20: =U20*V19 -> 0 | W20: =U20*W19 -> 0 | X20: =K82 -> 0 | Y20: =X20*Y19 -> 0 | Z20: =X20*Z19 -> 0 | AA20: =L82 -> 0 | AB20: =AA20*AB19 -> 0 | AC20: =AA20*AC19 -> 0
A21: Incremental OM&A (on-going, N/A for Provincial Recovery) | C21: ='App.2-FA Proposed REG Invest.'!C64 -> 0 | D21: =C21 -> 0 | F21: ='App.2-FA Proposed REG Invest.'!D64 -> 0 | G21: =F21 -> 0 | I21: ='App.2-FA Proposed REG Invest.'!E64 -> 0 | J21: =I21 -> 0 | L21: ='App.2-FA Proposed REG Invest.'!F64 -> 0 | M21: =L21 -> 0 | O21: ='App.2-FA Proposed REG Invest.'!G64 -> 0 | P21: =O21 -> 0 | R21: ='App.2-FA Proposed REG Invest.'!H64 -> 0 | S21: =R21 -> 0 | U21: ='App.2-FA Proposed REG Invest.'!I64 -> 0 | V21: =U21 -> 0 | X21: ='App.2-FA Proposed REG Invest.'!J64 -> 0 | Y21: =X21 -> 0 | AA21: ='App.2-FA Proposed REG Invest.'!K64 -> 0 | AB21: =AA21 -> 0
A22: Incremental OM&A (start-up, applicable for Provincial Recovery) | C22: ='App.2-FA Proposed REG Invest.'!C63 -> 0 | D22: =C22*D19 -> 0 | E22: =C22*E19 -> 0 | F22: ='App.2-FA Proposed REG Invest.'!D63 -> 0 | G22: =F22*G19 -> 0 | H22: =F22*H19 -> 0 | I22: ='App.2-FA Proposed REG Invest.'!E63 -> 0 | J22: =I22*J19 -> 0 | K22: =I22*K19 -> 0 | L22: ='App.2-FA Proposed REG Invest.'!F63 -> 0 | M22: =L22*M19 -> 0 | N22: =L22*N19 -> 0 | O22: ='App.2-FA Proposed REG Invest.'!G63 -> 0 | P22: =O22*P19 -> 0 | Q22: =O22*Q19 -> 0 | R22: ='App.2-FA Proposed REG Invest.'!H63 -> 0 | S22: =R22*S19 -> 0 | T22: =R22*T19 -> 0 | U22: ='App.2-FA Proposed REG Invest.'!I63 -> 0 | V22: =U22*V19 -> 0 | W22: =U22*W19 -> 0 | X22: ='App.2-FA Proposed REG Invest.'!J63 -> 0 | Y22: =X22*Y19 -> 0 | Z22: =X22*Z19 -> 0 | AA22: ='App.2-FA Proposed REG Invest.'!K63 -> 0 | AB22: =AA22*AB19 -> 0 | AC22: =AA22*AC19 -> 0
A23: WCA | D23: =(D21+D22)*$B$23 -> 0 | E23: =E22*$B$23 -> 0 | G23: =(G21+G22)*$B$23 -> 0 | H23: =H22*$B$23 -> 0 | J23: =(J21+J22)*$B$23 -> 0 | K23: =K22*$B$23 -> 0 | M23: =(M21+M22)*$B$23 -> 0 | N23: =N22*$B$23 -> 0 | P23: =(P21+P22)*$B$23 -> 0 | Q23: =Q22*$B$23 -> 0 | S23: =(S21+S22)*$B$23 -> 0 | T23: =T22*$B$23 -> 0 | V23: =(V21+V22)*$B$23 -> 0 | W23: =W22*$B$23 -> 0 | Y23: =(Y21+Y22)*$B$23 -> 0 | Z23: =Z22*$B$23 -> 0 | AB23: =(AB21+AB22)*$B$23 -> 0 | AC23: =AC22*$B$23 -> 0
A24: Rate Base | D24: =SUM(D20+D23) -> 0 | E24: =SUM(E20+E23) -> 0 | G24: =SUM(G20+G23) -> 0 | H24: =SUM(H20+H23) -> 0 | J24: =SUM(J20+J23) -> 0 | K24: =SUM(K20+K23) -> 0 | M24: =SUM(M20+M23) -> 0 | N24: =SUM(N20+N23) -> 0 | P24: =SUM(P20+P23) -> 0 | Q24: =SUM(Q20+Q23) -> 0 | S24: =SUM(S20+S23) -> 0 | T24: =SUM(T20+T23) -> 0 | V24: =SUM(V20+V23) -> 0 | W24: =SUM(W20+W23) -> 0 | Y24: =SUM(Y20+Y23) -> 0 | Z24: =SUM(Z20+Z23) -> 0 | AB24: =SUM(AB20+AB23) -> 0 | AC24: =SUM(AC20+AC23) -> 0
A27: Deemed ST Debt | D27: =D24*$B$27 -> 0 | E27: =E24*$B$27 -> 0 | G27: =G24*$B$27 -> 0 | H27: =H24*$B$27 -> 0 | J27: =J24*$B$27 -> 0 | K27: =K24*$B$27 -> 0 | M27: =M24*$B$27 -> 0 | N27: =N24*$B$27 -> 0 | P27: =P24*$B$27 -> 0 | Q27: =Q24*$B$27 -> 0 | S27: =S24*$B$27 -> 0 | T27: =T24*$B$27 -> 0 | V27: =V24*$B$27 -> 0 | W27: =W24*$B$27 -> 0 | Y27: =Y24*$B$27 -> 0 | Z27: =Z24*$B$27 -> 0 | AB27: =AB24*$B$27 -> 0 | AC27: =AC24*$B$27 -> 0
A28: Deemed LT Debt | D28: =D24*$B$28 -> 0 | E28: =E24*$B$28 -> 0 | G28: =G24*$B$28 -> 0 | H28: =H24*$B$28 -> 0 | J28: =J24*$B$28 -> 0 | K28: =K24*$B$28 -> 0 | M28: =M24*$B$28 -> 0 | N28: =N24*$B$28 -> 0 | P28: =P24*$B$28 -> 0 | Q28: =Q24*$B$28 -> 0 | S28: =S24*$B$28 -> 0 | T28: =T24*$B$28 -> 0 | V28: =V24*$B$28 -> 0 | W28: =W24*$B$28 -> 0 | Y28: =Y24*$B$28 -> 0 | Z28: =Z24*$B$28 -> 0 | AB28: =AB24*$B$28 -> 0 | AC28: =AC24*$B$28 -> 0
A29: Deemed Equity | D29: =D24*$B$29 -> 0 | E29: =E24*$B$29 -> 0 | G29: =G24*$B$29 -> 0 | H29: =H24*$B$29 -> 0 | J29: =J24*$B$29 -> 0 | K29: =K24*$B$29 -> 0 | M29: =M24*$B$29 -> 0 | N29: =N24*$B$29 -> 0 | P29: =P24*$B$29 -> 0 | Q29: =Q24*$B$29 -> 0 | S29: =S24*$B$29 -> 0 | T29: =T24*$B$29 -> 0 | V29: =V24*$B$29 -> 0 | W29: =W24*$B$29 -> 0 | Y29: =Y24*$B$29 -> 0 | Z29: =Z24*$B$29 -> 0 | AB29: =AB24*$B$29 -> 0 | AC29: =AC24*$B$29 -> 0
A31: ST Interest | D31: =D27*$B31 -> 0 | E31: =E27*$B31 -> 0 | G31: =G27*$B31 -> 0 | H31: =H27*$B31 -> 0 | J31: =J27*$B31 -> 0 | K31: =K27*$B31 -> 0 | M31: =M27*$B31 -> 0 | N31: =N27*$B31 -> 0 | P31: =P27*$B31 -> 0 | Q31: =Q27*$B31 -> 0 | S31: =S27*$B31 -> 0 | T31: =T27*$B31 -> 0 | V31: =V27*$B31 -> 0 | W31: =W27*$B31 -> 0 | Y31: =Y27*$B31 -> 0 | Z31: =Z27*$B31 -> 0 | AB31: =AB27*$B31 -> 0 | AC31: =AC27*$B31 -> 0
A32: LT Interest | D32: =D28*$B32 -> 0 | E32: 0 | G32: =G28*$B32 -> 0 | H32: 0 | J32: =J28*$B32 -> 0 | K32: 0 | M32: =M28*$B32 -> 0 | N32: 0 | P32: =P28*$B32 -> 0 | Q32: 0 | S32: =S28*$B32 -> 0 | T32: 0 | V32: =V28*$B32 -> 0 | W32: 0 | Y32: =Y28*$B32 -> 0 | Z32: 0 | AB32: =AB28*$B32 -> 0 | AC32: 0
A33: ROE | D33: 0 | E33: 0 | G33: 0 | H33: 0 | J33: 0 | K33: 0 | M33: 0 | N33: 0 | P33: 0 | Q33: 0 | S33: 0 | T33: 0 | V33: 0 | W33: 0 | Y33: 0 | Z33: 0 | AB33: 0 | AC33: 0
A34: Cost of Capital Total | D34: =SUM(D31:D33) -> 0 | E34: =SUM(E31:E33) -> 0 | G34: =SUM(G31:G33) -> 0 | H34: =SUM(H31:H33) -> 0 | J34: =SUM(J31:J33) -> 0 | K34: =SUM(K31:K33) -> 0 | M34: =SUM(M31:M33) -> 0 | N34: =SUM(N31:N33) -> 0 | P34: =SUM(P31:P33) -> 0 | Q34: =SUM(Q31:Q33) -> 0 | S34: =SUM(S31:S33) -> 0 | T34: =SUM(T31:T33) -> 0 | V34: =SUM(V31:V33) -> 0 | W34: =SUM(W31:W33) -> 0 | Y34: =SUM(Y31:Y33) -> 0 | Z34: =SUM(Z31:Z33) -> 0 | AB34: =SUM(AB31:AB33) -> 0 | AC34: =SUM(AC31:AC33) -> 0
A36: OM&A | D36: =D21+D22 -> 0 | E36: =E22 -> 0 | G36: =G21+G22 -> 0 | H36: =H22 -> 0 | J36: =J21+J22 -> 0 | K36: =K22 -> 0 | M36: =M21+M22 -> 0 | N36: =N22 -> 0 | P36: =P21+P22 -> 0 | Q36: =Q22 -> 0 | S36: =S21+S22 -> 0 | T36: =T22 -> 0 | V36: =V21+V22 -> 0 | W36: =W22 -> 0 | Y36: =Y21+Y22 -> 0 | Z36: =Z22 -> 0 | AB36: =AB21+AB22 -> 0 | AC36: =AC22 -> 0
A37: Amortization | C37: =D77 -> 0 | D37: =C37*D$19 -> 0 | E37: =C37*E$19 -> 0 | F37: =E77 -> 0 | G37: =F37*G$19 -> 0 | H37: =F37*H$19 -> 0 | I37: =F77 -> 0 | J37: =I37*J$19 -> 0 | K37: =I37*K$19 -> 0 | L37: =G77 -> 0 | M37: =L37*M$19 -> 0 | N37: =L37*N$19 -> 0 | O37: =H77 -> 0 | P37: =O37*P$19 -> 0 | Q37: =O37*Q$19 -> 0 | R37: =I76+I77 -> 0 | S37: =R37*S$19 -> 0 | T37: =R37*T$19 -> 0 | U37: =J76+J77 -> 0 | V37: =U37*V$19 -> 0 | W37: =U37*W$19 -> 0 | X37: =K76+K77 -> 0 | Y37: =X37*Y$19 -> 0 | Z37: =X37*Z$19 -> 0 | AA37: =L76+L77 -> 0 | AB37: =AA37*AB$19 -> 0 | AC37: =AA37*AC$19 -> 0
A38: Grossed-up PILs | D38: =D65 -> 0 | E38: =E65 -> 0 | G38: =G65 -> 0 | H38: =H65 -> 0 | J38: =J65 -> 0 | K38: =K65 -> 0 | M38: =M65 -> 0 | N38: =N65 -> 0 | P38: =P65 -> 0 | Q38: =Q65 -> 0 | S38: =S65 -> 0 | T38: =T65 -> 0 | V38: =V65 -> 0 | W38: =W65 -> 0 | Y38: =Y65 -> 0 | Z38: =Z65 -> 0 | AB38: =AB65 -> 0 | AC38: =AC65 -> 0
A40: Revenue Requirement | D40: =SUM(D34:D38) -> 0 | E40: =SUM(E34:E38) -> 0 | G40: =SUM(G34:G38) -> 0 | H40: =SUM(H34:H38) -> 0 | J40: =SUM(J34:J38) -> 0 | K40: =SUM(K34:K38) -> 0 | M40: =SUM(M34:M38) -> 0 | N40: =SUM(N34:N38) -> 0 | P40: =SUM(P34:P38) -> 0 | Q40: =SUM(Q34:Q38) -> 0 | S40: =SUM(S34:S38) -> 0 | T40: =SUM(T34:T38) -> 0 | V40: =SUM(V34:V38) -> 0 | W40: =SUM(W34:W38) -> 0 | Y40: =SUM(Y34:Y38) -> 0 | Z40: =SUM(Z34:Z38) -> 0 | AB40: =SUM(AB34:AB38) -> 0 | AC40: =SUM(AC34:AC38) -> 0
A43: Provincial Rate Protection | E43: =E40 -> 0 | H43: =H40 -> 0 | K43: =K40 -> 0 | N43: =N40 -> 0 | Q43: =Q40 -> 0 | T43: =T40 -> 0 | W43: =W40 -> 0 | Z43: =Z40 -> 0 | AC43: =AC40 -> 0
A45: Monthly Amount Paid by IESO | E45: =E43/12 -> 0 | H45: =H43/12 -> 0 | K45: =K43/12 -> 0 | N45: =N43/12 -> 0 | Q45: =Q43/12 -> 0 | T45: =T43/12 -> 0 | W45: =W43/12 -> 0 | Z45: =Z43/12 -> 0 | AC45: =AC43/12 -> 0
A47: Note 1: The difference between the actual costs of approved eligible investments and revenue received from the IESO should be recorded in a variance account. The Board may provide
A48: regulatory accounting guidance regarding a variance account either in an individual proceeding or on a generic basis.
A49: Note 2: For the 2016 Test Year, Costs and Revenues of the Direct Benefit are to be included in the test year applicant Rate Base and Revenues.
A51: PILs Calculation
D52: 2012 | G52: 2013 | J52: 2014 | M52: 2015 | P52: 2016 | S52: =P52+1 -> 2017 | V52: =S52+1 -> 2018 | Y52: =V52+1 -> 2019 | AB52: =Y52+1 -> 2020
A53: Income Tax | D53: Direct Benefit | E53: Provincial | G53: Direct Benefit | H53: Provincial | J53: Direct Benefit | K53: Provincial | M53: Direct Benefit | N53: Provincial | P53: Direct Benefit | Q53: Provincial | S53: Direct Benefit | T53: Provincial | V53: Direct Benefit | W53: Provincial | Y53: Direct Benefit | Z53: Provincial | AB53: Direct Benefit | AC53: Provincial
X54: Total | AA54: Total
A55: Net Income - ROE on Rate Base | D55: =D33 -> 0 | E55: =E33 -> 0 | G55: =G33 -> 0 | H55: =H33 -> 0 | J55: =J33 -> 0 | K55: =K33 -> 0 | M55: =M33 -> 0 | N55: =N33 -> 0 | P55: =P33 -> 0 | Q55: =Q33 -> 0 | S55: =S33 -> 0 | T55: =T33 -> 0 | V55: =V33 -> 0 | W55: =W33 -> 0 | Y55: =Y33 -> 0 | Z55: =Z33 -> 0 | AB55: =AB33 -> 0 | AC55: =AC33 -> 0
A56: Amortization (6% DB and 94% P) | D56: =D37 -> 0 | E56: =E37 -> 0 | G56: =G37 -> 0 | H56: =H37 -> 0 | J56: =J37 -> 0 | K56: =K37 -> 0 | M56: =M37 -> 0 | N56: =N37 -> 0 | P56: =P37 -> 0 | Q56: =Q37 -> 0 | S56: =S37 -> 0 | T56: =T37 -> 0 | V56: =V37 -> 0 | W56: =W37 -> 0 | Y56: =Y37 -> 0 | Z56: =Z37 -> 0 | AB56: =AB37 -> 0 | AC56: =AC37 -> 0
A57: CCA (6% DB and 94% P) | D57: =-D94*D$19 -> 0 | E57: =-D94*E$19 -> 0 | G57: =-E94*G19 -> 0 | H57: =-E94*H$19 -> 0 | J57: =-F94*J$19 -> 0 | K57: =-F94*K$19 -> 0 | M57: =-G94*M$19 -> 0 | N57: =-G94*N$19 -> 0 | P57: =-H94*P$19 -> 0 | Q57: =-H94*Q$19 -> 0 | S57: =-I94*S$19 -> 0 | T57: =-I94*T$19 -> 0 | V57: =-J94*V$19 -> 0 | W57: =-J94*W$19 -> 0 | Y57: =-K94*Y$19 -> 0 | Z57: =-K94*Z$19 -> 0 | AB57: =-L94*AB$19 -> 0 | AC57: =-L94*AC$19 -> 0
A58: Taxable income | D58: =SUM(D55:D57) -> 0 | E58: =SUM(E55:E57) -> 0 | G58: =SUM(G55:G57) -> 0 | H58: =SUM(H55:H57) -> 0 | J58: =SUM(J55:J57) -> 0 | K58: =SUM(K55:K57) -> 0 | M58: =SUM(M55:M57) -> 0 | N58: =SUM(N55:N57) -> 0 | P58: =SUM(P55:P57) -> 0 | Q58: =SUM(Q55:Q57) -> 0 | S58: =SUM(S55:S57) -> 0 | T58: =SUM(T55:T57) -> 0 | V58: =SUM(V55:V57) -> 0 | W58: =SUM(W55:W57) -> 0 | Y58: =SUM(Y55:Y57) -> 0 | Z58: =SUM(Z55:Z57) -> 0 | AB58: =SUM(AB55:AB57) -> 0 | AC58: =SUM(AC55:AC57) -> 0
A60: Tax Rate (to be entered)
A62: Income Taxes Payable | D62: =D58*D60 -> 0 | E62: =E58*E60 -> 0 | G62: =G58*G60 -> 0 | H62: =H58*H60 -> 0 | J62: =J58*J60 -> 0 | K62: =K58*K60 -> 0 | M62: =M58*M60 -> 0 | N62: =N58*N60 -> 0 | P62: =P58*P60 -> 0 | Q62: =Q58*Q60 -> 0 | S62: =S58*S60 -> 0 | T62: =T58*T60 -> 0 | V62: =V58*V60 -> 0 | W62: =W58*W60 -> 0 | Y62: =Y58*Y60 -> 0 | Z62: =Z58*Z60 -> 0 | AB62: =AB58*AB60 -> 0 | AC62: =AC58*AC60 -> 0
A63: Gross Up
A64: Income Taxes Payable | D64: =D62/(1-D60) -> 0 | E64: =E62/(1-E60) -> 0 | G64: =G62/(1-G60) -> 0 | H64: =H62/(1-H60) -> 0 | J64: =J62/(1-J60) -> 0 | K64: =K62/(1-K60) -> 0 | M64: =M62/(1-M60) -> 0 | N64: =N62/(1-N60) -> 0 | P64: =P62/(1-P60) -> 0 | Q64: =Q62/(1-Q60) -> 0 | S64: =S62/(1-S60) -> 0 | T64: =T62/(1-T60) -> 0 | V64: =V62/(1-V60) -> 0 | W64: =W62/(1-W60) -> 0 | Y64: =Y62/(1-Y60) -> 0 | Z64: =Z62/(1-Z60) -> 0 | AB64: =AB62/(1-AB60) -> 0 | AC64: =AC62/(1-AC60) -> 0
A65: Grossed Up PILs | D65: =SUM(D64:D64) -> 0 | E65: =SUM(E64:E64) -> 0 | G65: =SUM(G64:G64) -> 0 | H65: =SUM(H64:H64) -> 0 | J65: =SUM(J64:J64) -> 0 | K65: =SUM(K64:K64) -> 0 | M65: =SUM(M64:M64) -> 0 | N65: =SUM(N64:N64) -> 0 | P65: =SUM(P64:P64) -> 0 | Q65: =SUM(Q64:Q64) -> 0 | S65: =SUM(S64:S64) -> 0 | T65: =SUM(T64:T64) -> 0 | V65: =SUM(V64:V64) -> 0 | W65: =SUM(W64:W64) -> 0 | Y65: =SUM(Y64:Y64) -> 0 | Z65: =SUM(Z64:Z64) -> 0 | AB65: =SUM(AB64:AB64) -> 0 | AC65: =SUM(AC64:AC64) -> 0
D68: 2012 | E68: 2013 | F68: 2014 | G68: 2015 | H68: 2016 | I68: =H68+1 -> 2017 | J68: =I68+1 -> 2018 | K68: 2019 | L68: 2020
A69: Net Fixed Assets
B70: Enter applicable amortization in years: | C70: 25
A71: Opening Gross Fixed Assets | E71: =D73 -> 0 | F71: 0 | G71: 0 | H71: 0 | I71: =H73 -> 0 | J71: =I73 -> 0 | K71: =J73 -> 0 | L71: =K73 -> 0
A72: Gross Capital Additions | D72: ='App.2-FA Proposed REG Invest.'!C62 -> 0 | E72: ='App.2-FA Proposed REG Invest.'!D62 -> 0 | F72: ='App.2-FA Proposed REG Invest.'!E62 -> 0 | G72: ='App.2-FA Proposed REG Invest.'!F62 -> 0 | H72: ='App.2-FA Proposed REG Invest.'!G62 -> 0 | I72: ='App.2-FA Proposed REG Invest.'!H62 -> 0 | J72: ='App.2-FA Proposed REG Invest.'!I62 -> 0 | K72: ='App.2-FA Proposed REG Invest.'!J62 -> 0 | L72: ='App.2-FA Proposed REG Invest.'!K62 -> 0
A73: Closing Gross Fixed Assets | D73: =SUM(D71:D72) -> 0 | E73: 0 | F73: 0 | G73: 0 | H73: =SUM(H71:H72) -> 0 | I73: =SUM(I71:I72) -> 0 | J73: 0 | K73: 0 | L73: 0
A75: Opening Accumulated Amortization | E75: =+D78 -> 0 | F75: =E78 -> 0 | G75: 0 | H75: 0 | I75: 0 | J75: 0 | K75: 0 | L75: 0
A76: Current Year Amortization (before additions) | D76: =IF(ISERROR(D71/$C$70), 0, D71/$C$70) -> 0 | E76: 0 | F76: 0 | G76: 0 | H76: 0 | I76: =IF(ISERROR(I71/$C$70), 0, I71/$C$70) -> 0 | J76: =IF(ISERROR(J71/$C$70), 0, J71/$C$70) -> 0 | K76: =IF(ISERROR(K71/$C$70), 0, K71/$C$70) -> 0 | L76: =IF(ISERROR(L71/$C$70), 0, L71/$C$70) -> 0
A77: Additions (half year) | D77: =D72/$C$70/2 -> 0 | E77: =E72/$C$70/2 -> 0 | F77: =F72/$C$70/2 -> 0 | G77: 0 | H77: =H72/$C$70/2 -> 0 | I77: =I72/C70/2 -> 0 | J77: =J72/C70/2 -> 0 | K77: =K72/C70/2 -> 0 | L77: =L72/C70/2 -> 0
A78: Closing Accumulated Amortization | D78: =SUM(D75+D76+D77) -> 0 | E78: =SUM(E75+E76+E77) -> 0 | F78: =SUM(F75+F76+F77) -> 0 | G78: =SUM(G75+G76+G77) -> 0 | H78: =SUM(H75+H76+H77) -> 0 | I78: =SUM(I75:I77) -> 0 | J78: =SUM(J75:J77) -> 0 | K78: =SUM(K75:K77) -> 0 | L78: =SUM(L75:L77) -> 0
A80: Opening Net Fixed Assets | D80: =D71-D75 -> 0 | E80: 0 | F80: =F71-F75 -> 0 | G80: 0 | H80: =H71-H75 -> 0 | I80: =H81 -> 0 | J80: =I81 -> 0 | K80: =J81 -> 0 | L80: =K81 -> 0
A81: Closing Net Fixed Assets | D81: =D73-D78 -> 0 | E81: =E73-E78 -> 0 | F81: 0 | G81: 0 | H81: =H73-H78 -> 0 | I81: =I73-I78 -> 0 | J81: =J73-J78 -> 0 | K81: =K73-K78 -> 0 | L81: =L73-L78 -> 0
A82: Average Net Fixed Assets | D82: =SUM(D80:D81)/2 -> 0 | E82: 0 | F82: 0 | G82: 0 | H82: =SUM(H80:H81)/2 -> 0 | I82: =SUM(I80:I81)/2 -> 0 | J82: =SUM(J80:J81)/2 -> 0 | K82: =SUM(K80:K81)/2 -> 0 | L82: =SUM(L80:L81)/2 -> 0
A84: UCC for PILs Calculation
D85: 2012 | E85: 2013 | F85: 2014 | G85: 2015 | H85: 2016 | I85: =H85+1 -> 2017 | J85: =I85+1 -> 2018 | K85: 2019 | L85: 2020
A87: Opening UCC | E87: =D95 -> 0 | F87: 0 | G87: 0 | H87: 0 | I87: 0 | J87: 0 | K87: 0 | L87: 0
A88: Capital Additions (from Appendix 2-FA) | D88: =D72 -> 0 | E88: 0 | F88: 0 | G88: 0 | H88: =H72 -> 0 | I88: =I72 -> 0 | J88: 0 | K88: 0 | L88: 0
A89: UCC Before Half Year Rule | D89: =SUM(D87:D88) -> 0 | E89: 0 | F89: 0 | G89: 0 | H89: =SUM(H87:H88) -> 0 | I89: =SUM(I87:I88) -> 0 | J89: =SUM(J87:J88) -> 0 | K89: =SUM(K87:K88) -> 0 | L89: =SUM(L87:L88) -> 0
A90: Half Year Rule (1/2 Additions - Disposals) | D90: =D88/2 -> 0 | E90: 0 | F90: 0 | G90: 0 | H90: =H88/2 -> 0 | I90: =I88/2 -> 0 | J90: =J88/2 -> 0 | K90: =K88/2 -> 0 | L90: =L88/2 -> 0
A91: Reduced UCC | D91: =D89-D90 -> 0 | E91: 0 | F91: 0 | G91: 0 | H91: =H89-H90 -> 0 | I91: =I89-I90 -> 0 | J91: =J89-J90 -> 0 | K91: =K89-K90 -> 0 | L91: =L89-L90 -> 0
A92: CCA Rate Class (to be entered) | C92: 47 | D92: =C92 -> 47 | E92: =D92 -> 47 | F92: 47 | G92: 47 | H92: 47 | I92: 47 | J92: 47 | K92: 47 | L92: 47
A93: CCA Rate (to be entered) | C93: 0.08 | D93: =C93 -> 0.08 | E93: 0.08 | F93: 0.08 | G93: 0.08 | H93: 0.08 | I93: 0.08 | J93: 0.08 | K93: 0.08 | L93: 0.08
A94: CCA | D94: =D91*D93 -> 0 | E94: 0 | F94: 0 | G94: 0 | H94: =H91*H93 -> 0 | I94: =I91*I93 -> 0 | J94: 0 | K94: 0 | L94: =L91*L93 -> 0
A95: Closing UCC | D95: =D89-D94 -> 0 | E95: 0 | F95: 0 | G95: 0 | H95: =H89-H94 -> 0 | I95: =I89-I94 -> 0 | J95: =J89-J94 -> 0 | K95: =K89-K94 -> 0 | L95: =L89-L94 -> 0

Sheet App.2-FC Calc of REG Expansion
N1: File Number: | O1: =EBNUMBER -> 0
N2: Exhibit:
N3: Tab:
N4: Schedule:
N5: Page:
N7: Date:
A9: Appendix 2-FC
A10: Calculation of Renewable Generation Connection Direct Benefits/Provincial Amount: Renewable Expansion Investments
A12: This table will calculate the distributor/provincial shares of the investments entered in Part B of Appendix 2-FA.
A13: Enter values in green shaded cells: WCA percentage, debt percentages, interest rates, kWh, tax rates, amortization period, CCA Class and percentage.
A14: For historical investments, enter these variables for your last cost of service test year. For 2016 and beyond, enter variables as in the application.
A15: Rate Riders are not calculated for Test Year as these assets and costs are already in the distributor's rate base.
D18: 2012 | G18: 2013 | J18: 2014 | M18: 2015 | P18: 2016 TEST YEAR | S18: 2017 | T18: 2016 | V18: 2018 | Y18: 2019 | AB18: 2020
E19: Direct Benefit | F19: Provincial | H19: Direct Benefit | I19: Provincial | K19: Direct Benefit | L19: Provincial | N19: Direct Benefit | O19: Provincial | Q19: Direct Benefit | R19: Provincial | T19: Direct Benefit | U19: Provincial | W19: Direct Benefit | X19: Provincial | Z19: Direct Benefit | AA19: Provincial | AC19: Direct Benefit | AD19: Provincial
D20: Total | E20: 0.17 | F20: 0.83 | G20: Total | H20: 0.17 | I20: 0.83 | J20: Total | K20: 0.17 | L20: 0.83 | M20: Total | N20: 0.17 | O20: 0.83 | P20: Total | Q20: 0.17 | R20: 0.83 | S20: Total | T20: 0.17 | U20: 0.83 | V20: Total | W20: 0.17 | X20: 0.83 | Y20: Total | Z20: 0.17 | AA20: 0.83 | AB20: Total | AC20: 0.17 | AD20: 0.83
A21: Net Fixed Assets (average) | D21: =D82 -> 0 | E21: =D21*E20 -> 0 | F21: =D21*F20 -> 0 | G21: =E82 -> 0 | H21: =G21*H20 -> 0 | I21: =G21*I20 -> 0 | J21: =F82 -> 0 | K21: =J21*K20 -> 0 | L21: =J21*L20 -> 0 | M21: =G82 -> 0 | N21: =M21*N20 -> 0 | O21: =M21*O20 -> 0 | P21: =H82 -> 0 | Q21: =P21*Q20 -> 0 | R21: =P21*R20 -> 0 | S21: =I82 -> 0 | T21: =S21*T20 -> 0 | U21: =S21*U20 -> 0 | V21: =J82 -> 0 | W21: =V21*W20 -> 0 | X21: =V21*X20 -> 0 | Y21: =K82 -> 0 | Z21: =Y21*Z20 -> 0 | AA21: =Y21*AA20 -> 0 | AB21: =L82 -> 0 | AC21: =AB21*AC20 -> 0 | AD21: =AB21*AD20 -> 0
A22: Incremental OM&A (on-going, N/A for Provincial Recovery) | D22: ='App.2-FA Proposed REG Invest.'!C101 -> 0 | E22: =D22 -> 0 | G22: ='App.2-FA Proposed REG Invest.'!D$101 -> 0 | H22: =G22 -> 0 | J22: ='App.2-FA Proposed REG Invest.'!E$101 -> 0 | K22: =J22 -> 0 | M22: ='App.2-FA Proposed REG Invest.'!F$101 -> 0 | N22: =M22 -> 0 | P22: ='App.2-FA Proposed REG Invest.'!G$101 -> 0 | Q22: =P22 -> 0 | S22: ='App.2-FA Proposed REG Invest.'!H$101 -> 0 | T22: =S22 -> 0 | V22: ='App.2-FA Proposed REG Invest.'!I$101 -> 0 | W22: =V22 -> 0 | Y22: ='App.2-FA Proposed REG Invest.'!J$101 -> 0 | Z22: =Y22 -> 0 | AB22: ='App.2-FA Proposed REG Invest.'!K$101 -> 0 | AC22: =AB22 -> 0
A23: Incremental OM&A (start-up, applicable for Provincial Recovery) | D23: ='App.2-FA Proposed REG Invest.'!C100 -> 0 | E23: =D23*E20 -> 0 | F23: =D23*F20 -> 0 | G23: ='App.2-FA Proposed REG Invest.'!D$100 -> 0 | H23: =G23*H20 -> 0 | I23: =G23*I20 -> 0 | J23: ='App.2-FA Proposed REG Invest.'!E$100 -> 0 | K23: =J23*K20 -> 0 | L23: =J23*L20 -> 0 | M23: ='App.2-FA Proposed REG Invest.'!F$100 -> 0 | N23: =M23*N20 -> 0 | O23: =M23*O20 -> 0 | P23: ='App.2-FA Proposed REG Invest.'!G$100 -> 0 | Q23: =P23*Q20 -> 0 | R23: =P23*R20 -> 0 | S23: ='App.2-FA Proposed REG Invest.'!H$100 -> 0 | T23: =S23*T20 -> 0 | U23: =S23*U20 -> 0 | V23: ='App.2-FA Proposed REG Invest.'!I$100 -> 0 | W23: =V23*W20 -> 0 | X23: =V23*X20 -> 0 | Y23: ='App.2-FA Proposed REG Invest.'!J$100 -> 0 | Z23: =Y23*Z20 -> 0 | AA23: =Y23*AA20 -> 0 | AB23: ='App.2-FA Proposed REG Invest.'!K$100 -> 0 | AC23: =AB23*AC20 -> 0 | AD23: =AB23*AD20 -> 0
A24: WCA | E24: =(E22+E23)*$B$24 -> 0 | F24: =F23*$B$24 -> 0 | H24: =(H22+H23)*$B$24 -> 0 | I24: =I23*$B$24 -> 0 | K24: =(K22+K23)*$B$24 -> 0 | L24: =L23*$B$24 -> 0 | N24: =(N22+N23)*$B$24 -> 0 | O24: =O23*$B$24 -> 0 | Q24: =(Q22+Q23)*$B$24 -> 0 | R24: =R23*$B$24 -> 0 | T24: =(T22+T23)*$B$24 -> 0 | U24: =U23*$B$24 -> 0 | W24: =(W22+W23)*$B$24 -> 0 | X24: =X23*$B$24 -> 0 | Z24: =(Z22+Z23)*$B$24 -> 0 | AA24: =AA23*$B$24 -> 0 | AC24: =(AC22+AC23)*$B$24 -> 0 | AD24: =AD23*$B$24 -> 0
A25: Rate Base | E25: =SUM(E21+E24) -> 0 | F25: =SUM(F21+F24) -> 0 | H25: =SUM(H21+H24) -> 0 | I25: =SUM(I21+I24) -> 0 | K25: =SUM(K21+K24) -> 0 | L25: =SUM(L21+L24) -> 0 | N25: =SUM(N21+N24) -> 0 | O25: =SUM(O21+O24) -> 0 | Q25: =SUM(Q21+Q24) -> 0 | R25: =SUM(R21+R24) -> 0 | T25: =SUM(T21+T24) -> 0 | U25: =SUM(U21+U24) -> 0 | W25: =SUM(W21+W24) -> 0 | X25: =SUM(X21+X24) -> 0 | Z25: =SUM(Z21+Z24) -> 0 | AA25: =SUM(AA21+AA24) -> 0 | AC25: =SUM(AC21+AC24) -> 0 | AD25: =SUM(AD21+AD24) -> 0
A28: Deemed ST Debt | E28: =E25*$B$28 -> 0 | F28: =F25*$B$28 -> 0 | H28: =H25*$B$28 -> 0 | I28: =I25*$B$28 -> 0 | K28: =K25*$B$28 -> 0 | L28: =L25*$B$28 -> 0 | N28: =N25*$B$28 -> 0 | O28: =O25*$B$28 -> 0 | Q28: =Q25*$B$28 -> 0 | R28: =R25*$B$28 -> 0 | T28: =T25*$B$28 -> 0 | U28: =U25*$B$28 -> 0 | W28: =W25*$B$28 -> 0 | X28: =X25*$B$28 -> 0 | Z28: =Z25*$B$28 -> 0 | AA28: =AA25*$B$28 -> 0 | AC28: =AC25*$B$28 -> 0 | AD28: =AD25*$B$28 -> 0
A29: Deemed LT Debt | E29: =E25*$B$29 -> 0 | F29: =F25*$B$29 -> 0 | H29: =H25*$B$29 -> 0 | I29: =I25*$B$29 -> 0 | K29: =K25*$B$29 -> 0 | L29: =L25*$B$29 -> 0 | N29: =N25*$B$29 -> 0 | O29: =O25*$B$29 -> 0 | Q29: =Q25*$B$29 -> 0 | R29: =R25*$B$29 -> 0 | T29: =T25*$B$29 -> 0 | U29: =U25*$B$29 -> 0 | W29: =W25*$B$29 -> 0 | X29: =X25*$B$29 -> 0 | Z29: =Z25*$B$29 -> 0 | AA29: =AA25*$B$29 -> 0 | AC29: =AC25*$B$29 -> 0 | AD29: =AD25*$B$29 -> 0
A30: Deemed Equity | E30: =E25*$B$30 -> 0 | F30: =F25*$B$30 -> 0 | H30: =H25*$B$30 -> 0 | I30: =I25*$B$30 -> 0 | K30: =K25*$B$30 -> 0 | L30: =L25*$B$30 -> 0 | N30: =N25*$B$30 -> 0 | O30: =O25*$B$30 -> 0 | Q30: =Q25*$B$30 -> 0 | R30: =R25*$B$30 -> 0 | T30: =T25*$B$30 -> 0 | U30: =U25*$B$30 -> 0 | W30: =W25*$B$30 -> 0 | X30: =X25*$B$30 -> 0 | Z30: =Z25*$B$30 -> 0 | AA30: =AA25*$B$30 -> 0 | AC30: =AC25*$B$30 -> 0 | AD30: =AD25*$B$30 -> 0
A32: ST Interest | E32: =E28*$B$32 -> 0 | F32: =F28*$B$32 -> 0 | H32: =H28*$B$32 -> 0 | I32: =I28*$B$32 -> 0 | K32: =K28*$B$32 -> 0 | L32: =L28*$B$32 -> 0 | N32: =N28*$B$32 -> 0 | O32: =O28*$B$32 -> 0 | Q32: =Q28*$B$32 -> 0 | R32: =R28*$B$32 -> 0 | T32: =T28*$B$32 -> 0 | U32: =U28*$B$32 -> 0 | W32: =W28*$B$32 -> 0 | X32: =X28*$B$32 -> 0 | Z32: =Z28*$B$32 -> 0 | AA32: =AA28*$B$32 -> 0 | AC32: =AC28*$B$32 -> 0 | AD32: =AD28*$B$32 -> 0
A33: LT Interest | E33: =E29*$B$33 -> 0 | F33: =F29*$B$33 -> 0 | H33: =H29*$B$33 -> 0 | I33: =I29*$B$33 -> 0 | K33: =K29*$B$33 -> 0 | L33: =L29*$B$33 -> 0 | N33: =N29*$B$33 -> 0 | O33: =O29*$B$33 -> 0 | Q33: =Q29*$B$33 -> 0 | R33: =R29*$B$33 -> 0 | T33: =T29*$B$33 -> 0 | U33: =U29*$B$33 -> 0 | W33: =W29*$B$33 -> 0 | X33: =X29*$B$33 -> 0 | Z33: =Z29*$B$33 -> 0 | AA33: =AA29*$B$33 -> 0 | AC33: =AC29*$B$33 -> 0 | AD33: =AD29*$B$33 -> 0
A34: ROE | E34: =E30*$B$34 -> 0 | F34: =F30*$B$34 -> 0 | H34: =H30*$B$34 -> 0 | I34: =I30*$B$34 -> 0 | K34: =K30*$B$34 -> 0 | L34: =L30*$B$34 -> 0 | N34: =N30*$B$34 -> 0 | O34: =O30*$B$34 -> 0 | Q34: =Q30*$B$34 -> 0 | R34: =R30*$B$34 -> 0 | T34: =T30*$B$34 -> 0 | U34: =U30*$B$34 -> 0 | W34: =W30*$B$34 -> 0 | X34: =X30*$B$34 -> 0 | Z34: =Z30*$B$34 -> 0 | AA34: =AA30*$B$34 -> 0 | AC34: =AC30*$B$34 -> 0 | AD34: =AD30*$B$34 -> 0
A35: Cost of Capital Total | E35: =SUM(E32:E34) -> 0 | F35: =SUM(F32:F34) -> 0 | H35: =SUM(H32:H34) -> 0 | I35: =SUM(I32:I34) -> 0 | K35: =SUM(K32:K34) -> 0 | L35: =SUM(L32:L34) -> 0 | N35: =SUM(N32:N34) -> 0 | O35: =SUM(O32:O34) -> 0 | Q35: =SUM(Q32:Q34) -> 0 | R35: =SUM(R32:R34) -> 0 | T35: =SUM(T32:T34) -> 0 | U35: =SUM(U32:U34) -> 0 | W35: =SUM(W32:W34) -> 0 | X35: =SUM(X32:X34) -> 0 | Z35: =SUM(Z32:Z34) -> 0 | AA35: =SUM(AA32:AA34) -> 0 | AC35: =SUM(AC32:AC34) -> 0 | AD35: =SUM(AD32:AD34) -> 0
A37: OM&A | E37: =E22+E23 -> 0 | F37: =F23 -> 0 | H37: =H22+H23 -> 0 | I37: =I23 -> 0 | K37: =K22+K23 -> 0 | L37: =L23 -> 0 | N37: =N22+N23 -> 0 | O37: =O23 -> 0 | Q37: =Q22+Q23 -> 0 | R37: =R23 -> 0 | T37: =T22+T23 -> 0 | U37: =U23 -> 0 | W37: =W22+W23 -> 0 | X37: =X23 -> 0 | Z37: =Z22+Z23 -> 0 | AA37: =AA23 -> 0 | AC37: =AC22+AC23 -> 0 | AD37: =AD23 -> 0
A38: Amortization | D38: =D78 -> 0 | E38: =D38*E$20 -> 0 | F38: =D38*F$20 -> 0 | G38: =E78 -> 0 | H38: =G38*H$20 -> 0 | I38: =G38*I$20 -> 0 | J38: =F78 -> 0 | K38: =J38*K$20 -> 0 | L38: =J38*L$20 -> 0 | M38: =G78 -> 0 | N38: =M38*N$20 -> 0 | O38: =M38*O$20 -> 0 | P38: =H76+H77 -> 0 | Q38: =P38*Q$20 -> 0 | R38: =P38*R$20 -> 0 | S38: =I76+I77 -> 0 | T38: =S38*T$20 -> 0 | U38: =S38*U$20 -> 0 | V38: =J76+J77 -> 0 | W38: =V38*W$20 -> 0 | X38: =V38*X$20 -> 0 | Y38: =K76+K77 -> 0 | Z38: =Y38*Z$20 -> 0 | AA38: =Y38*AA$20 -> 0 | AB38: =L76+L77 -> 0 | AC38: =AB38*AC$20 -> 0 | AD38: =AB38*AD$20 -> 0
A39: Grossed-up PILs | E39: =E66 -> 0 | F39: =F66 -> 0 | H39: =H66 -> 0 | I39: =I66 -> 0 | K39: =K66 -> 0 | L39: =L66 -> 0 | N39: =N66 -> 0 | O39: =O66 -> 0 | Q39: =Q66 -> 0 | R39: =R66 -> 0 | T39: =T66 -> 0 | U39: =U66 -> 0 | W39: =W66 -> 0 | X39: =X66 -> 0 | Z39: =Z66 -> 0 | AA39: =AA66 -> 0 | AC39: =AC66 -> 0 | AD39: =AD66 -> 0
A41: Revenue Requirement | E41: =SUM(E35:E39) -> 0 | F41: =SUM(F35:F39) -> 0 | H41: =SUM(H35:H39) -> 0 | I41: =SUM(I35:I39) -> 0 | K41: =SUM(K35:K39) -> 0 | L41: =SUM(L35:L39) -> 0 | N41: =SUM(N35:N39) -> 0 | O41: =SUM(O35:O39) -> 0 | Q41: =SUM(Q35:Q39) -> 0 | R41: =SUM(R35:R39) -> 0 | T41: =SUM(T35:T39) -> 0 | U41: =SUM(U35:U39) -> 0 | W41: =SUM(W35:W39) -> 0 | X41: =SUM(X35:X39) -> 0 | Z41: =SUM(Z35:Z39) -> 0 | AA41: =SUM(AA35:AA39) -> 0 | AC41: =SUM(AC35:AC39) -> 0 | AD41: =SUM(AD35:AD39) -> 0
A44: Provincial Rate Protection | F44: =F41 -> 0 | I44: =I41 -> 0 | L44: =L41 -> 0 | O44: =O41 -> 0 | R44: =R41 -> 0 | U44: =U41 -> 0 | X44: =X41 -> 0 | AA44: =AA41 -> 0 | AD44: =AD41 -> 0
A46: Monthly Amount Paid by IESO | F46: =F44/12 -> 0 | I46: =I44/12 -> 0 | L46: =L44/12 -> 0 | O46: =O44/12 -> 0 | R46: =R44/12 -> 0 | U46: =U44/12 -> 0 | X46: =X44/12 -> 0 | AA46: =AA44/12 -> 0 | AD46: =AD44/12 -> 0
A48: Note 1: The difference between the actual costs of approved eligible investments and revenue received from the IESO should be recorded in a variance account. The Board may provide
A49: regulatory accounting guidance regarding a variance account either in an individual proceeding or on a generic basis.
A50: Note 2: For the 2016 Test Year, Costs and Revenues of the Direct Benefit are to be included in the test year applicant Rate Base and Revenues.
A52: PILs Calculation
E53: 2012 | H53: 2013 | K53: 2014 | N53: 2015 | Q53: 2016 TEST YEAR | T53: 2017 | W53: 2018 | Z53: 2019 | AC53: 2020
A54: Income Tax | E54: Direct Benefit | F54: Provincial | H54: Direct Benefit | I54: Provincial | K54: Direct Benefit | L54: Provincial | N54: Direct Benefit | O54: Provincial | Q54: Direct Benefit | R54: Provincial | T54: Direct Benefit | U54: Provincial | W54: Direct Benefit | X54: Provincial | Z54: Direct Benefit | AA54: Provincial | AC54: Direct Benefit | AD54: Provincial
V55: Total | Y55: Total | AB55: Total
A56: Net Income - ROE on Rate Base | E56: =E34 -> 0 | F56: =F34 -> 0 | H56: =H34 -> 0 | I56: =I34 -> 0 | K56: =K34 -> 0 | L56: =L34 -> 0 | N56: =N34 -> 0 | O56: =O34 -> 0 | Q56: =Q34 -> 0 | R56: =R34 -> 0 | T56: =T34 -> 0 | U56: =U34 -> 0 | W56: =W34 -> 0 | X56: =X34 -> 0 | Z56: =Z34 -> 0 | AA56: =AA34 -> 0 | AC56: =AC34 -> 0 | AD56: =AD34 -> 0
A57: Amortization (17% DB and 83% P) | E57: =E38 -> 0 | F57: =F38 -> 0 | H57: =H38 -> 0 | I57: =I38 -> 0 | K57: =K38 -> 0 | L57: =L38 -> 0 | N57: =N38 -> 0 | O57: =O38 -> 0 | Q57: =Q38 -> 0 | R57: =R38 -> 0 | T57: =T38 -> 0 | U57: =U38 -> 0 | W57: =W38 -> 0 | X57: =X38 -> 0 | Z57: =Z38 -> 0 | AA57: =AA38 -> 0 | AC57: =AC38 -> 0 | AD57: =AD38 -> 0
A58: CCA (17% DB and 83% P) | E58: =-D94*E$20 -> 0 | F58: =-D94*F$20 -> 0 | H58: =-E94*H$20 -> 0 | I58: =-E94*I$20 -> 0 | K58: =-F94*K$20 -> 0 | L58: =-F94*L$20 -> 0 | N58: =-G94*N$20 -> 0 | O58: =-G94*O$20 -> 0 | Q58: =-H94*Q$20 -> 0 | R58: =-H94*R$20 -> 0 | T58: =-I94*T$20 -> 0 | U58: =-I94*U$20 -> 0 | W58: =-J94*W$20 -> 0 | X58: =-J94*X$20 -> 0 | Z58: =-K94*Z$20 -> 0 | AA58: =-K94*AA$20 -> 0 | AC58: =-L94*AC$20 -> 0 | AD58: =-L94*AD$20 -> 0
A59: Taxable income | E59: =SUM(E56:E58) -> 0 | F59: =SUM(F56:F58) -> 0 | H59: =SUM(H56:H58) -> 0 | I59: =SUM(I56:I58) -> 0 | K59: =SUM(K56:K58) -> 0 | L59: =SUM(L56:L58) -> 0 | N59: =SUM(N56:N58) -> 0 | O59: =SUM(O56:O58) -> 0 | Q59: =SUM(Q56:Q58) -> 0 | R59: =SUM(R56:R58) -> 0 | T59: =SUM(T56:T58) -> 0 | U59: =SUM(U56:U58) -> 0 | W59: =SUM(W56:W58) -> 0 | X59: =SUM(X56:X58) -> 0 | Z59: =SUM(Z56:Z58) -> 0 | AA59: =SUM(AA56:AA58) -> 0 | AC59: =SUM(AC56:AC58) -> 0 | AD59: =SUM(AD56:AD58) -> 0
A61: Tax Rate (to be entered)
A63: Income Taxes Payable | E63: =E59*E61 -> 0 | F63: =F59*F61 -> 0 | H63: =H59*H61 -> 0 | I63: =I59*I61 -> 0 | K63: =K59*K61 -> 0 | L63: =L59*L61 -> 0 | N63: =N59*N61 -> 0 | O63: =O59*O61 -> 0 | Q63: =Q59*Q61 -> 0 | R63: =R59*R61 -> 0 | T63: =T59*T61 -> 0 | U63: =U59*U61 -> 0 | W63: =W59*W61 -> 0 | X63: =X59*X61 -> 0 | Z63: =Z59*Z61 -> 0 | AA63: =AA59*AA61 -> 0 | AC63: =AC59*AC61 -> 0 | AD63: =AD59*AD61 -> 0
A64: Gross Up
A65: Income Taxes Payable | E65: =E63/(1-E61) -> 0 | F65: =F63/(1-F61) -> 0 | H65: =H63/(1-H61) -> 0 | I65: =I63/(1-I61) -> 0 | K65: =K63/(1-K61) -> 0 | L65: =L63/(1-L61) -> 0 | N65: =N63/(1-N61) -> 0 | O65: =O63/(1-O61) -> 0 | Q65: =Q63/(1-Q61) -> 0 | R65: =R63/(1-R61) -> 0 | T65: =T63/(1-T61) -> 0 | U65: =U63/(1-U61) -> 0 | W65: =W63/(1-W61) -> 0 | X65: =X63/(1-X61) -> 0 | Z65: =Z63/(1-Z61) -> 0 | AA65: =AA63/(1-AA61) -> 0 | AC65: =AC63/(1-AC61) -> 0 | AD65: =AD63/(1-AD61) -> 0
A66: Grossed Up PILs | E66: =SUM(E65:E65) -> 0 | F66: =SUM(F65:F65) -> 0 | H66: =SUM(H65:H65) -> 0 | I66: =SUM(I65:I65) -> 0 | K66: =SUM(K65:K65) -> 0 | L66: =SUM(L65:L65) -> 0 | N66: =SUM(N65:N65) -> 0 | O66: =SUM(O65:O65) -> 0 | Q66: =SUM(Q65:Q65) -> 0 | R66: =SUM(R65:R65) -> 0 | T66: =SUM(T65:T65) -> 0 | U66: =SUM(U65:U65) -> 0 | W66: =SUM(W65:W65) -> 0 | X66: =SUM(X65:X65) -> 0 | Z66: =SUM(Z65:Z65) -> 0 | AA66: =SUM(AA65:AA65) -> 0 | AC66: =SUM(AC65:AC65) -> 0 | AD66: =SUM(AD65:AD65) -> 0
A69: Net Fixed Assets | D69: 2011 | E69: 2012 | F69: 2013 | G69: 2014 | H69: 2015 | I69: 2016 | J69: 2017 | K69: 2018 | L69: 2019
B70: Enter applicable amortization in years: | C70: 25
A71: Opening Gross Fixed Assets | E71: =D73 -> 0 | F71: 0 | G71: 0 | H71: 0 | I71: 0 | J71: 0 | K71: 0 | L71: 0
A72: Gross Capital Additions | D72: ='App.2-FA Proposed REG Invest.'!C99 -> 0 | E72: ='App.2-FA Proposed REG Invest.'!D99 -> 0 | F72: ='App.2-FA Proposed REG Invest.'!E99 -> 0 | G72: ='App.2-FA Proposed REG Invest.'!F99 -> 0 | H72: ='App.2-FA Proposed REG Invest.'!G99 -> 0 | I72: ='App.2-FA Proposed REG Invest.'!H99 -> 0 | J72: ='App.2-FA Proposed REG Invest.'!I99 -> 0 | K72: ='App.2-FA Proposed REG Invest.'!J99 -> 0 | L72: ='App.2-FA Proposed REG Invest.'!K99 -> 0
A73: Closing Gross Fixed Assets | D73: =SUM(D71:D72) -> 0 | E73: 0 | F73: 0 | G73: 0 | H73: 0 | I73: 0 | J73: 0 | K73: 0 | L73: 0
A75: Opening Accumulated Amortization | E75: =+D78 -> 0 | F75: =E78 -> 0 | G75: 0 | H75: =G78 -> 0 | I75: =H78 -> 0 | J75: =I78 -> 0 | K75: =J78 -> 0 | L75: =K78 -> 0
A76: Current Year Amortization (before additions) | E76: =IF(ISERROR(E71/$C$70), 0, E71/$C$70) -> 0 | F76: 0 | G76: 0 | H76: =H71/$C$70 -> 0 | I76: =I71/$C$70 -> 0 | J76: =J71/$C$70 -> 0 | K76: =K71/$C$70 -> 0 | L76: =L71/$C$70 -> 0
A77: Additions (half year) | D77: =D72/C70/2 -> 0 | E77: =E72/C70/2 -> 0 | F77: =F72/C70/2 -> 0 | G77: =G72/C70/2 -> 0 | H77: =H72/C70/2 -> 0 | I77: =I72/C70/2 -> 0 | J77: =J72/C70/2 -> 0 | K77: =K72/C70/2 -> 0 | L77: =L72/C70/2 -> 0
A78: Closing Accumulated Amortization | D78: =SUM(D75+D77) -> 0 | E78: =SUM(E75:E77) -> 0 | F78: 0 | G78: 0 | H78: 0 | I78: 0 | J78: 0 | K78: 0 | L78: 0
A80: Opening Net Fixed Assets | D80: =D71-D75 -> 0 | E80: =E71-E75 -> 0 | F80: =F71-F75 -> 0 | G80: =G71-G75 -> 0 | H80: =G81 -> 0 | I80: =H81 -> 0 | J80: =I81 -> 0 | K80: =J81 -> 0 | L80: =K81 -> 0
A81: Closing Net Fixed Assets | D81: =D73-D78 -> 0 | E81: 0 | F81: 0 | G81: 0 | H81: 0 | I81: 0 | J81: 0 | K81: 0 | L81: 0
A82: Average Net Fixed Assets | D82: =SUM(D80:D81)/2 -> 0 | E82: 0 | F82: 0 | G82: 0 | H82: 0 | I82: 0 | J82: 0 | K82: 0 | L82: 0
A84: UCC for PILs Calculation
D85: 2014 | E85: 2014 | F85: 2014 | G85: 2014 | H85: 2015 | I85: 2016 | J85: 2017 | K85: 2018 | L85: 2019
A87: Opening UCC | E87: =D95 -> 0 | F87: 0 | G87: 0 | H87: 0 | I87: 0 | J87: 0 | K87: 0 | L87: 0
A88: Capital Additions (from Appendix 2-FA) | D88: =D72 -> 0 | E88: 0 | F88: 0 | G88: 0 | H88: 0 | I88: 0 | J88: 0 | K88: 0 | L88: 0
A89: UCC Before Half Year Rule | D89: =SUM(D87:D88) -> 0 | E89: 0 | F89: 0 | G89: 0 | H89: 0 | I89: 0 | J89: 0 | K89: 0 | L89: 0
A90: Half Year Rule (1/2 Additions - Disposals) | D90: =D88/2 -> 0 | E90: 0 | F90: 0 | G90: 0 | H90: 0 | I90: 0 | J90: 0 | K90: 0 | L90: 0
A91: Reduced UCC | D91: =D89-D90 -> 0 | E91: 0 | F91: 0 | G91: 0 | H91: 0 | I91: 0 | J91: 0 | K91: 0 | L91: 0
A92: CCA Rate Class (to be entered) | C92: 47 | D92: =$C$92 -> 47 | E92: =$C$92 -> 47 | F92: 47 | G92: 47 | H92: 47 | I92: 47 | J92: 47 | K92: 47 | L92: 47
A93: CCA Rate (to be entered) | C93: 0.08 | D93: =$C$93 -> 0.08 | E93: =$C$93 -> 0.08 | F93: 0.08 | G93: 0.08 | H93: 0.08 | I93: 0.08 | J93: 0.08 | K93: 0.08 | L93: 0.08
A94: CCA | D94: =D91*D$93 -> 0 | E94: =E91*E$93 -> 0 | F94: =F91*F$93 -> 0 | G94: =G91*G$93 -> 0 | H94: =H91*H$93 -> 0 | I94: 0 | J94: 0 | K94: 0 | L94: 0
A95: Closing UCC | D95: =D89-D94 -> 0 | E95: 0 | F95: 0 | G95: 0 | H95: 0 | I95: 0 | J95: 0 | K95: 0 | L95: 0

Sheet App.2-G SQI
I1: File Number: | K1: =EBNUMBER -> 0
I2: Exhibit:
I3: Tab:
I4: Schedule:
I5: Page:
I7: Date:
A9: Appendix 2-G
A10: Service Reliability Indicators
A11: 2010 - 2014
A13: Index | B13: Including outages caused by loss of supply | G13: Excluding outages caused by loss of supply
B14: 2010 | C14: 2011 | D14: 2012 | E14: 2013 | F14: 2014 | G14: 2010 | H14: 2011 | I14: 2012 | J14: 2013 | K14: 2014
A15: SAIDI
A16: SAIFI
A18: 5 Year Historical Average
A19: SAIDI | F19: =IF(ISERROR(AVERAGE(B15:F15)), "", AVERAGE(B15:F15)) ->  | K19: =IF(ISERROR(AVERAGE(G15:K15)), "", AVERAGE(G15:K15)) -> 
A20: SAIFI | F20: =IF(ISERROR(AVERAGE(B16:F16)), "", AVERAGE(B16:F16)) ->  | K20: =IF(ISERROR(AVERAGE(G16:K16)), "", AVERAGE(G16:K16)) -> 
A22: SAIDI = System Average Interruption Duration Index
A23: SAIFI = System Average Interruption Frequency Index
A26: Indicator | C26: OEB Minimum Standard | D26: 2010 | E26: 2011 | F26: 2012 | G26: 2013 | H26: 2014
A27: Low Voltage Connections | C27: 0.9
A28: High Voltage Connections | C28: 0.9
A29: Telephone Accessibility | C29: 0.65
A30: Appointments Met | C30: 0.9
A31: Written Response to Enquires | C31: 0.8
A32: Emergency Urban Response | C32: 0.8
A33: Emergency Rural Response | C33: 0.8
A34: Telephone Call Abandon Rate | C34: 0.1
A35: Appointment Scheduling | C35: 0.9
A36: Rescheduling a Missed Appointment | C36: 1
A37: Reconnection Performance Standard | C37: 0.85

Sheet App.2-H_Other_Oper_Rev
G1: File Number: | H1: =EBNUMBER -> 0
G2: Exhibit:
G3: Tab:
G4: Schedule:
G5: Page:
G7: Date:
A9: Appendix 2-H
A10: Other Operating Revenue
A12: USoA # | B12: USoA Description | C12: =F13-3 & " Actual" -> 2012 Actual | D12: =F13-2 & " Actual" -> 2013 Actual | E12: =F13-1 & " Actual" & CHAR(178) -> 2014 Actual² | F12: ="Actual Year" & CHAR(178) -> Actual Year² | G12: ="Bridge Year" & CHAR(178) -> Bridge Year² | H12: Test Year
C13: =D13-3 -> 2010 | D13: =E13-2 -> 2013 | E13: =F13 -> 2015 | F13: =G13-1 -> 2015 | G13: =BridgeYear -> 2016 | H13: =TestYear -> 2017
B14: Reporting Basis
A15: 4235 | B15: Specific Service Charges
A16: 4225 | B16: Late Payment Charges
A17: 4082 | B17: Retail Services Revenues
A18: etc.
A23: Specific Service Charges | C23: =C15 -> 0 | D23: 0 | E23: 0 | F23: 0 | G23: =G15 -> 0 | H23: =H15 -> 0
A24: Late Payment Charges | C24: 0 | D24: 0 | E24: 0 | F24: 0 | G24: =G16 -> 0 | H24: =H16 -> 0
A25: Other Operating Revenues
A26: Other Income or Deductions
A27: Total | C27: =SUM(C23:C26) -> 0 | D27: 0 | E27: 0 | F27: 0 | G27: 0 | H27: 0
A29: Description | C29: Account(s)
A30: Specific Service Charges: | C30: 4235
A31: Late Payment Charges: | C31: 4225
A32: Other Distribution Revenues: | C32: 4080, 4082, 4084, 4090, 4205, 4210, 4215, 4220, 4240, 4245
A33: Other Income and Expenses: | C33: 4305, 4310, 4315, 4320, 4325, 4330, 4335, 4340, 4345, 4350, 4355, 4360, 4365, 4370, 4375, 4380, 4385, 4390, 4395, 4398, 4405, 4415
A36: Note: Add all applicable accounts listed above to the table and include all relevant information.
A38: Account Breakdown Details
A40: For each "Other Operating Revenue" and "Other Income or Deductions" Account, a detailed breakdown of the account components is required. See the example below for Account 4405, Interest and Dividend Income.
A43: Account 4405 - Interest and Dividend Income
C44: =C12 -> 2012 Actual | D44: =D12 -> 2013 Actual | E44: 2014 Actual² | F44: Actual Year² | G44: =G12 -> Bridge Year² | H44: Test Year
F45: =F13 -> 2015 | G45: =G13 -> 2016 | H45: =H13 -> 2017
A46: Reporting Basis | C46: =IF(C14=0, "", C14) ->  | D46: =IF(D14=0, "", D14) -> 
A47: Short-term Investment Interest
A48: Bank Deposit Interest
A49: Miscellaneous Interest Revenue
A50: etc.1
A52: Total | C52: =SUM(C47:C51) -> 0 | D52: 0 | E52: 0 | F52: 0 | G52: 0 | H52: 0
A55: Notes:
A56: 1 | B56: List and specify any other interest revenue.
A57: 2 | B57: In the transition year to IFRS, the applicant is to present information in both MIFRS and CGAAP. For the typical applicant that adopted IFRS on January 1, 2015, 2014 must be presented in both a CGAAP and MIFRS basis.

Sheet App_2-I LF_CDM
G1: File Number: | H1: =EBNUMBER -> 0
G2: Exhibit:
G3: Tab:
G4: Schedule:
G5: Page:
G7: Date:
A9: Appendix 2-I
A10: Load Forecast CDM Adjustment Work Form (2016)
A12: 2014 is the last year of the current four year (2011-2014) CDM program, and 2015 is the first year of a new six year (2015-2020) CDM program, per the Ministerial directives of March 31, 2014. With 2016, there is a need to recognize the full year impact of the current 2011-2014 CDM program, as well as to estimate reasonable impacts for each year for the new 2015-2020 CDM program. These are combined to estimate the adjustment for CDM program impacts on the 2016 load forecast.
A14: Appendix 2-I was developed to help determine what would be the amount of CDM savings needed in each year to cumulatively achieve the four year 2011-2014 CDM target. This then determined the amount of kWh (and with translation, kW of demand) savings that were converted in dollars balances for the LRAMVA, and also to determine the related adjustment to the load forecast to account for OPA-reported savings. Beginning for the 2015 year, it has been adjusted because of the persistence of 2011-2014 CDM programs will be an adjustment to the load forecast in addition to the estimated savings for the first year (2015) for the new 2015-2020 CDM plan.
A16: It is assumed that the new six year (2015-2020) CDM program will work similar to the existing 2011-2014 CDM program, meaning that distributors will offer programs each year that, cumulatively over the six years (from January 1, 2015 to December 31, 2020) will cumulatively achieve the new six year CDM target. This is the approach contemplated in the Ministerial directive letters of March 31, 2014 to the Board and to the OPA. Thus, distributors will be able to offer programs on a basis so that cumulatively over the period, the impacts, including persistence, of the CDM programs will accumulate towards achieving each distributor's 2015-2020 CDM target.
A18: With this approach, it is necessary to account for estimated savings for the last year of the current program, particularly the estimated savings for new CDM programs offered in 2014, as well as the estimated savings for new CDM programs that the distributor will offer in 2015 towards achievement of the new six year (2015-2020) CDM program. This necessitates expansion of this Appendix 2-I to deal with both the 2011-2014 and 2015-2020 CDM plans. It is expected that this approach will be updated each year.
A20: 2011-2014 CDM Program - 2014, last year of the current CDM plan
A22: Input the 2011-2014 CDM target in Cell B21.
A24: Input the measured results for 2011 CDM programs for each of the years 2011 and persistence into 2012, 2013 and 2014 into cells B31 to E31. These results are taken from the final 2011 CDM Report issued by the OPA for that distributor in the fall of 2012.
A26: Measured results for 2012 CDM programs for each of the years 2012 and persistence into 2013 and 2014 are input into cells C32 to E32. These results are taken from the final 2012 CDM Report issued by the OPA for that distributor in the fall of 2013.
A28: Measured results for 2013 CDM programs for each of the years 2013 and persistence into 2014 are input into cells C33 to E33. These results are taken from the final 2013 CDM Report issued by the OPA for that distributor in the fall of 2014. Until that report is issued, the distributor should use the results from the preliminary 2013 CDM Report issued in the spring of 2014.
A30: Measured results for 2014 CDM programs for each of the years 2013 and persistence into 2014 are input into cells C33 to E33. These results are taken from the final 2013 CDM Report issued by the OPA for that distributor in the fall of 2014. Until that report is issued, the distributor should use the results from the preliminary 2013 CDM Report issued in the spring of 2014. The distributor also needs to input the persistence of 2014 CDM programs into 2015 and 2016 in cells G45 and G46.
A33: 4 Year (2011-2014) kWh Target: | G33: Persistence of 2014 CDM Program into 2015 and 2016
A34: 100000
B35: 2011 | C35: 2012 | D35: 2013 | E35: 2014 | F35: Total | G35: 2015 | H35: 2016 | K35: =B35 -> 2011 | L35: =C35 -> 2012 | M35: =D35 -> 2013 | N35: =E35 -> 2014
A36: 2011 CDM Programs | B36: =B42/$F$46 -> 0.100001 | C36: =C42/$F$46 -> 0.100001 | D36: 0.100001 | E36: 0.09500095001 | F36: =SUM(B36:E36) -> 0.39500395 | J36: =A36 -> 2011 CDM Programs | K36: =50% -> 0.5 | L36: 1 | M36: 1 | N36: 1
A37: 2012 CDM Programs | C37: 0.1200012 | D37: 0.119501195 | E37: 0.1100011 | F37: =SUM(B37:E37) -> 0.349503495 | J37: =A37 -> 2012 CDM Programs | L37: 0.5 | M37: 1 | N37: 1
A38: 2013 CDM Programs | D38: 0.08000080001 | E38: 0.07800078001 | F38: 0.15800158 | J38: =A38 -> 2013 CDM Programs | M38: 0.5 | N38: 1
A39: 2014 CDM Programs | E39: 0.09749097491 | F39: 0.09749097491 | J39: =A39 -> 2014 CDM Programs | N39: 0.5
A40: Total in Year | B40: =SUM(B36:B39) -> 0.100001 | C40: =SUM(C36:C39) -> 0.2200022 | D40: 0.299502995 | E40: 0.3804938049 | F40: =SUM(B40:E40) -> 1
A41: kWh
A42: 2011 CDM Programs | B42: 10000 | C42: 10000 | D42: 10000 | E42: 9500 | F42: =SUM(B42:E42) -> 39500
A43: 2012 CDM Programs | C43: 12000 | D43: 11950 | E43: 11000 | F43: =SUM(B43:E43) -> 34950
A44: 2013 CDM Programs | D44: 8000 | E44: 7800 | F44: 15800
A45: 2014 CDM Programs | E45: 9749 | F45: 9749
A46: Total in Year | B46: =SUM(B42:B45) -> 10000 | C46: =SUM(C42:C45) -> 22000 | D46: 29950 | E46: 38049 | F46: =SUM(F42:F45) -> 99999
A48: 2015-2020 CDM Program - 2016, second year of the current CDM plan
A50: For the first year of the new 2015-2020 CDM plan, it is assumed that each year's program will achieve an equal amount of new CDM savings. The new targets for 2015-2020 do not take into account persistence beyond the first year, but the IESO will encourage distributors to promote and implement CDM plans that will have longer term persistence of savings. This results in each year's program being about 1/6 (18.67%) of the cumulative 2015-2020 CDM target for kWh savings. A distributor may propose an alternative approach but would be expected to document in its application why it believes that its proposal is more reasonable. In its proposal, the distributor should ensure that the sum of the results for each year's CDM program from 2015 to 2020 add up to its 2015-2020 CDM target as established by the IESO.
A52: 6 Year (2015-2020) kWh Target:
A53: 125000
B54: 2015 | C54: 2016 | D54: 2017 | E54: 2018 | F54: 2019 | G54: 2020 | H54: Total
A55: %
A56: 2015 CDM Programs | B56: =B64/$H$70 -> 0.1666666667 | H56: =SUM(B56:G56) -> 0.1666666667
A57: 2016 CDM Programs | C57: =C65/$H$70 -> 0.1666666667 | H57: =SUM(B57:G57) -> 0.1666666667
A58: 2017 CDM Programs | D58: 0.1666666667 | H58: =SUM(B58:G58) -> 0.1666666667
A59: 2018 CDM Programs | E59: 0.1666666667 | H59: =SUM(E59:G59) -> 0.1666666667
A60: 2019 CDM Programs | F60: 0.1666666667 | H60: =SUM(F60:G60) -> 0.1666666667
A61: 2020 CDM Programs | G61: =G69/$H$70 -> 0.1666666667 | H61: =SUM(B61:G61) -> 0.1666666667
A62: Total in Year | B62: =SUM(B56:B61) -> 0.1666666667 | C62: =SUM(C56:C61) -> 0.1666666667 | D62: =SUM(D56:D61) -> 0.1666666667 | E62: =SUM(E56:E59) -> 0.1666666667 | F62: =SUM(F56:F60) -> 0.1666666667 | G62: =SUM(G56:G61) -> 0.1666666667 | H62: =SUM(B62:G62) -> 1
A63: kWh
A64: =A56 -> 2015 CDM Programs | B64: =1/6*A53 -> 20833.33333 | C64: =B64 -> 20833.33333 | H64: =SUM(B64:G64) -> 41666.66667
A65: 2016 CDM Programs | C65: =B64 -> 20833.33333 | H65: =SUM(B65:G65) -> 20833.33333
A66: 2017 CDM Programs | D66: =C65 -> 20833.33333 | H66: =SUM(B66:G66) -> 20833.33333
A67: 2018 CDM Programs | E67: =D66 -> 20833.33333 | H67: =SUM(E67:G67) -> 20833.33333
A68: 2019 CDM Programs | F68: =E67 -> 20833.33333 | H68: =SUM(F68:G68) -> 20833.33333
A69: 2020 CDM Programs | G69: =F68 -> 20833.33333 | H69: =SUM(B69:G69) -> 20833.33333
A70: Total in Year | B70: =SUM(B64:B69) -> 20833.33333 | C70: =SUM(C64:C69) -> 41666.66667 | D70: 20833.33333 | E70: =SUM(E64:E67) -> 20833.33333 | F70: =SUM(F64:F68) -> 20833.33333 | G70: =SUM(G64:G69) -> 20833.33333 | H70: =A53 -> 125000
A72: Determination of 2016 Load Forecast Adjustment
A74: The Board has determined that the "net" number should be used in its Decision and Order with respect to Centre Wellington Hydro Ltd.'s 2013 Cost of Service rates (EB-2012-0113). This approach has also been used in Settlement Agreements accepted by the Board in other 2013 and 2-14 applications. The distributor should select whether the adjustment is done on a "net" or "gross" basis, but must support a proposal for the adjustment being done on a "gross" basis. Sheet 2-I defaults to the adjustment being done on a "net" basis consistent with Board policy and practice.
A76: From each of the 2006-2010 CDM Final Report, and the 2011, 2012, 2013 and 2014 CDM Final Reports, issued by the OPA (now IESO) for the distributor, the distributor should input the "gross" and "net" results of the cumulative CDM savings for 2014 into cells D84 to E88. The model will calculate the cumulative savings for all programs from 2006 to 2012 and determine the "net" to "gross" factor "g".
A78: Net-to-Gross Conversion
A80: Is CDM adjustment being done on a "net" or "gross" basis? | F80: net
C82: "Gross" | D82: "Net" | E82: Difference | F82: "Net-to-Gross" Conversion Factor
A83: Persistence of Historical CDM programs to 2014 | C83: kWh | D83: kWh | E83: kWh | F83: ('g')
A84: 2006-2010 CDM programs
A85: 2011 CDM program
A86: 2012 CDM program
A87: 2013 CDM program
A88: 2014 CDM program
A89: 2006 to 2014 OPA CDM programs: Persistence to 2016 | C89: =SUM(C84:C88) -> 0 | D89: =SUM(D84:D88) -> 0 | E89: =C89-D89 -> 0 | F89: =IF(D89=0,0,IF(F80="net",0,E89/D89)) -> 0
A91: The default values represent the factor that each year's CDM program is factored into the manual CDM adjustment. Distributors can choose alternative weights of "0", "0.5" or "1" from the drop-down menu for each cell, but must support its alternatives.
A93: These factors do not mean that CDM programs are excluded, but the assumption that impacts of previous year CDM programs are already implicitly reflected in the actual data for the historical years that are the basis for the load forecast prior to any manual CDM adjustment for the 2016 test year.
A95: Weight Factor for Inclusion in CDM Adjustment to 2014 Load Forecast
B96: 2011 | C96: 2012 | D96: 2013 | E96: 2014 | F96: 2015 | G96: 2015
A97: Weight Factor for each year's CDM program impact on 2014 load forecast | B97: 0 | C97: 0 | D97: 0 | E97: 0.5 | F97: 1 | G97: 0.5 | H97: Distributor can select "0", "0.5", or "1" from drop-down list
A98: Default Value selection rationale. | B98: Full year persistence of 2011 CDM programs on 2015 load forecast. Full impact assumed because of 50% impact in 2011 (first year) but full year persistence impact on 2012 and 2013, and thus reflected in base forecast before the CDM adjustment. | C98: Full year persistence of 2012 CDM programs on 2015 load forecast. Full impact assumed because of 50% impact in 2012 (first year) but full year persistence impact on 2013, and thus reflected in base forecast before the CDM adjustment. | D98: Default is 0, but one option is for full year impact of persistence of 2013 CDM programs on 2015 load forecast, but 50% impact in base forecast (first year impact of 2013 CDM programs on 2013 load forecast, which is part of the data for the load forecast. | E98: Default is 0, but one option is for full year impact of persistence of 2014 CDM programs on 2014 load forecast, but 50% impact in base forecast (first year impact of 2014 CDM programs on 2014 actuals, which is part of the data for the load forecast. | F98: Full year impact of persistence of 2015 programs on 2015 load forecast. 2015 CDM program impacts are not in the base forecast. | G98: Only 50% of 2016 CDM programs are assumed to impact the 2016 load forecast based on the "half-year" rule.
A100: 2011-2014 and 2015-2020 LRAMVA and 2015 CDM adjustment to Load Forecast
A102: One manual adjustment for CDM impacts to the 2015 load forecast is made. However, the distributor will have two associated annualized CDM impacts, one for the 2011-2014 CDM program and the second for the 2015-2020 CDM plan. In addition, the distributor needs to reflect the CDM adjustment that was explicitly factored into its 2011 load forecast in its 2011 cost of service application (assuming that it rebased in that year). this amount, and equal persistence for 2012, 2013 and 2014 is used as an offset to determine what the net balance of the 2011-2014 LRAMVA balance should be for disposition.
A104: The Amount used for the CDM threshold of the LRAMVA is the kWh that will be used to determine the base amount for the LRAMVA balance for 2014, for assessing performance against the four-year target. The base amount for 2011-2013 is 0 (zero) for 2014 Cost of Service applications, as the utility rebased prior to the 2011-2014 CDM programs, and there was no adjustment to reflect the impacts of the 2011-2014 programs on the load forecast used to determine their last cost of service-based rates.
A106: The proposed loss factor should correspond with the loss factor calculated in Appendix 2-R
A108: The Manual Adjustment for the 2016 Load Forecast is the amount manually subtracted from the load forecast derived from the base forecast from historical data.
A110: If the distributor has developed their load forecast on a system purchased basis, then the manual adjustment should be on system purchased basis, including the adjustment for losses. If the load forecast has been developed on a billed basis, either on a system basis or on a class-specific basis, the manual adjustment should be on a billed basis, excluding losses.
A112: The distributor should determine the allocation of the savings to all customer classes in a reasonable manner (e.g. taking into account what programs and what OPA-measured impacts were directed at specific customer classes), for both the LRAMVA and for the load forecast adjustment.
B114: 2011 | C114: 2012 | D114: 2013 | E114: 2014 | F114: 2015 | G114: 2016 | H114: Total for 2016
B115: kWh
A116: Amount used for CDM threshold for LRAMVA (2014) | B116: =E42 -> 9500 | C116: =E43 -> 11000 | D116: =E44 -> 7800 | E116: =E45 -> 9749
A118: CDM adjustment for test year forecast (per Board Decision in distributor's most recent Cost of Service Application) (enter as negative) | B118: -8000 | C118: =B118 -> -8000 | D118: =B118 -> -8000 | E118: =B118 -> -8000
A120: Amount used for CDM threshold for LRAMVA (2016) | E120: =H45 -> 0 | F120: =C64 -> 20833.33333 | G120: =C65 -> 20833.33333 | H120: =SUM(B120:G120) -> 41666.66667
A122: Manual Adjustment for 2016 Load Forecast (billed basis) | B122: =B116*(1+F89)*B97 -> 0 | C122: =C116*(1+F89)*C97 -> 0 | D122: =D116*(1+F89)*D97 -> 0 | E122: =E116*(1+F89)*E97 -> 4874.5 | F122: =F120*(1+F89)*F97 -> 20833.33333 | G122: =G120*(1+F89)*G97 -> 10416.66667 | H122: =SUM(B122:G122) -> 36124.5
A124: Proposed Loss Factor (TLF) | B124: 0.0325 | C124: Format: X.XX%
A125: Manual Adjustment for 2016 Load Forecast (system purchased basis) | B125: =B122*(1+$B124) -> 0 | C125: =C122*(1+$B124) -> 0 | D125: 0 | E125: 5032.92125 | F125: 21510.41667 | G125: 10755.20833 | H125: =SUM(B125:G125) -> 37298.54625
A127: Manual adjustment uses "gross" versus "net" (i.e. numbers multiplied by (1 + g). The Weight factor is also used calculate the impact of each year's program on the CDM adjustment to the 2016 load forecast.

Sheet App.2-IA_Act_Frcst_Data
F1: File Number: | G1: =EBNUMBER -> 0
F2: Exhibit:
F3: Tab:
F4: Schedule:
F5: Page:
F7: Date:
A9: Appendix 2-IA
A10: Summary and Variances of Actual and Forecast Data
A12: Replace "Rate Class #" with the appropriate rate classification.
B14: =RebaseYear & " Board Approved" -> 2011 Board Approved | C14: =TestYear - 4 -> 2013 | D14: =TestYear - 3 -> 2014 | E14: =TestYear - 2 -> 2015 | F14: =TestYear -1 &" Bridge" -> 2016 Bridge | G14: =TestYear&" Test" -> 2017 Test
A15: Rate Class 1
A16: # of Customers
A17: kWh
A18: kW
A19: Variance Analysis
A20: =A16 -> # of Customers | C20: =IF(ISERROR((C16-$B16)/$B16), 0, (C16-$B16)/$B16) -> 0 | D20: =IF(ISERROR((D16-$B16)/$B16), 0, (D16-$B16)/$B16) -> 0 | E20: 0 | F20: 0 | G20: 0
A21: kWh | C21: =IF(ISERROR((C17-$B17)/$B17), 0, (C17-$B17)/$B17) -> 0 | D21: 0 | E21: 0 | F21: 0 | G21: 0
A22: kW | C22: =IF(ISERROR((C18-$B18)/$B18), 0, (C18-$B18)/$B18) -> 0 | D22: 0 | E22: 0 | F22: 0 | G22: 0
A24: Rate Class 2
A25: # of Customers
A26: kWh
A27: kW
A28: Variance Analysis
A29: =A25 -> # of Customers | C29: =IF(ISERROR((C25-$B25)/$B25), 0, (C25-$B25)/$B25) -> 0 | D29: =IF(ISERROR((D25-$B25)/$B25), 0, (D25-$B25)/$B25) -> 0 | E29: 0 | F29: 0 | G29: 0
A30: kWh | C30: =IF(ISERROR((C26-$B26)/$B26), 0, (C26-$B26)/$B26) -> 0 | D30: 0 | E30: 0 | F30: 0 | G30: 0
A31: kW | C31: =IF(ISERROR((C27-$B27)/$B27), 0, (C27-$B27)/$B27) -> 0 | D31: 0 | E31: 0 | F31: 0 | G31: 0
A33: Rate Class 3
A34: # of Customers
A35: kWh
A36: kW
A37: Variance Analysis
A38: =A34 -> # of Customers | C38: =IF(ISERROR((C34-$B34)/$B34), 0, (C34-$B34)/$B34) -> 0 | D38: =IF(ISERROR((D34-$B34)/$B34), 0, (D34-$B34)/$B34) -> 0 | E38: 0 | F38: 0 | G38: 0
A39: kWh | C39: =IF(ISERROR((C35-$B35)/$B35), 0, (C35-$B35)/$B35) -> 0 | D39: 0 | E39: 0 | F39: 0 | G39: 0
A40: kW | C40: =IF(ISERROR((C36-$B36)/$B36), 0, (C36-$B36)/$B36) -> 0 | D40: 0 | E40: 0 | F40: 0 | G40: 0
A42: Rate Class 4
A43: # of Customers
A44: kWh
A45: kW
A46: Variance Analysis
A47: =A43 -> # of Customers | C47: =IF(ISERROR((C43-$B43)/$B43), 0, (C43-$B43)/$B43) -> 0 | D47: =IF(ISERROR((D43-$B43)/$B43), 0, (D43-$B43)/$B43) -> 0 | E47: 0 | F47: 0 | G47: 0
A48: kWh | C48: =IF(ISERROR((C44-$B44)/$B44), 0, (C44-$B44)/$B44) -> 0 | D48: 0 | E48: 0 | F48: 0 | G48: 0
A49: kW | C49: =IF(ISERROR((C45-$B45)/$B45), 0, (C45-$B45)/$B45) -> 0 | D49: 0 | E49: 0 | F49: 0 | G49: 0
A51: Rate Class 5
A52: # of Customers
A53: kWh
A54: kW
A55: Variance Analysis
A56: =A52 -> # of Customers | C56: =IF(ISERROR((C52-$B52)/$B52), 0, (C52-$B52)/$B52) -> 0 | D56: =IF(ISERROR((D52-$B52)/$B52), 0, (D52-$B52)/$B52) -> 0 | E56: 0 | F56: 0 | G56: 0
A57: kWh | C57: =IF(ISERROR((C53-$B53)/$B53), 0, (C53-$B53)/$B53) -> 0 | D57: 0 | E57: 0 | F57: 0 | G57: 0
A58: kW | C58: =IF(ISERROR((C54-$B54)/$B54), 0, (C54-$B54)/$B54) -> 0 | D58: 0 | E58: 0 | F58: 0 | G58: 0
A60: Rate Class 6
A61: # of Customers
A62: kWh
A63: kW
A64: Variance Analysis
A65: =A61 -> # of Customers | C65: =IF(ISERROR((C61-$B61)/$B61), 0, (C61-$B61)/$B61) -> 0 | D65: =IF(ISERROR((D61-$B61)/$B61), 0, (D61-$B61)/$B61) -> 0 | E65: 0 | F65: 0 | G65: 0
A66: kWh | C66: =IF(ISERROR((C62-$B62)/$B62), 0, (C62-$B62)/$B62) -> 0 | D66: 0 | E66: 0 | F66: 0 | G66: 0
A67: kW | C67: =IF(ISERROR((C63-$B63)/$B63), 0, (C63-$B63)/$B63) -> 0 | D67: 0 | E67: 0 | F67: 0 | G67: 0
A69: Rate Class 7
A70: # of Customers
A71: kWh
A72: kW
A73: Variance Analysis
A74: =A70 -> # of Customers | C74: =IF(ISERROR((C70-$B70)/$B70), 0, (C70-$B70)/$B70) -> 0 | D74: =IF(ISERROR((D70-$B70)/$B70), 0, (D70-$B70)/$B70) -> 0 | E74: 0 | F74: 0 | G74: 0
A75: kWh | C75: =IF(ISERROR((C71-$B71)/$B71), 0, (C71-$B71)/$B71) -> 0 | D75: 0 | E75: 0 | F75: 0 | G75: 0
A76: kW | C76: =IF(ISERROR((C72-$B72)/$B72), 0, (C72-$B72)/$B72) -> 0 | D76: 0 | E76: 0 | F76: 0 | G76: 0
A78: Rate Class 8
A79: # of Customers
A80: kWh
A81: kW
A82: Variance Analysis
A83: =A79 -> # of Customers | C83: =IF(ISERROR((C79-$B79)/$B79), 0, (C79-$B79)/$B79) -> 0 | D83: =IF(ISERROR((D79-$B79)/$B79), 0, (D79-$B79)/$B79) -> 0 | E83: 0 | F83: 0 | G83: 0
A84: kWh | C84: =IF(ISERROR((C80-$B80)/$B80), 0, (C80-$B80)/$B80) -> 0 | D84: 0 | E84: 0 | F84: 0 | G84: 0
A85: kW | C85: =IF(ISERROR((C81-$B81)/$B81), 0, (C81-$B81)/$B81) -> 0 | D85: 0 | E85: 0 | F85: 0 | G85: 0
A87: Rate Class 9
A88: # of Customers
A89: kWh
A90: kW
A91: Variance Analysis
A92: =A88 -> # of Customers | C92: =IF(ISERROR((C88-$B88)/$B88), 0, (C88-$B88)/$B88) -> 0 | D92: =IF(ISERROR((D88-$B88)/$B88), 0, (D88-$B88)/$B88) -> 0 | E92: 0 | F92: 0 | G92: 0
A93: kWh | C93: =IF(ISERROR((C89-$B89)/$B89), 0, (C89-$B89)/$B89) -> 0 | D93: 0 | E93: 0 | F93: 0 | G93: 0
A94: kW | C94: =IF(ISERROR((C90-$B90)/$B90), 0, (C90-$B90)/$B90) -> 0 | D94: 0 | E94: 0 | F94: 0 | G94: 0
A96: Rate Class 10
A97: # of Customers
A98: kWh
A99: kW
A100: Variance Analysis
A101: =A97 -> # of Customers | C101: =IF(ISERROR((C97-$B97)/$B97), 0, (C97-$B97)/$B97) -> 0 | D101: =IF(ISERROR((D97-$B97)/$B97), 0, (D97-$B97)/$B97) -> 0 | E101: 0 | F101: 0 | G101: 0
A102: kWh | C102: =IF(ISERROR((C98-$B98)/$B98), 0, (C98-$B98)/$B98) -> 0 | D102: 0 | E102: 0 | F102: 0 | G102: 0
A103: kW | C103: =IF(ISERROR((C99-$B99)/$B99), 0, (C99-$B99)/$B99) -> 0 | D103: 0 | E103: 0 | F103: 0 | G103: 0
A106: Totals
A107: Customers / Connections | B107: =SUM(B16,B25,B34,B43,B52,B61,B70,B79,B88,B97) -> 0 | C107: =SUM(C16,C25,C34,C43,C52,C61,C70,C79,C88,C97) -> 0 | D107: 0 | E107: 0 | F107: 0 | G107: 0
A108: kWh | B108: =SUM(B17,B26,B35,B44,B53,B62,B71,B80,B89,B98) -> 0 | C108: 0 | D108: 0 | E108: 0 | F108: 0 | G108: 0
A109: kW from applicable classes | B109: 0 | C109: 0 | D109: 0 | E109: 0 | F109: 0 | G109: 0
A111: Totals - Variance
A112: Customers / Connections | C112: =IF(ISERROR((C107-$B107)/$B107), 0, (C107-$B107)/$B107) -> 0 | D112: 0 | E112: 0 | F112: 0 | G112: 0
A113: kWh | C113: 0 | D113: 0 | E113: 0 | F113: 0 | G113: 0
A114: kW from applicable classes | C114: 0 | D114: 0 | E114: 0 | F114: 0 | G114: 0

Sheet App.2-JA_OM&A_Summary_Analys
K1: File Number: | L1: =EBNUMBER -> 0
K2: Exhibit:
K3: Tab:
K4: Schedule:
K5: Page:
K7: Date:
A9: Appendix 2-JA
A10: Summary of Recoverable OM&A Expenses
B13: ="Last Rebasing Year (" & RebaseYear & " Board-Approved)" -> Last Rebasing Year (2011 Board-Approved) | C13: ="Last Rebasing Year (" & RebaseYear & " Actuals)" -> Last Rebasing Year (2011 Actuals) | D13: =BridgeYear -2 & " Actuals" -> 2014 Actuals | E13: =BridgeYear -1 & " Actuals" -> 2015 Actuals | F13: =BridgeYear & " Bridge Year" -> 2016 Bridge Year | G13: =TestYear & " Test Year" -> 2017 Test Year
A14: Reporting Basis
A15: Operations
A16: Maintenance
A17: SubTotal | B17: =SUM(B15:B16) -> 0 | C17: =SUM(C15:C16) -> 0 | D17: 0 | E17: 0 | F17: 0 | G17: 0
A18: %Change (year over year) | D18: =IF(ISERROR((D17-C17)/C17), "", (D17-C17)/C17) ->  | E18: =IF(ISERROR((E17-D17)/D17), "", (E17-D17)/D17) -> 
A19: %Change (Test Year vs Last Rebasing Year - Actual) | G19: =IF(ISERROR((G17-C17)/C17), "", (G17-C17)/C17) -> 
A20: Billing and Collecting
A21: Community Relations
A22: Administrative and General
A23: SubTotal | B23: =SUM(B20:B22) -> 0 | C23: =SUM(C20:C22) -> 0 | D23: 0 | E23: 0 | F23: 0 | G23: 0
A24: %Change (year over year) | D24: =IF(ISERROR((D23-C23)/C23), "", (D23-C23)/C23) ->  | E24: =IF(ISERROR((E23-D23)/D23), "", (E23-D23)/D23) ->  | F24: =IF(ISERROR((F23-E23)/E23), "", (F23-E23)/E23) ->  | G24: =IF(ISERROR((G23-F23)/F23), "", (G23-F23)/F23) -> 
A25: %Change (Test Year vs Last Rebasing Year - Actual) | G25: =IF(ISERROR((G23-C23)/C23), "", (G23-C23)/C23) -> 
A26: Total | B26: =SUM(B23,B17) -> 0 | C26: =SUM(C23,C17) -> 0 | D26: 0 | E26: 0 | F26: 0 | G26: 0
A27: %Change (year over year) | D27: =IF(ISERROR((D26-C26)/C26), "", (D26-C26)/C26) ->  | E27: =IF(ISERROR((E26-D26)/D26), "", (E26-D26)/D26) ->  | F27: =IF(ISERROR((F26-E26)/E26), "", (F26-E26)/E26) ->  | G27: =IF(ISERROR((G26-F26)/F26), "", (G26-F26)/F26) -> 
B30: =B13 -> Last Rebasing Year (2011 Board-Approved) | C30: =C13 -> Last Rebasing Year (2011 Actuals) | D30: 2014 Actuals | E30: 2015 Actuals | F30: 2016 Bridge Year | G30: 2017 Test Year
A31: Operations | B31: =B15 -> 0 | C31: =C15 -> 0 | D31: 0 | E31: 0 | F31: 0 | G31: 0
A32: Maintenance | B32: =B16 -> 0 | C32: =C16 -> 0 | D32: 0 | E32: 0 | F32: 0 | G32: 0
A33: Billing and Collecting | B33: =B20 -> 0 | C33: =C20 -> 0 | D33: 0 | E33: 0 | F33: 0 | G33: 0
A34: Community Relations | B34: =B21 -> 0 | C34: =C21 -> 0 | D34: 0 | E34: 0 | F34: 0 | G34: 0
A35: Administrative and General | B35: =B22 -> 0 | C35: =C22 -> 0 | D35: 0 | E35: 0 | F35: 0 | G35: 0
A36: Total | B36: =SUM(B31:B35) -> 0 | C36: =SUM(C31:C35) -> 0 | D36: 0 | E36: 0 | F36: 0 | G36: 0
A37: %Change (year over year) | D37: =IF(ISERROR((D36-C36)/C36), "", (D36-C36)/C36) ->  | E37: =IF(ISERROR((E36-D36)/D36), "", (E36-D36)/D36) ->  | F37: =IF(ISERROR((F36-E36)/E36), "", (F36-E36)/E36) ->  | G37: =IF(ISERROR((G36-F36)/F36), "", (G36-F36)/F36) -> 
B40: =B13 -> Last Rebasing Year (2011 Board-Approved) | C40: =C13 -> Last Rebasing Year (2011 Actuals) | D40: ="Variance " & 'LDC Info'!E28 & " BA – " & 'LDC Info'!E28 & " Actuals" -> Variance 2011 BA – 2011 Actuals | E40: =D13 -> 2014 Actuals | F40: ="Variance " & 'LDC Info'!E26 -2 & " Actuals vs. " & 'LDC Info'!E28 & " Actuals" -> Variance 2014 Actuals vs. 2011 Actuals | G40: =E13 -> 2015 Actuals | H40: ="Variance " & 'LDC Info'!E26 -1 & " Actuals vs. " & 'LDC Info'!E26-2 & " Actuals" -> Variance 2015 Actuals vs. 2014 Actuals | I40: =F13 -> 2016 Bridge Year | J40: ="Variance " & 'LDC Info'!E26 & " Bridge vs. " & 'LDC Info'!E26 -1 & " Actuals" -> Variance 2016 Bridge vs. 2015 Actuals | K40: =G13 -> 2017 Test Year | L40: ="Variance " & TestYear & " Test vs. " & BridgeYear & " Bridge" -> Variance 2017 Test vs. 2016 Bridge
A41: Operations | B41: =B15 -> 0 | C41: 0 | D41: =B41-C41 -> 0 | E41: =D15 -> 0 | F41: =E41-C41 -> 0 | G41: =E15 -> 0 | H41: =G41-E41 -> 0 | I41: =F15 -> 0 | J41: =I41-G41 -> 0 | K41: =G15 -> 0 | L41: =K41-I41 -> 0
A42: Maintenance | B42: 0 | C42: 0 | D42: =B42-C42 -> 0 | E42: =D16 -> 0 | F42: =E42-C42 -> 0 | G42: =E16 -> 0 | H42: =G42-E42 -> 0 | I42: =F16 -> 0 | J42: 0 | K42: =G16 -> 0 | L42: 0
A43: Billing and Collecting | B43: =B20 -> 0 | C43: 0 | D43: 0 | E43: =D20 -> 0 | F43: 0 | G43: =E20 -> 0 | H43: 0 | I43: =F20 -> 0 | J43: 0 | K43: =G20 -> 0 | L43: 0
A44: Community Relations | B44: 0 | C44: 0 | D44: 0 | E44: =D21 -> 0 | F44: 0 | G44: =E21 -> 0 | H44: 0 | I44: =F21 -> 0 | J44: 0 | K44: =G21 -> 0 | L44: 0
A45: Administrative and General | B45: 0 | C45: 0 | D45: 0 | E45: 0 | F45: 0 | G45: 0 | H45: 0 | I45: 0 | J45: 0 | K45: 0 | L45: 0
A46: Total OM&A Expenses | B46: =SUM(B41:B45) -> 0 | C46: =SUM(C41:C45) -> 0 | D46: 0 | E46: 0 | F46: 0 | G46: 0 | H46: 0 | I46: 0 | J46: 0 | K46: 0 | L46: 0
A47: Adjustments for Total non-recoverable items (from Appendices 2-JA and 2-JB)
A48: Total Recoverable OM&A Expenses | B48: =B46-B47 -> 0 | C48: =C46-C47 -> 0 | D48: 0 | E48: 0 | F48: 0 | G48: 0 | H48: 0 | I48: 0 | J48: 0 | K48: 0 | L48: 0
A49: Variance from previous year | E49: =E48-C48 -> 0 | G49: =G48-E48 -> 0 | I49: =I48-G48 -> 0 | K49: =K48-I48 -> 0
A50: Percent change (year over year) | E50: =IF(ISERROR(E49/C48), "", E49/C48) ->  | G50: =IF(ISERROR(G49/E48), "", G49/E48) ->  | I50: =IF(ISERROR(I49/G48), "", I49/G48) ->  | K50: =IF(ISERROR(K49/I48), "", K49/I48) -> 
A51: Percent Change: Test year vs. Most Current Actual | G51: =IF(ISERROR((K48-G48)/G48), "", (K48-G48)/G48) -> 
A52: Simple average of % variance for all years | G52: =IF(ISERROR((K46-C46)/C46), "", (K46-C46)/C46) ->  | L52: =IF(ISERROR(AVERAGE(E50,G50,I50,K50)), "", AVERAGE(E50,G50,I50,K50)) -> 
A53: Compound Annual Growth Rate for all years | G53: =IF(ISERROR((K49-C49)/C49), "", (K49-C49)/C49) ->  | L53: =IF((K48-C48)=0, "", (K48/C48)^(1/5)-1) -> 
A54: ="Compound Growth Rate (" & E13 & " vs. " & 'LDC Info'!E28 & " Actuals)" -> Compound Growth Rate (2015 Actuals vs. 2011 Actuals) | G54: =IF(ISERROR((G48/C48)^(1/(3)) - 1), "", (G48/C48)^(1/(3)) - 1) -> 
A56: Note:
A58: 1 "BA" = Board-Approved
A59: 2 If it has been more than three years since the applicant last filed a cost of service application, additional years of historical actuals should be incorporated into the table, as necessary, to go back to the last cost of service application. If the applicant last filed a cost of service application less than three years ago, a minimum of three years of actual information is required.
A61: 3 Recoverable OM&A that is included on these tables should be identical to the recoverable OM&A that is shown for the corresponding periods on Appendix 2-JB.

Sheet App.2-JB_OM&A_Cost _Drivers
F1: File Number: | G1: =EBNUMBER -> 0
F2: Exhibit:
F3: Tab:
F4: Schedule:
F5: Page:
F7: Date:
A10: Appendix 2-JB
A11: Recoverable OM&A Cost Driver Table
A13: OM&A | B13: ="Last Rebasing Year (" & RebaseYear & " Actuals)" -> Last Rebasing Year (2011 Actuals) | C13: 2009 Actuals | D13: =BridgeYear -2 & " Actuals" -> 2014 Actuals | E13: =BridgeYear -1 & " Actuals" -> 2015 Actuals | F13: =BridgeYear & " Bridge Year" -> 2016 Bridge Year | G13: =TestYear & " Test Year" -> 2017 Test Year
A14: Reporting Basis
A15: Opening Balance | C15: =B22 -> 0 | D15: =B22 -> 0 | E15: =D22 -> 0 | F15: 0 | G15: 0
A16: Cost Driver # 1
A17: Cost Driver # 2
A18: Cost Driver # 3
A19: Cost Driver # 4
A20: etc. (Insert additional rows as needed)
A22: Closing Balance | B22: =SUM(B15:B21) -> 0 | C22: =SUM(C15:C21) -> 0 | D22: 0 | E22: 0 | F22: 0 | G22: 0
A24: Notes:
A26: 1 | B26: For each year, a detailed explanation for each cost driver and associated amount is requied in Exhibit 4.
A27: 2 | B27: For purposes of assessing incremental cost drivers, the closing balance for each year becomes the opening balance for the next year.
A28: 3 | B28: If it has been more than three years since the applicant last filed a cost of service application, additional years of historical actuals should be incorporated into the table, as necessary, to go back to the last cost of service application. If the applicant last filed a cost of service application less than three years ago, a minimum of three years of actual information is required.
A31: 4 | B31: Opening Balance for "Last Rebasing Year" (cell B15) should be equal to the Board-Approved amount.

Sheet App.2-JC_OMA Programs
H1: File Number: | I1: =EBNUMBER -> 0
H2: Exhibit:
H3: Tab:
H4: Schedule:
H5: Page:
H7: Date:
A9: Appendix 2-JC
A10: OM&A Programs Table
A13: Programs | B13: ="Last Rebasing Year (" & RebaseYear & " Board-Approved)" -> Last Rebasing Year (2011 Board-Approved) | C13: ="Last Rebasing Year (" & RebaseYear & " Actuals)" -> Last Rebasing Year (2011 Actuals) | D13: =BridgeYear -2 & " Actuals" -> 2014 Actuals | E13: =BridgeYear -1 & " Actuals" -> 2015 Actuals | F13: =BridgeYear & " Bridge Year" -> 2016 Bridge Year | G13: =TestYear & " Test Year" -> 2017 Test Year | H13: ="Variance (Test Year vs. " & E13 &")" -> Variance (Test Year vs. 2015 Actuals) | I13: ="Variance (Test Year vs. " & B13 -> Variance (Test Year vs. Last Rebasing Year (2011 Board-Approved)
A14: Reporting Basis
A15: Program Name #1
H16: =G16-E16 -> 0 | I16: =G16-B16 -> 0
H17: =G17-E17 -> 0 | I17: =G17-B17 -> 0
H18: 0 | I18: 0
H19: 0 | I19: 0
H20: 0 | I20: 0
A21: Sub-Total | B21: =SUM(B16:B20) -> 0 | C21: =SUM(C16:C20) -> 0 | D21: 0 | E21: 0 | F21: 0 | G21: 0 | H21: 0 | I21: 0
A22: Program Name #2
H23: 0 | I23: =G23-B23 -> 0
H24: 0 | I24: =G24-B24 -> 0
H25: 0 | I25: 0
H26: 0 | I26: 0
H27: 0 | I27: 0
A28: Sub-Total | B28: =SUM(B23:B27) -> 0 | C28: 0 | D28: 0 | E28: 0 | F28: 0 | G28: 0 | H28: 0 | I28: 0
A29: Program Name #3
H30: 0 | I30: =G30-B30 -> 0
H31: 0 | I31: =G31-B31 -> 0
H32: 0 | I32: 0
H33: 0 | I33: 0
H34: 0 | I34: 0
A35: Sub-Total | B35: =SUM(B30:B34) -> 0 | C35: 0 | D35: 0 | E35: 0 | F35: 0 | G35: 0 | H35: 0 | I35: 0
A36: Program Name #4
H37: 0 | I37: =G37-B37 -> 0
H38: 0 | I38: =G38-B38 -> 0
H39: 0 | I39: 0
H40: 0 | I40: 0
H41: 0 | I41: 0
A42: Sub-Total | B42: =SUM(B37:B41) -> 0 | C42: 0 | D42: 0 | E42: 0 | F42: 0 | G42: 0 | H42: 0 | I42: 0
A43: Program Name #5
H44: =G44-E44 -> 0 | I44: =G44-B44 -> 0
H45: 0 | I45: =G45-B45 -> 0
H46: 0 | I46: 0
H47: 0 | I47: 0
H48: 0 | I48: 0
A49: Sub-Total | B49: =SUM(B44:B48) -> 0 | C49: 0 | D49: 0 | E49: 0 | F49: 0 | G49: 0 | H49: 0 | I49: 0
A50: Miscellaneous | H50: 0 | I50: =G50-B50 -> 0
A51: Total | B51: =SUMPRODUCT(--($A15:$A50="Sub-Total"), B$15:B$50)+B50 -> 0 | C51: =SUMPRODUCT(--($A15:$A50="Sub-Total"), C$15:C$50)+C50 -> 0 | D51: 0 | E51: 0 | F51: 0 | G51: 0 | H51: =G51-E51 -> 0 | I51: =G51-B51 -> 0
A53: Notes:
A55: 1 Please provide a breakdown of the major components of each OM&A Program undertaken in each year. Please ensure that all Programs below the materiality threshold are included in the miscellaneous line. Add more Programs as required.
A56: 2 The applicant should group projects appropriately and avoid presentations that result in classification of significant components of the OM&A budget in the miscellaneous category

Sheet App.2-K_Employee Costs
F1: File Number: | G1: =EBNUMBER -> 0
F2: Exhibit:
F3: Tab:
F4: Schedule:
F5: Page:
F7: Date:
A9: Appendix 2-K
A10: Employee Costs
B12: ="Last Rebasing Year - "&RebaseYear&"- Board Approved" -> Last Rebasing Year - 2011- Board Approved | C12: ="Last Rebasing Year - "&RebaseYear&"- Actual" -> Last Rebasing Year - 2011- Actual | D12: =BridgeYear -2 & " Actuals" -> 2014 Actuals | E12: =BridgeYear -1 & " Actuals" -> 2015 Actuals | F12: =BridgeYear & " Bridge Year" -> 2016 Bridge Year | G12: =TestYear & " Test Year" -> 2017 Test Year
A13: Number of Employees (FTEs including Part-Time)1
A14: Management (including executive)
A15: Non-Management (union and non-union)
A16: Total | B16: =SUM(B14:B15) -> 0 | C16: 0 | D16: 0 | E16: 0 | F16: 0 | G16: 0
A17: Total Salary and Wages including ovetime and incentive pay
A18: Management (including executive)
A19: Non-Management (union and non-union)
A20: Total | B20: =SUM(B18:B19) -> 0 | C20: 0 | D20: 0 | E20: 0 | F20: 0 | G20: 0
A21: Total Benefits (Current + Accrued)
A22: Management (including executive)
A23: Non-Management (union and non-union)
A24: Total | B24: =SUM(B22:B23) -> 0 | C24: =SUM(C22:C23) -> 0 | D24: 0 | E24: 0 | F24: 0 | G24: 0
A25: Total Compensation (Salary, Wages, & Benefits)
A26: Management (including executive) | B26: =B18+B22 -> 0 | C26: 0 | D26: 0 | E26: 0 | F26: 0 | G26: 0
A27: Non-Management (union and non-union) | B27: 0 | C27: 0 | D27: 0 | E27: 0 | F27: 0 | G27: 0
A28: Total | B28: 0 | C28: 0 | D28: 0 | E28: 0 | F28: 0 | G28: 0
A30: Note:
A31: 1 If an applicant wishes to use headcount, it must also file the same schedule on an FTE basis.

Sheet App.2-L_OM&A_per_Cust_FTEE
G1: File Number: | H1: =EBNUMBER -> 0
G2: Exhibit:
G3: Tab:
G4: Schedule:
G5: Page:
G7: Date:
A9: Appendix 2-L
A10: Recoverable OM&A Cost per Customer and per FTE 1
C12: ="Last Rebasing Year - "&RebaseYear&"- Board Approved" -> Last Rebasing Year - 2011- Board Approved | D12: ="Last Rebasing Year - "&RebaseYear&"- Actual" -> Last Rebasing Year - 2011- Actual | E12: =BridgeYear -2 & " Actuals" -> 2014 Actuals | F12: =BridgeYear -1 & " Actuals" -> 2015 Actuals | G12: =BridgeYear & " Bridge Year" -> 2016 Bridge Year | H12: =TestYear & " Test Year" -> 2017 Test Year
A13: Reporting Basis
A14: Number of Customers 2,4
A15: Total Recoverable OM&A from Appendix 2-JB
A16: OM&A cost per customer | C16: =IF(C14=0,"",C15/C14) -> 
A17: Number of FTEs 3,4
A18: Customers/FTEs | C18: =IF(C17=0,"",C14/C17) -> 
A19: OM&A Cost per FTE | C19: =IF(C17=0,"",C15/C17) -> 
A21: Notes:
A23: 1 | B23: If it has been more than three years since the applicant last filed a cost of service application, additional years of historical actuals should be incorporated into the table, as necessary, to go back to the last cost of service application. If the applicant last filed a cost of service application less than three years ago, a minimum of three years of actual information is required.
A26: 2 | B26: The method of calculating the number of customers must be identified.
A27: 3 | B27: The method of calculating the number of FTEs must be identified. See also Appendix 2-K
A28: 4 | B28: The number of customers and the number of FTEs should correspond to mid-year or average of January 1 and December 31 figures.

Sheet App.2-M_Regulatory_Costs
J1: File Number: | K1: =EBNUMBER -> 0
J2: Exhibit:
J3: Tab:
J4: Schedule:
J5: Page:
J7: Date:
A9: Appendix 2-M
A10: Regulatory Cost Schedule
A13: Regulatory Cost Category | C13: USoA Account | D13: USoA Account Balance | E13: Ongoing or One-time Cost? 2 | F13: ="Last Rebasing Year (" & RebaseYear & " Board Approved)" -> Last Rebasing Year (2011 Board Approved) | G13: ="Most Current Actuals Year " & TestYear - 2 -> Most Current Actuals Year 2015 | H13: =TestYear -1 & " Bridge Year" -> 2016 Bridge Year | I13: Annual % Change | J13: =TestYear & " Test Year" -> 2017 Test Year | K13: Annual % Change
A14: (A) | C14: (B) | D14: (C ) | E14: (D) | F14: (E) | G14: (F) | H14: (G) | I14: (H) = [(G)-(F)]/(F) | J14: (I) | K14: (J) = [(I)-(G)]/(G)
A15: 1 | B15: OEB Annual Assessment | I15: =IF(G15=0,"",(H15-G15)/G15) ->  | K15: =IF(H15=0,"",(J15-H15)/H15) -> 
A16: 2 | B16: OEB Section 30 Costs (Applicant-originated) | I16: =IF(G16=0,"",(H16-G16)/G16) ->  | K16: =IF(H16=0,"",(J16-H16)/H16) -> 
A17: 3 | B17: OEB Section 30 Costs (OEB-initiated)
A18: 4 | B18: Expert Witness costs for regulatory matters
A19: 5 | B19: Legal costs for regulatory matters
A20: 6 | B20: Consultants' costs for regulatory matters
A21: 7 | B21: Operating expenses associated with staff resources allocated to regulatory matters
A22: 8 | B22: Operating expenses associated with other resources allocated to regulatory matters 1
A23: 9 | B23: Other regulatory agency fees or assessments
A24: 10 | B24: Any other costs for regulatory matters (please define)
A25: 11 | B25: Intervenor costs
A26: 12 | B26: Sub-total - Ongoing Costs 3 | D26: =SUMIF($E15:$E25,$E11,D15:D25) -> 0 | F26: =SUMIF($E15:$E25,$E11,F15:F25) -> 0 | G26: =SUMIF($E15:$E25,$E11,G15:G25) -> 0 | H26: =SUMIF($E15:$E25,$E11,H15:H25) -> 0 | J26: =SUMIF($E15:$E25,$E11,J15:J25) -> 0
A27: 13 | B27: Sub-total - One-time Costs 4 | D27: =SUMIF($E15:$E25,$E12,D15:D25) -> 0 | F27: =SUMIF($E15:$E25,$E12,F15:F25) -> 0 | G27: =SUMIF($E15:$E25,$E12,G15:G25) -> 0 | H27: =SUMIF($E15:$E25,$E12,H15:H25) -> 0 | J27: =SUMIF($E15:$E25,$E12,J15:J25) -> 0
A28: 14 | B28: Total | D28: =D26+D27 -> 0 | F28: =F26+F27 -> 0 | G28: =G26+G27 -> 0 | H28: =H26+H27 -> 0 | J28: =J26+J27 -> 0
A31: Please fill out the following table for all one-time costs related to this cost of service application to be amortized over the test year plus the IRM period.
C33: Historical Year(s) | D33: =H13 -> 2016 Bridge Year | E33: =J13 -> 2017 Test Year
A34: 4 | B34: Expert Witness costs
A35: 5 | B35: Legal costs
A36: 6 | B36: Consultants' costs
A37: 7 | B37: Incremental operating expenses associated with staff resources allocated to this application.
A38: 8 | B38: Incremental operating expenses associated with other resources allocated to this application. 1
A39: 11 | B39: Intervenor costs
A41: Notes:
A43: 1 | B43: Please identify the resources involved.
A44: 2 | B44: Where a category's costs include both one-time and ongoing costs, the applicant should prove a separate breakdown between one-time and ongoing costs.
A45: 3 | B45: Sum of all ongoing costs identified in rows 1 to 11 inclusive.
A46: 4 | B46: Sum of all one-time costs identified in rows 1 to 11 inclusive.

Sheet App.2-N_Corp_Cost_Allocation
F1: File Number: | G1: =EBNUMBER -> 0
F2: Exhibit:
F3: Tab:
F4: Schedule:
F5: Page:
F7: Date:
A9: Appendix 2-N
A10: Shared Services and Corporate Cost Allocation 1
B12: Year:
A14: Shared Services
A16: Name of Company | C16: Service Offered | D16: Pricing Methodology | E16: Price for the Service | F16: Cost for the Service
A17: From | B17: To
E18: $ | F18: $
A28: Corporate Cost Allocation
A30: Name of Company | C30: Service Offered | D30: Pricing Methodology | E30: % of Corporate Costs Allocated | F30: Amount Allocated
A31: From | B31: To
E32: % | F32: $
A33: eg: parent company | B33: eg: regulated entity
A42: Note:
A43: 1 | B43: This appendix must be completed in relation to each service provided or received for the Historical (actuals), Bridge and Test years. The required information includes:
A46: · Type of Service:
A47: Services such as billing, accounting, payroll, etc. The applicant must identify any costs related to the Board of Directors of the parent company that are allocated to the applicant.
A49: · Pricing Methodology:
A50: Pricing Methodology includes approaches such as cost-base, market-base, tendering, etc. The applicant must provide evidence demonstrating the pricing methodology used. The applicant must also provide a description of why that pricing methodology was chosen, whether or not it is in conformity with ARC, and why it is appropriate.
A52: · % Allocation:
A53: The applicant must provide the percentage of the costs allocated to the entity for the service being offered. The Applicant must also provide a description of the allocator and why it is an appropriate allocator.

Sheet App.2-OA Capital Structure
K1: File Number: | O1: =EBNUMBER -> 0
K2: Exhibit:
K3: Tab:
K4: Schedule:
K5: Page:
K7: Date:
C10: Appendix 2-OA
C11: Capital Structure and Cost of Capital
A13: This table must be completed for the last Board approved year and the test year.
G15: Year:
A17: Line No.
C18: Particulars | E18: Capitalization Ratio | K18: Cost Rate | O18: Return
E20: (%) | I20: ($) | K20: (%) | O20: ($)
C21: Debt
A22: 1 | C22: Long-term Debt | I22: =$I$31*E22 -> 0 | O22: =K22*I22 -> 0
A23: 2 | C23: Short-term Debt | E23: 0.04 | G23: (1) | I23: =$I$31*E23 -> 0 | O23: =K23*I23 -> 0
A24: 3 | C24: Total Debt | E24: =SUM(E22:E23) -> 0.04 | I24: =SUM(I22:I23) -> 0 | K24: =IF(E24=0,0,SUMPRODUCT(E22:E23,K22:K23)/E24) -> 0 | O24: =SUM(O22:O23) -> 0
C26: Equity
A27: 4 | C27: Common Equity | I27: =$I$31*E27 -> 0 | O27: =K27*I27 -> 0
A28: 5 | C28: Preferred Shares | I28: =$I$31*E28 -> 0 | O28: =K28*I28 -> 0
A29: 6 | C29: Total Equity | E29: =SUM(E27:E28) -> 0 | I29: =SUM(I27:I28) -> 0 | K29: =IF(E29=0,0,SUMPRODUCT(E27:E28,K27:K28)/E29) -> 0 | O29: =SUM(O27:O28) -> 0
A31: 7 | C31: Total | E31: 1 | K31: =(K24*E24)+(K29*E29) -> 0 | O31: =O24+O29 -> 0
A34: Notes
A35: (1) | C35: 4.0% unless an applicant has proposed or been approved for a different amount.

Sheet App.2-OB_Debt Instruments
J1: File Number: | K1: =EBNUMBER -> 0
J2: Exhibit:
J3: Tab:
J4: Schedule:
J5: Page:
J7: Date:
A10: Appendix 2-OB
A11: Debt Instruments
A13: This table must be completed for all required historical years, the bridge year and the test year.
D14: Year
A16: Row | B16: Description | C16: Lender | D16: Affiliated or Third-Party Debt? | E16: Fixed or Variable-Rate? | F16: Start Date | G16: Term (years) | H16: Principal ($) | I16: Rate (%) 2 | J16: Interest ($) 1 | K16: Additional Comments, if any
A17: 1 | J17: =H17*I17 -> 0
A18: 2 | J18: =H18*I18 -> 0
A19: 3 | J19: 0
A20: 4 | J20: 0
A21: 5 | J21: 0
A22: 6 | J22: 0
A23: 7 | J23: 0
A24: 8 | J24: 0
A25: 9 | J25: 0
A26: 10 | J26: 0
A27: 11 | J27: 0
A28: 12 | J28: 0
A30: Total | H30: =SUM(H17:H28) -> 0 | I30: =IF(H30=0,"",J30/H30) ->  | J30: =SUM(J17:J28) -> 0
A32: Notes
A34: 1 | B34: If financing is in place only part of the year, separately calculate the pro-rated interest in the year and input in the cell.
A35: 2 | B35: Input actual or deemed long-term debt rate in accordance with the guidelines in The Report of the Board on the Cost of Capital for Ontario's Regulated Utilities, issued December 11, 2009, or with any subsequent update issued by the Board.
A36: 3 | B36: Add more lines above row 12 if necessary.

Sheet App.2-P_Cost_Allocation
E1: File Number: | F1: =EBNUMBER -> 0
E2: Exhibit:
E3: Tab:
E4: Schedule:
E5: Page:
E7: Date:
A9: Appendix 2-P
A10: Cost Allocation
A12: Please complete the following four tables.
A14: A) Allocated Costs
A16: Classes | B16: Costs Allocated from Previous Study | C16: % | D16: Costs Allocated in Test Year Study (Column 7A) | E16: %
A17: Residential | C17: =IF(B$28=0,"",B17/B$28) ->  | E17: =IF(D$28=0,"",D17/D$28) -> 
A18: GS < 50 kW | C18: =IF(B$28=0,"",B18/B$28) -> 
A19: GS > 50 kW (or 50 kW < GS < xxx kW, if applicable)
A20: GS > xxx kW, if applicable
A21: Large User, if applicable
A22: Street Lighting
A23: Sentinel Lighting
A24: Unmetered Scattered Load (USL)
A25: Other class, if applicable
A27: Embedded distributor class
A28: Total | B28: =SUM(B17:B27) -> 0 | C28: =SUM(C17:C27) -> 0 | D28: =SUM(D17:D27) -> 0 | E28: =SUM(E17:E27) -> 0
A30: Notes:
A32: 1 Customer Classification - If proposed rate classes differ from those in place in the previous Cost Allocation study, modify the rate classes to match the current application as closely as possible.
A35: 2 Host Distributors - Provide information on embedded distributor(s) as a separate class, if applicable. If embedded distributor(s) are billed as customers in a General Service class, include the allocated costs and revenues of the embedded distributor(s) in the applicable class. Also complete Appendix 2-Q.
A39: 3 Class Revenue Requirements - If using the Board-issued model, in column 7A enter the results from Worksheet O-1, Revenue Requirement (row 40 in the 2013 model). This excludes costs in deferral and variance accounts. Note to Embedded Distributor(s), it also does not include Account 4750 - Low Voltage (LV) Costs.
A43: B) Calculated Class Revenues
C45: Column 7B | D45: Column 7C | E45: Column 7D | F45: Column 7E
A46: Classes (same as previous table) | C46: Load Forecast (LF) X current approved rates | D46: L.F. X current approved rates X (1 + d) | E46: LF X proposed rates | F46: Miscellaneous Revenue
A48: =A17 -> Residential
A49: GS < 50 kW
A50: GS > 50 kW (or 50 kW < GS < xxx kW, if applicable)
A51: GS > xxx kW, if applicable
A52: Large User, if applicable
A53: Street Lighting
A54: Sentinel Lighting
A55: Unmetered Scattered Load (USL)
A56: Other class, if applicable
A58: =A27 -> Embedded distributor class
A59: =A28 -> Total | C59: =SUM(C48:C58) -> 0 | D59: =SUM(D48:D58) -> 0 | E59: =SUM(E48:E58) -> 0 | F59: =SUM(F48:F58) -> 0
A61: Notes:
A63: 1 Columns 7B to 7D - LF means Load Forecast of Annual Billing Quantities (i.e. customers or connections X 12, (kWh or kW, as applicable). Revenue Quantities should be net of Transfomrer Ownership Allowance. Exclude revenue from rate adders and rate riders.
A66: 2 Columns 7C and 7D - Column total in each column should equal the Base Revenue Requirement
A68: 3 Columns 7C - The Board cost allocation model calculates "1+d" in worksheet O-1, cell C21. "d" is defined as Revenue Deficiency/ Revenue at Current Rates.
A71: 4 Columns 7E - If using the Board-issued Cost Allocation model, enter Miscellaneous Revenue as it appears in Worksheet O-1, row 19.
A74: C) Rebalancing Revenue-to-Cost (R/C) Ratios
A76: Class | C76: Previously Approved Ratios | D76: Status Quo Ratios | E76: Proposed Ratios | F76: Policy Range
C77: Most Recent Year: | D77: (7C + 7E) / (7A) | E77: (7D + 7E) / (7A)
C78: 20XX
C79: % | D79: % | E79: % | F79: %
A80: =A48 -> Residential | D80: =IF(D17=0,"",(D48+F48)/D17*100) ->  | E80: =IF(D17=0,"",(E48+F48)/D17*100) ->  | F80: 85 - 115
A81: GS < 50 kW | D81: =IF(D18=0,"",(D49+F49)/D18*100) ->  | F81: 80 - 120
A82: GS > 50 kW (or 50 kW < GS < xxx kW, if applicable) | F82: 80 - 120
A83: GS > xxx kW, if applicable | F83: 80 - 120
A84: Large User, if applicable | F84: 85 - 115
A85: Street Lighting | F85: 80 - 120
A86: Sentinel Lighting | F86: 80 - 120
A87: Unmetered Scattered Load (USL) | F87: 80 - 120
A88: Other class, if applicable
A90: =A58 -> Embedded distributor class
A92: Notes:
A94: 1 Previously Approved Revenue-to-Cost Ratios - For most applicants, Most Recent Year would be the third year of the IRM 3 period, e.g. if the applicant rebased in 2009 with further adjustments over 2 years, the Most recent year is 2011. For applicants whose most recent rebasing year is 2006, the applicant should enter the ratios from their Informational Filing.
A97: 2 Status Quo Ratios - The Board's updated Cost Allocation Model yields the Status Quo Ratios in Worksheet O-1. Status Quo means "Before Rebalancing".
A99: D) Proposed Revenue-to-Cost Ratios
A101: Class | C101: Proposed Revenue-to-Cost Ratios | F101: Policy Range
C102: =TestYear -> 2017 | D102: =C102+1 -> 2018 | E102: =D102+1 -> 2019
C103: % | D103: % | E103: % | F103: %
A104: =A80 -> Residential | C104: =E80 ->  | F104: =F80 -> 85 - 115
A105: =A81 -> GS < 50 kW | C105: =E81 ->  | F105: =F81 -> 80 - 120
A106: GS > 50 kW (or 50 kW < GS < xxx kW, if applicable) | F106: 80 - 120
A107: GS > xxx kW, if applicable | F107: 80 - 120
A108: Large User, if applicable | F108: 85 - 115
A109: Street Lighting | F109: 80 - 120
A110: Sentinel Lighting | F110: 80 - 120
A111: Unmetered Scattered Load (USL) | F111: 80 - 120
A112: Other class, if applicable | F112: =F88 -> 0
F113: =F89 -> 0
A114: Embedded distributor class
A116: Note:
A118: 1 The applicant should complete Table D if it is applying for approval of a revenue to cost ratio in 2014 that is outside the Board’s policy range for any customer class. Table (d) will show the information that the distributor would likely enter in the IRM model) in 2016. In 2017 Table (d), enter the planned ratios for the classes that will be ‘Change’ and ‘No Change’ in 2016 (in the current Revenue Cost Ratio Adjustment Workform, Worksheet C1.1 ‘Decision – Cost Revenue Adjustment’, column d), and enter TBD for class(es) that will be entered as ‘Rebalance’.

Sheet App.2-PA_Res_Rate_Design
E1: File Number: | F1: 0
E2: Exhibit:
E3: Tab:
E4: Schedule:
E5: Page:
E7: Date:
A9: Appendix 2-PA
A10: New Rate Design Policy For Residential Customers
A12: Please complete the following tables.
A14: A) Data Inputs
A16: Test Year Billing Determinants for Residential Class
A17: Customers
A18: kWh
A20: Proposed Residential Class Specific Revenue Requirement1
A22: Residential Base Rates on Current Tariff
A23: Monthly Fixed Charge ($)
A24: Distribution Volumetric Rate ($/kWh)
A26: B) Current Fixed/Variable Split
B28: Base Rates | C28: Billing Determinants | D28: Revenue | E28: % of Total Revenue
A29: Fixed | B29: =IF(B23="","",B23) ->  | C29: =IF(B17="","",B17) ->  | D29: =IF(ISERROR(B29*C29*12),"",B29*C29*12) ->  | E29: =IF(ISERROR(D29/D31),"",D29/D31) -> 
A30: Variable | B30: =IF(B24="","",B24) ->  | C30: =IF(B18="","",B18) ->  | D30: =IF(ISERROR(B30*C30),"",B30*C30) ->  | E30: =IF(ISERROR(D30/D31),"",D30/D31) -> 
A31: TOTAL | B31: - | C31: - | D31: =IF(ISERROR(D29+D30),"",D29+D30) ->  | E31: -
A33: C) Calculating Test Year Base Rates
A35: Number of Required Rate Design Policy Transition Years2
B37: Test Year Revenue @ Current F/V Split | C37: Test Year Base Rates @ Current F/V Split | D37: Reconciliation - Test Year Base Rates @ Current F/V Split
A38: Fixed | B38: =IF(ISERROR(B$20*E29),"",B$20*E29) ->  | C38: =IF(ISERROR(ROUND(B38/B17/12,2)),"",ROUND(B38/B17/12,2)) ->  | D38: =IF(ISERROR(C38*B17*12),"",C38*B17*12) -> 
A39: Variable | B39: =IF(ISERROR(B$20*E30),"",B$20*E30) ->  | C39: =IF(ISERROR(ROUND(B39/B18,4)),"",ROUND(B39/B18,4)) ->  | D39: =IF(ISERROR(C39*B18),"",C39*B18) -> 
A40: TOTAL | B40: =IF(ISERROR(B38+B39),"",B38+B39) ->  | C40: - | D40: =IF(ISERROR(D38+D39),"",D38+D39) -> 
B42: New F/V Split | C42: Revenue @ new F/V Split | D42: Final Adjusted Base Rates | E42: Revenue Reconciliation @ Adjusted Rates
A43: Fixed | B43: =IF(ISERROR(((1-E29)/B35)+E29),"",((1-E29)/B35)+E29) ->  | C43: =IF(ISERROR(B43*B$20),"",B43*B$20) ->  | D43: =IF(ISERROR(ROUND(C43/B17/12,2)),"",ROUND(C43/B17/12,2)) ->  | E43: =IF(ISERROR(D43*12*B17),"",D43*12*B17) -> 
A44: Variable | B44: =IF(ISERROR(1-B43),"",1-B43) ->  | C44: =IF(ISERROR(B44*B$20),"",B44*B$20) ->  | D44: =IF(ISERROR(ROUND(C44/B18,4)),"",ROUND(C44/B18,4)) ->  | E44: =IF(ISERROR(D44*B18),"",D44*B18) -> 
A45: TOTAL | B45: - | C45: =IF(ISERROR(SUM(C43:C44)),"",SUM(C43:C44)) -> 0 | D45: - | E45: =IF(ISERROR(E43+E44),"",E43+E44) -> 
A47: Checks3
A48: Change in Fixed Rate | B48: =IF(ISERROR(D43-C38),"",D43-C38) -> 
A49: Difference Between Revenues @ Proposed Rates and Class Specific Revenue Requirement | B49: =IF(ISERROR((D43*12*B17)+(D44*B18)-B20),"",(D43*12*B17)+(D44*B18)-B20) -> 
B50: =IF(ISERROR(B49/B20), "", B49/B20) -> 
A52: Notes:
A54: 1 The final residential class specific revenue requirement, as shown in Appendix 2-P, should be used (i.e. the revenue requirement after any proposed adjustments to R/C ratios).
A57: 2 Default number of transition years for rate design policy change is 4. Where the change in the residential rate design will result in the fixed charge increasing by more than $4/year, a distributor may propose an additional transition year.
A60: 3 Change in fixed rate due to rate design policy should be less than $4. The difference between the proposed class revenue requirement and the revenue at calculated base rates should be minimal (i.e. should be reasonably considered as a rounding error)

Sheet App.2-Q_Cost of Serv. Emb. Dx
F1: File Number: | G1: =EBNUMBER -> 0
F2: Exhibit:
F3: Tab:
F4: Schedule:
F5: Page:
F7: Date:
A9: Appendix 2-Q
A10: Cost of Serving Embedded Distributor(s)
A12: To be completed by Host Distributors ONLY
A13: (Not required if Host Distributor has an Embedded Distributor rate class, i.e. a separate row in Appendix 2-P.)
A16: Proposed Rate Class for Billing Embedded Distributor(s)
A18: Host's Distribution Facilities used by Embedded Distributor(s)
A20: (1) | B20: (2) | C20: (3) | D20: (4) | E20: (5) | F20: (6) = '(3) + (4)
A21: Asset Class | B21: Total OM&A costs asociated with asset class | C21: Original cost of asset class | D21: Accumulated amortization of asset class | E21: Annual amortization of asset class | F21: Net Book Value of asset class
A22: Totals for Host Distributor: | B22: ($) | C22: ($) | D22: ($) | E22: ($)
A23: Distribution Stations | F23: =C23+D23 -> 0
A24: Low Voltage Line | F24: 0
A25: LV Line category # 2 (if applcable) | F25: 0
A26: TS (owned by host) | F26: 0
A27: add rows if necessary... | F27: 0
F28: 0
F29: 0
A31: (1) | B31: (7) | C31: (8) | D31: (9) | E31: (10) | F31: (11)
A32: =A21 -> Asset Class | B32: Total line length or station capacity in asset class | C32: Line length or capacity required to provide LV service to Embedded Distributor(s) | D32: Annual total demand on station/line providing LV services (sum of 12 monthly peaks) | E32: Annual billed Embedded Distributor demand on station/line providing LV services | F32: Embedded Distributor(s)' Responsibility Share
A33: Embedded Distributor's share: | B33: kW or kVa; km | C33: kW or kVA; km | D33: kW or kVA | E33: kW or kVA | F33: percent
A34: Distribution Stations | F34: =IF(D34=0,0,(C34/B34)*(E34/D34)) -> 0
A35: Low Voltage Line | F35: =IF(D35=0,0,(C35/B35)*(E35/D35)) -> 0
A36: LV Line # 2 (if applicable) | F36: =IF(D36=0,0,(C36/B36)*(E36/D36)) -> 0
A37: TS (owned by host) | F37: =IF(D37=0,0,(C37/B37)*(E37/D37)) -> 0
A38: add rows if necessary | F38: =IF(D38=0,0,(C38/B38)*(E38/D38)) -> 0
A40: (1) | B40: (12) | C40: (12a) | D40: (13) | E40: (14) | F40: (15) | G40: (16)
A41: =A32 -> Asset Class | B41: Return on Assets used to Provide LV services | C41: Taxes/PILs | D41: Annual amortization on assets used to provide LV services | E41: OM&A costs with burden associated with assets used to provide LV services | F41: Total annual cost associated with assets used to provide LV services | G41: Monthly cost associated with the delivery of LV services
B42: ($) | C42: ($) | D42: ($) | E42: ($) | F42: ($) | G42: $/kW or $/kVA
A43: Distribution Stations | B43: =E$54*(F23+B23*E$59)*F34 -> 0 | C43: =(B43-(B$54*C$54*F34*(F23+B23*E57)+B$55*C$55*F34*(F23+B23*E$57)))*E$57/(1-E$57) -> 0 | D43: =E23*F34 -> 0 | E43: =B23*F34 -> 0 | F43: =SUM(B43:E43) -> 0 | G43: =IF(E34=0,0,(D43/E34)) -> 0
A44: Low Voltage Line | B44: =E$54*(F24+B24*E$59)*F35 -> 0 | C44: =(B44-(B$54*C$54*F35*(F24+B24*E58)+B$55*C$55*F35*(F24+B24*E58)))*E$57/(1-E$57) -> 0 | D44: =E24*F35 -> 0 | E44: =B24*F35 -> 0 | F44: =SUM(B44:E44) -> 0 | G44: =IF(E35=0,0,(D44/E35)) -> 0
A45: LV Line # 2 (if applicable) | B45: =E$54*(F25+B25*E$59)*F36 -> 0 | C45: =(B45-(B$54*C$54*F36*(F25+B25*E59)+B$55*C$55*F36*(F25+B25*E$59)))*E$57/(1-E$57) -> 0 | D45: =E25*F36 -> 0 | E45: =B25*F36 -> 0 | F45: =SUM(B45:E45) -> 0 | G45: =IF(E36=0,0,(D45/E36)) -> 0
A46: TS (owned by host) | B46: =E$54*(F26+B26*E$59)*F37 -> 0 | C46: =(B46-(B$54*C$54*F37*(F26+B26*E60)+B$55*C$55*F37*(F26+B26*E60)))*E$57/(1-E$57) -> 0 | D46: =E26*F37 -> 0 | E46: =B26*F37 -> 0 | F46: =SUM(B46:E46) -> 0 | G46: =IF(E37=0,0,(D46/E37)) -> 0
A47: add rows if necessary | B47: =E$54*(F27+B27*E$59)*F38 -> 0 | C47: =(B47-(B$54*C$54*F38*(F27+B27*I61)+B$55*C$55*F38*(F27+B27*I61)))*E$57/(1-E$57) -> 0 | D47: =E27*F38 -> 0 | E47: =B27*F38 -> 0 | F47: =SUM(B47:E47) -> 0 | G47: =IF(E38=0,0,(D47/E38)) -> 0
A49: Total | F49: =SUM(F43:F47) -> 0 | G49: =SUM(G43:G47) -> 0
A51: (17) | B51: (18) | C51: (19) | D51: (20) | E51: (21)
B52: Capital Structure | C52: Cost Rate
B53: (%) | C53: (%) | E53: (%)
A54: Long-Term Debt | D54: Weighted Average Cost of Capital | E54: =IF(B60=0%,0,SUMPRODUCT(B54:B58,C54:C58)/B60) -> 0
A55: Short-term Debt
A57: Common Equity | D57: Tax/PILs Rate
A58: Preferred Shares
D59: Working Capital Allowance Factor
A60: Total | B60: =SUM(B54:B58) -> 0

Sheet App.2-R_Loss Factors
G1: File Number: | H1: =EBNUMBER -> 0
G2: Exhibit:
G3: Tab:
G4: Schedule:
G5: Page:
G7: Date:
A9: Appendix 2-R
A10: Loss Factors
C13: Historical Years | H13: 5-Year Average
C14: =IF(ISBLANK('LDC Info'!E26-5), "Year 5", 'LDC Info'!E26-5) -> 2011 | D14: =IF(ISBLANK('LDC Info'!E26-4), "Year 5", 'LDC Info'!E26-4) -> 2012 | E14: =IF(ISBLANK('LDC Info'!E26-3), "Year 5", 'LDC Info'!E26-3) -> 2013 | F14: =IF(ISBLANK('LDC Info'!E26-2), "Year 5", 'LDC Info'!E26-2) -> 2014 | G14: =IF(ISBLANK('LDC Info'!E26-1), "Year 5", 'LDC Info'!E26-1) -> 2015
B15: Losses Within Distributor's System
A16: A(1) | B16: "Wholesale" kWh delivered to distributor (higher value) | H16: =IF(SUM(C16:G16)=0,0,AVERAGE(C16:G16)) -> 0
A17: A(2) | B17: "Wholesale" kWh delivered to distributor (lower value) | H17: =IF(SUM(C17:G17)=0,0,AVERAGE(C17:G17)) -> 0
A18: B | B18: Portion of "Wholesale" kWh delivered to distributor for its Large Use Customer(s) | H18: =IF(SUM(C18:G18)=0,0,AVERAGE(C18:G18)) -> 0
A19: C | B19: Net "Wholesale" kWh delivered to distributor = A(2) - B | C19: =C17-C18 -> 0 | D19: 0 | E19: 0 | F19: 0 | G19: 0 | H19: 0
A20: D | B20: "Retail" kWh delivered by distributor | H20: =IF(SUM(C20:G20)=0,0,AVERAGE(C20:G20)) -> 0
A21: E | B21: Portion of "Retail" kWh delivered by distributor to its Large Use Customer(s) | H21: =IF(SUM(C21:G21)=0,0,AVERAGE(C21:G21)) -> 0
A22: F | B22: Net "Retail" kWh delivered by distributor = D - E | C22: =C20-C21 -> 0 | D22: 0 | E22: 0 | F22: 0 | G22: 0 | H22: 0
A23: G | B23: Loss Factor in Distributor's system = C / F | C23: =IF(C22=0,"",C19/C22) -> 
B24: Losses Upstream of Distributor's System
A25: H | B25: Supply Facilities Loss Factor | H25: =IF(SUM(C25:G25)=0,0,AVERAGE(C25:G25)) -> 0
B26: Total Losses
A27: I | B27: Total Loss Factor = G x H | C27: =IF(C23="","",C23*C25) -> 
A29: Notes:
A32: A(1) | B32: If directly connected to the IESO-controlled grid, kWh pertains to the virtual meter on the primary or high voltage side of the transformer at the interface with the transmission grid. This corresponds to the "With Losses" kWh value provided by the IESO's MV-WEB. It is the higher of the two values provided by MV-WEB.
B36: If fully embedded within a host distributor, kWh pertains to the virtual meter on the primary or high voltage side of the transformer, at the interface between the host distributor and the transmission grid. For example, if the host distributor is Hydro One Networks Inc., kWh from the Hydro One Networks' invoice corresponding to "Total kWh w Losses" should be reported. This corresponds to the higher of the two kWh values provided in Hydro One Networks' invoice.
B41: If partially embedded, kWh pertains to the sum of the above.
A43: A(2) | B43: If directly connected to the IESO-controlled grid, kWh pertains to a metering installation on the secondary or low voltage side of the transformer at the interface with the transmission grid. This corresponds to the "Without Losses" kWh value provided by the IESO's MV-WEB. It is the lower of the two kWh values provided by MV-WEB.
B47: If fully embedded with the host distributor, kWh pertains to a metering installation on the secondary or low voltage side of the transformer at the interface between the embedded distributor and the host distributor. For example, if the host distributor is Hydro One Networks Inc., kWh from the Hydro One Networks' invoice corresponding to "Total kWh" should be reported. This corresponds to the lower of the two kWh values provided in Hydro One Networks' invoice.
B52: If partially embedded, kWh pertains to the sum of the above.
B54: Additionally, kWh pertaining to distributed generation directly connected to the distributor's own distribution network should be included in A(2).
A57: B | B57: If a Large Use Customer is metered on the secondary or low voltage side of the transformer, the default loss is 1% (i.e., B = 1.01 X E).
A60: D | B60: kWh corresponding to D should equal metered or estimated kWh at the customer’s delivery point.
A62: G and I | B62: These loss factors pertain to secondary-metered customers with demand less than 5,000 kW.
A64: H | B64: If directly connected to the IESO-controlled grid, SFLF = 1.0045.
B66: If fully embedded within a host distributor, SFLF = loss factor re losses in transformer at grid interface X loss factor re losses in host distributor's system. If the host distributor is Hydro One Networks Inc., SFLF = 1.0060 X 1.0278 = 1.0340. If partially embedded, SFLF should be calculated as the weighted average of above.
B70: Distributors that wish to propose a different SFLF should provide appropriate justification for any such proposal including supporting
B71: calculations and any other relevant material.

Sheet App.2-S_Stranded Meters
G1: File Number: | H1: =EBNUMBER -> 0
G2: Exhibit:
G3: Tab:
G4: Schedule:
G5: Page:
G7: Date:
A9: Appendix 2-S
A10: Stranded Meter Treatment
A12: Year | B12: Notes | C12: Gross Asset Value | D12: Accumulated Amortization | E12: Contributed Capital (Net of Amortization) | F12: Net Asset | G12: Proceeds on Disposition | H12: Residual Net Book Value
C13: (A) | D13: (B) | E13: (C) | F13: (D ) = (A) - (B) - (C) | G13: (E) | H13: (F) = (D) - (E)
A14: 2006 | F14: =C14-D14-E14 -> 0 | H14: =F14-G14 -> 0
A15: 2007 | F15: 0 | H15: 0
A16: 2008 | F16: 0 | H16: 0
A17: 2009 | F17: 0 | H17: 0
A18: 2010 | F18: 0 | H18: 0
A19: 2011 | F19: 0 | H19: 0
A20: 2012 | F20: 0 | H20: 0
A21: 2013 | F21: =C21-D21-E21 -> 0 | H21: =F21-G21 -> 0
A22: 2014 | F22: 0 | H22: 0
A23: 2015 | B23: (1) | F23: 0 | H23: 0
A25: Notes:
A27: (1) | B27: For 2015, please indicate whether the amounts provided are on a forecast or actual basis.
A29: Some distributors have transferred the cost of stranded meters from Account 1860 - Meters to "Sub-account Stranded Meter Costs of Account 1555", while in some cases distributors have left these costs in Account 1860. Depending on which treatment the applicant has chosen. please provide the information under either of the two scenarios (A and B below), as applicable.
A34: Scenario A: If the stranded meter costs were transferred to "Sub-account Stranded Meter Costs" of Account 1555, the above table should be completed and the following information should be provided in Exhibit 9.
A37: 1 | B37: A description of the accounting treatment followed by the applicant on stranded meter costs for financial accounting and reporting purposes.
A40: 2 | B40: The amount of the pooled residual net book value of the removed from service stranded meters, less any contributed capital (net of accumulated amortization), and less any net proceeds from sales, which were transferred to this sub-account as of December 31, 2010.
A44: 3 | B44: A statement as to whether or not, since transferring the removed stranded meter costs to the sub-account, the recording of depreciation expenses was continued in order to reduce the net book value through accumulated depreciation. If so, the total depreciation expense amount for the period from the time the costs for the stranded meters were transferred to the sub-account to December 31, 2010 should be provided.
B49: If no depreciation expenses were recorded to reduce the net book value of stranded meter costs through accumulated depreciation, the total depreciation expense amount that would have been applicable from the time that the stranded meter costs were transferred to the sub-account of Account 1555 to December 31, 2010 should be provided. In addition, the following information should be provided:
B54: a) | C54: Whether or not carrying charges were recorded for the stranded meter cost balances in the sub-account, and if so, the total carrying charges recorded to December 31, 2010.
B57: b) | C57: The estimated amount of the pooled residual net book value of the removed from service meters, less any net proceeds from sales and contributed capital, at the time when the smart meters will have been fully deployed (e.g., as of December 31, 2010). If the smart meters have been fully deployed, the actual amount should be provided.
B62: c) | C62: A description as to how the applicant intends to recover in rates the remaining costs for stranded meters, including the proposed accounting treatment, the proposed disposition period, and the associated bill impacts.
A66: Scenario B: If the stranded meter costs remained recorded in Account 1860, the above table should be completed and the following information should be provided in Exhibit 9:
A69: 1 | B69: A description of the accounting treatment followed by the applicant on stranded meter costs for financial accounting and reporting purposes.
A72: 2 | B72: The amount of the pooled residual net book value of the removed from service stranded meters, less any contributed capital (net of accumulated amortization), and less any net proceeds from sales, as of December 31, 2010.
A76: 3 | B76: A statement as to whether or not the recording of depreciation expenses continued in order to reduce the net book value through accumulated depreciation. If so, provision of the total (cumulative) depreciation expense for the period from the time that the meters became stranded to December 31, 2010.
A80: 4 | B80: If no depreciation expenses were recorded to reduce the net book value of stranded meters through accumulated depreciation, the total (cumulative) depreciation expense amount that would have been applicable for the period from the time that the meters became stranded to December 31, 2010.
A84: 5 | B84: The estimated amount of the pooled residual net book value of the removed from service meters, less any net proceeds from sales and contributed capital, at the time when smart meters will have been fully deployed. If the smart meters have been fully deployed, please provide the actual amount.
A88: 6 | B88: A description as to how the applicant intends to recover in rates the costs for stranded meters, including the proposed accounting treatment, the proposed disposition period and the associated bill impacts.
A91: Distributors should also provide the Net Book Value per class of meter as of December 31, 2010 as well as the number of meters that were removed / stranded. In preparing this information, distributors should review the Board's letter of January 16, 2007 Stranded Meter Costs Related to the Installation of Smart Meters which stated that records were to be kept of the type and number of each meter to support the stranded meter costs.

Sheet App.2-TA_1592_Tax_Variance
C1: File Number: | E1: =EBNUMBER -> 0
C2: Exhibit:
C3: Tab:
C4: Schedule:
C5: Page:
C7: Date:
A9: Appendix 2-TA
A10: Account 1592, PILs and Tax Variances for 2006 and Subsequent Years and Subsequent Years
A12: The following table should be completed based on the information requested below, in accordance with the notes following the table. An explanation should be provided for any blank entries.
A14: Tax Item | E14: Principal as of
E15: December 31,
E16: 20XX
A17: Large Corporation Tax grossed-up proxy from 2006 EDR application PILs model for the period from May 1, 2006 to April 30, 2007
A18: Large Corporation Tax grossed-up proxy from 2006 EDR application PILs model for the period from January 1, 2006 to April 30, 2006 (4/12ths of the approved grossed-up proxy), if not recorded in PILs account 1562
A19: Ontario Capital Tax rate decrease and increase in capital deduction for 2007
A20: Ontario Capital Tax rate decrease and increase in capital deduction for 2008
A21: Ontario Capital Tax rate decrease and increase in capital deduction for 2009
A22: Ontario Capital Tax rate decrease and increase in capital deduction for 2010
A23: Ontario Capital Tax rate decrease and increase in capital deduction for 2011
A24: Ontario Capital Tax rate decrease and increase in capital deduction for 2012
A25: Ontario Capital Tax rate decrease and increase in capital deduction for 2013
A26: Capital Cost Allowance class changes from 2006 EDR application for 2006
A27: Capital Cost Allowance class changes from 2006 EDR application for 2007
A28: Capital Cost Allowance class changes from 2006 EDR application for 2008
A29: Capital Cost Allowance class changes from 2006 EDR application for 2009
A30: Capital Cost Allowance class changes from 2006 EDR application for 2010
A31: Capital Cost Allowance class changes from 2006 EDR application for 2011
A32: Capital Cost Allowance class changes from 2006 EDR application for 2012
A33: Capital Cost Allowance class changes from 2006 EDR application for 2013
A34: Capital Cost Allowance class changes from any prior application not recorded above. Please provide details and explanation separately.
A35: Insert description of additional item(s) and new rows if needed.
A36: Total | E36: =SUM(E17:E35) -> 0
A38: Notes:
A40: 1 | B40: Revise the deferral and variance account continuity schedule to include account 1592 as a group 2 account and enter all relevant information for transactions, adjustments, etc., for all relevant years.
A43: 2 | B43: Describe each type of tax item that has been recorded in account 1592.
A45: 3 | B45: Provide the calculations that show how each item was determined and provide any pertinent supporting evidence and documentation.
A48: 4 | B48: Please state whether or not the applicant followed the guidance provided in the FAQ of July 2007. If not, please provide an explanation.
A51: 5 | B51: Identify the account balance as of December 31, 2012 as per the 2012 Audited Financial Statements. Identify the account balance as of December 31, 2012 as per the April 2013 2.1.7 RRR filing to the Board. Provide a reconciliation if the balances provided are not identical to each other and to the total shown on the continuity schedule.
A56: 6 | B56: Complete the above table based on the answers to the previous. Add rows as required to complete the analysis in an informative manner. Please provide the completed table as a working Excel spreadsheet.

Sheet App.2-TB_1592_HST-OVAT
G1: File Number: | J1: =EBNUMBER -> 0
G2: Exhibit:
G3: Tab:
J4: Schedule:
J5: Page:
J7: Date:
A9: Appendix 2-TB
A10: Account 1592, PILs and Tax Variances for 2006 and Subsequent Years, and Subsequent Years
A11: Sub-account HST/OVAT Input Tax Credits (ITCs)
A13: The following table should be completed based on the information requested below. An explanation should be provided for any blank entries.
A14: 100% of the balance in Account 1592, PILs and Tax Variances for 2006 and Subsequent Years, Sub-account HST/OVAT Input Tax Credits (ITCs), should be recorded in this table.
A17: Summary of PST Savings from 2009 Historic Year Analysis
C19: Principal 2010 | D19: Principal 2011 | E19: Principal 2012 | F19: Principal 2013 | G19: Principal 2014 | H19: Principal 2015 | I19: Principal Jan-April 2016 1 | J19: Carrying Charges to April 30, 2016 | K19: Total Account 1592, sub-account HST/OVAT Balance
A23: OM&A Expenses PST Savings | K23: =SUM(C23:J23) -> 0
A24: Capital Items PST Savings | K24: =SUM(C24:J24) -> 0
A25: Total Annual PST Savings 2 | C25: =SUM(C23:C24) -> 0 | D25: 0 | E25: 0 | F25: 0 | I25: 0 | J25: 0 | K25: 0
A27: Notes:
A29: 1 Include January to April 30, 2016 PST savings if the rate year begins May 1, 2016. If the rate year begins Jan 1, 2016, include PST savings to December 31, 2015.
A30: 2 Derived PST savings proxy for each year per 2009 historical year analysis
A32: Note: Assumes level OM&A and Capital Spending year over year. An alternative detailed transactional analysis may also be performed using actual expenditures from 2010 to the start of the rate year.

Sheet App.2-U_IFRS Transition Costs
P2: File Number: | Q2: =EBNUMBER -> 0
P3: Exhibit:
P4: Tab:
P5: Schedule:
P6: Page:
P8: Date:
A9: Appendix 2-U
A10: One-Time Incremental IFRS Transition Costs
A12: The following table should be completed based on the information requested below. An explanation should be provided for any blank entries. The entries should include one-time incremental IFRS transition costs that are currently included in Account 1508, Other Regulatory Assets, sub-account Deferred IFRS Transition Costs Account, or Account 1508, Other Regulatory Assets, sub-account IFRS Transition Costs Variance Account.
A14: Nature of One-Time Incremental IFRS Transition Costs 1 | E14: Audited Actual | F14: Audited Actual | G14: Audited Actual | H14: Audited Actual | I14: Audited Actual | J14: Audited Actual | K14: Audited Carrying | L14: Forecasted Costs | M14: Forecasted Costs | N14: Total Costs Including Carrying Charges | O14: Carrying Charges January 1, 2015 to December 31,2015/April 30, 2016 (As appropriate) | P14: Total Costs and Carrying Charges | Q14: Reasons why the costs recorded meet the criteria of one-time IFRS administrative incremental costs
E15: Costs Incurred | F15: Costs Incurred | G15: Costs Incurred | H15: Costs Incurred | I15: Costs Incurred | J15: Costs Incurred | K15: Charges
E16: 2009 | F16: 2010 | G16: 2011 | H16: 2012 | I16: 2013 | J16: 2014 | K16: to Dec 31, 2014 | L16: 2015 | M16: 2016 3
A17: professional accounting fees | N17: =SUM(E17:M17) -> 0 | P17: =SUM(N17,O17) -> 0
A18: professional legal fees | N18: =SUM(E18:M18) -> 0 | P18: 0
A19: salaries, wages and benefits of staff added to support the transition to IFRS | N19: 0 | P19: 0
A20: associated staff training and development costs | N20: 0 | P20: 0
A21: costs related to system upgrades, or replacements or changes where IFRS was the major reason for conversion | N21: 0 | P21: 0
N22: 0 | P22: 0
N23: 0 | P23: 0
N24: 0 | P24: 0
N25: 0 | P25: 0
A26: Amounts, if any, included in previous Board approved rates (amounts should be negative) 3 | N26: 0 | P26: 0
N27: 0 | P27: 0
A28: Insert description of additional item(s) and new rows if needed. | N28: 0 | P28: 0
A29: Total | E29: =SUM(E17:E28) -> 0 | F29: =SUM(F17:F28) -> 0 | G29: 0 | H29: 0 | I29: 0 | K29: =SUM(K17:K28) -> 0 | L29: 0 | M29: 0 | N29: =SUM(N17:N28) -> 0 | P29: =SUM(P17:P28) -> 0
A32: Note:
A33: 1 | B33: The Deferred IFRS Transition Costs Account and the IFRS Transition Costs Variance Account are exclusively for necessary, incremental transition costs and shall not include ongoing IFRS compliance costs or impacts arising from adopting accounting policy changes that reflect changes in the timing of the recognition of income. The incremental costs in these accounts shall not include costs related to system upgrades, or replacements or changes where IFRS was not the major reason for conversion. In addition, incremental IFRS costs shall not include capital assets or expenditures.
A34: 2 | B34: If there were any amounts approved in previous Board approved rates, please state the EB #:
A35: 3 | B35: Any forecasted One-time costs past 2015 should be fully explained in the application, since distributors were required to adopt IFRS or an alternative accounting standard by January 1, 2015.

Sheet App.2-V_Rev_Reconciliation
O1: File Number: | P1: =EBNUMBER -> 0
O2: Exhibit:
O3: Tab:
O4: Schedule:
O5: Page:
O7: Date:
A9: Appendix 2-V
A10: Revenue Reconciliation
A12: Rate Class | B12: Customers/ Connections | C12: Number of Customers/Connections | F12: Test Year Consumption | H12: Proposed Rates | K12: Revenues at Proposed Rates | M12: Class Specific Revenue Requirement | N12: Transformer Allowance Credit | O12: Total | P12: Difference
C13: Start of Test Year | D13: End of Test Year | E13: Average | F13: kWh | G13: kW | H13: Monthly Service Charge | I13: Volumetric
A15: Residential | B15: Customers | E15: =IF(SUM(C15:D15)=0,0,AVERAGE(C15:D15)) -> 0 | K15: =H15*E15*12+I15*F15+J15*G15 -> 0 | O15: =SUM(M15:N15) -> 0 | P15: =O15-K15 -> 0
A16: GS < 50 kW | B16: Customers | E16: 0 | K16: 0 | O16: 0 | P16: 0
A17: GS > 50 to 4,999 kW | B17: Customers | E17: 0 | K17: 0 | O17: 0 | P17: 0
A18: Large Use | E18: 0 | K18: 0 | O18: 0 | P18: 0
A19: Streetlighting | B19: Customers | E19: 0 | K19: 0 | O19: 0 | P19: 0
A20: Sentinel Lighting | B20: Connections | E20: 0 | K20: 0 | O20: 0 | P20: 0
A21: Unmetered Scattered Load | B21: Connections | E21: 0 | K21: 0 | O21: 0 | P21: 0
A22: Standby Power | E22: 0 | K22: 0 | O22: 0 | P22: 0
A23: Embedded Distributor Class | B23: Customers | E23: 0 | K23: 0 | O23: 0 | P23: 0
A24: etc. | E24: 0 | K24: 0 | O24: 0 | P24: 0
E25: 0 | K25: 0 | O25: 0 | P25: 0
E26: 0 | K26: 0 | O26: 0 | P26: 0
E27: 0 | K27: 0 | O27: 0 | P27: 0
A29: Total | K29: =SUM(K15:K27) -> 0 | M29: =SUM(M15:M27) -> 0 | N29: =SUM(N15:N27) -> 0 | O29: =M29+N29 -> 0 | P29: =O29-K29 -> 0
A31: Note
A33: 1 The class specific revenue requirements in column N must be the amounts used in the final rate design process. The total of column N should equate to the proposed base revenue requirement.
A35: 2 Rates should be entered with the number of decimal places that will show on the Tariff of Rates and Charges.

Sheet App.2-W_Bill Impacts
L1: File Number: | M1: =EBNUMBER -> 0 | T1: 1
L2: Exhibit:
L3: Tab:
L4: Schedule:
L5: Page:
L7: Date:
D10: Appendix 2-W
D11: Bill Impacts
D12: The bill comparisons below must be provided for typical customers and consumption levels. Bill impacts must be provided for residential customers consuming 800 kWh per month and general service customers consuming 2,000 kWh per month and having a monthly demand of less than 50 kW. In addition, distributors must provide a range that is relevant to their service territory, class by class. A general guideline of consumption is provided below: Residential (kWh) - 100, 250, 500, 800, 1000, 1500, 2000 (for customers on TOU and customers on retailer contracts) GS<50kW (kWh) - 1000, 2000, 5000, 10000, 15000 (for customers on TOU and customers on retailer contracts) GS>50kW (kW) - 60, 100, 500, 1000 Large User - range appropriate for utility Lighting Classes and USL - 150 kWh and 1 kW, range appropriate for utility. For certain classes where one or more customers have unique consumption and demand patterns and which may be significantly impacted by the proposed rate changes, the distributor must show a typical comparison, and provide an explanation. Note: The Ontario Clean Energy Benefit is applicable to eligible customers only. Refer to the Ontario Clean Energy Benefit Act, 2010. Effective until December 31, 2015.
D13: Note that cells with the highlighted color shown to the left indicate quantities that are loss adjusted.
D28: Table 1
D29: RATE CLASSES / CATEGORIES (eg: Residential TOU, Residential Retailer) | G29: Units | H29: RPP? Non-RPP Retailer? Non-RPP Other? | I29: OCEB Applicable? | J29: Current Loss Factor (eg: 1.0351) | K29: Proposed/ Approved Loss Factor (eg: 1.0351) | L29: Consumption (kWh) | M29: Demand kW (if applicable)
C30: 1 | D30: Residential | G30: kWh | H30: RPP | I30: No | J30: 1.0349 | K30: 1.032 | L30: 750 | T30: =SUM(J30:M30) -> 752.0669 | U30: 78
C31: 2 | D31: Residential | G31: kWh | H31: RPP | I31: No | J31: 1.0349 | K31: 1.032 | L31: 277 | T31: =SUM(J31:M31) -> 279.0669 | U31: =U30+68 -> 146
C32: 3 | D32: Residential | G32: kWh | H32: Non-RPP (Retailer) | I32: No | J32: 1.0349 | K32: 1.032 | L32: 800 | T32: 802.0669 | U32: =U31+68 -> 214
C33: 4 | D33: General Service Less than 50 kW | G33: kWh | H33: RPP | I33: No | J33: 1.0349 | K33: 1.032 | L33: 2000 | T33: 2002.0669 | U33: 282
C34: 5 | D34: General Service Less than 50 kW | G34: kWh | H34: RPP | I34: No | J34: 1.0349 | K34: 1.032 | L34: 3000 | T34: 3002.0669 | U34: 350
C35: 6 | D35: General Service 50-4,999 kW | G35: kW | H35: Non-RPP (Other) | I35: No | J35: 1.0349 | K35: 1.032 | L35: 195000 | M35: 500 | T35: 195502.0669 | U35: 418
C36: 7 | D36: Street Lighting | G36: kW | H36: Non-RPP (Other) | I36: No | J36: 1.0349 | K36: 1.032 | L36: 325 | M36: 1 | T36: 328.0669 | U36: 486
C37: 8 | D37: Sentinal Lighting | G37: kW | H37: RPP | I37: No | J37: 1.0349 | K37: 1.032 | L37: 325 | M37: 1 | T37: 328.0669 | U37: 554
C38: 9 | D38: Embedded Distributor | G38: kW | H38: Non-RPP (Other) | I38: No | J38: 1.0349 | K38: 1.032 | L38: 1500000 | M38: 4000 | T38: 1504002.067 | U38: 622
C39: 10 | D39: Unmetered Scatter Load | G39: kWh | H39: RPP | I39: No | J39: 1.0349 | K39: 1.032 | L39: 275 | T39: 277.0669 | U39: 690
C40: 11 | D40: Rate Class 11 | T40: 0 | U40: 758
C41: 12 | D41: Rate Class 12 | T41: 0 | U41: 826
C42: 13 | D42: Rate Class 13 | T42: 0 | U42: 894
C43: 14 | D43: Rate Class 14 | T43: 0 | U43: 962
C44: 15 | D44: Rate Class 15 | T44: 0 | U44: 1030
C45: 16 | D45: Rate Class 16 | T45: 0 | U45: 1098
C46: 17 | D46: Rate Class 17 | T46: 0 | U46: 1166
C47: 18 | D47: Rate Class 18 | T47: 0 | U47: 1234
C48: 19 | D48: Rate Class 19 | T48: 0 | U48: 1302
C49: 20 | D49: Rate Class 20 | T49: 0 | U49: 1370
D51: Table 2
D52: RATE CLASSES / CATEGORIES (eg: Residential TOU, Residential Retailer) | G52: Units | H52: Sub-Total | N52: Total
H53: A | J53: B | L53: C | N53: A + B + C
H54: $ | I54: % | J54: $ | K54: % | L54: $ | M54: % | N54: $ | O54: %
B55: =H30 -> RPP | C55: 1 | D55: =IF(ISBLANK(D30), "", D30) -> Residential | G55: =IF(ISBLANK(G30), "", G30) -> kWh | H55: =IF(LEN($G55)>1, (SUMPRODUCT(--($C$78:$C$1000=$C55), --($A$78:$A$1000=$D55), --($B$78:$B$1000="ST_A"), $L$78:$L$1000)), "") -> 4.12 | I55: =IF(LEN($G55)>1, (SUMPRODUCT(--($C$78:$C$1000=$C55),--($A$78:$A$1000=$D55), --($B$78:$B$1000="ST_A"), $M$78:$M$1000)), "") -> 0.1722408027 | J55: =IF(LEN($G55)>1, (SUMPRODUCT(--($C$78:$C$1000=$C55),--($A$78:$A$1000=$D55), --($B$78:$B$1000="ST_B"), $L$78:$L$1000)), "") -> 1.8828455 | K55: =IF(LEN($G55)>1, (SUMPRODUCT(--($C$78:$C$1000=$C55),--($A$78:$A$1000=$D55), --($B$78:$B$1000="ST_B"), $M$78:$M$1000)), "") -> 0.07109500138 | L55: =IF(LEN($G55)>1, (SUMPRODUCT(--($C$78:$C$1000=$C55),--($A$78:$A$1000=$D55), --($B$78:$B$1000="ST_C"), $L$78:$L$1000)), "") -> 1.8528305 | M55: =IF(LEN($G55)>1, (SUMPRODUCT(--($C$78:$C$1000=$C55),--($A$78:$A$1000=$D55), --($B$78:$B$1000="ST_C"), $M$78:$M$1000)), "") -> 0.0498143292 | N55: =IF(LEN($G55)>1, (SUMPRODUCT(--($C$78:$C$1000=$C55),--($A$78:$A$1000=$D55), --($B$78:$B$1000=$B55&"_TOTAL"), $L$78:$L$1000)), "") -> 2.078951965 | O55: =IF(LEN($G55)>1, (SUMPRODUCT(--($C$78:$C$1000=$C55),--($A$78:$A$1000=$D55), --($B$78:$B$1000=$B55&"_TOTAL"), $M$78:$M$1000)), "") -> 0.0154985293
B56: =H31 -> RPP | C56: 2 | D56: Residential | G56: kWh | H56: =IF(LEN($G56)>1, (SUMPRODUCT(--($C$78:$C$1000=$C56), --($A$78:$A$1000=$D56), --($B$78:$B$1000="ST_A"), $L$78:$L$1000)), "") -> 5.1606 | I56: =IF(LEN($G56)>1, (SUMPRODUCT(--($C$78:$C$1000=$C56),--($A$78:$A$1000=$D56), --($B$78:$B$1000="ST_A"), $M$78:$M$1000)), "") -> 0.2757172624 | J56: =IF(LEN($G56)>1, (SUMPRODUCT(--($C$78:$C$1000=$C56),--($A$78:$A$1000=$D56), --($B$78:$B$1000="ST_B"), $L$78:$L$1000)), "") -> 4.435250938 | K56: =IF(LEN($G56)>1, (SUMPRODUCT(--($C$78:$C$1000=$C56),--($A$78:$A$1000=$D56), --($B$78:$B$1000="ST_B"), $M$78:$M$1000)), "") -> 0.2199805066 | L56: =IF(LEN($G56)>1, (SUMPRODUCT(--($C$78:$C$1000=$C56),--($A$78:$A$1000=$D56), --($B$78:$B$1000="ST_C"), $L$78:$L$1000)), "") -> 4.424165398 | M56: =IF(LEN($G56)>1, (SUMPRODUCT(--($C$78:$C$1000=$C56),--($A$78:$A$1000=$D56), --($B$78:$B$1000="ST_C"), $M$78:$M$1000)), "") -> 0.1834381163 | N56: =IF(LEN($G56)>1, (SUMPRODUCT(--($C$78:$C$1000=$C56),--($A$78:$A$1000=$D56), --($B$78:$B$1000=$B56&"_TOTAL"), $L$78:$L$1000)), "") -> 4.993860526 | O56: =IF(LEN($G56)>1, (SUMPRODUCT(--($C$78:$C$1000=$C56),--($A$78:$A$1000=$D56), --($B$78:$B$1000=$B56&"_TOTAL"), $M$78:$M$1000)), "") -> 0.08126663712
B57: Non-RPP (Retailer) | C57: 3 | D57: Residential | G57: kWh | H57: 3.77 | I57: 0.138247158 | J57: 1.41048 | K57: 0.04781106616 | L57: 1.378464 | M57: 0.03368152247 | N57: 1.54193472 | O57: 0.008752466647
B58: RPP | C58: 4 | D58: General Service Less than 50 kW | G58: kWh | H58: 8.66 | I58: 0.1820475089 | J58: 2.667588 | K58: 0.05024711914 | L58: 2.596828 | M58: 0.03314778027 | N58: 2.89509164 | O58: 0.008676319297
B59: RPP | C59: 5 | D59: General Service Less than 50 kW | G59: kWh | H59: 10.86 | I59: 0.1993758032 | J59: 1.871382 | K59: 0.03001219263 | L59: 1.765242 | M59: 0.01761166695 | N59: 1.93573746 | O59: 0.004025670619
B60: Non-RPP (Other) | C60: 6 | D60: General Service 50-4,999 kW | G60: kW | H60: 443.46 | I60: 0.2511198066 | J60: -131.0540916 | K60: -0.05937921843 | L60: -131.2540916 | M60: -0.03056920807 | N60: -209.343056 | O60: -0.007861182532
B61: Non-RPP (Other) | C61: 7 | D61: Street Lighting | G61: kW | H61: 3.7114 | I61: 1.033672191 | J61: 2.5930095 | K61: 0.4178007439 | L61: 2.5901095 | M61: 0.2550216338 | N61: 2.921605113 | O61: 0.06230173146
B62: RPP | C62: 8 | D62: Sentinal Lighting | G62: kW | H62: 4.1851 | I62: 0.1777421972 | J62: 3.19113305 | K62: 0.1269586133 | L62: 3.19083305 | M62: 0.1099058475 | N62: 3.599251197 | O62: 0.04938568499
B63: Non-RPP (Other) | C63: 9 | D63: Embedded Distributor | G63: kW | H63: 3930.3 | I63: 0.5517836836 | J63: 2852.3 | K63: 0.3473970494 | L63: 2850.7 | M63: 0.1144708189 | N63: 2775.9467 | O63: 0.01483930166
B64: RPP | C64: 10 | D64: Unmetered Scatter Load | G64: kWh | H64: 2.6475 | I64: 0.1770015043 | J64: 1.79604335 | K64: 0.1093462275 | L64: 0.96329385 | M64: 0.04841310462 | N64: 1.083115001 | O64: 0.01919187797
B65: 0 | C65: 11 | D65: Rate Class 11
B66: 0 | C66: 12 | D66: Rate Class 12
B67: 0 | C67: 13 | D67: Rate Class 13
B68: 0 | C68: 14 | D68: Rate Class 14
B69: 0 | C69: 15 | D69: Rate Class 15
B70: 0 | C70: 16 | D70: Rate Class 16 | G70: =IF(ISBLANK(G45), "", G45) -> 
B71: 0 | C71: 17 | D71: Rate Class 17 | G71: =IF(ISBLANK(G46), "", G46) -> 
B72: 0 | C72: 18 | D72: Rate Class 18 | G72: =IF(ISBLANK(G47), "", G47) -> 
B73: 0 | C73: 19 | D73: Rate Class 19 | G73: =IF(ISBLANK(G48), "", G48) -> 
B74: 0 | C74: 20 | D74: Rate Class 20 | G74: =IF(ISBLANK(G49), "", G49) -> 
D78: Customer Class: | E78: =D30 -> Residential | T78: X
D79: RPP / Non-RPP: | E79: =H30 -> RPP
D80: Consumption | E80: =L30 -> 750 | F80: kWh
D81: Demand | E81: =M30 -> 0 | F81: kW
D82: Current Loss Factor | E82: =J30 -> 1.0349
D83: Proposed/Approved Loss Factor | E83: =K30 -> 1.032
D84: Ontario Clean Energy Benefit Applied? | E84: =I30 -> No
F86: Current Board-Approved | I86: Proposed | L86: Impact
E87: Charge Unit | F87: Rate | G87: Volume | H87: Charge | I87: Rate | J87: Volume | K87: Charge | L87: $ Change | M87: % Change
F88: ($) | H88: ($) | I88: ($) | K88: ($)
A89: =$E78 -> Residential | D89: Monthly Service Charge | F89: 14.64 | G89: 1 | H89: =G89*F89 -> 14.64 | I89: ='App. 2-Z_Tariff'!D57 -> 19.83 | J89: 1 | K89: =J89*I89 -> 19.83 | L89: =K89-H89 -> 5.19 | M89: =IF(ISERROR(L89/H89), "", L89/H89) -> 0.3545081967
A90: =A89 -> Residential | D90: Smart Meter Rate Adder | G90: 1 | H90: =G90*F90 -> 0 | J90: 1 | K90: =J90*I90 -> 0 | L90: 0 | M90: =IF(ISERROR(L90/H90), "", L90/H90) -> 
A91: =A90 -> Residential | D91: Rate Rider for Tax Change | F91: 0.04 | G91: 1 | H91: 0.04 | I91: ='App. 2-Z_Tariff'!D58 -> 0.05 | J91: 1 | K91: =J91*I91 -> 0.05 | L91: 0.01 | M91: 0.25
A92: Residential | D92: RR for residual Historical SM | F92: -0.48 | G92: 1 | H92: -0.48 | I92: ='App. 2-Z_Tariff'!D59 -> -0.48 | J92: 1 | K92: -0.48 | L92: 0 | M92: 0
A93: Residential | D93: RR for Recovery of Stranded Assets | F93: 1.47 | G93: 1 | H93: 1.47 | I93: ='App. 2-Z_Tariff'!D60 -> 1.47 | J93: 1 | K93: 1.47 | L93: 0 | M93: 0
A94: Residential | G94: 1 | H94: 0 | J94: 1 | K94: 0 | L94: 0
A95: Residential | D95: Distribution Volumetric Rate | F95: 0.011 | G95: =IF($E81>0, $E81, $E80) -> 750 | H95: 8.25 | I95: ='App. 2-Z_Tariff'!D62 -> 0.0085 | J95: =IF($E81>0, $E81, $E80) -> 750 | K95: 6.375 | L95: -1.875 | M95: -0.2272727273
A96: Residential | D96: Smart Meter Disposition Rider | G96: =IF($E81>0, $E81, $E80) -> 750 | H96: 0 | J96: =IF($E81>0, $E81, $E80) -> 750 | K96: 0 | L96: 0
A97: Residential | D97: LRAM & SSM Rate Rider | G97: =IF($E81>0, $E81, $E80) -> 750 | H97: 0 | I97: ='App. 2-Z_Tariff'!D67 -> 0 | J97: =IF($E81>0, $E81, $E80) -> 750 | K97: 0 | L97: 0
A98: Residential | D98: LRAM (prior to 2011) | G98: =IF($E81>0, $E81, $E80) -> 750 | H98: 0 | I98: ='App. 2-Z_Tariff'!D68 -> 0.0003 | J98: =IF($E81>0, $E81, $E80) -> 750 | K98: 0.225 | L98: 0.225
A99: Residential | D99: RR for DVA - Group 2 | G99: =IF($E81>0, $E81, $E80) -> 750 | H99: 0 | I99: ='App. 2-Z_Tariff'!D66 -> 0.57 | J99: 1 | K99: 0.57 | L99: 0.57
A100: Residential | G100: =IF($E81>0, $E81, $E80) -> 750 | H100: 0 | J100: =IF($E81>0, $E81, $E80) -> 750 | K100: 0 | L100: 0
A101: Residential | G101: =IF($E81>0, $E81, $E80) -> 750 | H101: 0 | J101: =IF($E81>0, $E81, $E80) -> 750 | K101: 0 | L101: 0
A102: Residential | G102: =IF($E81>0, $E81, $E80) -> 750 | H102: 0 | J102: =IF($E81>0, $E81, $E80) -> 750 | K102: 0 | L102: 0
A103: Residential | G103: =IF($E81>0, $E81, $E80) -> 750 | H103: 0 | J103: =IF($E81>0, $E81, $E80) -> 750 | K103: 0 | L103: 0
A104: Residential | G104: =IF($E81>0, $E81, $E80) -> 750 | H104: 0 | J104: =IF($E81>0, $E81, $E80) -> 750 | K104: 0 | L104: 0
A105: Residential | B105: ST_A | C105: =C30 -> 1 | D105: Sub-Total A (excluding pass through) | H105: =SUM(H89:H104) -> 23.92 | K105: =SUM(K89:K104) -> 28.04 | L105: 4.12 | M105: =IF((H105)=0,"",(L105/H105)) -> 0.1722408027
A106: Residential | D106: Deferral/Variance Account Disposition Rate Rider - Group 1 | F106: 0.0005 | G106: =IF($E81>0, $E81, $E80) -> 750 | H106: =G106*F106 -> 0.375 | I106: ='App. 2-Z_Tariff'!D63 -> -0.0003 | J106: =IF($E81>0, $E81, $E80) -> 750 | K106: =J106*I106 -> -0.225 | L106: -0.6 | M106: -1.6
A107: Residential | D107: DVA RR for Non-WMP | F107: -0.0017 | G107: =IF($E81>0, $E81, $E80) -> 750 | H107: =G107*F107 -> -1.275 | I107: ='App. 2-Z_Tariff'!D64 -> -0.0038 | J107: =IF($E81>0, $E81, $E80) -> 750 | K107: =J107*I107 -> -2.85 | L107: -1.575 | M107: 1.235294118
A108: Residential | G108: =IF($E81>0, $E81, $E80) -> 750 | H108: 0 | J108: =IF($E81>0, $E81, $E80) -> 750 | K108: 0 | L108: 0
A109: Residential | D109: RR for change in accounting to IFRS | G109: =IF($E81>0, $E81, $E80) -> 750 | H109: 0 | I109: ='App. 2-Z_Tariff'!D69 -> 0.16 | J109: 1 | K109: 0.16 | L109: 0.16
A110: Residential | D110: Low Voltage Service Charge | G110: =IF($E81>0, $E81, $E80) -> 750 | H110: =G110*F110 -> 0 | J110: =IF($E81>0, $E81, $E80) -> 750 | K110: =J110*I110 -> 0 | L110: 0
A111: Residential | D111: Line Losses on Cost of Power | F111: =IF((E80*12>=150000), 0, IF(E79="RPP",(F122*0.64+F123*0.18+F124*0.18),IF(E79="Non-RPP (Retailer)",F125,F126))) -> 0.10214 | G111: =IF(F111=0, 0, $E80*E82-E80) -> 26.175 | H111: 2.6735145 | I111: =IF((E80*12>=150000), 0, IF(E79="RPP",(I122*0.64+I123*0.18+I124*0.18),IF(E79="Non-RPP (Retailer)",I125,I126))) -> 0.10214 | J111: =IF(I111=0, 0, E80*E83-E80) -> 24 | K111: 2.45136 | L111: -0.2221545 | M111: -0.08309455587
A112: Residential | D112: Smart Meter Entity Charge | F112: 0.79 | G112: 1 | H112: =G112*F112 -> 0.79 | I112: ='App. 2-Z_Tariff'!D61 -> 0.79 | J112: 1 | K112: =J112*I112 -> 0.79 | L112: 0 | M112: 0
A113: Residential | B113: ST_B | C113: =C30 -> 1 | D113: Sub-Total B - Distribution (includes Sub-Total A) | H113: =SUM(H106:H112)+H105 -> 26.4835145 | K113: =SUM(K106:K112)+K105 -> 28.36636 | L113: 1.8828455 | M113: =IF((H113)=0,"",(L113/H113)) -> 0.07109500138
A114: Residential | D114: RTSR - Network | F114: 0.0082 | G114: =IF($E81>0, $E81, $E80*$E82) -> 776.175 | H114: =G114*F114 -> 6.364635 | I114: ='App. 2-Z_Tariff'!D70 -> 0.008 | J114: =IF($E81>0, $E81, $E80*$E83) -> 774 | K114: =J114*I114 -> 6.192 | L114: -0.172635 | M114: -0.0271241006
A115: Residential | D115: RTSR - Line and Transformation Connection | F115: 0.0056 | G115: =IF($E81>0, $E81, $E80*$E82) -> 776.175 | H115: =G115*F115 -> 4.34658 | I115: ='App. 2-Z_Tariff'!D71 -> 0.0058 | J115: =IF($E81>0, $E81, $E80*$E83) -> 774 | K115: =J115*I115 -> 4.4892 | L115: 0.14262 | M115: 0.03281200392
A116: Residential | B116: ST_C | C116: =C30 -> 1 | D116: Sub-Total C - Delivery (including Sub-Total B) | H116: =SUM(H113:H115) -> 37.1947295 | K116: =SUM(K113:K115) -> 39.04756 | L116: 1.8528305 | M116: =IF((H116)=0,"",(L116/H116)) -> 0.0498143292
A117: Residential | D117: Wholesale Market Service Charge (WMSC) | F117: 0.0036 | G117: =E80*E82 -> 776.175 | H117: =G117*F117 -> 2.79423 | I117: ='App. 2-Z_Tariff'!D90 -> 0.0036 | J117: =E80*E83 -> 774 | K117: =J117*I117 -> 2.7864 | L117: -0.00783 | M117: -0.002802203111
A118: Residential | D118: Rural and Remote Rate Protection (RRRP) | F118: 0.0013 | G118: =E80*E82 -> 776.175 | H118: 1.0090275 | I118: ='App. 2-Z_Tariff'!D91 -> 0.0013 | J118: =E80*E83 -> 774 | K118: 1.0062 | L118: -0.0028275 | M118: -0.002802203111
A119: Residential | D119: Standard Supply Service Charge | F119: 0.25 | G119: 1 | H119: 0.25 | I119: ='App. 2-Z_Tariff'!D92 -> 0.25 | J119: 1 | K119: 0.25 | L119: 0 | M119: 0
A120: Residential | D120: Debt Retirement Charge (DRC) | G120: =E80 -> 750 | H120: 0 | J120: =IF(ISNUMBER(SEARCH("RESIDENTIAL", UPPER(E78),1)), "", E80) ->  | K120: =IF(ISNUMBER(SEARCH("RESIDENTIAL", UPPER(E78),1)), "", J120*I120) ->  | L120: =IF(ISNUMBER(SEARCH("RESIDENTIAL", UPPER(E78),1)), "", K120-H120) -> 
A121: Residential | D121: Ontario Electricity Support Program (OESP) | F121: 0.0011 | G121: =G118 -> 776.175 | H121: =G121*F121 -> 0.8537925 | I121: 0.0011 | J121: =E80*E83 -> 774 | K121: =J121*I121 -> 0.8514 | L121: =K121-H121 -> -0.0023925 | M121: -0.002802203111
A122: =A120 -> Residential | B122: RPP | D122: TOU - Off Peak | F122: 0.08 | G122: =IF(AND(E80*12>=150000),0.64*E80*E82,0.64*E80) -> 480 | H122: 38.4 | I122: 0.08 | J122: =IF(AND(E80*12>=150000),0.64*E80*E83,0.64*E80) -> 480 | K122: 38.4 | L122: 0 | M122: 0
A123: Residential | B123: RPP | D123: TOU - Mid Peak | F123: 0.122 | G123: =IF(AND(E80*12>=150000),0.18*E80*E82,0.18*E80) -> 135 | H123: 16.47 | I123: 0.122 | J123: =IF(AND(E80*12>=150000),0.18*E80*E83,0.18*E80) -> 135 | K123: 16.47 | L123: 0 | M123: 0
A124: Residential | B124: RPP | D124: TOU - On Peak | F124: 0.161 | G124: =IF(AND(E80*12>=150000),0.18*E80*E82,0.18*E80) -> 135 | H124: 21.735 | I124: 0.161 | J124: =IF(AND(E80*12>=150000),0.18*E80*E83,0.18*E80) -> 135 | K124: 21.735 | L124: 0 | M124: 0
A125: Residential | B125: Non-RPP (Retailer) | D125: Non-RPP Retailer Avg. Price | F125: 0.086 | G125: =IF(AND(E80*12>=150000),E80*E82,E80) -> 750 | H125: =G125*F125 -> 64.5 | I125: 0.086 | J125: =IF(AND(E80*12>=150000),E80*E83,E80) -> 750 | K125: =J125*I125 -> 64.5 | L125: 0 | M125: 0
A126: Residential | B126: Non-RPP (Other) | D126: Average IESO Wholesale Market Price | F126: =0.0906 -> 0.0906 | G126: =IF(AND(E80*12>=150000),E80*E82,E80) -> 750 | H126: =G126*F126 -> 67.95 | I126: =0.0906 -> 0.0906 | J126: =IF(AND(E80*12>=150000),E80*E83,E80) -> 750 | K126: =J126*I126 -> 67.95 | L126: 0 | M126: 0
A127: Residential
A128: Residential | B128: RPP | D128: Total Bill on TOU (before Taxes) | H128: =SUM(H117:H124,H116) -> 118.7067795 | K128: =SUM(K117:K124,K116) -> 120.54656 | L128: =K128-H128 -> 1.8397805 | M128: =IF((H128)=0,"",(L128/H128)) -> 0.0154985293
A129: Residential | B129: RPP | D129: HST | F129: 0.13 | H129: =H128*F129 -> 15.43188133 | I129: 0.13 | K129: =K128*I129 -> 15.6710528 | L129: =K129-H129 -> 0.239171465 | M129: =IF((H129)=0,"",(L129/H129)) -> 0.0154985293
A130: Residential | B130: RPP | D130: Total Bill (including HST) | H130: =H128+H129 -> 134.1386608 | K130: =K128+K129 -> 136.2176128 | L130: =K130-H130 -> 2.078951965 | M130: =IF((H130)=0,"",(L130/H130)) -> 0.0154985293
A131: Residential | B131: RPP | D131: Ontario Clean Energy Benefit 1
